Workbook

Sheet Input
A1: Product Name: | C1: test | N1: =COUNT(N7:N15) -> 5 | O1: :Total Number of Loadings
A2: Date: | C2: =TODAY() -> 2011-12-20
A3: PROTECTION PASSWORD : | C3: CONCAWE | F3: Target Species Selection Menu | N3: Product Loading | O3: Effect Data | P3: POC or Lipid
A5: Test Conditions: | I5: INTERCEPT | N5: (mg/L water) | O5: (%)
A6: Volume of Water (L): | C6: 0.9 | E6: ID | F6: SPECIES | I6: (mmol / g octanol) | M6: 1 | N6: 0.5 | O6: 10
A7: Volume of Air (L): | C7: 0.1 | E7: 18 | F7: Daphnia magna | I7: 115 | M7: 2 | N7: 1 | O7: 0
A8: Total System Volume (L): | C8: =+C7+C6 -> 1 | M8: 3 | N8: 5 | O8: 10
M9: 4 | N9: 10 | O9: 40
M10: 5 | N10: 50 | O10: 60
F11: 0 | G11: No bioavailability correction. | M11: 6 | N11: 100 | O11: 100
M12: 7
M13: 8
M14: 9
M15: 10
C17: =COUNT(C21:C120) -> 26 | D17: :Total Number of Hydrocarbon Blocks | J17: Total Weight Percent: | K17: =SUM(E21:T120) -> 96.57594224
B19: Hydrocarbon Block | C19: Starting Carbon Number | D19: Ending Carbon Number | E19: n-P | F19: i-P | G19: n-CC5 | H19: n-CC6 | I19: i-N | J19: Di-N | K19: n-Olefins | L19: i-Olefins | M19: Poly-N | N19: AlS | O19: MoAr | P19: NMAr | Q19: DiAr | R19: NDiAr | S19: PolyAr | T19: ArS
E20: (weight %) | F20: (weight %) | G20: (weight %) | H20: (weight %) | I20: (weight %) | J20: (weight %) | K20: (weight %) | L20: (weight %) | M20: (weight %) | N20: (weight %) | O20: (weight %) | P20: (weight %) | Q20: (weight %) | R20: (weight %) | S20: (weight %) | T20: (weight %)
B21: 1 | C21: 5 | D21: 6 | E21: 0 | F21: 0 | G21: 0 | H21: 0 | I21: 0 | J21: 0 | K21: 0 | L21: 0 | M21: 0 | N21: 0 | O21: 0 | P21: 0 | Q21: 0 | R21: 0 | S21: 0 | T21: 0
B22: 2 | C22: 6 | D22: 7 | E22: 0 | F22: 0 | G22: 0.002118951744 | H22: 0 | I22: 0 | J22: 0 | K22: 0 | L22: 0 | M22: 0 | N22: 0 | O22: 0 | P22: 0 | Q22: 0 | R22: 0 | S22: 0 | T22: 0
B23: 3 | C23: 7 | D23: 8 | E23: 0.008465245342 | F23: 0.002124454475 | G23: 0.01774179161 | H23: 0.003500876795 | I23: 0.00487571505 | J23: 0 | K23: 0 | L23: 0 | M23: 0 | N23: 0 | O23: 0.03042550417 | P23: 0 | Q23: 0 | R23: 0 | S23: 0 | T23: 0
B24: 4 | C24: 8 | D24: 9 | E24: 0.1150124786 | F24: 0.06756992139 | G24: 0.08445333757 | H24: 0.09509061706 | I24: 0.1310277552 | J24: 0.01946817315 | K24: 0 | L24: 0 | M24: 0 | N24: 0 | O24: 0.3161887687 | P24: 0 | Q24: 0 | R24: 0 | S24: 0 | T24: 0
B25: 5 | C25: 9 | D25: 10 | E25: 0.7753739483 | F25: 0.5041079424 | G25: 0.141168959 | H25: 0.06141062321 | I25: 0.6726077259 | J25: 0.1922868206 | K25: 0 | L25: 0 | M25: 0 | N25: 0 | O25: 1.153654756 | P25: 0.02252368511 | Q25: 0 | R25: 0 | S25: 0 | T25: 0
B26: 6 | C26: 10 | D26: 11 | E26: 1.285766016 | F26: 1.494464627 | G26: 0.1324486576 | H26: 0.102184499 | I26: 1.273869142 | J26: 0.7002981293 | K26: 0 | L26: 0 | M26: 0 | N26: 0 | O26: 1.161928413 | P26: 0.2124646717 | Q26: 0.03505400515 | R26: 0 | S26: 0 | T26: 0
B27: 7 | C27: 11 | D27: 12 | E27: 1.435989594 | F27: 1.522077953 | G27: 0.08890738831 | H27: 0.07200892532 | I27: 1.347873 | J27: 0.9855434231 | K27: 0 | L27: 0 | M27: 0 | N27: 0 | O27: 0.9557418512 | P27: 0.7345778436 | Q27: 0.1607510098 | R27: 0 | S27: 0 | T27: 0
B28: 8 | C28: 12 | D28: 13 | E28: 1.420278504 | F28: 1.400598294 | G28: 0.1069255649 | H28: 0.06368548444 | I28: 1.405612663 | J28: 1.076615196 | K28: 0 | L28: 0 | M28: 0 | N28: 0 | O28: 0.7522973685 | P28: 1.166519344 | Q28: 0.5779111854 | R28: 0.00184014829 | S28: 0 | T28: 0
B29: 9 | C29: 13 | D29: 14 | E29: 1.436869009 | F29: 1.607983026 | G29: 0.1017132271 | H29: 0.0682600107 | I29: 1.498364638 | J29: 1.254428262 | K29: 0 | L29: 0 | M29: 0 | N29: 0 | O29: 0.6729861358 | P29: 1.188897467 | Q29: 0.6734651409 | R29: 0.05022275354 | S29: 0 | T29: 0
B30: 10 | C30: 14 | D30: 15 | E30: 1.385470353 | F30: 1.662021059 | G30: 0.08153357798 | H30: 0.0688340411 | I30: 1.470389514 | J30: 1.97138058 | K30: 0 | L30: 0 | M30: 0 | N30: 0 | O30: 0.6248012982 | P30: 0.9396783645 | Q30: 0.8082638055 | R30: 0.2117988114 | S30: 0.02132524032 | T30: 0
B31: 11 | C31: 15 | D31: 16 | E31: 1.413046675 | F31: 1.867028677 | G31: 0.07883350903 | H31: 0.06937618093 | I31: 1.448470057 | J31: 1.303665186 | K31: 0 | L31: 0 | M31: 0 | N31: 0 | O31: 0.5504884116 | P31: 0.7470755222 | Q31: 0.5169691244 | R31: 0.4228085435 | S31: 0.07103578308 | T31: 0
B32: 12 | C32: 16 | D32: 17 | E32: 1.311569315 | F32: 1.320516148 | G32: 0.06405045439 | H32: 0.05811880687 | I32: 1.312977621 | J32: 0.9154755219 | K32: 0 | L32: 0 | M32: 0 | N32: 0 | O32: 0.4627164365 | P32: 0.5030195345 | Q32: 0.4596649537 | R32: 0.4504315093 | S32: 0.1825086669 | T32: 0
B33: 13 | C33: 17 | D33: 18 | E33: 1.23930808 | F33: 1.244561037 | G33: 0.07142780812 | H33: 0.05636128167 | I33: 1.303679745 | J33: 0.8549553018 | K33: 0 | L33: 0 | M33: 0 | N33: 0 | O33: 0.4237055181 | P33: 0.488424205 | Q33: 0.4395614047 | R33: 0.4335066767 | S33: 0.1856736352 | T33: 0
B34: 14 | C34: 18 | D34: 19 | E34: 1.126292082 | F34: 1.416259923 | G34: 0.05744910473 | H34: 0.0582109352 | I34: 1.28757146 | J34: 0.8130349168 | K34: 0 | L34: 0 | M34: 0 | N34: 0 | O34: 0.3991875711 | P34: 0.4087198539 | Q34: 0.3406438838 | R34: 0.2936377466 | S34: 0.1742266482 | T34: 0
B35: 15 | C35: 19 | D35: 20 | E35: 1.026275825 | F35: 2.176744991 | G35: 0.04624133823 | H35: 0.0673847915 | I35: 1.190365435 | J35: 0.8489269722 | K35: 0 | L35: 0 | M35: 0 | N35: 0 | O35: 0.3500911055 | P35: 0.3822565782 | Q35: 0.2270756034 | R35: 0.1777161186 | S35: 0.1295073931 | T35: 0
B36: 16 | C36: 20 | D36: 21 | E36: 0.8750951184 | F36: 0.9626770739 | G36: 0.03495207358 | H36: 0.03586627016 | I36: 1.023485583 | J36: 0.5190732836 | K36: 0 | L36: 0 | M36: 0 | N36: 0 | O36: 0.3011544751 | P36: 0.3331438967 | Q36: 0.1267636976 | R36: 0.1657200226 | S36: 0.1204223493 | T36: 0
B37: 17 | C37: 21 | D37: 22 | E37: 0.7401178425 | F37: 0.898409148 | G37: 0.04718033858 | H37: 0.03605761363 | I37: 0.8132061979 | J37: 0.406117354 | K37: 0 | L37: 0 | M37: 0 | N37: 0 | O37: 0.2346426418 | P37: 0.2860930048 | Q37: 0.1145687754 | R37: 0.0599257841 | S37: 0.07988438641 | T37: 0
B38: 18 | C38: 22 | D38: 23 | E38: 0.6147580945 | F38: 0.6107611998 | G38: 0.03310950685 | H38: 0.03060432477 | I38: 0.7050439872 | J38: 0.3113048684 | K38: 0 | L38: 0 | M38: 0 | N38: 0 | O38: 0.2096383732 | P38: 0.208249148 | Q38: 0.07508541855 | R38: 0.04712119589 | S38: 0.04214631931 | T38: 0
B39: 19 | C39: 23 | D39: 24 | E39: 0.4912029607 | F39: 0.5127465436 | G39: 0.03219885368 | H39: 0.02242970659 | I39: 0.5627446843 | J39: 0.1954499416 | K39: 0 | L39: 0 | M39: 0 | N39: 0 | O39: 0.1731147521 | P39: 0.1649657306 | Q39: 0.04634097615 | R39: 0.02964732784 | S39: 0.009236491973 | T39: 0
B40: 20 | C40: 24 | D40: 25 | E40: 0.3873459925 | F40: 0.455014162 | G40: 0.02479315276 | H40: 0.0205162719 | I40: 0.4694186793 | J40: 0.08171862849 | K40: 0 | L40: 0 | M40: 0 | N40: 0 | O40: 0.1005405175 | P40: 0.1506783306 | Q40: 0.02102355558 | R40: 0.01379341957 | S40: 0.005972714598 | T40: 0
B41: 21 | C41: 25 | D41: 26 | E41: 0.2285088594 | F41: 0.3338560175 | G41: 0.006930885638 | H41: 0.01438619412 | I41: 0.2881171994 | J41: 0.04576616934 | K41: 0 | L41: 0 | M41: 0 | N41: 0 | O41: 0.06949875052 | P41: 0.09461718457 | Q41: 0.01541603037 | R41: 0.01014963301 | S41: 0 | T41: 0
B42: 22 | C42: 26 | D42: 27 | E42: 0.1413042287 | F42: 0.2579454578 | G42: 0.00366741648 | H42: 0.00826674652 | I42: 0.1547330849 | J42: 0.02336253306 | K42: 0 | L42: 0 | M42: 0 | N42: 0 | O42: 0.02422166796 | P42: 0.02591635002 | Q42: 0.01041967092 | R42: 0 | S42: 0 | T42: 0
B43: 23 | C43: 27 | D43: 28 | E43: 0.07721180205 | F43: 0.11184624 | G43: 0.002671721764 | H43: 0.001856740324 | I43: 0.07028683411 | J43: 0.01305791798 | K43: 0 | L43: 0 | M43: 0 | N43: 0 | O43: 0.0133713223 | P43: 0.01123312158 | Q43: 0.00480602755 | R43: 0 | S43: 0 | T43: 0
B44: 24 | C44: 28 | D44: 29 | E44: 0.04091025329 | F44: 0.06197260534 | G44: 0.001389011846 | H44: 0.001233102353 | I44: 0.03615328536 | J44: 0.008027235216 | K44: 0 | L44: 0 | M44: 0 | N44: 0 | O44: 0.002575174452 | P44: 0.004208944999 | Q44: 0 | R44: 0 | S44: 0 | T44: 0
B45: 25 | C45: 29 | D45: 30 | E45: 0.0234592007 | F45: 0.03339561636 | G45: 0.0005385964299 | H45: 0.0007901776571 | I45: 0.01543503979 | J45: 0 | K45: 0 | L45: 0 | M45: 0 | N45: 0 | O45: 0.0009489325503 | P45: 0.001216458092 | Q45: 0 | R45: 0 | S45: 0 | T45: 0
B46: 26 | C46: 30 | D46: 31 | E46: 0.01266803961 | F46: 0.02235871595 | G46: 0 | H46: 0 | I46: 0.009014403406 | J46: 0 | K46: 0 | L46: 0 | M46: 0 | N46: 0 | O46: 0 | P46: 0 | Q46: 0 | R46: 0 | S46: 0 | T46: 0
B47: 27
B48: 28
B49: 29
B50: 30
B51: 31
B52: 32
B53: 33
B54: 34
B55: 35
B56: 36
B57: 37
B58: 38
B59: 39
B60: 40
B61: 41
B62: 42
B63: 43
B64: 44
B65: 45
B66: 46
B67: 47
B68: 48
B69: 49
B70: 50
B71: 51
B72: 52
B73: 53
B74: 54
B75: 55
B76: 56
B77: 57
B78: 58
B79: 59
B80: 60
B81: 61
B82: 62
B83: 63
B84: 64
B85: 65
B86: 66
B87: 67
B88: 68
B89: 69
B90: 70
B91: 71
B92: 72
B93: 73
B94: 74
B95: 75
B96: 76
B97: 77
B98: 78
B99: 79
B100: 80
B101: 81
B102: 82
B103: 83
B104: 84
B105: 85
B106: 86
B107: 87
B108: 88
B109: 89
B110: 90
B111: 91
B112: 92
B113: 93
B114: 94
B115: 95
B116: 96
B117: 97
B118: 98
B119: 99
B120: 100
D121: Values in BOLD red are outside of database

Sheet Output (hidden)
I1: =SUM(I4:I1162) -> 100 | Z1: COPY override!!! | BI1: =SUMIF(BZ4:BZ1162,">350",BU4:BU1162) -> 88.89497389 | BJ1: =SUMIF(BR4:BR1162,">350",BM4:BM1162) -> 88.89497389 | BM1: =SUM(BM4:BM1162) -> 100 | BN1: =SUM(BN4:BN1162) -> 0.8830337069 | BP1: =SUM(BP4:BP1162) -> 7.775043793e-07 | BU1: =SUM(BU4:BU1162) -> 100 | BV1: =SUM(BV4:BV1162) -> 0.5417221448 | BX1: =SUM(BX4:BX1162) -> 5.568159081e-07
I2: =MIN(I4:I1162) -> 3.225806452e-22 | L2: =SUM(L4:L326)*1000*128.18 -> 2.246676992 | O2: =MAX(O4:O1162) -> 0 | BL2: PAH enriched | BM2: PAH enriched | BN2: PAH enriched | BO2: PAH enriched | BP2: PAH enriched | BQ2: PAH enriched | BT2: All equal | BU2: All equal | BV2: All equal | BW2: All equal | BX2: All equal | BY2: All equal
H3: ID | I3: massFra | J3: TU | K3: FAV | L3: Cw | M3: subclass | N3: BP | O3: RATIOpahARO | BL3: ID | BM3: massFra | BN3: TU | BO3: FAV | BP3: Cw | BQ3: subclass | BR3: BP | BT3: ID | BU3: massFra | BV3: TU | BW3: FAV | BX3: Cw | BY3: subclass | BZ3: BP
H4: 685 | I4: 4.44 | J4: 0.249018298 | K4: 3.817156487e-07 | L4: 9.503629349e-08 | O4: 0 | AS4: 0 | AT4: 0 | AU4: 0 | AV4: 1 | AW4: 0 | AX4: 0 | AY4: 0 | AZ4: 0 | BA4: 0 | BB4: 0 | BC4: 0 | BD4: 0 | BE4: 0 | BF4: 0 | BG4: 0 | BH4: 0 | BL4: 639 | BM4: 0.06667896349 | BN4: 0.0001399469413 | BO4: 0.0001830444557 | BP4: 2.561169107e-08 | BQ4: 4 | BR4: 58.79787048 | BT4: 639 | BU4: 0.06667896349 | BV4: 0.0001399486725 | BW4: 0.0001830444557 | BX4: 2.56120079e-08 | BY4: 4 | BZ4: 58.79787048
H5: 704 | I5: 4.44 | J5: 0.1933180252 | K5: 1.029957691e-07 | L5: 1.990719176e-08 | O5: 0 | AS5: 0 | AT5: 0 | AU5: 1 | AV5: 3 | AW5: 0 | AX5: 0 | AY5: 0 | AZ5: 0 | BA5: 0 | BB5: 0 | BC5: 1 | BD5: 0 | BE5: 0 | BF5: 0 | BG5: 0 | BH5: 0 | BL5: 640 | BM5: 0.01666974087 | BN5: 7.098950049e-05 | BO5: 5.238252524e-05 | BP5: 3.717909518e-09 | BQ5: 4 | BR5: 76.46651853 | BT5: 640 | BU5: 0.01666974087 | BV5: 7.099231724e-05 | BW5: 5.238252524e-05 | BX5: 3.718057039e-09 | BY5: 4 | BZ5: 76.46651853
H6: 777 | I6: 4.44 | J6: 0.1443287336 | K6: 2.763734287e-08 | L6: 6.563399923e-09 | O6: 0 | AS6: 1 | AT6: 2 | AU6: 4 | AV6: 5 | AW6: 1 | AX6: 2 | AY6: 0 | AZ6: 0 | BA6: 0 | BB6: 0 | BC6: 1 | BD6: 0 | BE6: 0 | BF6: 0 | BG6: 0 | BH6: 0 | BL6: 1 | BM6: 2e-20 | BN6: 7.36678943e-24 | BO6: 0.001361952358 | BP6: 1.003132814e-26 | BQ6: 11 | BR6: 77.95570637 | BT6: 1 | BU6: 2e-20 | BV6: 7.366801041e-24 | BW6: 0.001361952358 | BX6: 1.003134396e-26 | BY6: 11 | BZ6: 77.95570637
H7: 818 | I7: 4.44 | J7: 0.1070500009 | K7: 7.351613456e-09 | L7: 3.600984094e-09 | O7: 0 | AS7: 1 | AT7: 9 | AU7: 9 | AV7: 4 | AW7: 2 | AX7: 4 | AY7: 2 | AZ7: 2 | BA7: 0 | BB7: 0 | BC7: 5 | BD7: 0 | BE7: 0 | BF7: 0 | BG7: 0 | BH7: 0 | BL7: 641 | BM7: 0.01666974087 | BN7: 8.004547253e-05 | BO7: 6.014012721e-05 | BP7: 4.813038994e-09 | BQ7: 3 | BR7: 88.46336889 | BT7: 641 | BU7: 0.01666974087 | BV7: 8.004907106e-05 | BW7: 6.014012721e-05 | BX7: 4.813255369e-09 | BY7: 3 | BZ7: 88.46336889
H8: 873 | I8: 4.44 | J8: 0.07974600449 | K8: 1.963119389e-09 | L8: 2.079452474e-09 | O8: 0 | AS8: 1 | AT8: 9 | AU8: 10 | AV8: 4 | AW8: 3 | AX8: 3 | AY8: 2 | AZ8: 5 | BA8: 0 | BB8: 0 | BC8: 7 | BD8: 0 | BE8: 0 | BF8: 0 | BG8: 0 | BH8: 0 | BL8: 642 | BM8: 0.01666974087 | BN8: 0.0001311955045 | BO8: 1.534494776e-05 | BP8: 2.012809313e-09 | BQ8: 4 | BR8: 95.20216058 | BT8: 642 | BU8: 0.01666974087 | BV8: 0.0001312104923 | BW8: 1.534494776e-05 | BX8: 2.013039256e-09 | BY8: 4 | BZ8: 95.20216058
H9: 717 | I9: 0.2666666667 | J9: 0.01061404372 | K9: 1.411949471e-07 | L9: 1.498367319e-09 | O9: 0 | AS9: 1 | AT9: 13 | AU9: 9 | AV9: 3 | AW9: 2 | AX9: 2 | AY9: 3 | AZ9: 6 | BA9: 2 | BB9: 0 | BC9: 9 | BD9: 2 | BE9: 0 | BF9: 0 | BG9: 0 | BH9: 1 | BL9: 643 | BM9: 0.01666974087 | BN9: 0.0001373231337 | BO9: 1.491698893e-05 | BP9: 2.04806218e-09 | BQ9: 4 | BR9: 96.45077971 | BT9: 643 | BU9: 0.01666974087 | BV9: 0.0001373396333 | BW9: 1.491698893e-05 | BX9: 2.048308257e-09 | BY9: 4 | BZ9: 96.45077971
H10: 718 | I10: 0.2666666667 | J10: 0.01110204399 | K10: 1.545466859e-07 | L10: 1.715461223e-09 | O10: 0 | AS10: 1 | AT10: 13 | AU10: 4 | AV10: 6 | AW10: 2 | AX10: 20 | AY10: 2 | AZ10: 7 | BA10: 1 | BB10: 2 | BC10: 8 | BD10: 4 | BE10: 1 | BF10: 0 | BG10: 0 | BH10: 1 | BL10: 1005 | BM10: 0.004445264232 | BN10: 3.372153451e-05 | BO10: 5.065950413e-06 | BP10: 1.707994739e-10 | BQ10: 1 | BR10: 99.43093925 | BT10: 1005 | BU10: 0.004445264232 | BV10: 3.372603481e-05 | BW10: 5.065950413e-06 | BX10: 1.708222679e-10 | BY10: 1 | BZ10: 99.43093925
H11: 719 | I11: 0.2666666667 | J11: 0.01002159369 | K11: 1.406668775e-07 | L11: 1.409441008e-09 | O11: 0 | AS11: 1 | AT11: 23 | AU11: 12 | AV11: 2 | AW11: 2 | AX11: 16 | AY11: 1 | AZ11: 5 | BA11: 1 | BB11: 1 | BC11: 16 | BD11: 9 | BE11: 1 | BF11: 0 | BG11: 1 | BH11: 1 | BL11: 1446 | BM11: 0.004445264232 | BN11: 9.25694361e-08 | BO11: 8.104118348e-05 | BP11: 7.501936655e-12 | BQ11: 6 | BR11: 100.964045 | BT11: 1446 | BU11: 0.004445264232 | BV11: 9.256946034e-08 | BW11: 8.104118348e-05 | BX11: 7.50193862e-12 | BY11: 6 | BZ11: 100.964045
H12: 720 | I12: 0.2666666667 | J12: 0.01081237334 | K12: 1.601153108e-07 | L12: 1.73090073e-09 | O12: 0 | AS12: 1 | AT12: 17 | AU12: 10 | AV12: 2 | AW12: 2 | AX12: 13 | AY12: 2 | AZ12: 8 | BA12: 1 | BB12: 1 | BC12: 8 | BD12: 6 | BE12: 2 | BF12: 0 | BG12: 0 | BH12: 1 | BL12: 644 | BM12: 0.004445264232 | BN12: 4.263768888e-05 | BO12: 1.526538864e-05 | BP12: 6.507584062e-10 | BQ12: 4 | BR12: 102.334341 | BT12: 644 | BU12: 0.004445264232 | BV12: 4.264364135e-05 | BW12: 1.526538864e-05 | BX12: 6.508492558e-10 | BY12: 4 | BZ12: 102.334341
H13: 723 | I13: 0.2666666667 | J13: 0.01109293513 | K13: 1.160994921e-07 | L13: 1.287641775e-09 | O13: 0 | AS13: 1 | AT13: 9 | AU13: 8 | AV13: 2 | AW13: 6 | AX13: 7 | AY13: 2 | AZ13: 6 | BA13: 1 | BB13: 0 | BC13: 9 | BD13: 13 | BE13: 11 | BF13: 2 | BG13: 1 | BH13: 0 | BL13: 645 | BM13: 0.004445264232 | BN13: 4.135645565e-05 | BO13: 1.738408286e-05 | BP13: 7.188087583e-10 | BQ13: 3 | BR13: 104.3890488 | BT13: 645 | BU13: 0.004445264232 | BV13: 4.13619509e-05 | BW13: 1.738408286e-05 | BX13: 7.189042701e-10 | BY13: 3 | BZ13: 104.3890488
H14: 724 | I14: 0.2666666667 | J14: 0.01128163819 | K14: 1.291738323e-07 | L14: 1.457018201e-09 | O14: 0 | AS14: 1 | AT14: 5 | AU14: 8 | AV14: 2 | AW14: 3 | AX14: 4 | AY14: 2 | AZ14: 1 | BA14: 3 | BB14: 1 | BC14: 10 | BD14: 10 | BE14: 4 | BF14: 2 | BG14: 2 | BH14: 4 | BL14: 646 | BM14: 0.004445264232 | BN14: 5.963370793e-05 | BO14: 4.544181308e-06 | BP14: 2.709353856e-10 | BQ14: 4 | BR14: 113.4199793 | BT14: 646 | BU14: 0.004445264232 | BV14: 5.965151157e-05 | BW14: 4.544181308e-06 | BX14: 2.710162733e-10 | BY14: 4 | BZ14: 113.4199793
H15: 725 | I15: 0.2666666667 | J15: 0.01129676719 | K15: 1.300403005e-07 | L15: 1.468758551e-09 | O15: 0 | AS15: 1 | AT15: 8 | AU15: 2 | AV15: 2 | AW15: 2 | AX15: 4 | AY15: 0 | AZ15: 0 | BA15: 3 | BB15: 2 | BC15: 11 | BD15: 12 | BE15: 15 | BF15: 5 | BG15: 2 | BH15: 6 | BL15: 647 | BM15: 0.004445264232 | BN15: 6.796709112e-05 | BO15: 4.30875095e-06 | BP15: 2.927981582e-10 | BQ15: 4 | BR15: 116.7400472 | BT15: 647 | BU15: 0.004445264232 | BV15: 6.799045183e-05 | BW15: 4.30875095e-06 | BX15: 2.928987947e-10 | BY15: 4 | BZ15: 116.7400472
H16: 726 | I16: 0.2666666667 | J16: 0.01130895097 | K16: 1.454659388e-07 | L16: 1.644757594e-09 | O16: 0 | AS16: 1 | AT16: 3 | AU16: 1 | AV16: 1 | AW16: 3 | AX16: 4 | AY16: 0 | AZ16: 0 | BA16: 5 | BB16: 0 | BC16: 9 | BD16: 15 | BE16: 7 | BF16: 5 | BG16: 1 | BH16: 3 | BL16: 2 | BM16: 2e-20 | BN16: 2.166499507e-23 | BO16: 0.0003907730128 | BP16: 8.464502213e-27 | BQ16: 11 | BR16: 117.6315563 | BT16: 2 | BU16: 2e-20 | BV16: 2.166512691e-23 | BW16: 0.0003907730128 | BX16: 8.464553722e-27 | BY16: 11 | BZ16: 117.6315563
H17: 762 | I17: 0.2666666667 | J17: 0.00833745983 | K17: 4.080162448e-08 | L17: 5.315706e-10 | O17: 0 | AS17: 1 | AT17: 5 | AU17: 1 | AV17: 1 | AW17: 5 | AX17: 3 | AY17: 0 | AZ17: 0 | BA17: 9 | BB17: 1 | BC17: 8 | BD17: 16 | BE17: 11 | BF17: 9 | BG17: 2 | BH17: 4 | BL17: 656 | BM17: 0.004445264232 | BN17: 4.999602238e-05 | BO17: 1.532479515e-06 | BP17: 7.660346189e-11 | BQ17: 2 | BR17: 117.6781817 | BT17: 656 | BU17: 0.004445264232 | BV17: 5.001099723e-05 | BW17: 1.532479515e-06 | BX17: 7.662640622e-11 | BY17: 2 | BZ17: 117.6781817
H18: 763 | I18: 0.2666666667 | J18: 0.008558405552 | K18: 4.305882447e-08 | L18: 5.314319228e-10 | O18: 0 | AS18: 1 | AT18: 3 | AU18: 1 | AV18: 1 | AW18: 3 | AX18: 6 | AY18: 0 | AZ18: 0 | BA18: 7 | BB18: 4 | BC18: 3 | BD18: 21 | BE18: 8 | BF18: 12 | BG18: 2 | BH18: 4 | BL18: 648 | BM18: 0.004445264232 | BN18: 6.757296249e-05 | BO18: 5.129454081e-06 | BP18: 3.465471813e-10 | BQ18: 3 | BR18: 118.1794232 | BT18: 648 | BU18: 0.004445264232 | BV18: 6.75951177e-05 | BW18: 5.129454081e-06 | BX18: 3.46660804e-10 | BY18: 3 | BZ18: 118.1794232
H19: 764 | I19: 0.2666666667 | J19: 0.008132428827 | K19: 4.366230526e-08 | L19: 5.304589695e-10 | O19: 0 | AS19: 1 | AT19: 3 | AU19: 1 | AV19: 2 | AW19: 6 | AX19: 3 | AY19: 0 | AZ19: 0 | BA19: 10 | BB19: 1 | BC19: 3 | BD19: 15 | BE19: 13 | BF19: 11 | BG19: 3 | BH19: 5 | BL19: 651 | BM19: 0.004445264232 | BN19: 7.184445289e-05 | BO19: 4.528400081e-06 | BP19: 3.252792025e-10 | BQ19: 4 | BR19: 118.3806835 | BT19: 651 | BU19: 0.004445264232 | BV19: 7.187011976e-05 | BW19: 4.528400081e-06 | BX19: 3.253954104e-10 | BY19: 4 | BZ19: 118.3806835
H20: 765 | I20: 0.2666666667 | J20: 0.00833551583 | K20: 4.223397524e-08 | L20: 5.35372609e-10 | O20: 0 | AS20: 1 | AT20: 5 | AU20: 2 | AV20: 1 | AW20: 4 | AX20: 3 | AY20: 0 | AZ20: 0 | BA20: 10 | BB20: 4 | BC20: 3 | BD20: 12 | BE20: 6 | BF20: 14 | BG20: 3 | BH20: 3 | BL20: 655 | BM20: 0.004445264232 | BN20: 5.481198101e-05 | BO20: 1.746552351e-06 | BP20: 9.571397905e-11 | BQ20: 2 | BR20: 119.3009331 | BT20: 655 | BU20: 0.004445264232 | BV20: 5.482949869e-05 | BW20: 1.746552351e-06 | BX20: 9.574456885e-11 | BY20: 2 | BZ20: 119.3009331
H21: 766 | I21: 0.2666666667 | J21: 0.008384761533 | K21: 4.323136036e-08 | L21: 5.368438213e-10 | O21: 0 | AS21: 1 | AT21: 1 | AU21: 1 | AV21: 1 | AW21: 2 | AX21: 2 | AY21: 0 | AZ21: 0 | BA21: 5 | BB21: 2 | BC21: 3 | BD21: 11 | BE21: 8 | BF21: 11 | BG21: 4 | BH21: 4 | BL21: 652 | BM21: 0.004445264232 | BN21: 7.609138024e-05 | BO21: 4.40288435e-06 | BP21: 3.349585016e-10 | BQ21: 4 | BR21: 120.009023 | BT21: 652 | BU21: 0.004445264232 | BV21: 7.612036096e-05 | BW21: 4.40288435e-06 | BX21: 3.350860763e-10 | BY21: 4 | BZ21: 120.009023
H22: 767 | I22: 0.2666666667 | J22: 0.008206599447 | K22: 5.624381939e-08 | L22: 5.576337886e-10 | O22: 0 | AS22: 1 | AT22: 1 | AU22: 1 | AV22: 2 | AW22: 1 | AX22: 1 | AY22: 0 | AZ22: 0 | BA22: 2 | BB22: 1 | BC22: 4 | BD22: 13 | BE22: 4 | BF22: 13 | BG22: 5 | BH22: 4 | BL22: 649 | BM22: 0.004445264232 | BN22: 7.208330383e-05 | BO22: 5.120870514e-06 | BP22: 3.690598009e-10 | BQ22: 3 | BR22: 121.0998513 | BT22: 649 | BU22: 0.004445264232 | BV22: 7.210864553e-05 | BW22: 5.120870514e-06 | BX22: 3.691895481e-10 | BY22: 3 | BZ22: 121.0998513
H23: 771 | I23: 0.2666666667 | J23: 0.008438297776 | K23: 3.093599232e-08 | L23: 4.54343951e-10 | O23: 0 | AS23: 1 | AT23: 1 | AU23: 2 | AV23: 3 | AW23: 0 | AX23: 0 | AY23: 0 | AZ23: 0 | BA23: 0 | BB23: 0 | BC23: 2 | BD23: 8 | BE23: 10 | BF23: 6 | BG23: 13 | BH23: 3 | BL23: 650 | BM23: 0.004445264232 | BN23: 7.880656656e-05 | BO23: 4.783866714e-06 | BP23: 3.769291653e-10 | BQ23: 5 | BR23: 121.898258 | BT23: 650 | BU23: 0.004445264232 | BV23: 7.883729341e-05 | BW23: 4.783866714e-06 | BX23: 3.770761307e-10 | BY23: 5 | BZ23: 121.898258
H24: 772 | I24: 0.2666666667 | J24: 0.008555743098 | K24: 3.466577992e-08 | L24: 4.609335217e-10 | O24: 0 | AS24: 1 | AT24: 2 | AU24: 1 | AV24: 0 | AW24: 0 | AX24: 0 | AY24: 0 | AZ24: 0 | BA24: 0 | BB24: 0 | BC24: 1 | BD24: 2 | BE24: 9 | BF24: 9 | BG24: 9 | BH24: 3 | BL24: 653 | BM24: 0.004445264232 | BN24: 7.531572436e-05 | BO24: 4.986713404e-06 | BP24: 3.755072544e-10 | BQ24: 3 | BR24: 122.3046178 | BT24: 653 | BU24: 0.004445264232 | BV24: 7.534354466e-05 | BW24: 4.986713404e-06 | BX24: 3.756459602e-10 | BY24: 3 | BZ24: 122.3046178
H25: 773 | I25: 0.2666666667 | J25: 0.008555743098 | K25: 3.466577992e-08 | L25: 4.609335217e-10 | O25: 0 | AS25: 1 | AT25: 1 | AU25: 1 | AV25: 0 | AW25: 0 | AX25: 0 | AY25: 0 | AZ25: 0 | BA25: 0 | BB25: 0 | BC25: 1 | BD25: 1 | BE25: 6 | BF25: 0 | BG25: 14 | BH25: 5 | BL25: 1447 | BM25: 0.004445264232 | BN25: 2.158477755e-07 | BO25: 3.076771082e-05 | BP25: 6.641141937e-12 | BQ25: 6 | BR25: 126.4318889 | BT25: 1447 | BU25: 0.004445264232 | BV25: 2.158479808e-07 | BW25: 3.076771082e-05 | BX25: 6.641148254e-12 | BY25: 6 | BZ25: 126.4318889
H26: 774 | I26: 0.2666666667 | J26: 0.00864737956 | K26: 4.118882284e-08 | L26: 4.733196518e-10 | O26: 0 | AS26: 1 | AT26: 0 | AU26: 0 | AV26: 0 | AW26: 0 | AX26: 0 | AY26: 0 | AZ26: 0 | BA26: 0 | BB26: 0 | BC26: 2 | BD26: 1 | BE26: 2 | BF26: 6 | BG26: 27 | BH26: 2 | BL26: 727 | BM26: 0.002299274603 | BN26: 3.859925707e-05 | BO26: 1.377500304e-06 | BP26: 5.316048253e-11 | BQ26: 1 | BR26: 127.4816115 | BT26: 727 | BU26: 0.002299274603 | BV26: 3.86154883e-05 | BW26: 1.377500304e-06 | BX26: 5.318283685e-11 | BY26: 1 | BZ26: 127.4816115
H27: 811 | I27: 0.2666666667 | J27: 0.006323046035 | K27: 1.107754421e-08 | L27: 2.932482961e-10 | O27: 0 | AS27: 1 | AT27: 0 | AU27: 0 | AV27: 0 | AW27: 0 | AX27: 0 | AY27: 0 | AZ27: 0 | BA27: 0 | BB27: 0 | BC27: 1 | BD27: 0 | BE27: 0 | BF27: 1 | BG27: 14 | BH27: 0 | BL27: 654 | BM27: 0.002299274603 | BN27: 4.807006993e-05 | BO27: 4.444428196e-06 | BP27: 2.136037698e-10 | BQ27: 4 | BR27: 127.8200903 | BT27: 654 | BU27: 0.002299274603 | BV27: 4.809259199e-05 | BW27: 4.444428196e-06 | BX27: 2.137038487e-10 | BY27: 4 | BZ27: 127.8200903
H28: 812 | I28: 0.2666666667 | J28: 0.006430989403 | K28: 1.146048846e-08 | L28: 2.90061051e-10 | O28: 0 | AS28: 1 | AT28: 0 | AU28: 0 | AV28: 0 | AW28: 0 | AX28: 0 | AY28: 0 | AZ28: 0 | BA28: 0 | BB28: 0 | BC28: 1 | BD28: 0 | BE28: 0 | BF28: 2 | BG28: 14 | BH28: 1 | BL28: 678 | BM28: 0.002299274603 | BN28: 3.215553289e-05 | BO28: 4.91206829e-07 | BP28: 1.579204498e-11 | BQ28: 2 | BR28: 128.9279507 | BT28: 678 | BU28: 0.002299274603 | BV28: 3.217375251e-05 | BW28: 4.91206829e-07 | BX28: 1.58009929e-11 | BY28: 2 | BZ28: 128.9279507
H29: 813 | I29: 0.2666666667 | J29: 0.006182112602 | K29: 1.162885858e-08 | L29: 2.92583244e-10 | O29: 0 | AS29: 1 | AT29: 0 | AU29: 0 | AV29: 0 | AW29: 0 | AX29: 0 | AY29: 0 | AZ29: 0 | BA29: 0 | BB29: 0 | BC29: 1 | BD29: 0 | BE29: 0 | BF29: 1 | BG29: 12 | BH29: 1 | BL29: 671 | BM29: 0.002299274603 | BN29: 4.63151663e-05 | BO29: 5.230771011e-06 | BP29: 2.422184391e-10 | BQ29: 3 | BR29: 129.1497822 | BT29: 671 | BU29: 0.002299274603 | BV29: 4.633550072e-05 | BW29: 5.230771011e-06 | BX29: 2.423247837e-10 | BY29: 3 | BZ29: 129.1497822
H30: 814 | I30: 0.2666666667 | J30: 0.006321735974 | K30: 1.138569366e-08 | L30: 2.948581169e-10 | O30: 0 | AS30: 1 | AT30: 0 | AU30: 0 | AV30: 0 | AW30: 0 | AX30: 0 | AY30: 0 | AZ30: 0 | BA30: 0 | BB30: 0 | BC30: 0 | BD30: 0 | BE30: 0 | BF30: 0 | BG30: 4 | BH30: 0 | BL30: 676 | BM30: 0.002299274603 | BN30: 3.833830281e-05 | BO30: 4.554830729e-07 | BP30: 1.745916182e-11 | BQ30: 2 | BR30: 133.8434131 | BT30: 676 | BU30: 0.002299274603 | BV30: 3.836308729e-05 | BW30: 4.554830729e-07 | BX30: 1.747044861e-11 | BY30: 2 | BZ30: 133.8434131
H31: 815 | I31: 0.2666666667 | J31: 0.006390418533 | K31: 1.360938025e-08 | L31: 3.021956526e-10 | O31: 0 | BL31: 658 | BM31: 0.002299274603 | BN31: 5.30255578e-05 | BO31: 1.318397117e-06 | BP31: 6.989558685e-11 | BQ31: 4 | BR31: 133.9142308 | BT31: 658 | BU31: 0.002299274603 | BV31: 5.306693586e-05 | BW31: 1.318397117e-06 | BX31: 6.99501293e-11 | BY31: 4 | BZ31: 133.9142308
H32: 816 | I32: 0.2666666667 | J32: 0.006267973311 | K32: 1.555262748e-08 | L32: 3.061364385e-10 | O32: 0 | BL32: 659 | BM32: 0.002299274603 | BN32: 5.30255578e-05 | BO32: 1.318397117e-06 | BP32: 6.989558685e-11 | BQ32: 4 | BR32: 133.9142308 | BT32: 659 | BU32: 0.002299274603 | BV32: 5.306693586e-05 | BW32: 1.318397117e-06 | BX32: 6.99501293e-11 | BY32: 4 | BZ32: 133.9142308
H33: 821 | I33: 0.2666666667 | J33: 0.006331547925 | K33: 8.228919458e-09 | L33: 2.50732521e-10 | O33: 0 | BL33: 679 | BM33: 0.002299274603 | BN33: 4.085709566e-05 | BO33: 5.422842065e-07 | BP33: 2.215198826e-11 | BQ33: 2 | BR33: 134.1299766 | BT33: 679 | BU33: 0.002299274603 | BV33: 4.088453334e-05 | BW33: 5.422842065e-07 | BX33: 2.216686449e-11 | BY33: 2 | BZ33: 134.1299766
H34: 822 | I34: 0.2666666667 | J34: 0.006401476023 | K34: 9.223410023e-09 | L34: 2.52688422e-10 | O34: 0 | BL34: 661 | BM34: 0.002299274603 | BN34: 5.884153763e-05 | BO34: 1.48842857e-06 | BP34: 8.756494431e-11 | BQ34: 3 | BR34: 137.3204859 | BT34: 661 | BU34: 0.002299274603 | BV34: 5.889074064e-05 | BW34: 1.48842857e-06 | BX34: 8.763816569e-11 | BY34: 3 | BZ34: 137.3204859
H35: 823 | I35: 0.2666666667 | J35: 0.006401476023 | K35: 9.223410023e-09 | L35: 2.52688422e-10 | O35: 0 | BL35: 662 | BM35: 0.002299274603 | BN35: 5.884153763e-05 | BO35: 1.48842857e-06 | BP35: 8.756494431e-11 | BQ35: 3 | BR35: 137.3204859 | BT35: 662 | BU35: 0.002299274603 | BV35: 5.889074064e-05 | BW35: 1.48842857e-06 | BX35: 8.763816569e-11 | BY35: 3 | BZ35: 137.3204859
H36: 824 | I36: 0.2666666667 | J36: 0.006460386933 | K36: 1.096540187e-08 | L36: 2.575541478e-10 | O36: 0 | BL36: 660 | BM36: 0.002299274603 | BN36: 5.810364024e-05 | BO36: 1.523044508e-06 | BP36: 8.847777692e-11 | BQ36: 3 | BR36: 137.3856746 | BT36: 660 | BU36: 0.002299274603 | BV36: 5.815149266e-05 | BW36: 1.523044508e-06 | BX36: 8.855064456e-11 | BY36: 3 | BZ36: 137.3856746
H37: 853 | I37: 0.2666666667 | J37: 0.004778250424 | K37: 2.981707108e-09 | L37: 1.689546545e-10 | O37: 0 | BL37: 1117 | BM37: 0.002299274603 | BN37: 4.468827661e-05 | BO37: 1.201639209e-05 | BP37: 5.368908005e-10 | BQ37: 6 | BR37: 137.9691515 | BT37: 1117 | BU37: 0.002299274603 | BV37: 4.470620298e-05 | BW37: 1.201639209e-05 | BX37: 5.371061702e-10 | BY37: 6 | BZ37: 137.9691515
H38: 854 | I38: 0.2666666667 | J38: 0.00483170147 | K38: 3.045077383e-09 | L38: 1.661910758e-10 | O38: 0 | BL38: 677 | BM38: 0.002299274603 | BN38: 5.075039797e-05 | BO38: 5.75993702e-07 | BP38: 2.922640863e-11 | BQ38: 2 | BR38: 139.6792096 | BT38: 677 | BU38: 0.002299274603 | BV38: 5.079103569e-05 | BW38: 5.75993702e-07 | BX38: 2.924981129e-11 | BY38: 2 | BZ38: 139.6792096
H39: 855 | I39: 0.2666666667 | J39: 0.004681820043 | K39: 3.090421952e-09 | L39: 1.687626507e-10 | O39: 0 | BL39: 10 | BM39: 4e-21 | BN39: 1.127376025e-23 | BO39: 0.0001300688877 | BP39: 1.46608951e-27 | BQ39: 11 | BR39: 139.690691 | BT39: 10 | BU39: 4e-21 | BV39: 1.127399026e-23 | BW39: 0.0001300688877 | BX39: 1.466119421e-27 | BY39: 11 | BZ39: 139.690691
H40: 856 | I40: 0.2666666667 | J40: 0.004773249828 | K40: 3.028360605e-09 | L40: 1.697255359e-10 | O40: 0 | BL40: 6 | BM40: 4e-21 | BN40: 1.108755532e-23 | BO40: 0.0001309463005 | BP40: 1.451601131e-27 | BQ40: 11 | BR40: 139.7037637 | BT40: 6 | BU40: 4e-21 | BV40: 1.108777869e-23 | BW40: 0.0001309463005 | BX40: 1.451630375e-27 | BY40: 11 | BZ40: 139.7037637
H41: 857 | I41: 0.2666666667 | J41: 0.004846412588 | K41: 3.9077511e-09 | L41: 1.734289285e-10 | O41: 0 | BL41: 667 | BM41: 0.002299274603 | BN41: 6.557491176e-05 | BO41: 1.515630339e-06 | BP41: 9.936862265e-11 | BQ41: 3 | BR41: 140.5882888 | BT41: 667 | BU41: 0.002299274603 | BV41: 6.563548678e-05 | BW41: 1.515630339e-06 | BX41: 9.94604147e-11 | BY41: 3 | BZ41: 140.5882888
H42: 858 | I42: 0.2666666667 | J42: 0.004821069976 | K42: 3.386698666e-09 | L42: 1.704111461e-10 | O42: 0 | BL42: 664 | BM42: 0.002299274603 | BN42: 7.224241736e-05 | BO42: 1.376872731e-06 | BP42: 9.944989608e-11 | BQ42: 5 | BR42: 141.4750028 | BT42: 664 | BU42: 0.002299274603 | BV42: 7.231741408e-05 | BW42: 1.376872731e-06 | BX42: 9.955313758e-11 | BY42: 5 | BZ42: 141.4750028
H43: 859 | I43: 0.2666666667 | J43: 0.004757440801 | K43: 4.260441096e-09 | L43: 1.748906098e-10 | O43: 0 | BL43: 684 | BM43: 0.002299274603 | BN43: 5.285891656e-05 | BO43: 4.840746916e-07 | BP43: 2.558284854e-11 | BQ43: 2 | BR43: 141.6367801 | BT43: 684 | BU43: 0.002299274603 | BV43: 5.290331111e-05 | BW43: 4.840746916e-07 | BX43: 2.560433478e-11 | BY43: 2 | BZ43: 141.6367801
H44: 860 | I44: 0.2666666667 | J44: 0.004766420289 | K44: 4.639468969e-09 | L44: 1.772823382e-10 | O44: 0 | BL44: 665 | BM44: 0.002299274603 | BN44: 6.873107942e-05 | BO44: 1.514065688e-06 | BP44: 1.04043786e-10 | BQ44: 3 | BR44: 142.4239912 | BT44: 665 | BU44: 0.002299274603 | BV44: 6.879791891e-05 | BW44: 1.514065688e-06 | BX44: 1.041449663e-10 | BY44: 3 | BZ44: 142.4239912
H45: 864 | I45: 0.2666666667 | J45: 0.004753612703 | K45: 2.185648903e-09 | L45: 1.452220154e-10 | O45: 0 | BL45: 681 | BM45: 0.002299274603 | BN45: 5.106263225e-05 | BO45: 3.902915767e-07 | BP45: 1.992556487e-11 | BQ45: 2 | BR45: 142.529939 | BT45: 681 | BU45: 0.002299274603 | BV45: 5.110493773e-05 | BW45: 3.902915767e-07 | BX45: 1.994207324e-11 | BY45: 2 | BZ45: 142.529939
H46: 865 | I46: 0.2666666667 | J46: 0.004796015615 | K46: 2.450239247e-09 | L46: 1.455407194e-10 | O46: 0 | BL46: 4 | BM46: 4e-21 | BN46: 9.555073333e-24 | BO46: 0.0001544969005 | BP46: 1.475951411e-27 | BQ46: 11 | BR46: 142.8301428 | BT46: 4 | BU46: 4e-21 | BV46: 9.555239024e-24 | BW46: 0.0001544969005 | BX46: 1.475977005e-27 | BY46: 11 | BZ46: 142.8301428
H47: 866 | I47: 0.2666666667 | J47: 0.004796015615 | K47: 2.450239247e-09 | L47: 1.455407194e-10 | O47: 0 | BL47: 7 | BM47: 4e-21 | BN47: 1.086814148e-23 | BO47: 0.0001353979895 | BP47: 1.47124759e-27 | BQ47: 11 | BR47: 143.5719034 | BT47: 7 | BU47: 4e-21 | BV47: 1.086836361e-23 | BW47: 0.0001353979895 | BX47: 1.471277659e-27 | BY47: 11 | BZ47: 143.5719034
H48: 867 | I48: 0.2666666667 | J48: 0.004834195574 | K48: 2.913980307e-09 | L48: 1.473430958e-10 | O48: 0 | BL48: 666 | BM48: 0.002299274603 | BN48: 7.229944206e-05 | BO48: 1.473452114e-06 | BP48: 1.065097186e-10 | BQ48: 3 | BR48: 144.0176085 | BT48: 666 | BU48: 0.002299274603 | BV48: 7.237396918e-05 | BW48: 1.473452114e-06 | BX48: 1.0661951e-10 | BY48: 3 | BZ48: 144.0176085
H49: 879 | I49: 0.2666666667 | J49: 0.00372500369 | K49: 1.59582409e-09 | L49: 1.350874261e-10 | O49: 0 | BL49: 682 | BM49: 0.002299274603 | BN49: 5.756078346e-05 | BO49: 4.62361767e-07 | BP49: 2.660889724e-11 | BQ49: 2 | BR49: 144.642016 | BT49: 682 | BU49: 0.002299274603 | BV49: 5.76128701e-05 | BW49: 4.62361767e-07 | BX49: 2.663297558e-11 | BY49: 2 | BZ49: 144.642016
H50: 880 | I50: 0.2666666667 | J50: 0.003366850922 | K50: 1.42829392e-09 | L50: 1.378009054e-10 | O50: 0 | BL50: 683 | BM50: 0.002299274603 | BN50: 6.015665265e-05 | BO50: 4.865536046e-07 | BP50: 2.926392815e-11 | BQ50: 2 | BR50: 145.5728505 | BT50: 683 | BU50: 0.002299274603 | BV50: 6.021296567e-05 | BW50: 4.865536046e-07 | BX50: 2.929132229e-11 | BY50: 2 | BZ50: 145.5728505
H51: 895 | I51: 0.2666666667 | J51: 0.003578487519 | K51: 8.835819882e-10 | L51: 1.17837768e-10 | O51: 0 | BL51: 1450 | BM51: 0.002299274603 | BN51: 2.01073418e-07 | BO51: 7.858018535e-06 | BP51: 1.580038646e-12 | BQ51: 6 | BR51: 145.7806396 | BT51: 1450 | BU51: 0.002299274603 | BV51: 2.010739502e-07 | BW51: 7.858018535e-06 | BX51: 1.580042827e-12 | BY51: 6 | BZ51: 145.7806396
H52: 896 | I52: 0.2666666667 | J52: 0.003509255969 | K52: 9.115912406e-10 | L52: 1.176825772e-10 | O52: 0 | BL52: 673 | BM52: 0.002299274603 | BN52: 8.974458488e-05 | BO52: 1.279078418e-06 | BP52: 1.147687599e-10 | BQ52: 4 | BR52: 151.4425036 | BT52: 673 | BU52: 0.002299274603 | BV52: 8.986417566e-05 | BW52: 1.279078418e-06 | BX52: 1.149216971e-10 | BY52: 4 | BZ52: 151.4425036
H53: 897 | I53: 0.2666666667 | J53: 0.003557259624 | K53: 1.072232379e-09 | L53: 1.187106618e-10 | O53: 0 | BL53: 674 | BM53: 0.002299274603 | BN53: 8.653142117e-05 | BO53: 1.477561787e-06 | BP53: 1.278314609e-10 | BQ53: 3 | BR53: 152.0120055 | BT53: 674 | BU53: 0.002299274603 | BV53: 8.663957592e-05 | BW53: 1.477561787e-06 | BX53: 1.279912361e-10 | BY53: 3 | BZ53: 152.0120055
H54: 898 | I54: 0.2666666667 | J54: 0.003489380864 | K54: 1.13456392e-09 | L54: 1.191740986e-10 | O54: 0 | AP54: 9.772288681 | BL54: 675 | BM54: 0.002299274603 | BN54: 8.653142117e-05 | BO54: 1.477561787e-06 | BP54: 1.278314609e-10 | BQ54: 5 | BR54: 152.0120055 | BT54: 675 | BU54: 0.002299274603 | BV54: 8.663957592e-05 | BW54: 1.477561787e-06 | BX54: 1.279912361e-10 | BY54: 5 | BZ54: 152.0120055
H55: 899 | I55: 0.2666666667 | J55: 0.003690101114 | K55: 1.13762127e-09 | L55: 1.157211822e-10 | O55: 0 | W55: 2e-20 | X55: 2e-20 | Y55: 2e-20 | Z55: 2e-20 | AA55: 2e-20 | AB55: 2e-20 | AC55: 2e-20 | AD55: 2e-20 | AE55: 2e-20 | AF55: 2e-20 | AG55: 2e-20 | AH55: 2e-20 | AI55: 2e-20 | AJ55: 2e-20 | AK55: 2e-20 | AL55: 2e-20 | AS55: 2e-20 | AT55: 2e-20 | AU55: 2e-20 | AV55: 2e-20 | AW55: 2e-20 | AX55: 2e-20 | AY55: 2e-20 | AZ55: 2e-20 | BA55: 0.06667896349 | BB55: 2e-20 | BC55: 2e-20 | BD55: 2e-20 | BE55: 2e-20 | BF55: 2e-20 | BG55: 2e-20 | BH55: 2e-20 | BL55: 1448 | BM55: 0.002299274603 | BN55: 2.346025339e-07 | BO55: 6.289903595e-06 | BP55: 1.475627321e-12 | BQ55: 6 | BR55: 152.5107266 | BT55: 1448 | BU55: 0.002299274603 | BV55: 2.346032956e-07 | BW55: 6.289903595e-06 | BX55: 1.475632112e-12 | BY55: 6 | BZ55: 152.5107266
H56: 900 | I56: 0.2666666667 | J56: 0.003588121164 | K56: 1.106818556e-09 | L56: 1.175281027e-10 | O56: 0 | W56: 2e-20 | X56: 2e-20 | Y56: 2e-20 | Z56: 2e-20 | AA56: 2e-20 | AB56: 2e-20 | AC56: 2e-20 | AD56: 2e-20 | AE56: 2e-20 | AF56: 2e-20 | AG56: 2e-20 | AH56: 2e-20 | AI56: 2e-20 | AJ56: 2e-20 | AK56: 2e-20 | AL56: 2e-20 | AS56: 2e-20 | AT56: 2e-20 | AU56: 2e-20 | AV56: 2e-20 | AW56: 2e-20 | AX56: 2e-20 | AY56: 2e-20 | AZ56: 2e-20 | BA56: 0.06667896349 | BB56: 2e-20 | BC56: 2e-20 | BD56: 2e-20 | BE56: 2e-20 | BF56: 2e-20 | BG56: 2e-20 | BH56: 2e-20 | BL56: 1449 | BM56: 0.002299274603 | BN56: 2.346025339e-07 | BO56: 6.289903595e-06 | BP56: 1.475627321e-12 | BQ56: 6 | BR56: 152.5107266 | BT56: 1449 | BU56: 0.002299274603 | BV56: 2.346032956e-07 | BW56: 6.289903595e-06 | BX56: 1.475632112e-12 | BY56: 6 | BZ56: 152.5107266
H57: 908 | I57: 0.2666666667 | J57: 0.00361727723 | K57: 7.921559088e-10 | L57: 1.020926765e-10 | O57: 0 | W57: 2e-20 | X57: 2e-20 | Y57: 2e-20 | Z57: 2e-20 | AA57: 2e-20 | AB57: 2e-20 | AC57: 2e-20 | AD57: 2e-20 | AE57: 2e-20 | AF57: 2e-20 | AG57: 2e-20 | AH57: 2e-20 | AI57: 2e-20 | AJ57: 2e-20 | AK57: 2e-20 | AL57: 2e-20 | AS57: 2e-20 | AT57: 2e-20 | AU57: 2e-20 | AV57: 2e-20 | AW57: 2e-20 | AX57: 2e-20 | AY57: 2e-20 | AZ57: 2e-20 | BA57: 0.06667896349 | BB57: 2e-20 | BC57: 2e-20 | BD57: 2e-20 | BE57: 2e-20 | BF57: 2e-20 | BG57: 2e-20 | BH57: 2e-20 | BL57: 719 | BM57: 0.002299274603 | BN57: 3.310613998e-05 | BO57: 2.722582811e-07 | BP57: 9.011724584e-12 | BQ57: 2 | BR57: 153.1698248 | BT57: 719 | BU57: 0.002299274603 | BV57: 3.315571472e-05 | BW57: 2.722582811e-07 | BX57: 9.025219177e-12 | BY57: 2 | BZ57: 153.1698248
H58: 909 | I58: 0.2666666667 | J58: 0.00364532607 | K58: 8.079691553e-10 | L58: 1.000748178e-10 | O58: 0 | W58: 2e-20 | X58: 2e-20 | Y58: 2e-20 | Z58: 2e-20 | AA58: 2e-20 | AB58: 2e-20 | AC58: 2e-20 | AD58: 2e-20 | AE58: 2e-20 | AF58: 2e-20 | AG58: 2e-20 | AH58: 2e-20 | AI58: 2e-20 | AJ58: 2e-20 | AK58: 2e-20 | AL58: 2e-20 | AS58: 2e-20 | AT58: 2e-20 | AU58: 2e-20 | AV58: 2e-20 | AW58: 2e-20 | AX58: 2e-20 | AY58: 2e-20 | AZ58: 2e-20 | BA58: 0.06667896349 | BB58: 2e-20 | BC58: 2e-20 | BD58: 2e-20 | BE58: 2e-20 | BF58: 2e-20 | BG58: 2e-20 | BH58: 2e-20 | BL58: 21 | BM58: 4e-21 | BN58: 2.475420481e-23 | BO58: 5.018284495e-05 | BP58: 1.242002653e-27 | BQ58: 11 | BR58: 153.1827135 | BT58: 21 | BU58: 4e-21 | BV58: 2.475580265e-23 | BW58: 5.018284495e-05 | BX58: 1.242082822e-27 | BY58: 11 | BZ58: 153.1827135
H59: 910 | I59: 0.2666666667 | J59: 0.003554427136 | K59: 8.20034096e-10 | L59: 1.021258492e-10 | O59: 0 | W59: 0.0004570396471 | X59: 0.0004926531261 | Y59: 2e-20 | Z59: 2e-20 | AA59: 0.0002394572297 | AB59: 2e-20 | AC59: 2e-20 | AD59: 2e-20 | AE59: 2e-20 | AF59: 2e-20 | AG59: 0.001169187735 | AH59: 2e-20 | AI59: 2e-20 | AJ59: 2e-20 | AK59: 2e-20 | AL59: 2e-20 | AS59: 0.0004570396471 | AT59: 0.0004926531261 | AU59: 2e-20 | AV59: 2e-20 | AW59: 0.0002394572297 | AX59: 2e-20 | AY59: 2e-20 | AZ59: 2e-20 | BA59: 0.06667896349 | BB59: 2e-20 | BC59: 0.001169187735 | BD59: 0.0002075387254 | BE59: 2e-20 | BF59: 2e-20 | BG59: 2e-20 | BH59: 2e-20 | BL59: 686 | BM59: 0.002299274603 | BN59: 7.71799632e-05 | BO59: 4.564812675e-07 | BP59: 3.522457748e-11 | BQ59: 3 | BR59: 153.4625928 | BT59: 686 | BU59: 0.002299274603 | BV59: 7.730559101e-05 | BW59: 4.564812675e-07 | BX59: 3.528191343e-11 | BY59: 3 | BZ59: 153.4625928
H60: 911 | I60: 0.2666666667 | J60: 0.003615049064 | K60: 8.037946424e-10 | L60: 1.025467479e-10 | O60: 0 | W60: 0.001999243648 | X60: 0.002360588426 | Y60: 2e-20 | Z60: 2e-20 | AA60: 0.001150562787 | AB60: 2e-20 | AC60: 2e-20 | AD60: 2e-20 | AE60: 0.4000737809 | AF60: 2e-20 | AG60: 0.007814451283 | AH60: 0.004782536647 | AI60: 2e-20 | AJ60: 2e-20 | AK60: 2e-20 | AL60: 2e-20 | AS60: 0.001999243648 | AT60: 0.002360588426 | AU60: 2e-20 | AV60: 2e-20 | AW60: 0.001150562787 | AX60: 2e-20 | AY60: 2e-20 | AZ60: 2e-20 | BA60: 0.06667896349 | BB60: 2e-20 | BC60: 0.007814451283 | BD60: 0.004574997922 | BE60: 0.004836810865 | BF60: 2e-20 | BG60: 2e-20 | BH60: 2e-20 | BL60: 685 | BM60: 0.00226227045 | BN60: 7.654358261e-05 | BO60: 3.817156487e-07 | BP60: 2.921238495e-11 | BQ60: 1 | BR60: 154.339342 | BT60: 685 | BU60: 0.00226227045 | BV60: 7.663421732e-05 | BW60: 3.817156487e-07 | BX60: 2.924697513e-11 | BY60: 1 | BZ60: 154.339342
H61: 912 | I61: 0.2666666667 | J61: 0.003671206643 | K61: 1.076296713e-09 | L61: 1.037505579e-10 | O61: 0 | W61: 0.002651146359 | X61: 0.003944171983 | Y61: 2e-20 | Z61: 2e-20 | AA61: 0.002584385955 | AB61: 2e-20 | AC61: 2e-20 | AD61: 2e-20 | AE61: 0.06667896349 | AF61: 2e-20 | AG61: 0.008754725363 | AH61: 0.01505144528 | AI61: 0.04584422943 | AJ61: 2e-20 | AK61: 2e-20 | AL61: 2e-20 | AS61: 0.002651146359 | AT61: 0.003944171983 | AU61: 2e-20 | AV61: 2e-20 | AW61: 0.002584385955 | AX61: 2e-20 | AY61: 2e-20 | AZ61: 2e-20 | BA61: 0.06667896349 | BB61: 2e-20 | BC61: 0.008754725363 | BD61: 0.01505144528 | BE61: 0.04100741856 | BF61: 2e-20 | BG61: 2e-20 | BH61: 2e-20 | BL61: 1118 | BM61: 0.00226227045 | BN61: 9.132798136e-05 | BO61: 3.374661927e-06 | BP61: 3.081430631e-10 | BQ61: 6 | BR61: 155.591893 | BT61: 1118 | BU61: 0.00226227045 | BV61: 9.144158667e-05 | BW61: 3.374661927e-06 | BX61: 3.085263704e-10 | BY61: 6 | BZ61: 155.591893
H62: 913 | I62: 0.2666666667 | J62: 0.003672944904 | K62: 1.093888707e-09 | L62: 1.039353291e-10 | O62: 0 | W62: 0.003440661741 | X62: 0.006092099527 | Y62: 2e-20 | Z62: 2e-20 | AA62: 0.004508804422 | AB62: 0.0005341873163 | AC62: 2e-20 | AD62: 2e-20 | AE62: 0.06667896349 | AF62: 2e-20 | AG62: 0.007775060143 | AH62: 0.02188646528 | AI62: 0.1002889951 | AJ62: 2e-20 | AK62: 2e-20 | AL62: 2e-20 | AS62: 0.003440661741 | AT62: 0.006092099527 | AU62: 2e-20 | AV62: 2e-20 | AW62: 0.004508804422 | AX62: 0.0005341873163 | AY62: 2e-20 | AZ62: 2e-20 | BA62: 0.06667896349 | BB62: 2e-20 | BC62: 0.007775060143 | BD62: 0.02188646528 | BE62: 0.1002889951 | BF62: 0.001832256138 | BG62: 2e-20 | BH62: 2e-20 | BL62: 687 | BM62: 0.00226227045 | BN62: 8.337712293e-05 | BO62: 4.34468435e-07 | BP62: 3.62179112e-11 | BQ62: 3 | BR62: 155.9974253 | BT62: 687 | BU62: 0.00226227045 | BV62: 8.352771835e-05 | BW62: 4.34468435e-07 | BX62: 3.628332784e-11 | BY62: 3 | BZ62: 155.9974253
H63: 914 | I63: 0.2666666667 | J63: 0.00360756901 | K63: 1.132485131e-09 | L63: 1.046702231e-10 | O63: 0 | W63: 0.004768967786 | X63: 0.008049663272 | Y63: 2e-20 | Z63: 2e-20 | AA63: 0.005793696874 | AB63: 0.0009673121673 | AC63: 2e-20 | AD63: 2e-20 | AE63: 0.06667896349 | AF63: 2e-20 | AG63: 0.007352557863 | AH63: 0.01762591972 | AI63: 0.1186391698 | AJ63: 2e-20 | AK63: 2e-20 | AL63: 2e-20 | AS63: 0.004768967786 | AT63: 0.008049663272 | AU63: 2e-20 | AV63: 2e-20 | AW63: 0.005793696874 | AX63: 0.0009673121673 | AY63: 2e-20 | AZ63: 2e-20 | BA63: 0.06667896349 | BB63: 2e-20 | BC63: 0.007352557863 | BD63: 0.01762591972 | BE63: 0.1186391698 | BF63: 0.03008683221 | BG63: 2e-20 | BH63: 2e-20 | BL63: 717 | BM63: 0.00226227045 | BN63: 3.836807961e-05 | BO63: 2.722960295e-07 | BP63: 1.044550969e-11 | BQ63: 2 | BR63: 158.0823689 | BT63: 717 | BU63: 0.00226227045 | BV63: 3.84325103e-05 | BW63: 2.722960295e-07 | BX63: 1.046305061e-11 | BY63: 2 | BZ63: 158.0823689
H64: 915 | I64: 0.2666666667 | J64: 0.003626093633 | K64: 1.290375721e-09 | L64: 1.058367523e-10 | O64: 0 | W64: 0.006233239051 | X64: 0.01154609448 | Y64: 2e-20 | Z64: 2e-20 | AA64: 0.004970197621 | AB64: 0.002115826049 | AC64: 2e-20 | AD64: 2e-20 | AE64: 0.06667896349 | AF64: 2e-20 | AG64: 0.007776341246 | AH64: 0.01286290597 | AI64: 0.09800175792 | AJ64: 0.1289264985 | AK64: 0.03682865473 | AL64: 2e-20 | AS64: 0.006233239051 | AT64: 0.01154609448 | AU64: 2e-20 | AV64: 2e-20 | AW64: 0.004970197621 | AX64: 0.002115826049 | AY64: 2e-20 | AZ64: 2e-20 | BA64: 0.06667896349 | BB64: 2e-20 | BC64: 0.007776341246 | BD64: 0.01286290597 | BE64: 0.09800175792 | BF64: 0.09700741014 | BG64: 0.03682865473 | BH64: 2e-20 | BL64: 720 | BM64: 0.00226227045 | BN64: 4.522217814e-05 | BO64: 2.735659342e-07 | BP64: 1.236891934e-11 | BQ64: 2 | BR64: 158.4007518 | BT64: 720 | BU64: 0.00226227045 | BV64: 4.530023053e-05 | BW64: 2.735659342e-07 | BX64: 1.23902678e-11 | BY64: 2 | BZ64: 158.4007518
H65: 920 | I65: 0.2666666667 | J65: 0.003584917036 | K65: 5.797796713e-10 | L65: 8.834833512e-11 | O65: 0 | W65: 0.008127105341 | X65: 0.01324526424 | Y65: 2e-20 | Z65: 2e-20 | AA65: 0.01173632446 | AB65: 0.003205938702 | AC65: 2e-20 | AD65: 2e-20 | AE65: 0.06667896349 | AF65: 2e-20 | AG65: 0.00806633846 | AH65: 0.007856017513 | AI65: 0.05947239407 | AJ65: 0.1817813426 | AK65: 0.2634636388 | AL65: 2e-20 | AS65: 0.008127105341 | AT65: 0.01324526424 | AU65: 2e-20 | AV65: 2e-20 | AW65: 0.01173632446 | AX65: 0.003205938702 | AY65: 2e-20 | AZ65: 2e-20 | BA65: 0.06667896349 | BB65: 2e-20 | BC65: 0.00806633846 | BD65: 0.007856017513 | BE65: 0.05947239407 | BF65: 0.1817813426 | BG65: 0.2634636388 | BH65: 2e-20 | BL65: 700 | BM65: 0.00226227045 | BN65: 9.710192122e-05 | BO65: 4.489706284e-07 | BP65: 4.358770653e-11 | BQ65: 3 | BR65: 161.3424257 | BT65: 700 | BU65: 0.00226227045 | BV65: 9.730244645e-05 | BW65: 4.489706284e-07 | BX65: 4.367771953e-11 | BY65: 3 | BZ65: 161.3424257
H66: 921 | I66: 0.2666666667 | J66: 0.00361062993 | K66: 6.500615669e-10 | L66: 8.810895536e-11 | O66: 0 | W66: 0.0129460557 | X66: 0.01711307659 | Y66: 2e-20 | Z66: 2e-20 | AA66: 0.01372790777 | AB66: 0.004107123871 | AC66: 2e-20 | AD66: 2e-20 | AE66: 0.06667896349 | AF66: 2e-20 | AG66: 0.009124273519 | AH66: 0.00728186603 | AI66: 0.03576126736 | AJ66: 0.229169165 | AK66: 0.8868128817 | AL66: 2e-20 | AS66: 0.0129460557 | AT66: 0.01711307659 | AU66: 2e-20 | AV66: 2e-20 | AW66: 0.01372790777 | AX66: 0.004107123871 | AY66: 2e-20 | AZ66: 2e-20 | BA66: 0.06667896349 | BB66: 2e-20 | BC66: 0.009124273519 | BD66: 0.00728186603 | BE66: 0.03576126736 | BF66: 0.229169165 | BG66: 0.8868128817 | BH66: 2e-20 | BL66: 1119 | BM66: 0.00226227045 | BN66: 9.300090843e-05 | BO66: 3.740450173e-06 | BP66: 3.477998013e-10 | BQ66: 6 | BR66: 161.752949 | BT66: 1119 | BU66: 0.00226227045 | BV66: 9.312324333e-05 | BW66: 3.740450173e-06 | BX66: 3.482573028e-10 | BY66: 6 | BZ66: 161.752949
H67: 922 | I67: 0.2666666667 | J67: 0.00361062993 | K67: 6.500615669e-10 | L67: 8.810895536e-11 | O67: 0 | W67: 0.01594902196 | X67: 0.01995690627 | Y67: 2e-20 | Z67: 2e-20 | AA67: 0.01629185225 | AB67: 0.007443799963 | AC67: 2e-20 | AD67: 2e-20 | AE67: 0.06667896349 | AF67: 2e-20 | AG67: 0.01118339633 | AH67: 0.008177354411 | AI67: 0.03100684536 | AJ67: 0.2334051022 | AK67: 1.785445085 | AL67: 2e-20 | AS67: 0.01594902196 | AT67: 0.01995690627 | AU67: 2e-20 | AV67: 2e-20 | AW67: 0.01629185225 | AX67: 0.007443799963 | AY67: 2e-20 | AZ67: 2e-20 | BA67: 0.06667896349 | BB67: 2e-20 | BC67: 0.01118339633 | BD67: 0.008177354411 | BE67: 0.03100684536 | BF67: 0.2334051022 | BG67: 1.785445085 | BH67: 2e-20 | BL67: 693 | BM67: 0.00226227045 | BN67: 0.0001004995771 | BO67: 3.926894467e-07 | BP67: 3.945769663e-11 | BQ67: 4 | BR67: 161.8797477 | BT67: 693 | BU67: 0.00226227045 | BV67: 0.0001007207788 | BW67: 3.926894467e-07 | BX67: 3.954454383e-11 | BY67: 4 | BZ67: 161.8797477
H68: 923 | I68: 0.2666666667 | J68: 0.003635475929 | K68: 7.732739783e-10 | L68: 8.865065646e-11 | O68: 0 | W68: 0.02492979215 | X68: 0.03188940819 | Y68: 2e-20 | Z68: 2e-20 | AA68: 0.02219067669 | AB68: 0.01437809463 | AC68: 2e-20 | AD68: 2e-20 | AE68: 0.06667896349 | AF68: 2e-20 | AG68: 0.0153412002 | AH68: 0.009095092215 | AI68: 0.04044504209 | AJ68: 0.1639819364 | AK68: 2.347510761 | AL68: 2e-20 | AS68: 0.02492979215 | AT68: 0.03188940819 | AU68: 2e-20 | AV68: 2e-20 | AW68: 0.02219067669 | AX68: 0.01437809463 | AY68: 2e-20 | AZ68: 2e-20 | BA68: 0.06667896349 | BB68: 2e-20 | BC68: 0.0153412002 | BD68: 0.009095092215 | BE68: 0.04044504209 | BF68: 0.1639819364 | BG68: 2.347510761 | BH68: 2e-20 | BL68: 698 | BM68: 0.00226227045 | BN68: 9.934835285e-05 | BO68: 4.489851073e-07 | BP68: 4.459753675e-11 | BQ68: 3 | BR68: 162.2736265 | BT68: 698 | BU68: 0.00226227045 | BV68: 9.955833374e-05 | BW68: 4.489851073e-07 | BX68: 4.46917973e-11 | BY68: 3 | BZ68: 162.2736265
H69: 930 | I69: 0.2666666667 | J69: 0.002624483017 | K69: 3.986420889e-10 | L69: 8.741088587e-11 | O69: 0 | W69: 0.03919936023 | X69: 0.04180774425 | Y69: 2e-20 | Z69: 2e-20 | AA69: 0.05972121713 | AB69: 0.02532040742 | AC69: 2e-20 | AD69: 2e-20 | AE69: 0.06667896349 | AF69: 2e-20 | AG69: 0.01940236432 | AH69: 0.01711902059 | AI69: 0.06258897292 | AJ69: 0.1157081866 | AK69: 2.311948218 | AL69: 2e-20 | AS69: 0.03919936023 | AT69: 0.04180774425 | AU69: 2e-20 | AV69: 2e-20 | AW69: 0.05972121713 | AX69: 0.02532040742 | AY69: 2e-20 | AZ69: 2e-20 | BA69: 0.06667896349 | BB69: 2e-20 | BC69: 0.01940236432 | BD69: 0.01711902059 | BE69: 0.06258897292 | BF69: 0.1157081866 | BG69: 2.311948218 | BH69: 2e-20 | BL69: 692 | BM69: 0.00226227045 | BN69: 0.0001061774657 | BO69: 4.395393045e-07 | BP69: 4.666038702e-11 | BQ69: 4 | BR69: 162.4890157 | BT69: 692 | BU69: 0.00226227045 | BV69: 0.0001064194231 | BW69: 4.395393045e-07 | BX69: 4.676671683e-11 | BY69: 4 | BZ69: 162.4890157
H70: 931 | I70: 0.2666666667 | J70: 0.002645385144 | K70: 3.347019428e-10 | L70: 8.662747016e-11 | O70: 0 | W70: 0.07746957324 | X70: 0.07695489364 | Y70: 2e-20 | Z70: 2e-20 | AA70: 0.1139436786 | AB70: 0.02908092138 | AC70: 2e-20 | AD70: 2e-20 | AE70: 0.06667896349 | AF70: 2e-20 | AG70: 0.03856680548 | AH70: 0.03472298331 | AI70: 0.07409199337 | AJ70: 0.1049654341 | AK70: 2.225375123 | AL70: 2e-20 | AS70: 0.07746957324 | AT70: 0.07695489364 | AU70: 2e-20 | AV70: 2e-20 | AW70: 0.1139436786 | AX70: 0.02908092138 | AY70: 2e-20 | AZ70: 2e-20 | BA70: 0.06667896349 | BB70: 2e-20 | BC70: 0.03856680548 | BD70: 0.03472298331 | BE70: 0.07409199337 | BF70: 0.1049654341 | BG70: 2.225375123 | BH70: 2e-20 | BL70: 703 | BM70: 0.00226227045 | BN70: 0.0001002062345 | BO70: 4.403137725e-07 | BP70: 4.411388204e-11 | BQ70: 3 | BR70: 162.6487502 | BT70: 703 | BU70: 0.00226227045 | BV70: 0.0001004197813 | BW70: 4.403137725e-07 | BX70: 4.420789196e-11 | BY70: 3 | BZ70: 162.6487502
H71: 944 | I71: 0.2666666667 | J71: 0.002759761144 | K71: 2.61346051e-10 | L71: 7.482817552e-11 | O71: 0 | W71: 0.1685708033 | X71: 0.1247642168 | Y71: 2e-20 | Z71: 2e-20 | AA71: 0.2916939483 | AB71: 0.0306983431 | AC71: 2e-20 | AD71: 2e-20 | AE71: 0.06667896349 | AF71: 2e-20 | AG71: 0.06617566653 | AH71: 0.0577310517 | AI71: 0.1258376806 | AJ71: 0.1049326462 | AK71: 1.765214908 | AL71: 2e-20 | AS71: 0.1685708033 | AT71: 0.1247642168 | AU71: 2e-20 | AV71: 2e-20 | AW71: 0.2916939483 | AX71: 0.0306983431 | AY71: 2e-20 | AZ71: 2e-20 | BA71: 0.06667896349 | BB71: 2e-20 | BC71: 0.06617566653 | BD71: 0.0577310517 | BE71: 0.1258376806 | BF71: 0.1049326462 | BG71: 1.765214908 | BH71: 2e-20 | BL71: 718 | BM71: 0.00226227045 | BN71: 4.903234143e-05 | BO71: 2.732078721e-07 | BP71: 1.339350075e-11 | BQ71: 2 | BR71: 162.966769 | BT71: 718 | BU71: 0.00226227045 | BV71: 4.912564375e-05 | BW71: 2.732078721e-07 | BX71: 1.341898688e-11 | BY71: 2 | BZ71: 162.966769
H72: 945 | I72: 0.2666666667 | J72: 0.002719598068 | K72: 2.709374258e-10 | L72: 7.461692306e-11 | O72: 0 | W72: 0.3301066717 | X72: 0.2348350664 | Y72: 2e-20 | Z72: 2e-20 | AA72: 0.5332070059 | AB72: 0.0568864068 | AC72: 2e-20 | AD72: 2e-20 | AE72: 0.06667896349 | AF72: 2e-20 | AG72: 0.1041378943 | AH72: 0.05364618717 | AI72: 0.1619887097 | AJ72: 0.08485218003 | AK72: 1.187378755 | AL72: 2e-20 | AS72: 0.3301066717 | AT72: 0.2348350664 | AU72: 2e-20 | AV72: 2e-20 | AW72: 0.5332070059 | AX72: 0.0568864068 | AY72: 2e-20 | AZ72: 2e-20 | BA72: 0.06667896349 | BB72: 2e-20 | BC72: 0.1041378943 | BD72: 0.05364618717 | BE72: 0.1619887097 | BF72: 0.08485218003 | BG72: 1.187378755 | BH72: 2e-20 | BL72: 695 | BM72: 0.00226227045 | BN72: 0.0001041418667 | BO72: 4.597040005e-07 | BP72: 4.786542351e-11 | BQ72: 5 | BR72: 163.6520898 | BT72: 695 | BU72: 0.00226227045 | BV72: 0.0001043729625 | BW72: 4.597040005e-07 | BX72: 4.797163921e-11 | BY72: 5 | BZ72: 163.6520898
H73: 946 | I73: 0.2666666667 | J73: 0.002729022184 | K73: 2.901408178e-10 | L73: 7.4934436e-11 | O73: 0 | W73: 0.5449969944 | X73: 0.4343469976 | Y73: 2e-20 | Z73: 2e-20 | AA73: 6.261432769 | AB73: 0.5426867484 | AC73: 2e-20 | AD73: 2e-20 | AE73: 0.5334317079 | AF73: 2e-20 | AG73: 0.1343286212 | AH73: 0.07163411882 | AI73: 0.1655988308 | AJ73: 0.05584330708 | AK73: 0.5403037917 | AL73: 2e-20 | AS73: 0.5449969944 | AT73: 0.4343469976 | AU73: 2e-20 | AV73: 2e-20 | AW73: 0.8102181377 | AX73: 0.0726085326 | AY73: 2e-20 | AZ73: 2e-20 | BA73: 0.06667896349 | BB73: 2e-20 | BC73: 0.1343286212 | BD73: 0.07163411882 | BE73: 0.1655988308 | BF73: 0.05584330708 | BG73: 0.5403037917 | BH73: 2e-20 | BL73: 694 | BM73: 0.00226227045 | BN73: 0.0001049818976 | BO73: 3.805695705e-07 | BP73: 3.994539717e-11 | BQ73: 4 | BR73: 163.6879804 | BT73: 694 | BU73: 0.00226227045 | BV73: 0.0001052258824 | BW73: 3.805695705e-07 | BX73: 4.003823291e-11 | BY73: 4 | BZ73: 163.6879804
H74: 947 | I74: 0.2666666667 | J74: 0.002680839574 | K74: 3.010473243e-10 | L74: 7.531241213e-11 | O74: 0 | W74: 0.7124777416 | X74: 0.6653513788 | Y74: 2e-20 | Z74: 2e-20 | AA74: 3e-20 | AB74: 3e-20 | AC74: 2e-20 | AD74: 2e-20 | AE74: 3e-20 | AF74: 2e-20 | AG74: 0.1070040788 | AH74: 0.06117250162 | AI74: 0.1398403117 | AJ74: 0.06918887984 | AK74: 0.1624813579 | AL74: 2e-20 | AS74: 0.7124777416 | AT74: 0.6653513788 | AU74: 2e-20 | AV74: 2e-20 | AW74: 0.975329738 | AX74: 0.09662272289 | AY74: 2e-20 | AZ74: 2e-20 | BA74: 0.06667896349 | BB74: 2e-20 | BC74: 0.1070040788 | BD74: 0.06117250162 | BE74: 0.1398403117 | BF74: 0.06918887984 | BG74: 0.1624813579 | BH74: 2e-20 | BL74: 32 | BM74: 0.0001966752086 | BN74: 1.327198953e-06 | BO74: 4.72468821e-05 | BP74: 6.269421219e-11 | BQ74: 11 | BR74: 163.9651163 | BT74: 32 | BU74: 0.0001966752086 | BV74: 1.327283424e-06 | BW74: 4.72468821e-05 | BX74: 6.269820245e-11 | BY74: 11 | BZ74: 163.9651163
H75: 948 | I75: 0.2666666667 | J75: 0.002805012356 | K75: 3.015911703e-10 | L75: 7.246627323e-11 | O75: 0 | W75: 0.6870253924 | X75: 0.8764563301 | Y75: 2e-20 | Z75: 2e-20 | AA75: 3e-20 | AB75: 3e-20 | AC75: 2e-20 | AD75: 2e-20 | AE75: 3e-20 | AF75: 2e-20 | AG75: 0.1480883774 | AH75: 0.05815094721 | AI75: 0.1521222763 | AJ75: 0.09938851876 | AK75: 0.09859623995 | AL75: 2e-20 | AS75: 0.6870253924 | AT75: 0.8764563301 | AU75: 2e-20 | AV75: 2e-20 | AW75: 0.8899924377 | AX75: 0.09455724222 | AY75: 2e-20 | AZ75: 2e-20 | BA75: 0.06667896349 | BB75: 2e-20 | BC75: 0.1480883774 | BD75: 0.05815094721 | BE75: 0.1521222763 | BF75: 0.04706786127 | BG75: 0.09859623995 | BH75: 2e-20 | BL75: 699 | BM75: 0.00226227045 | BN75: 0.0001037796891 | BO75: 4.364758207e-07 | BP75: 4.528880075e-11 | BQ75: 3 | BR75: 164.1680981 | BT75: 699 | BU75: 0.00226227045 | BV75: 0.0001040117661 | BW75: 4.364758207e-07 | BX75: 4.539007767e-11 | BY75: 3 | BZ75: 164.1680981
H76: 949 | I76: 0.2666666667 | J76: 0.002742487569 | K76: 2.9347427e-10 | L76: 7.399516444e-11 | O76: 0 | W76: 0.6438389581 | X76: 3.798256993 | Y76: 2e-20 | Z76: 2e-20 | AA76: 3e-20 | AB76: 3e-20 | AC76: 2e-20 | AD76: 2e-20 | AE76: 3e-20 | AF76: 2e-20 | AG76: 0.05257417111 | AH76: 0.07029810637 | AI76: 0.1578458446 | AJ76: 3e-20 | AK76: 0.07874292172 | AL76: 2e-20 | AS76: 0.6438389581 | AT76: 0.9535214482 | AU76: 2e-20 | AV76: 2e-20 | AW76: 0.9678890426 | AX76: 0.1023784214 | AY76: 2e-20 | AZ76: 2e-20 | BA76: 0.06667896349 | BB76: 2e-20 | BC76: 0.05257417111 | BD76: 0.07029810637 | BE76: 0.1578458446 | BF76: 0.05232065749 | BG76: 0.07874292172 | BH76: 2e-20 | BL76: 701 | BM76: 0.00226227045 | BN76: 0.0001040348353 | BO76: 4.365443356e-07 | BP76: 4.540727153e-11 | BQ76: 3 | BR76: 164.195631 | BT76: 701 | BU76: 0.00226227045 | BV76: 0.0001042642895 | BW76: 4.365443356e-07 | BX76: 4.55074196e-11 | BY76: 3 | BZ76: 164.195631
H77: 958 | I77: 0.2666666667 | J77: 0.002750851802 | K77: 2.10025501e-10 | L77: 6.464968455e-11 | O77: 0 | W77: 0.5791900499 | X77: 3e-20 | Y77: 2e-20 | Z77: 2e-20 | AA77: 3e-20 | AB77: 3e-20 | AC77: 2e-20 | AD77: 2e-20 | AE77: 3e-20 | AF77: 2e-20 | AG77: 0.1446276469 | AH77: 0.0961921968 | AI77: 0.2013310422 | AJ77: 0.02789005207 | AK77: 0.02075633727 | AL77: 2e-20 | AS77: 0.5791900499 | AT77: 0.842342602 | AU77: 2e-20 | AV77: 2e-20 | AW77: 0.8508411807 | AX77: 0.117317687 | AY77: 2e-20 | AZ77: 2e-20 | BA77: 0.06667896349 | BB77: 2e-20 | BC77: 0.1446276469 | BD77: 0.03339066379 | BE77: 0.147303944 | BF77: 0.02789005207 | BG77: 0.02075633727 | BH77: 2e-20 | BL77: 691 | BM77: 0.00226227045 | BN77: 0.000106282915 | BO77: 4.050287828e-07 | BP77: 4.303953882e-11 | BQ77: 5 | BR77: 164.2941632 | BT77: 691 | BU77: 0.00226227045 | BV77: 0.000106530675 | BW77: 4.050287828e-07 | BX77: 4.313986987e-11 | BY77: 5 | BZ77: 164.2941632
H78: 960 | I78: 0.2666666667 | J78: 0.002709723716 | K78: 2.173282363e-10 | L78: 6.474603476e-11 | O78: 0 | W78: 0.4994476849 | X78: 3e-20 | Y78: 2e-20 | Z78: 2e-20 | AA78: 3e-20 | AB78: 3e-20 | AC78: 2e-20 | AD78: 2e-20 | AE78: 3e-20 | AF78: 2e-20 | AG78: 0.1322232199 | AH78: 3e-20 | AI78: 3e-20 | AJ78: 0.005309089575 | AK78: 2e-20 | AL78: 2e-20 | AS78: 0.4994476849 | AT78: 0.7989812822 | AU78: 2e-20 | AV78: 2e-20 | AW78: 0.8479122099 | AX78: 0.02929165231 | AY78: 2e-20 | AZ78: 2e-20 | BA78: 0.06667896349 | BB78: 2e-20 | BC78: 0.1322232199 | BD78: 0.02978288768 | BE78: 0.05402709815 | BF78: 0.005309089575 | BG78: 2e-20 | BH78: 2e-20 | BL78: 696 | BM78: 0.00226227045 | BN78: 0.000106282915 | BO78: 4.050287828e-07 | BP78: 4.303953882e-11 | BQ78: 5 | BR78: 164.2941632 | BT78: 696 | BU78: 0.00226227045 | BV78: 0.000106530675 | BW78: 4.050287828e-07 | BX78: 4.313986987e-11 | BY78: 5 | BZ78: 164.2941632
H79: 961 | I79: 0.2666666667 | J79: 0.00275023913 | K79: 2.130443015e-10 | L79: 6.493089631e-11 | O79: 0 | W79: 0.4070983653 | X79: 3e-20 | Y79: 2e-20 | Z79: 2e-20 | AA79: 3e-20 | AB79: 3e-20 | AC79: 2e-20 | AD79: 2e-20 | AE79: 3e-20 | AF79: 2e-20 | AG79: 0.1287652772 | AH79: 3e-20 | AI79: 2e-20 | AJ79: 2e-20 | AK79: 2e-20 | AL79: 2e-20 | AS79: 0.4070983653 | AT79: 0.6287760623 | AU79: 2e-20 | AV79: 2e-20 | AW79: 0.5855167297 | AX79: 0.02991049003 | AY79: 2e-20 | AZ79: 2e-20 | BA79: 0.06667896349 | BB79: 2e-20 | BC79: 0.1287652772 | BD79: 0.03301864533 | BE79: 2e-20 | BF79: 2e-20 | BG79: 2e-20 | BH79: 2e-20 | BL79: 23 | BM79: 0.0001966752086 | BN79: 1.516968429e-06 | BO79: 4.058828939e-05 | BP79: 6.155956688e-11 | BQ79: 11 | BR79: 165.6906532 | BT79: 23 | BU79: 0.0001966752086 | BV79: 1.517091479e-06 | BW79: 4.058828939e-05 | BX79: 6.156456036e-11 | BY79: 11 | BZ79: 165.6906532
H80: 973 | I80: 0.2666666667 | J80: 0.001978542832 | K80: 1.249334562e-10 | L80: 6.603164639e-11 | O80: 0 | W80: 0.320827594 | X80: 3e-20 | Y80: 2e-20 | Z80: 2e-20 | AA80: 3e-20 | AB80: 2e-20 | AC80: 2e-20 | AD80: 2e-20 | AE80: 3e-20 | AF80: 2e-20 | AG80: 0.07994742056 | AH80: 2e-20 | AI80: 2e-20 | AJ80: 2e-20 | AK80: 2e-20 | AL80: 2e-20 | AS80: 0.320827594 | AT80: 0.5746355986 | AU80: 2e-20 | AV80: 2e-20 | AW80: 0.3337332931 | AX80: 2e-20 | AY80: 2e-20 | AZ80: 2e-20 | BA80: 0.06667896349 | BB80: 2e-20 | BC80: 0.07994742056 | BD80: 2e-20 | BE80: 2e-20 | BF80: 2e-20 | BG80: 2e-20 | BH80: 2e-20 | BL80: 702 | BM80: 0.00226227045 | BN80: 0.0001068303205 | BO80: 4.280603742e-07 | BP80: 4.572122135e-11 | BQ80: 3 | BR80: 165.7089356 | BT80: 702 | BU80: 0.00226227045 | BV80: 0.0001070763307 | BW80: 4.280603742e-07 | BX80: 4.582650877e-11 | BY80: 3 | BZ80: 165.7089356
H81: 975 | I81: 0.2666666667 | J81: 0.00204270148 | K81: 1.080674406e-10 | L81: 5.758042743e-11 | O81: 0 | W81: 59.79412218 | AS81: 59.79412218 | BL81: 697 | BM81: 0.00226227045 | BN81: 0.0001092295166 | BO81: 5.013067448e-07 | BP81: 5.474718891e-11 | BQ81: 3 | BR81: 165.945317 | BT81: 697 | BU81: 0.00226227045 | BV81: 0.0001094810604 | BW81: 5.013067448e-07 | BX81: 5.487326578e-11 | BY81: 3 | BZ81: 165.945317
H82: 976 | I82: 0.2666666667 | J82: 0.002069801882 | K82: 9.890349097e-11 | L82: 5.727518745e-11 | O82: 0 | BL82: 14 | BM82: 0.0001966752086 | BN82: 1.158028662e-06 | BO82: 5.458737643e-05 | BP82: 6.320185068e-11 | BQ82: 11 | BR82: 165.9598447 | BT82: 14 | BU82: 0.0001966752086 | BV82: 1.158091353e-06 | BW82: 5.458737643e-05 | BX82: 6.320527216e-11 | BY82: 11 | BZ82: 165.9598447
H83: 990 | I83: 0.2666666667 | J83: 0.00206610696 | K83: 7.974001871e-11 | L83: 4.968906384e-11 | O83: 0 | BL83: 20 | BM83: 0.0001966752086 | BN83: 1.349822499e-06 | BO83: 4.652772211e-05 | BP83: 6.27923474e-11 | BQ83: 11 | BR83: 167.1394518 | BT83: 20 | BU83: 0.0001966752086 | BV83: 1.349913141e-06 | BW83: 4.652772211e-05 | BX83: 6.279656395e-11 | BY83: 11 | BZ83: 167.1394518
H84: 674 | I84: 0.1781914894 | J84: 0.01060560137 | K84: 1.477561787e-06 | L84: 1.566748238e-08 | O84: 0 | BL84: 726 | BM84: 0.00226227045 | BN84: 5.120331149e-05 | BO84: 2.72596433e-07 | BP84: 1.395521343e-11 | BQ84: 2 | BR84: 167.4602109 | BT84: 726 | BU84: 0.00226227045 | BV84: 5.1310019e-05 | BW84: 2.72596433e-07 | BX84: 1.398429604e-11 | BY84: 2 | BZ84: 167.4602109
H85: 686 | I85: 0.1781914894 | J85: 0.007485993887 | K85: 4.564812675e-07 | L85: 3.416572913e-09 | O85: 0 | BL85: 723 | BM85: 0.00226227045 | BN85: 3.982543749e-05 | BO85: 2.703315421e-07 | BP85: 1.076404593e-11 | BQ85: 2 | BR85: 168.6696686 | BT85: 723 | BU85: 0.00226227045 | BV85: 3.990710008e-05 | BW85: 2.703315421e-07 | BX85: 1.078611775e-11 | BY85: 2 | BZ85: 168.6696686
H86: 687 | I86: 0.1781914894 | J86: 0.007482433062 | K86: 4.34468435e-07 | L86: 3.250269219e-09 | O86: 0 | BL86: 724 | BM86: 0.00226227045 | BN86: 4.63070483e-05 | BO86: 2.714010091e-07 | BP86: 1.256541458e-11 | BQ86: 2 | BR86: 169.507452 | BT86: 724 | BU86: 0.00226227045 | BV86: 4.640527903e-05 | BW86: 2.714010091e-07 | BX86: 1.259206949e-11 | BY86: 2 | BZ86: 169.507452
H87: 697 | I87: 0.1781914894 | J87: 0.007846022783 | K87: 5.013067448e-07 | L87: 3.932523964e-09 | O87: 0 | BL87: 725 | BM87: 0.00226227045 | BN87: 4.680878491e-05 | BO87: 2.714681509e-07 | BP87: 1.270470301e-11 | BQ87: 2 | BR87: 169.6230966 | BT87: 725 | BU87: 0.00226227045 | BV87: 4.690840432e-05 | BW87: 2.714681509e-07 | BX87: 1.273174142e-11 | BY87: 2 | BZ87: 169.6230966
H88: 698 | I88: 0.1781914894 | J88: 0.00772361333 | K88: 4.489851073e-07 | L88: 3.467134778e-09 | O88: 0 | BL88: 18 | BM88: 0.0001966752086 | BN88: 1.16405561e-06 | BO88: 5.480322438e-05 | BP88: 6.378199575e-11 | BQ88: 11 | BR88: 169.7468062 | BT88: 18 | BU88: 0.0001966752086 | BV88: 1.164120459e-06 | BW88: 5.480322438e-05 | BX88: 6.378554907e-11 | BY88: 11 | BZ88: 169.7468062
H89: 699 | I89: 0.1781914894 | J89: 0.007659597002 | K89: 4.364758207e-07 | L89: 3.342599746e-09 | O89: 0 | BL89: 19 | BM89: 0.0001966752086 | BN89: 1.16405561e-06 | BO89: 5.480322438e-05 | BP89: 6.378199575e-11 | BQ89: 11 | BR89: 169.7468062 | BT89: 19 | BU89: 0.0001966752086 | BV89: 1.164120459e-06 | BW89: 5.480322438e-05 | BX89: 6.378554907e-11 | BY89: 11 | BZ89: 169.7468062
H90: 700 | I90: 0.1781914894 | J90: 0.00771155459 | K90: 4.489706284e-07 | L90: 3.461609968e-09 | O90: 0 | BL90: 22 | BM90: 0.0001966752086 | BN90: 1.092633087e-06 | BO90: 5.851523992e-05 | BP90: 6.392365557e-11 | BQ90: 11 | BR90: 170.7596067 | BT90: 22 | BU90: 0.0001966752086 | BV90: 1.092689982e-06 | BW90: 5.851523992e-05 | BX90: 6.392698417e-11 | BY90: 11 | BZ90: 170.7596067
H91: 701 | I91: 0.1781914894 | J91: 0.007776956363 | K91: 4.365443356e-07 | L91: 3.394347366e-09 | O91: 0 | BL91: 729 | BM91: 0.00226227045 | BN91: 4.367002565e-05 | BO91: 2.71193386e-07 | BP91: 1.184079346e-11 | BQ91: 3 | BR91: 171.7672776 | BT91: 729 | BU91: 0.00226227045 | BV91: 4.379307635e-05 | BW91: 2.71193386e-07 | BX91: 1.187415771e-11 | BY91: 3 | BZ91: 171.7672776
H92: 702 | I92: 0.1781914894 | J92: 0.007673931735 | K92: 4.280603742e-07 | L92: 3.284287923e-09 | O92: 0 | BL92: 1120 | BM92: 0.00226227045 | BN92: 0.0001316451742 | BO92: 1.094100519e-06 | BP92: 1.440059487e-10 | BQ92: 6 | BR92: 173.7914006 | BT92: 1120 | BU92: 0.00226227045 | BV92: 0.0001319949722 | BW92: 1.094100519e-06 | BX92: 1.443885908e-10 | BY92: 6 | BZ92: 173.7914006
H93: 703 | I93: 0.1781914894 | J93: 0.007731501137 | K93: 4.403137725e-07 | L93: 3.403645801e-09 | O93: 0 | BL93: 714 | BM93: 0.00226227045 | BN93: 0.000124711462 | BO93: 3.559523502e-07 | BP93: 4.438298427e-11 | BQ93: 4 | BR93: 174.0493629 | BT93: 714 | BU93: 0.00226227045 | BV93: 0.0001250539626 | BW93: 3.559523502e-07 | BX93: 4.45048752e-11 | BY93: 4 | BZ93: 174.0493629
H94: 715 | I94: 0.1781914894 | J94: 0.00790111186 | K94: 4.065866025e-07 | L94: 3.211881688e-09 | O94: 0 | BL94: 715 | BM94: 0.00226227045 | BN94: 0.0001251264022 | BO94: 4.065866025e-07 | BP94: 5.086514494e-11 | BQ94: 3 | BR94: 174.5952076 | BT94: 715 | BU94: 0.00226227045 | BV94: 0.0001254574223 | BW94: 4.065866025e-07 | BX94: 5.099970796e-11 | BY94: 3 | BZ94: 174.5952076
H95: 729 | I95: 0.1781914894 | J95: 0.005571741826 | K95: 1.265294785e-07 | L95: 7.048569199e-10 | O95: 0 | BL95: 767 | BM95: 0.00226227045 | BN95: 2.036677148e-05 | BO95: 2.631787184e-07 | BP95: 6.475659393e-12 | BQ95: 2 | BR95: 175.6557245 | BT95: 767 | BU95: 0.00226227045 | BV95: 2.042627409e-05 | BW95: 2.631787184e-07 | BX95: 6.49457838e-12 | BY95: 2 | BZ95: 175.6557245
H96: 751 | I96: 0.1781914894 | J96: 0.00587346854 | K96: 1.411312799e-07 | L96: 8.287741413e-10 | O96: 0 | BL96: 764 | BM96: 0.00226227045 | BN96: 1.616778134e-05 | BO96: 2.60724562e-07 | BP96: 6.297341391e-12 | BQ96: 2 | BR96: 177.1888589 | BT96: 764 | BU96: 0.00226227045 | BV96: 1.621613752e-05 | BW96: 2.60724562e-07 | BX96: 6.316176097e-12 | BY96: 2 | BZ96: 177.1888589
H97: 752 | I97: 0.1781914894 | J97: 0.005747857147 | K97: 1.397310621e-07 | L97: 8.030030434e-10 | O97: 0 | BL97: 704 | BM97: 0.002255917448 | BN97: 4.454278983e-05 | BO97: 2.691363246e-07 | BP97: 1.198582678e-11 | BQ97: 1 | BR97: 178.424417 | BT97: 704 | BU97: 0.002255917448 | BV97: 4.465431327e-05 | BW97: 2.691363246e-07 | BX97: 1.201583614e-11 | BY97: 1 | BZ97: 178.424417
H98: 753 | I98: 0.1781914894 | J98: 0.005847558823 | K98: 1.165432659e-07 | L98: 6.813653566e-10 | O98: 0 | BL98: 657 | BM98: 0.002255917448 | BN98: 0.0001307700773 | BO98: 1.253312886e-06 | BP98: 1.638649805e-10 | BQ98: 6 | BR98: 178.8730905 | BT98: 657 | BU98: 0.002255917448 | BV98: 0.0001311239161 | BW98: 1.253312886e-06 | BX98: 1.643083678e-10 | BY98: 6 | BZ98: 178.8730905
H99: 754 | I99: 0.1781914894 | J99: 0.005758628626 | K99: 1.141669527e-07 | L99: 6.573213611e-10 | O99: 0 | BL99: 765 | BM99: 0.002255917448 | BN99: 1.638837522e-05 | BO99: 2.60403905e-07 | BP99: 6.490005991e-12 | BQ99: 2 | BR99: 180.073738 | BT99: 765 | BU99: 0.002255917448 | BV99: 1.643864332e-05 | BW99: 2.60403905e-07 | BX99: 6.509912799e-12 | BY99: 2 | BZ99: 180.073738
H100: 755 | I100: 0.1781914894 | J100: 0.005832033346 | K100: 1.174351393e-07 | L100: 6.84756764e-10 | O100: 0 | BL100: 766 | BM100: 0.002255917448 | BN100: 1.705973647e-05 | BO100: 2.60628893e-07 | BP100: 6.584961183e-12 | BQ100: 2 | BR100: 180.780943 | BT100: 766 | BU100: 0.002255917448 | BV100: 1.711272264e-05 | BW100: 2.60628893e-07 | BX100: 6.605413544e-12 | BY100: 2 | BZ100: 180.780943
H101: 775 | I101: 0.1781914894 | J101: 0.004245372161 | K101: 3.547969939e-08 | L101: 3.464360916e-10 | O101: 0 | BL101: 762 | BM101: 0.002255917448 | BN101: 1.596400138e-05 | BO101: 2.600716816e-07 | BP101: 6.48760749e-12 | BQ101: 2 | BR101: 180.8171124 | BT101: 762 | BU101: 0.002255917448 | BV101: 1.601332051e-05 | BW101: 2.600716816e-07 | BX101: 6.507650284e-12 | BY101: 2 | BZ101: 180.8171124
H102: 789 | I102: 0.1781914894 | J102: 0.004315434292 | K102: 3.578270204e-08 | L102: 2.509217111e-10 | O102: 0 | BL102: 752 | BM102: 0.002255917448 | BN102: 6.104171963e-05 | BO102: 2.721910491e-07 | BP102: 1.661188303e-11 | BQ102: 3 | BR102: 183.9388493 | BT102: 752 | BU102: 0.002255917448 | BV102: 6.125687938e-05 | BW102: 2.721910491e-07 | BX102: 1.667043656e-11 | BY102: 3 | BZ102: 183.9388493
H103: 790 | I103: 0.1781914894 | J103: 0.004264392849 | K103: 3.476253217e-08 | L103: 2.42276743e-10 | O103: 0 | BL103: 749 | BM103: 0.002255917448 | BN103: 5.601250164e-05 | BO103: 2.714444521e-07 | BP103: 1.520142162e-11 | BQ103: 4 | BR103: 184.2258056 | BT103: 749 | BU103: 0.002255917448 | BV103: 5.621454782e-05 | BW103: 2.714444521e-07 | BX103: 1.525625561e-11 | BY103: 4 | BZ103: 184.2258056
H104: 791 | I104: 0.1781914894 | J104: 0.004264392849 | K104: 3.476253217e-08 | L104: 2.42276743e-10 | O104: 0 | BL104: 73 | BM104: 0.001566023643 | BN104: 2.754977583e-05 | BO104: 1.544249695e-05 | BP104: 4.253572687e-10 | BQ104: 11 | BR104: 184.2570365 | BT104: 73 | BU104: 0.001566023643 | BV104: 2.755585547e-05 | BW104: 1.544249695e-05 | BX104: 4.254511358e-10 | BY104: 11 | BZ104: 184.2570365
H105: 801 | I105: 0.1781914894 | J105: 0.004351805147 | K105: 3.09700526e-08 | L105: 2.063873544e-10 | O105: 0 | BL105: 755 | BM105: 0.002255917448 | BN105: 5.184238018e-05 | BO105: 2.704459789e-07 | BP105: 1.401792481e-11 | BQ105: 3 | BR105: 184.2786822 | BT105: 755 | BU105: 0.002255917448 | BV105: 5.202310275e-05 | BW105: 2.704459789e-07 | BX105: 1.40667913e-11 | BY105: 3 | BZ105: 184.2786822
H106: 802 | I106: 0.1781914894 | J106: 0.00428289595 | K106: 3.031889008e-08 | L106: 1.998665708e-10 | O106: 0 | BL106: 24 | BM106: 0.001566023643 | BN106: 2.340728329e-05 | BO106: 1.853792918e-05 | BP106: 4.338409027e-10 | BQ106: 11 | BR106: 185.5286305 | BT106: 24 | BU106: 0.001566023643 | BV106: 2.341148966e-05 | BW106: 1.853792918e-05 | BX106: 4.339188655e-10 | BY106: 11 | BZ106: 185.5286305
H107: 803 | I107: 0.1781914894 | J107: 0.004347599988 | K107: 3.118683746e-08 | L107: 2.085345464e-10 | O107: 0 | BL107: 753 | BM107: 0.002255917448 | BN107: 5.243059225e-05 | BO107: 2.703697042e-07 | BP107: 1.417297609e-11 | BQ107: 3 | BR107: 185.5912706 | BT107: 753 | BU107: 0.002255917448 | BV107: 5.261647083e-05 | BW107: 2.703697042e-07 | BX107: 1.422322257e-11 | BY107: 3 | BZ107: 185.5912706
H108: 810 | I108: 0.1781914894 | J108: 0.004309583769 | K108: 2.885950707e-08 | L108: 1.728447419e-10 | O108: 0 | BL108: 1451 | BM108: 0.002255917448 | BN108: 1.231991442e-06 | BO108: 1.21853686e-05 | BP108: 1.501226983e-11 | BQ108: 9 | BR108: 185.643284 | BT108: 1451 | BU108: 0.002255917448 | BV108: 1.232026814e-06 | BW108: 1.21853686e-05 | BX108: 1.501270085e-11 | BY108: 9 | BZ108: 185.643284
H109: 840 | I109: 0.1781914894 | J109: 0.003241183475 | K109: 1.042006098e-08 | L109: 1.132576712e-10 | O109: 0 | BL109: 763 | BM109: 0.002255917448 | BN109: 1.835508072e-05 | BO109: 2.605903326e-07 | BP109: 6.897746132e-12 | BQ109: 2 | BR109: 185.644314 | BT109: 763 | BU109: 0.002255917448 | BV109: 1.841561143e-05 | BW109: 2.605903326e-07 | BX109: 6.920493265e-12 | BY109: 2 | BZ109: 185.644314
H110: 841 | I110: 0.1781914894 | J110: 0.003199184876 | K110: 1.070783626e-08 | L110: 1.145872918e-10 | O110: 0 | BL110: 750 | BM110: 0.002255917448 | BN110: 5.58090499e-05 | BO110: 2.709381937e-07 | BP110: 1.511795768e-11 | BQ110: 5 | BR110: 186.0007412 | BT110: 750 | BU110: 0.002255917448 | BV110: 5.600818718e-05 | BW110: 2.709381937e-07 | BX110: 1.517190142e-11 | BY110: 5 | BZ110: 186.0007412
H111: 842 | I111: 0.1781914894 | J111: 0.003248006553 | K111: 1.048131397e-08 | L111: 1.156202398e-10 | O111: 0 | BL111: 748 | BM111: 0.002255917448 | BN111: 4.753099582e-05 | BO111: 2.693308141e-07 | BP111: 1.279915275e-11 | BQ111: 5 | BR111: 186.7778799 | BT111: 748 | BU111: 0.002255917448 | BV111: 4.770610115e-05 | BW111: 2.693308141e-07 | BX111: 1.284630514e-11 | BY111: 5 | BZ111: 186.7778799
H112: 843 | I112: 0.1781914894 | J112: 0.003245245805 | K112: 9.629360928e-09 | L112: 1.135983255e-10 | O112: 0 | BL112: 754 | BM112: 0.002255917448 | BN112: 5.165402224e-05 | BO112: 2.701636998e-07 | BP112: 1.395241564e-11 | BQ112: 3 | BR112: 186.8544195 | BT112: 754 | BU112: 0.002255917448 | BV112: 5.184109805e-05 | BW112: 2.701636998e-07 | BX112: 1.400294722e-11 | BY112: 3 | BZ112: 186.8544195
H113: 844 | I113: 0.1781914894 | J113: 0.003246587066 | K113: 8.243441644e-09 | L113: 1.137731435e-10 | O113: 0 | BL113: 751 | BM113: 0.002255917448 | BN113: 6.474078567e-05 | BO113: 2.722914856e-07 | BP113: 1.762504733e-11 | BQ113: 3 | BR113: 187.2686923 | BT113: 751 | BU113: 0.002255917448 | BV113: 6.497572635e-05 | BW113: 2.722914856e-07 | BX113: 1.768900764e-11 | BY113: 3 | BZ113: 187.2686923
H114: 845 | I114: 0.1781914894 | J114: 0.00319453425 | K114: 8.069581693e-09 | L114: 1.102777075e-10 | O114: 0 | BL114: 74 | BM114: 0.001566023643 | BN114: 2.819480127e-05 | BO114: 1.510489437e-05 | BP114: 4.257993512e-10 | BQ114: 11 | BR114: 187.479619 | BT114: 74 | BU114: 0.001566023643 | BV114: 2.82014075e-05 | BW114: 1.510489437e-05 | BX114: 4.258991188e-10 | BY114: 11 | BZ114: 187.479619
H115: 846 | I115: 0.1781914894 | J115: 0.00324724117 | K115: 8.300598455e-09 | L115: 1.150214628e-10 | O115: 0 | BL115: 9 | BM115: 0.001566023643 | BN115: 3.627232601e-06 | BO115: 0.000144529542 | BP115: 5.241436126e-10 | BQ115: 12 | BR115: 187.9849899 | BT115: 9 | BU115: 0.001566023643 | BV115: 3.627376399e-06 | BW115: 0.000144529542 | BX115: 5.241643918e-10 | BY115: 12 | BZ115: 187.9849899
H116: 851 | I116: 0.1781914894 | J116: 0.003192912798 | K116: 7.680281823e-09 | L116: 9.513562414e-11 | O116: 0 | BL116: 775 | BM116: 0.002255917448 | BN116: 1.254116983e-05 | BO116: 2.587302794e-07 | BP116: 7.462987903e-12 | BQ116: 3 | BR116: 188.360093 | BT116: 775 | BU116: 0.002255917448 | BV116: 1.258730299e-05 | BW116: 2.587302794e-07 | BX116: 7.490440781e-12 | BY116: 3 | BZ116: 188.360093
H117: 874 | I117: 0.1781914894 | J117: 0.002457267674 | K117: 2.830449897e-09 | L117: 9.619345318e-11 | O117: 0 | BL117: 78 | BM117: 0.001566023643 | BN117: 2.882587198e-05 | BO117: 1.47594476e-05 | BP117: 4.253738835e-10 | BQ117: 11 | BR117: 189.5568429 | BT117: 78 | BU117: 0.001566023643 | BV117: 2.883299829e-05 | BW117: 1.47594476e-05 | BX117: 4.25479044e-10 | BY117: 11 | BZ117: 189.5568429
H118: 875 | I118: 0.1781914894 | J118: 0.002403089839 | K118: 2.673175579e-09 | L118: 8.993595104e-11 | O118: 0 | BL118: 774 | BM118: 0.002255917448 | BN118: 1.865529317e-05 | BO118: 2.601625838e-07 | BP118: 6.449670823e-12 | BQ118: 2 | BR118: 189.9977683 | BT118: 774 | BU118: 0.002255917448 | BV118: 1.872006005e-05 | BW118: 2.601625838e-07 | BX118: 6.472062596e-12 | BY118: 2 | BZ118: 189.9977683
H119: 877 | I119: 0.1781914894 | J119: 0.002413893189 | K119: 3.694212218e-09 | L119: 8.013541449e-11 | O119: 0 | BL119: 680 | BM119: 0.002255917448 | BN119: 0.0001310046846 | BO119: 3.673587069e-07 | BP119: 4.811665506e-11 | BQ119: 6 | BR119: 190.6646236 | BT119: 680 | BU119: 0.002255917448 | BV119: 0.0001315068958 | BW119: 3.673587069e-07 | BX119: 4.830111198e-11 | BY119: 6 | BZ119: 190.6646236
H120: 887 | I120: 0.1781914894 | J120: 0.002425568619 | K120: 2.772416257e-09 | L120: 6.52809076e-11 | O120: 0 | BL120: 771 | BM120: 0.002255917448 | BN120: 1.347602067e-05 | BO120: 2.574217094e-07 | BP120: 6.03771613e-12 | BQ120: 2 | BR120: 190.6807074 | BT120: 771 | BU120: 0.002255917448 | BV120: 1.352158251e-05 | BW120: 2.574217094e-07 | BX120: 6.058129386e-12 | BY120: 2 | BZ120: 190.6807074
H121: 888 | I121: 0.1781914894 | J121: 0.00240048576 | K121: 2.887256278e-09 | L121: 6.607797903e-11 | O121: 0 | BL121: 62 | BM121: 0.001566023643 | BN121: 2.501790755e-05 | BO121: 1.730198424e-05 | BP121: 4.327779849e-10 | BQ121: 11 | BR121: 190.9455949 | BT121: 62 | BU121: 0.001566023643 | BV121: 2.502311955e-05 | BW121: 1.730198424e-05 | BX121: 4.328681459e-10 | BY121: 11 | BZ121: 190.9455949
H122: 889 | I122: 0.1781914894 | J122: 0.002433856825 | K122: 2.848949957e-09 | L122: 6.670904436e-11 | O122: 0 | BL122: 772 | BM122: 0.002255917448 | BN122: 1.554283554e-05 | BO122: 2.585082074e-07 | BP122: 6.244305898e-12 | BQ122: 2 | BR122: 191.4786834 | BT122: 772 | BU122: 0.002255917448 | BV122: 1.55964648e-05 | BW122: 2.585082074e-07 | BX122: 6.265851355e-12 | BY122: 2 | BZ122: 191.4786834
H123: 890 | I123: 0.1781914894 | J123: 0.002429151345 | K123: 2.713929355e-09 | L123: 6.570833292e-11 | O123: 0 | BL123: 773 | BM123: 0.002255917448 | BN123: 1.554283554e-05 | BO123: 2.585082074e-07 | BP123: 6.244305898e-12 | BQ123: 2 | BR123: 191.4786834 | BT123: 773 | BU123: 0.002255917448 | BV123: 1.55964648e-05 | BW123: 2.585082074e-07 | BX123: 6.265851355e-12 | BY123: 2 | BZ123: 191.4786834
H124: 891 | I124: 0.1781914894 | J124: 0.00243071669 | K124: 2.551305378e-09 | L124: 6.567469575e-11 | O124: 0 | BL124: 47 | BM124: 0.001566023643 | BN124: 3.277161024e-05 | BO124: 1.256139861e-05 | BP124: 4.115797921e-10 | BQ124: 11 | BR124: 191.5391724 | BT124: 47 | BU124: 0.001566023643 | BV124: 3.278209151e-05 | BW124: 1.256139861e-05 | BX124: 4.117114267e-10 | BY124: 11 | BZ124: 191.5391724
H125: 892 | I125: 0.1781914894 | J125: 0.002435157539 | K125: 2.190228615e-09 | L125: 6.614265298e-11 | O125: 0 | BL125: 75 | BM125: 0.001566023643 | BN125: 2.9383844e-05 | BO125: 1.448374839e-05 | BP125: 4.255081145e-10 | BQ125: 11 | BR125: 192.5190596 | BT125: 75 | BU125: 0.001566023643 | BV125: 2.939150112e-05 | BW125: 1.448374839e-05 | BX125: 4.256189973e-10 | BY125: 11 | BZ125: 192.5190596
H126: 893 | I126: 0.1781914894 | J126: 0.002395963694 | K126: 2.143977694e-09 | L126: 6.417502059e-11 | O126: 0 | BL126: 39 | BM126: 0.001566023643 | BN126: 2.081032485e-05 | BO126: 2.144907624e-05 | BP126: 4.46278246e-10 | BQ126: 11 | BR126: 193.3377936 | BT126: 39 | BU126: 0.001566023643 | BV126: 2.081358546e-05 | BW126: 2.144907624e-05 | BX126: 4.463481699e-10 | BY126: 11 | BZ126: 193.3377936
H127: 894 | I127: 0.1781914894 | J127: 0.002437861179 | K127: 2.205357289e-09 | L127: 6.689276185e-11 | O127: 0 | BL127: 761 | BM127: 0.002255917448 | BN127: 4.581757033e-05 | BO127: 2.683426192e-07 | BP127: 1.229249314e-11 | BQ127: 4 | BR127: 194.8454434 | BT127: 761 | BU127: 0.002255917448 | BV127: 4.599776182e-05 | BW127: 2.683426192e-07 | BX127: 1.23408371e-11 | BY127: 4 | BZ127: 194.8454434
H128: 906 | I128: 0.1781914894 | J128: 0.002381754994 | K128: 2.040646659e-09 | L128: 5.52834095e-11 | O128: 0 | BL128: 34 | BM128: 0.001566023643 | BN128: 1.974291671e-05 | BO128: 2.266897535e-05 | BP128: 4.474674701e-10 | BQ128: 11 | BR128: 195.2619758 | BT128: 34 | BU128: 0.001566023643 | BV128: 1.974588891e-05 | BW128: 2.266897535e-05 | BX128: 4.475348342e-10 | BY128: 11 | BZ128: 195.2619758
H129: 929 | I129: 0.1781914894 | J129: 0.001835452219 | K129: 1.032954637e-09 | L129: 4.845848863e-11 | O129: 0 | BL129: 716 | BM129: 0.002255917448 | BN129: 6.813319962e-05 | BO129: 2.729939998e-07 | BP129: 1.859645448e-11 | BQ129: 4 | BR129: 195.3404352 | BT129: 716 | BU129: 0.002255917448 | BV129: 6.839963372e-05 | BW129: 2.729939998e-07 | BX129: 1.86691757e-11 | BY129: 4 | BZ129: 195.3404352
H130: 974 | I130: 0.1781914894 | J130: 0.001400929954 | K130: 2.803246747e-10 | L130: 3.064205027e-11 | O130: 0 | BL130: 789 | BM130: 0.002255917448 | BN130: 1.391358172e-05 | BO130: 2.588117003e-07 | BP130: 5.851449333e-12 | BQ130: 3 | BR130: 196.0508212 | BT130: 789 | BU130: 0.002255917448 | BV130: 1.396921289e-05 | BW130: 2.588117003e-07 | BX130: 5.874845394e-12 | BY130: 3 | BZ130: 196.0508212
H131: 673 | I131: 0.4652777778 | J131: 0.02715385572 | K131: 1.279078418e-06 | L131: 3.472537483e-08 | O131: 0 | BL131: 816 | BM131: 0.002255917448 | BN131: 6.039502847e-06 | BO131: 2.509543566e-07 | BP131: 4.759705111e-12 | BQ131: 2 | BR131: 197.1693829 | BT131: 816 | BU131: 0.002255917448 | BV131: 6.063593774e-06 | BW131: 2.509543566e-07 | BX131: 4.778691062e-12 | BY131: 2 | BZ131: 197.1693829
H132: 692 | I132: 0.4652777778 | J132: 0.02010896509 | K132: 4.395393045e-07 | L132: 8.837017233e-09 | O132: 0 | BL132: 28 | BM132: 0.001566023643 | BN132: 8.655195679e-06 | BO132: 5.321930081e-05 | BP132: 4.605367805e-10 | BQ132: 12 | BR132: 197.3533514 | BT132: 28 | BU132: 0.001566023643 | BV132: 8.656159124e-06 | BW132: 5.321930081e-05 | BX132: 4.605880447e-10 | BY132: 12 | BZ132: 197.3533514
H133: 693 | I133: 0.4652777778 | J133: 0.0196536802 | K133: 3.926894467e-07 | L133: 7.716340438e-09 | O133: 0 | BL133: 813 | BM133: 0.002255917448 | BN133: 4.528786603e-06 | BO133: 2.482692157e-07 | BP133: 4.575938512e-12 | BQ133: 2 | BR133: 197.9750394 | BT133: 813 | BU133: 0.002255917448 | BV133: 4.546963805e-06 | BW133: 2.482692157e-07 | BX133: 4.594304967e-12 | BY133: 2 | BZ133: 197.9750394
H134: 694 | I134: 0.4652777778 | J134: 0.0195241325 | K134: 3.805695705e-07 | L134: 7.42889246e-09 | O134: 0 | BL134: 790 | BM134: 0.002255917448 | BN134: 1.361364201e-05 | BO134: 2.58534867e-07 | BP134: 5.752234261e-12 | BQ134: 3 | BR134: 198.1227053 | BT134: 790 | BU134: 0.002255917448 | BV134: 1.36691093e-05 | BW134: 2.58534867e-07 | BX134: 5.775671109e-12 | BY134: 3 | BZ134: 198.1227053
H135: 714 | I135: 0.4652777778 | J135: 0.01985576435 | K135: 3.559523502e-07 | L135: 7.066375954e-09 | O135: 0 | BL135: 791 | BM135: 0.002255917448 | BN135: 1.361364201e-05 | BO135: 2.58534867e-07 | BP135: 5.752234261e-12 | BQ135: 3 | BR135: 198.1227053 | BT135: 791 | BU135: 0.002255917448 | BV135: 1.36691093e-05 | BW135: 2.58534867e-07 | BX135: 5.775671109e-12 | BY135: 3 | BZ135: 198.1227053
H136: 716 | I136: 0.4652777778 | J136: 0.01405830111 | K136: 1.513099941e-07 | L136: 2.12676116e-09 | O136: 0 | BL136: 1452 | BM136: 0.002255917448 | BN136: 2.417294507e-06 | BO136: 4.256421329e-06 | BP136: 1.02890239e-11 | BQ136: 9 | BR136: 199.1515047 | BT136: 1452 | BU136: 0.002255917448 | BV136: 2.41748525e-06 | BW136: 4.256421329e-06 | BX136: 1.028983578e-11 | BY136: 9 | BZ136: 199.1515047
H137: 749 | I137: 0.4652777778 | J137: 0.01447187075 | K137: 1.2973383e-07 | L137: 1.877137905e-09 | O137: 0 | BL137: 815 | BM137: 0.002255917448 | BN137: 5.514149827e-06 | BO137: 2.497180983e-07 | BP137: 4.784638628e-12 | BQ137: 2 | BR137: 200.0068291 | BT137: 815 | BU137: 0.002255917448 | BV137: 5.536568813e-06 | BW137: 2.497180983e-07 | BX137: 4.804091626e-12 | BY137: 2 | BZ137: 200.0068291
H138: 761 | I138: 0.4652777778 | J138: 0.01470634759 | K138: 9.509393573e-08 | L138: 1.3982213e-09 | O138: 0 | BL138: 814 | BM138: 0.002255917448 | BN138: 4.588741717e-06 | BO138: 2.480751721e-07 | BP138: 4.663308576e-12 | BQ138: 2 | BR138: 200.4160153 | BT138: 814 | BU138: 0.002255917448 | BV138: 4.607376643e-06 | BW138: 2.480751721e-07 | BX138: 4.68224632e-12 | BY138: 2 | BZ138: 200.4160153
H139: 796 | I139: 0.4652777778 | J139: 0.01079778623 | K139: 3.532531507e-08 | L139: 5.126204332e-10 | O139: 0 | BL139: 811 | BM139: 0.002255917448 | BN139: 4.483020795e-06 | BO139: 2.478234561e-07 | BP139: 4.651347903e-12 | BQ139: 2 | BR139: 201.064903 | BT139: 811 | BU139: 0.002255917448 | BV139: 4.501281973e-06 | BW139: 2.478234561e-07 | BX139: 4.670294747e-12 | BY139: 2 | BZ139: 201.064903
H140: 798 | I140: 0.4652777778 | J140: 0.01137775004 | K140: 3.850542361e-08 | L140: 5.417083561e-10 | O140: 0 | BL140: 777 | BM140: 0.001614014208 | BN140: 9.764042568e-06 | BO140: 2.563500241e-07 | BP140: 4.118535435e-12 | BQ140: 1 | BR140: 201.244275 | BT140: 777 | BU140: 0.001614014208 | BV140: 9.800507096e-06 | BW140: 2.563500241e-07 | BX140: 4.133916406e-12 | BY140: 1 | BZ140: 201.244275
H141: 799 | I141: 0.4652777778 | J141: 0.01118807227 | K141: 3.934624854e-08 | L141: 5.457986963e-10 | O141: 0 | BL141: 708 | BM141: 0.001614014208 | BN141: 3.058523358e-05 | BO141: 2.694648982e-07 | BP141: 8.240095909e-12 | BQ141: 6 | BR141: 204.1252784 | BT141: 708 | BU141: 0.001614014208 | BV141: 3.071946264e-05 | BW141: 2.694648982e-07 | BX141: 8.276259122e-12 | BY141: 6 | BZ141: 204.1252784
H142: 800 | I142: 0.4652777778 | J142: 0.01137745205 | K142: 3.720076484e-08 | L142: 5.49018162e-10 | O142: 0 | BL142: 709 | BM142: 0.001614014208 | BN142: 3.058523358e-05 | BO142: 2.694648982e-07 | BP142: 8.240095909e-12 | BQ142: 6 | BR142: 204.1252784 | BT142: 709 | BU142: 0.001614014208 | BV142: 3.071946264e-05 | BW142: 2.694648982e-07 | BX142: 8.276259122e-12 | BY142: 6 | BZ142: 204.1252784
H143: 809 | I143: 0.4652777778 | J143: 0.01085799539 | K143: 2.534635097e-08 | L143: 4.245666067e-10 | O143: 0 | BL143: 803 | BM143: 0.001614014208 | BN143: 9.377649861e-06 | BO143: 2.574986399e-07 | BP143: 3.71386445e-12 | BQ143: 3 | BR143: 204.4845105 | BT143: 803 | BU143: 0.001614014208 | BV143: 9.417799181e-06 | BW143: 2.574986399e-07 | BX143: 3.729764929e-12 | BY143: 3 | BZ143: 204.4845105
H144: 833 | I144: 0.4652777778 | J144: 0.008309748311 | K144: 1.252238725e-08 | L144: 3.600973884e-10 | O144: 0 | BL144: 796 | BM144: 0.001614014208 | BN144: 1.019823115e-05 | BO144: 2.586885364e-07 | BP144: 3.545497463e-12 | BQ144: 4 | BR144: 204.8322187 | BT144: 796 | BU144: 0.001614014208 | BV144: 1.024253587e-05 | BW144: 2.586885364e-07 | BX144: 3.560900355e-12 | BY144: 4 | BZ144: 204.8322187
H145: 838 | I145: 0.4652777778 | J145: 0.008071214981 | K145: 9.528871972e-09 | L145: 2.819947192e-10 | O145: 0 | BL145: 707 | BM145: 0.001614014208 | BN145: 3.145065553e-05 | BO145: 2.695872664e-07 | BP145: 8.477100697e-12 | BQ145: 6 | BR145: 204.9331299 | BT145: 707 | BU145: 0.001614014208 | BV145: 3.158867072e-05 | BW145: 2.695872664e-07 | BX145: 8.514300831e-12 | BY145: 6 | BZ145: 204.9331299
H146: 850 | I146: 0.4652777778 | J146: 0.008058134539 | K146: 6.743541594e-09 | L146: 2.351404662e-10 | O146: 0 | BL146: 710 | BM146: 0.001614014208 | BN146: 3.145065553e-05 | BO146: 2.695872664e-07 | BP146: 8.477100697e-12 | BQ146: 6 | BR146: 204.9331299 | BT146: 710 | BU146: 0.001614014208 | BV146: 3.158867072e-05 | BW146: 2.695872664e-07 | BX146: 8.514300831e-12 | BY146: 6 | BZ146: 204.9331299
H147: 885 | I147: 0.4652777778 | J147: 0.006064717971 | K147: 2.535526203e-09 | L147: 1.636008717e-10 | O147: 0 | BL147: 799 | BM147: 0.001614014208 | BN147: 1.162632538e-05 | BO147: 2.597224095e-07 | BP147: 3.743913416e-12 | BQ147: 4 | BR147: 205.0435107 | BT147: 799 | BU147: 0.001614014208 | BV147: 1.167639944e-05 | BW147: 2.597224095e-07 | BX147: 3.760038283e-12 | BY147: 4 | BZ147: 205.0435107
H148: 905 | I148: 0.4652777778 | J148: 0.006020191171 | K148: 1.791435451e-09 | L148: 1.374359437e-10 | O148: 0 | BL148: 705 | BM148: 0.001614014208 | BN148: 3.016247637e-05 | BO148: 2.693078077e-07 | BP148: 8.12146177e-12 | BQ148: 6 | BR148: 205.3817131 | BT148: 705 | BU148: 0.001614014208 | BV148: 3.029568076e-05 | BW148: 2.693078077e-07 | BX148: 8.157328e-12 | BY148: 6 | BZ148: 205.3817131
H149: 675 | I149: 0.6979166667 | J149: 0.04153860535 | K149: 1.477561787e-06 | L149: 6.136430598e-08 | O149: 0 | BL149: 801 | BM149: 0.001614014208 | BN149: 9.380669642e-06 | BO149: 2.574321904e-07 | BP149: 3.698012656e-12 | BQ149: 3 | BR149: 205.5562873 | BT149: 801 | BU149: 0.001614014208 | BV149: 9.421087995e-06 | BW149: 2.574321904e-07 | BX149: 3.713946228e-12 | BY149: 3 | BZ149: 205.5562873
H150: 691 | I150: 0.6979166667 | J150: 0.0295658852 | K150: 4.050287828e-07 | L150: 1.197278098e-08 | O150: 0 | BL150: 812 | BM150: 0.001614014208 | BN150: 3.451569428e-06 | BO150: 2.481352794e-07 | BP150: 3.370649725e-12 | BQ150: 2 | BR150: 205.6142909 | BT150: 812 | BU150: 0.001614014208 | BV150: 3.465982913e-06 | BW150: 2.481352794e-07 | BX150: 3.384725296e-12 | BY150: 2 | BZ150: 205.6142909
H151: 695 | I151: 0.6979166667 | J151: 0.03032000339 | K151: 4.597040005e-07 | L151: 1.39356039e-08 | O151: 0 | BL151: 800 | BM151: 0.001614014208 | BN151: 1.122713924e-05 | BO151: 2.591841379e-07 | BP151: 3.774568897e-12 | BQ151: 4 | BR151: 205.9611501 | BT151: 800 | BU151: 0.001614014208 | BV151: 1.127560922e-05 | BW151: 2.591841379e-07 | BX151: 3.790864523e-12 | BY151: 4 | BZ151: 205.9611501
H152: 696 | I152: 0.6979166667 | J152: 0.0295658852 | K152: 4.050287828e-07 | L152: 1.197278098e-08 | O152: 0 | BL152: 795 | BM152: 0.001614014208 | BN152: 8.18689635e-06 | BO152: 2.563123936e-07 | BP152: 3.487401248e-12 | BQ152: 5 | BR152: 206.3499207 | BT152: 795 | BU152: 0.001614014208 | BV152: 8.222632286e-06 | BW152: 2.563123936e-07 | BX152: 3.502623811e-12 | BY152: 5 | BZ152: 206.3499207
H153: 748 | I153: 0.6979166667 | J153: 0.02212976747 | K153: 1.050264007e-07 | L153: 2.323772445e-09 | O153: 0 | BL153: 706 | BM153: 0.001614014208 | BN153: 3.014388937e-05 | BO153: 2.69305886e-07 | BP153: 8.116399173e-12 | BQ153: 6 | BR153: 206.4238815 | BT153: 706 | BU153: 0.001614014208 | BV153: 3.027753068e-05 | BW153: 2.69305886e-07 | BX153: 8.152382792e-12 | BY153: 6 | BZ153: 206.4238815
H154: 750 | I154: 0.6979166667 | J154: 0.02294094306 | K154: 1.233506323e-07 | L154: 2.829247311e-09 | O154: 0 | BL154: 802 | BM154: 0.001614014208 | BN154: 9.11381997e-06 | BO154: 2.572298663e-07 | BP154: 3.60837094e-12 | BQ154: 3 | BR154: 206.4653326 | BT154: 802 | BU154: 0.001614014208 | BV154: 9.153400688e-06 | BW154: 2.572298663e-07 | BX154: 3.624041856e-12 | BY154: 3 | BZ154: 206.4653326
H155: 795 | I155: 0.6979166667 | J155: 0.01645720431 | K155: 2.752790389e-08 | L155: 7.529085421e-10 | O155: 0 | BL155: 797 | BM155: 0.001614014208 | BN155: 9.704621237e-06 | BO155: 2.576892149e-07 | BP155: 3.691066129e-12 | BQ155: 5 | BR155: 206.9149523 | BT155: 797 | BU155: 0.001614014208 | BV155: 9.746739608e-06 | BW155: 2.576892149e-07 | BX155: 3.707085475e-12 | BY155: 5 | BZ155: 206.9149523
H156: 797 | I156: 0.6979166667 | J156: 0.01706249796 | K156: 3.18167048e-08 | L156: 8.012624761e-10 | O156: 0 | BL156: 69 | BM156: 0.004985660708 | BN156: 0.00021254043 | BO156: 4.998160071e-06 | BP156: 1.062111181e-09 | BQ156: 11 | BR156: 207.1592266 | BT156: 69 | BU156: 0.004985660708 | BV156: 0.0002127043351 | BW156: 4.998160071e-06 | BX156: 1.062930251e-09 | BY156: 11 | BZ156: 207.1592266
H157: 837 | I157: 0.6979166667 | J157: 0.01228857606 | K157: 7.495487173e-09 | L157: 4.221773434e-10 | O157: 0 | BL157: 798 | BM157: 0.001614014208 | BN157: 1.171222198e-05 | BO157: 2.595149076e-07 | BP157: 3.758277519e-12 | BQ157: 4 | BR157: 207.5150397 | BT157: 798 | BU157: 0.001614014208 | BV157: 1.176326878e-05 | BW157: 2.595149076e-07 | BX157: 3.774657677e-12 | BY157: 4 | BZ157: 207.5150397
H158: 839 | I158: 0.6979166667 | J158: 0.0127113839 | K158: 8.347288597e-09 | L158: 4.412322236e-10 | O158: 0 | BL158: 1121 | BM158: 0.001614014208 | BN158: 2.899067529e-05 | BO158: 2.692101051e-07 | BP158: 7.803114042e-12 | BQ158: 6 | BR158: 207.802196 | BT158: 1121 | BU158: 0.001614014208 | BV158: 2.911905261e-05 | BW158: 2.692101051e-07 | BX158: 7.837668011e-12 | BY158: 6 | BZ158: 207.802196
H159: 884 | I159: 0.6979166667 | J159: 0.00922945973 | K159: 1.99086764e-09 | L159: 2.465494377e-10 | O159: 0 | BL159: 721 | BM159: 0.001614014208 | BN159: 3.015744915e-05 | BO159: 2.693096557e-07 | BP159: 8.120163877e-12 | BQ159: 6 | BR159: 208.135853 | BT159: 721 | BU159: 0.001614014208 | BV159: 3.029180036e-05 | BW159: 2.693096557e-07 | BX159: 8.156339145e-12 | BY159: 6 | BZ159: 208.135853
H160: 886 | I160: 0.6979166667 | J160: 0.009537697528 | K160: 2.268086088e-09 | L160: 2.592062115e-10 | O160: 0 | BL160: 68 | BM160: 0.004985660708 | BN160: 0.0001819288048 | BO160: 6.139143883e-06 | BP160: 1.116676929e-09 | BQ160: 11 | BR160: 208.8464565 | BT160: 68 | BU160: 0.004985660708 | BV160: 0.0001820436407 | BW160: 6.139143883e-06 | BX160: 1.11738179e-09 | BY160: 11 | BZ160: 208.8464565
H161: 657 | I161: 0.1522727273 | J161: 0.00692880608 | K161: 1.253312886e-06 | L161: 8.682327765e-09 | O161: 0 | BL161: 824 | BM161: 0.001614014208 | BN161: 3.388278716e-06 | BO161: 2.477301744e-07 | BP161: 3.051711694e-12 | BQ161: 2 | BR161: 209.9334751 | BT161: 824 | BU161: 0.001614014208 | BV161: 3.402719248e-06 | BW161: 2.477301744e-07 | BX161: 3.064717808e-12 | BY161: 2 | BZ161: 209.9334751
H162: 680 | I162: 0.1522727273 | J162: 0.004996873784 | K162: 3.673587069e-07 | L162: 1.835299653e-09 | O162: 0 | BL162: 70 | BM162: 0.004985660708 | BN162: 0.0002164550005 | BO162: 4.882287568e-06 | BP162: 1.056596686e-09 | BQ162: 11 | BR162: 210.2583234 | BT162: 70 | BU162: 0.004985660708 | BV162: 0.0002166311909 | BW162: 4.882287568e-06 | BX162: 1.057456736e-09 | BY162: 11 | BZ162: 210.2583234
H163: 705 | I163: 0.1522727273 | J163: 0.00361106925 | K163: 1.047841993e-07 | L163: 3.783117942e-10 | O163: 0 | BL163: 821 | BM163: 0.001614014208 | BN163: 2.49382107e-06 | BO163: 2.451126267e-07 | BP163: 2.941635996e-12 | BQ163: 2 | BR163: 211.0860795 | BT163: 821 | BU163: 0.001614014208 | BV163: 2.504339954e-06 | BW163: 2.451126267e-07 | BX163: 2.954043754e-12 | BY163: 2 | BZ163: 211.0860795
H164: 706 | I164: 0.1522727273 | J164: 0.003596107259 | K164: 1.047639931e-07 | L164: 3.766716593e-10 | O164: 0 | BL164: 822 | BM164: 0.001614014208 | BN164: 2.835510164e-06 | BO164: 2.461495159e-07 | BP164: 2.987059676e-12 | BQ164: 2 | BR164: 211.7286225 | BT164: 822 | BU164: 0.001614014208 | BV164: 2.847565269e-06 | BW164: 2.461495159e-07 | BX164: 2.99975909e-12 | BY164: 2 | BZ164: 211.7286225
H165: 707 | I165: 0.1522727273 | J165: 0.003687302772 | K165: 1.077629805e-07 | L165: 3.972799608e-10 | O165: 0 | BL165: 823 | BM165: 0.001614014208 | BN165: 2.835510164e-06 | BO165: 2.461495159e-07 | BP165: 2.987059676e-12 | BQ165: 2 | BR165: 211.7286225 | BT165: 823 | BU165: 0.001614014208 | BV165: 2.847565269e-06 | BW165: 2.461495159e-07 | BX165: 2.99975909e-12 | BY165: 2 | BZ165: 211.7286225
H166: 708 | I166: 0.1522727273 | J166: 0.003628163461 | K166: 1.064487433e-07 | L166: 3.861407619e-10 | O166: 0 | BL166: 66 | BM166: 0.004985660708 | BN166: 0.0002233065603 | BO166: 4.669072478e-06 | BP166: 1.042438308e-09 | BQ166: 11 | BR166: 213.3514044 | BT166: 66 | BU166: 0.004985660708 | BV166: 0.0002235031049 | BW166: 4.669072478e-06 | BX166: 1.043355816e-09 | BY166: 11 | BZ166: 213.3514044
H167: 709 | I167: 0.1522727273 | J167: 0.003628163461 | K167: 1.064487433e-07 | L167: 3.861407619e-10 | O167: 0 | BL167: 11 | BM167: 0.004985660708 | BN167: 3.679149637e-05 | BO167: 4.183573633e-05 | BP167: 1.538909689e-09 | BQ167: 13 | BR167: 213.9459351 | BT167: 11 | BU167: 0.004985660708 | BV167: 3.679313886e-05 | BW167: 4.183573633e-05 | BX167: 1.53897839e-09 | BY167: 13 | BZ167: 213.9459351
H168: 710 | I168: 0.1522727273 | J168: 0.003687302772 | K168: 1.077629805e-07 | L168: 3.972799608e-10 | O168: 0 | BL168: 1453 | BM168: 0.001614014208 | BN168: 3.641524169e-06 | BO168: 1.290054194e-06 | BP168: 4.697763527e-12 | BQ168: 9 | BR168: 214.354535 | BT168: 1453 | BU168: 0.001614014208 | BV168: 3.64242125e-06 | BW168: 1.290054194e-06 | BX168: 4.698920811e-12 | BY168: 9 | BZ168: 214.354535
H169: 721 | I169: 0.1522727273 | J169: 0.003579775797 | K169: 1.048036347e-07 | L169: 3.751029132e-10 | O169: 0 | BL169: 13 | BM169: 0.004985660708 | BN169: 3.258284336e-05 | BO169: 4.477413603e-05 | BP169: 1.458594125e-09 | BQ169: 12 | BR169: 214.4488053 | BT169: 13 | BU169: 0.004985660708 | BV169: 3.258738059e-05 | BW169: 4.477413603e-05 | BX169: 1.458797237e-09 | BY169: 12 | BZ169: 214.4488053
H170: 733 | I170: 0.1522727273 | J170: 0.002806245348 | K170: 2.962442185e-08 | L170: 1.428272956e-10 | O170: 0 | BL170: 809 | BM170: 0.001614014208 | BN170: 7.664314101e-06 | BO170: 2.555305745e-07 | BP170: 3.021321225e-12 | BQ170: 4 | BR170: 214.7136514 | BT170: 809 | BU170: 0.001614014208 | BV170: 7.698617288e-06 | BW170: 2.555305745e-07 | BX170: 3.034843759e-12 | BY170: 4 | BZ170: 214.7136514
H171: 734 | I171: 0.1522727273 | J171: 0.002765513702 | K171: 2.971099798e-08 | L171: 1.413571153e-10 | O171: 0 | BL171: 810 | BM171: 0.001614014208 | BN171: 8.960148396e-06 | BO171: 2.567607819e-07 | BP171: 3.19724435e-12 | BQ171: 3 | BR171: 214.777359 | BT171: 810 | BU171: 0.001614014208 | BV171: 9.000062918e-06 | BW171: 2.567607819e-07 | BX171: 3.211487025e-12 | BY171: 3 | BZ171: 214.777359
H172: 735 | I172: 0.1522727273 | J172: 0.00272409202 | K172: 2.934792725e-08 | L172: 1.392165312e-10 | O172: 0 | BL172: 65 | BM172: 0.004985660708 | BN172: 0.0001973132136 | BO172: 5.519479711e-06 | BP172: 1.088861334e-09 | BQ172: 11 | BR172: 214.9912612 | BT172: 65 | BU172: 0.004985660708 | BV172: 0.0001974621417 | BW172: 5.519479711e-06 | BX172: 1.089683185e-09 | BY172: 11 | BZ172: 214.9912612
H173: 736 | I173: 0.1522727273 | J173: 0.00272409202 | K173: 2.934792725e-08 | L173: 1.392165312e-10 | O173: 0 | BL173: 48 | BM173: 0.004985660708 | BN173: 7.489553628e-05 | BO173: 1.656600674e-05 | BP173: 1.240486475e-09 | BQ173: 12 | BR173: 215.101608 | BT173: 48 | BU173: 0.004985660708 | BV173: 7.49256809e-05 | BW173: 1.656600674e-05 | BX173: 1.240985757e-09 | BY173: 12 | BZ173: 215.101608
H174: 737 | I174: 0.1522727273 | J174: 0.002765513702 | K174: 2.971099798e-08 | L174: 1.413571153e-10 | O174: 0 | BL174: 114 | BM174: 0.004985660708 | BN174: 0.000241459494 | BO174: 4.020872993e-06 | BP174: 9.706952544e-10 | BQ174: 11 | BR174: 215.1676817 | BT174: 114 | BU174: 0.004985660708 | BV174: 0.0002417193973 | BW174: 4.020872993e-06 | BX174: 9.71740096e-10 | BY174: 11 | BZ174: 215.1676817
H175: 738 | I175: 0.1522727273 | J175: 0.002745814423 | K175: 2.931108478e-08 | L175: 1.371223912e-10 | O175: 0 | BL175: 833 | BM175: 0.001614014208 | BN175: 2.987884595e-06 | BO175: 2.489501681e-07 | BP175: 2.574075105e-12 | BQ175: 4 | BR175: 215.192817 | BT175: 833 | BU175: 0.001614014208 | BV175: 3.001320385e-06 | BW175: 2.489501681e-07 | BX175: 2.585650095e-12 | BY175: 4 | BZ175: 215.192817
H176: 739 | I176: 0.1522727273 | J176: 0.002714766127 | K176: 2.93428954e-08 | L176: 1.37303261e-10 | O176: 0 | BL176: 67 | BM176: 0.004985660708 | BN176: 0.0002262113109 | BO176: 4.581159855e-06 | BP176: 1.03611516e-09 | BQ176: 11 | BR176: 216.1491455 | BT176: 67 | BU176: 0.004985660708 | BV176: 0.0002264194776 | BW176: 4.581159855e-06 | BX176: 1.037068625e-09 | BY176: 11 | BZ176: 216.1491455
H177: 740 | I177: 0.1522727273 | J177: 0.002714766127 | K177: 2.93428954e-08 | L177: 1.37303261e-10 | O177: 0 | BL177: 855 | BM177: 0.001614014208 | BN177: 7.627185718e-07 | BO177: 2.36389759e-07 | BP177: 2.102988127e-12 | BQ177: 2 | BR177: 217.159681 | BT177: 855 | BU177: 0.001614014208 | BV177: 7.661451612e-07 | BW177: 2.36389759e-07 | BX177: 2.112436011e-12 | BY177: 2 | BZ177: 217.159681
H178: 741 | I178: 0.1522727273 | J178: 0.002755860383 | K178: 2.970589749e-08 | L178: 1.394040021e-10 | O178: 0 | BL178: 880 | BM178: 0.001614014208 | BN178: 2.627081287e-07 | BO178: 2.297345165e-07 | BP178: 1.729459348e-12 | BQ178: 2 | BR178: 217.234298 | BT178: 880 | BU178: 0.001614014208 | BV178: 2.638972013e-07 | BW178: 2.297345165e-07 | BX178: 1.737287247e-12 | BY178: 2 | BZ178: 217.234298
H179: 742 | I179: 0.1522727273 | J179: 0.002823077348 | K179: 3.032841278e-08 | L179: 1.471673648e-10 | O179: 0 | BL179: 93 | BM179: 0.004985660708 | BN179: 0.000122251028 | BO179: 8.562344826e-06 | BP179: 1.046558475e-09 | BQ179: 12 | BR179: 218.0716897 | BT179: 93 | BU179: 0.004985660708 | BV179: 0.0001223379034 | BW179: 8.562344826e-06 | BX179: 1.047302192e-09 | BY179: 12 | BZ179: 218.0716897
H180: 743 | I180: 0.1522727273 | J180: 0.002714766127 | K180: 2.93428954e-08 | L180: 1.37303261e-10 | O180: 0 | BL180: 859 | BM180: 0.001614014208 | BN180: 1.055040253e-06 | BO180: 2.392146752e-07 | BP180: 2.177686618e-12 | BQ180: 2 | BR180: 218.1244407 | BT180: 859 | BU180: 0.001614014208 | BV180: 1.059776346e-06 | BW180: 2.392146752e-07 | BX180: 2.187462289e-12 | BY180: 2 | BZ180: 218.1244407
H181: 744 | I181: 0.1522727273 | J181: 0.002819370842 | K181: 3.055629553e-08 | L181: 1.465379435e-10 | O181: 0 | BL181: 860 | BM181: 0.001614014208 | BN181: 1.144884113e-06 | BO181: 2.39970207e-07 | BP181: 2.202539559e-12 | BQ181: 2 | BR181: 218.1384217 | BT181: 860 | BU181: 0.001614014208 | BV181: 1.150011525e-06 | BW181: 2.39970207e-07 | BX181: 2.212403726e-12 | BY181: 2 | BZ181: 218.1384217
H182: 745 | I182: 0.1522727273 | J182: 0.00272409202 | K182: 2.934792725e-08 | L182: 1.392165312e-10 | O182: 0 | BL182: 856 | BM182: 0.001614014208 | BN182: 7.655142205e-07 | BO182: 2.362123938e-07 | BP182: 2.123153425e-12 | BQ182: 2 | BR182: 219.3877913 | BT182: 856 | BU182: 0.001614014208 | BV182: 7.689672483e-07 | BW182: 2.362123938e-07 | BX182: 2.132730396e-12 | BY182: 2 | BZ182: 219.3877913
H183: 746 | I183: 0.1522727273 | J183: 0.002714766127 | K183: 2.93428954e-08 | L183: 1.37303261e-10 | O183: 0 | BL183: 857 | BM183: 0.001614014208 | BN183: 9.956204096e-07 | BO183: 2.384510807e-07 | BP183: 2.17403909e-12 | BQ183: 2 | BR183: 220.0473217 | BT183: 857 | BU183: 0.001614014208 | BV183: 1.000121245e-06 | BW183: 2.384510807e-07 | BX183: 2.183867126e-12 | BY183: 2 | BZ183: 220.0473217
H184: 756 | I184: 0.1522727273 | J184: 0.002731932637 | K184: 3.133774437e-08 | L184: 1.239711221e-10 | O184: 0 | BL184: 853 | BM184: 0.001614014208 | BN184: 7.560271163e-07 | BO184: 2.360767427e-07 | BP184: 2.116541799e-12 | BQ184: 2 | BR184: 220.0632971 | BT184: 853 | BU184: 0.001614014208 | BV184: 7.594424619e-07 | BW184: 2.360767427e-07 | BX184: 2.126103257e-12 | BY184: 2 | BZ184: 220.0632971
H185: 757 | I185: 0.1522727273 | J185: 0.002747834432 | K185: 3.016859351e-08 | L185: 1.254101149e-10 | O185: 0 | BL185: 745 | BM185: 0.001614014208 | BN185: 6.959104721e-06 | BO185: 2.569202672e-07 | BP185: 3.113460337e-12 | BQ185: 6 | BR185: 220.2870728 | BT185: 745 | BU185: 0.001614014208 | BV185: 6.991180105e-06 | BW185: 2.569202672e-07 | BX185: 3.127810665e-12 | BY185: 6 | BZ185: 220.2870728
H186: 768 | I186: 0.1522727273 | J186: 0.002653973138 | K186: 2.828074586e-08 | L186: 1.0434841e-10 | O186: 0 | BL186: 735 | BM186: 0.001614014208 | BN186: 6.959104721e-06 | BO186: 2.569202672e-07 | BP186: 3.113460337e-12 | BQ186: 6 | BR186: 220.2870728 | BT186: 735 | BU186: 0.001614014208 | BV186: 6.991180105e-06 | BW186: 2.569202672e-07 | BX186: 3.127810665e-12 | BY186: 6 | BZ186: 220.2870728
H187: 779 | I187: 0.1522727273 | J187: 0.002153163207 | K187: 8.271455312e-09 | L187: 9.302267681e-11 | O187: 0 | BL187: 736 | BM187: 0.001614014208 | BN187: 6.959104721e-06 | BO187: 2.569202672e-07 | BP187: 3.113460337e-12 | BQ187: 6 | BR187: 220.2870728 | BT187: 736 | BU187: 0.001614014208 | BV187: 6.991180105e-06 | BW187: 2.569202672e-07 | BX187: 3.127810665e-12 | BY187: 6 | BZ187: 220.2870728
H188: 780 | I188: 0.1522727273 | J188: 0.002129317514 | K188: 8.280263087e-09 | L188: 9.310556312e-11 | O188: 0 | BL188: 858 | BM188: 0.001614014208 | BN188: 8.64022936e-07 | BO188: 2.371918337e-07 | BP188: 2.138961705e-12 | BQ188: 2 | BR188: 220.4107089 | BT188: 858 | BU188: 0.001614014208 | BV188: 8.679341262e-07 | BW188: 2.371918337e-07 | BX188: 2.148644186e-12 | BY188: 2 | BZ188: 220.4107089
H189: 781 | I189: 0.1522727273 | J189: 0.002129317514 | K189: 8.280263087e-09 | L189: 9.310556312e-11 | O189: 0 | BL189: 71 | BM189: 0.004985660708 | BN189: 0.0001449393501 | BO189: 8.333600933e-06 | BP189: 1.207639402e-09 | BQ189: 11 | BR189: 220.6458618 | BT189: 71 | BU189: 0.004985660708 | BV189: 0.000145004612 | BW189: 8.333600933e-06 | BX189: 1.208183167e-09 | BY189: 11 | BZ189: 220.6458618
H190: 782 | I190: 0.1522727273 | J190: 0.002159753062 | K190: 8.382873517e-09 | L190: 9.442569413e-11 | O190: 0 | BL190: 739 | BM190: 0.001614014208 | BN190: 6.94628569e-06 | BO190: 2.569186372e-07 | BP190: 3.076052303e-12 | BQ190: 6 | BR190: 220.7536734 | BT190: 739 | BU190: 0.001614014208 | BV190: 6.978360571e-06 | BW190: 2.569186372e-07 | BX190: 3.090256154e-12 | BY190: 6 | BZ190: 220.7536734
H191: 783 | I191: 0.1522727273 | J191: 0.002120232964 | K191: 8.232326195e-09 | L191: 9.133564483e-11 | O191: 0 | BL191: 740 | BM191: 0.001614014208 | BN191: 6.94628569e-06 | BO191: 2.569186372e-07 | BP191: 3.076052303e-12 | BQ191: 6 | BR191: 220.7536734 | BT191: 740 | BU191: 0.001614014208 | BV191: 6.978360571e-06 | BW191: 2.569186372e-07 | BX191: 3.090256154e-12 | BY191: 6 | BZ191: 220.7536734
H192: 784 | I192: 0.1522727273 | J192: 0.002042324715 | K192: 7.964789136e-09 | L192: 8.555387028e-11 | O192: 0 | BL192: 743 | BM192: 0.001614014208 | BN192: 6.94628569e-06 | BO192: 2.569186372e-07 | BP192: 3.076052303e-12 | BQ192: 6 | BR192: 220.7536734 | BT192: 743 | BU192: 0.001614014208 | BV192: 6.978360571e-06 | BW192: 2.569186372e-07 | BX192: 3.090256154e-12 | BY192: 6 | BZ192: 220.7536734
H193: 785 | I193: 0.1522727273 | J193: 0.002117433086 | K193: 8.294331997e-09 | L193: 9.094134182e-11 | O193: 0 | BL193: 746 | BM193: 0.001614014208 | BN193: 6.94628569e-06 | BO193: 2.569186372e-07 | BP193: 3.076052303e-12 | BQ193: 6 | BR193: 220.7536734 | BT193: 746 | BU193: 0.001614014208 | BV193: 6.978360571e-06 | BW193: 2.569186372e-07 | BX193: 3.090256154e-12 | BY193: 6 | BZ193: 220.7536734
H194: 786 | I194: 0.1522727273 | J194: 0.002129317514 | K194: 8.280263087e-09 | L194: 9.310556312e-11 | O194: 0 | BL194: 49 | BM194: 0.004985660708 | BN194: 7.299271948e-05 | BO194: 1.711373044e-05 | BP194: 1.24894265e-09 | BQ194: 12 | BR194: 220.9246644 | BT194: 49 | BU194: 0.004985660708 | BV194: 7.301993642e-05 | BW194: 1.711373044e-05 | BX194: 1.249408346e-09 | BY194: 12 | BZ194: 220.9246644
H195: 787 | I195: 0.1522727273 | J195: 0.002126815653 | K195: 8.343217315e-09 | L195: 9.271693292e-11 | O195: 0 | BL195: 734 | BM195: 0.001614014208 | BN195: 7.149609322e-06 | BO195: 2.570371741e-07 | BP195: 3.161570486e-12 | BQ195: 6 | BR195: 221.1757614 | BT195: 734 | BU195: 0.001614014208 | BV195: 7.182565353e-06 | BW195: 2.570371741e-07 | BX195: 3.176143704e-12 | BY195: 6 | BZ195: 221.1757614
H196: 788 | I196: 0.1522727273 | J196: 0.002129317514 | K196: 8.280263087e-09 | L196: 9.310556312e-11 | O196: 0 | BL196: 737 | BM196: 0.001614014208 | BN196: 7.149609322e-06 | BO196: 2.570371741e-07 | BP196: 3.161570486e-12 | BQ196: 6 | BR196: 221.1757614 | BT196: 737 | BU196: 0.001614014208 | BV196: 7.182565353e-06 | BW196: 2.570371741e-07 | BX196: 3.176143704e-12 | BY196: 6 | BZ196: 221.1757614
H197: 804 | I197: 0.1522727273 | J197: 0.002031977705 | K197: 8.609963655e-09 | L197: 7.03961887e-11 | O197: 0 | BL197: 742 | BM197: 0.001614014208 | BN197: 7.419824626e-06 | BO197: 2.572328552e-07 | BP197: 3.280644205e-12 | BQ197: 6 | BR197: 221.2096366 | BT197: 742 | BU197: 0.001614014208 | BV197: 7.453908193e-06 | BW197: 2.572328552e-07 | BX197: 3.295714111e-12 | BY197: 6 | BZ197: 221.2096366
H198: 817 | I198: 0.1522727273 | J198: 0.001981125385 | K198: 7.515326805e-09 | L198: 5.845014851e-11 | O198: 0 | BL198: 744 | BM198: 0.001614014208 | BN198: 7.469115938e-06 | BO198: 2.573041115e-07 | BP198: 3.268986398e-12 | BQ198: 6 | BR198: 221.4534544 | BT198: 744 | BU198: 0.001614014208 | BV198: 7.50345196e-06 | BW198: 2.573041115e-07 | BX198: 3.284014146e-12 | BY198: 6 | BZ198: 221.4534544
H199: 826 | I199: 0.1522727273 | J199: 0.001669310168 | K199: 2.319055925e-09 | L199: 6.462011417e-11 | O199: 0 | BL199: 741 | BM199: 0.001614014208 | BN199: 7.135881286e-06 | BO199: 2.570355413e-07 | BP199: 3.123317596e-12 | BQ199: 6 | BR199: 221.6406622 | BT199: 741 | BU199: 0.001614014208 | BV199: 7.168833857e-06 | BW199: 2.570355413e-07 | BX199: 3.13774067e-12 | BY199: 6 | BZ199: 221.6406622
H200: 827 | I200: 0.1522727273 | J200: 0.001613141924 | K200: 2.24368324e-09 | L200: 6.083761919e-11 | O200: 0 | BL200: 818 | BM200: 0.001425521342 | BN200: 2.080175199e-06 | BO200: 2.440923444e-07 | BP200: 2.323303446e-12 | BQ200: 1 | BR200: 221.746046 | BT200: 818 | BU200: 0.001425521342 | BV200: 2.089286704e-06 | BW200: 2.440923444e-07 | BX200: 2.333479893e-12 | BY200: 1 | BZ200: 221.746046
... 962 more rows

Sheet DetailedOut
B4: Comment
B6: Block | C6: Library ID | D6: Mass | E6: logKow | F6: PNEC | G6: Cw | H6: Cn | I6: Ca | J6: Toxic Unit
D7: Fraction (%) | F7: ug/L | G7: g/L water | H7: g/L product | I7: g/L Headspace | J7: Acute
D8: =SUM(D9:D1546) -> 100 | G8: =SUM(G9:G1546) -> 0.002033793649 | H8: =SUM(H9:H1546) -> 901.9715929 | I8: =SUM(I9:I1546) -> 0.004562655526 | J8: =SUM(J9:J1546) -> 1.551029973 | K8: :Sum
B9: 1,1 | C9: 1455 | D9: 1.035454562e-20 | E9: 3.113403661 | F9: 228.9031659 | G9: 1.961668805e-24 | H9: 9.702916457e-21 | I9: 6.610017272e-23 | J9: 1.940164439e-22
B10: 2,1 | C10: 1456 | D10: 1.035454562e-20 | E10: 3.647285099 | F10: 86.11919688 | G10: 1.308994882e-24 | H10: 2.676808371e-20 | I10: 5.53790094e-23 | J10: 3.425386686e-22
B11: 3,1 | C11: 1005 | D11: 0.008765376911 | E11: 4.199823424 | F11: 30.27108031 | G11: 5.12201904e-07 | H11: 0.04607222433 | I11: 2.947508241e-05 | J11: 0.0003792238256
B12: 4,1 | C12: 727 | D12: 0.1190901957 | E12: 4.754186616 | F12: 10.38277886 | G12: 2.264062024e-06 | H12: 0.899788915 | I12: 0.000176424573 | J12: 0.004856553926
B13: 5,1 | C13: 685 | D13: 0.8028644922 | E13: 5.30096337 | F13: 3.563003119 | G13: 4.060845667e-06 | H13: 6.973590428 | I13: 0.0004076803314 | J13: 0.02520805171
B14: 6,1 | C14: 704 | D14: 1.331352287 | E14: 5.858780114 | F14: 1.178612283 | G14: 1.581367577e-06 | H14: 12.08637766 | I14: 0.0002143939151 | J14: 0.02944406187
B15: 7,1 | C15: 777 | D15: 1.486901976 | E15: 6.418971046 | F15: 0.9530340348 | G15: 4.004647286e-07 | H15: 13.68165307 | I15: 7.362433743e-05 | J15: 0.00920191041
B16: 8,1 | C16: 818 | D16: 1.470633857 | E16: 6.982832431 | F16: 1.03855618 | G16: 8.831228932e-08 | H16: 13.58678414 | I16: 2.227708064e-05 | J16: 0.001862144115
B17: 9,1 | C17: 873 | D17: 1.487812571 | E17: 7.545188184 | F17: 1.124078325 | G17: 1.998123776e-08 | H17: 13.76229418 | I17: 6.823621144e-06 | J17: 0.000389267328
B18: 10,1 | C18: 925 | D18: 1.434591598 | E18: 8.109781406 | F18: 1.20960047 | G18: 4.289073861e-09 | H18: 13.27485195 | I18: 1.995193932e-06 | J18: 7.765040377e-05
B19: 11,1 | C19: 972 | D19: 1.463145627 | E19: 8.675131402 | F19: 1.295122615 | G19: 9.734974275e-10 | H19: 13.54056395 | I19: 6.164392569e-07 | J19: 1.646061515e-05
B20: 12,1 | C20: 1006 | D20: 1.358070431 | E20: 9.24188787 | F20: 1.38064476 | G20: 2.00722869e-10 | H20: 12.56857039 | I20: 1.735465152e-07 | J20: 3.183735991e-06
B21: 13,1 | C21: 1007 | D21: 1.283247205 | E21: 9.796762371 | F21: 1.466166905 | G21: 4.338492269e-11 | H21: 11.87622241 | I21: 4.810813764e-08 | J21: 6.480038046e-07
B22: 14,1 | C22: 1008 | D22: 1.166224275 | E22: 10.37565172 | F22: 1.55168905 | G22: 8.53833558e-12 | H22: 10.79322742 | I22: 1.364025128e-08 | J22: 1.205010037e-07
B23: 15,1 | C23: 1009 | D23: 1.062661985 | E23: 10.89994559 | F23: 1.637211195 | G23: 1.911542546e-12 | H23: 9.834783654 | I23: 3.345714786e-09 | J23: 2.556827349e-08
B24: 16,1 | C24: 1010 | D24: 0.9061212328 | E24: 11.45908391 | F24: 1.72273334 | G24: 3.698983134e-13 | H24: 8.386023616 | I24: 8.412447618e-10 | J24: 4.702041224e-09
B25: 17,1 | C25: 1011 | D25: 0.7663583967 | E25: 12.01848899 | F25: 1.808255485 | G25: 7.100978675e-14 | H25: 7.09253889 | I25: 2.096428731e-10 | J25: 8.599645668e-10
B26: 18,1 | C26: 1012 | D26: 0.6365540737 | E26: 12.57813836 | F26: 1.89377763 | G26: 1.339062759e-14 | H26: 5.891218312 | I26: 5.127507082e-11 | J26: 1.548438959e-10
B27: 19,1 | C27: 1013 | D27: 0.5086183467 | E27: 13.13777485 | F27: 1.979299775 | G27: 2.430821973e-15 | H27: 4.707191204 | I27: 1.204882781e-11 | J27: 2.689451508e-11
B28: 20,1 | C28: 1014 | D28: 0.4010791751 | E28: 13.69785582 | F28: 2.06482192 | G28: 4.35368066e-16 | H28: 3.711931316 | I28: 2.794622229e-12 | J28: 4.617385222e-12
B29: 21,1 | C29: 1015 | D29: 0.236610541 | E29: 14.35318844 | F29: 2.150344065 | G29: 4.75523408e-17 | H29: 2.189797256 | I29: 6.311293425e-13 | J29: 4.842683495e-13
B30: 22,1 | C30: 1016 | D30: 0.1463141083 | E30: 14.92220228 | F30: 2.23586621 | G30: 6.570180179e-18 | H30: 1.354116481 | I30: 1.175943169e-13 | J30: 6.435074913e-14
B31: 23,1 | C31: 1017 | D31: 0.0799493127 | E31: 15.49138624 | F31: 2.321388355 | G31: 8.024432591e-19 | H31: 0.7399196372 | I31: 1.935637206e-14 | J31: 7.569874363e-15
B32: 24,1 | C32: 1018 | D32: 0.04236070842 | E32: 15.9390134 | F32: 2.4069105 | G32: 1.228759158e-19 | H32: 0.3920423946 | I32: 2.193982062e-15 | J32: 1.117966954e-15
B33: 25,1 | C33: 1019 | D33: 0.02429093639 | E33: 16.64112832 | F33: 2.492432645 | G33: 1.191285467e-20 | H33: 0.2248091977 | I33: 5.49788632e-16 | J33: 1.046681511e-16
B34: 26,1 | C34: 1020 | D34: 0.01311717941 | E34: 17.06097747 | F34: 2.57795479 | G34: 1.967439297e-21 | H34: 0.1213976493 | I34: 5.853638092e-17 | J34: 1.671276032e-17
B35: 1,2 | C35: 1458 | D35: 1.035454562e-20 | E35: 3.068162238 | F35: 252.436615 | G35: 1.784380019e-24 | H35: 8.01645692e-21 | I35: 6.93357898e-23 | J35: 1.600863247e-22
B36: 2,2 | C36: 1459 | D36: 1.035454562e-20 | E36: 3.664584531 | F36: 82.95411298 | G36: 9.338134116e-25 | H36: 2.115026447e-20 | I36: 6.421875901e-23 | J36: 2.536436724e-22
B37: 3,2 | C37: 1460 | D37: 0.0007332586927 | E37: 4.224627153 | F37: 28.68775845 | G37: 2.455320874e-08 | H37: 0.00261254286 | I37: 3.837750404e-06 | J37: 1.917692517e-05
B38: 3,2 | C38: 1461 | D38: 0.0007332586927 | E38: 4.202654178 | F38: 30.08605479 | G38: 2.830513809e-08 | H38: 0.002772074881 | I38: 3.648844193e-06 | J38: 2.108479051e-05
B39: 3,2 | C39: 1462 | D39: 0.0007332586927 | E39: 4.213245125 | F39: 29.40377257 | G39: 3.375790117e-08 | H39: 0.003275285397 | I39: 3.110416164e-06 | J39: 2.572720316e-05
B40: 4,2 | C40: 655 | D40: 0.03498279169 | E40: 4.712405966 | F40: 11.36678064 | G40: 6.877427537e-07 | H40: 0.2480696235 | I40: 6.741713009e-05 | J40: 0.001348215235
B41: 4,2 | C41: 656 | D41: 0.03498279169 | E41: 4.766631854 | F41: 10.10647733 | G41: 5.785840826e-07 | H41: 0.2444539977 | I41: 7.191561724e-05 | J41: 0.00127483835
B42: 5,2 | C42: 676 | D42: 0.06524760861 | E42: 5.3417398 | F42: 3.261458634 | G42: 2.641150463e-07 | H42: 0.5302482678 | I42: 6.920509088e-05 | J42: 0.001790122198
B43: 5,2 | C43: 677 | D43: 0.06524760861 | E43: 5.24861292 | F43: 3.991339385 | G43: 3.593035928e-07 | H43: 0.546291291 | I43: 5.274716171e-05 | J43: 0.001992435793
B44: 5,2 | C44: 678 | D44: 0.06524760861 | E44: 5.308496844 | F44: 3.505267043 | G44: 2.805393217e-07 | H44: 0.519628302 | I44: 7.938478675e-05 | J44: 0.001769978009
B45: 5,2 | C45: 679 | D45: 0.06524760861 | E45: 5.268172217 | F45: 3.825590684 | G45: 3.266896374e-07 | H45: 0.5321373017 | I45: 6.680490561e-05 | J45: 0.001889581533
B46: 5,2 | C46: 681 | D46: 0.06524760861 | E46: 5.347996988 | F46: 3.21749982 | G46: 2.742674307e-07 | H46: 0.5474688684 | I46: 5.236733774e-05 | J46: 0.001884171808
B47: 5,2 | C47: 682 | D47: 0.06524760861 | E47: 5.277869229 | F47: 3.745985528 | G47: 3.378419255e-07 | H47: 0.5523453001 | I47: 4.705302216e-05 | J47: 0.001995355233
B48: 5,2 | C48: 683 | D48: 0.06524760861 | E48: 5.257080328 | F48: 3.918721902 | G48: 3.595435748e-07 | H48: 0.5542057511 | I48: 4.504848926e-05 | J48: 0.002030485075
B49: 5,2 | C49: 684 | D49: 0.06524760861 | E49: 5.25632417 | F49: 3.925152744 | G49: 3.533683303e-07 | H49: 0.547024639 | I49: 5.208742593e-05 | J49: 0.00199236145
B50: 6,2 | C50: 717 | D50: 0.1934312771 | E50: 5.841413977 | F50: 1.223873632 | G50: 2.304997924e-07 | H50: 1.720650318 | I50: 6.553975063e-05 | J50: 0.0041340976
B51: 6,2 | C51: 718 | D51: 0.1934312771 | E51: 5.808644919 | F51: 1.314064959 | G51: 2.562669277e-07 | H51: 1.734690834 | I51: 5.165397655e-05 | J51: 0.004282830734
B52: 6,2 | C52: 719 | D52: 0.1934312771 | E52: 5.841715607 | F52: 1.223072859 | G52: 2.267030904e-07 | H52: 1.708494443 | I52: 7.739504843e-05 | J52: 0.004068646449
B53: 6,2 | C53: 720 | D53: 0.1934312771 | E53: 5.788501261 | F53: 1.372773395 | G53: 2.672206477e-07 | H53: 1.722801353 | I53: 6.311746316e-05 | J53: 0.004276159504
B54: 6,2 | C54: 723 | D54: 0.1934312771 | E54: 5.866042283 | F54: 1.160184605 | G54: 2.213156882e-07 | H54: 1.740205235 | I54: 4.660599163e-05 | J54: 0.004185761521
B55: 6,2 | C55: 724 | D55: 0.1934312771 | E55: 5.82140601 | F55: 1.278178253 | G55: 2.504461464e-07 | H55: 1.742764538 | I55: 4.385499176e-05 | J55: 0.004302264268
B56: 6,2 | C56: 725 | D56: 0.1934312771 | E56: 5.818907714 | F56: 1.285125989 | G56: 2.521998836e-07 | H56: 1.743003709 | I56: 4.360662373e-05 | J56: 0.004309126133
B57: 6,2 | C57: 726 | D57: 0.1934312771 | E57: 5.769926626 | F57: 1.429229435 | G57: 2.872040268e-07 | H57: 1.740339009 | I57: 4.588290621e-05 | J57: 0.004415588066
B58: 7,2 | C58: 762 | D58: 0.1576042561 | E58: 6.370882675 | F58: 0.9530340348 | G58: 4.749180821e-08 | H58: 1.441542856 | I58: 1.616506544e-05 | J58: 0.001091270549
B59: 7,2 | C59: 763 | D59: 0.1576042561 | E59: 6.353577898 | F59: 0.9530340348 | G59: 5.001122954e-08 | H59: 1.445099217 | I59: 1.268396405e-05 | J59: 0.001149162013
B60: 7,2 | C60: 764 | D60: 0.1576042561 | E60: 6.34230942 | F60: 0.9530340348 | G60: 5.11557837e-08 | H60: 1.440032583 | I60: 1.760077339e-05 | J60: 0.00117546167
B61: 7,2 | C61: 765 | D61: 0.1576042561 | E61: 6.355692426 | F61: 0.9530340348 | G61: 4.94355875e-08 | H61: 1.441065242 | I61: 1.661203316e-05 | J61: 0.001135934864
B62: 7,2 | C62: 766 | D62: 0.1576042561 | E62: 6.346416597 | F62: 0.9530340348 | G62: 5.074462337e-08 | H62: 1.441691225 | I62: 1.599150695e-05 | J62: 0.001166013995
B63: 7,2 | C63: 767 | D63: 0.1576042561 | E63: 6.232603381 | F63: 0.9530340348 | G63: 6.855237536e-08 | H63: 1.437965795 | I63: 1.945407695e-05 | J63: 0.001575201938
B64: 7,2 | C64: 771 | D64: 0.1576042561 | E64: 6.429241025 | F64: 0.9530340348 | G64: 4.105963532e-08 | H64: 1.445987429 | I64: 1.190077615e-05 | J64: 0.0009434715687
B65: 7,2 | C65: 772 | D65: 0.1576042561 | E65: 6.381913778 | F65: 0.9530340348 | G65: 4.663261721e-08 | H65: 1.44676139 | I65: 1.109797125e-05 | J65: 0.00107152799
B66: 7,2 | C66: 773 | D66: 0.1576042561 | E66: 6.381913778 | F66: 0.9530340348 | G66: 4.663261721e-08 | H66: 1.44676139 | I66: 1.109797125e-05 | J66: 0.00107152799
B67: 7,2 | C67: 774 | D67: 0.1576042561 | E67: 6.308469933 | F67: 0.9530340348 | G67: 5.668917166e-08 | H67: 1.446731749 | I67: 1.103628694e-05 | J67: 0.001302608299
B68: 8,2 | C68: 811 | D68: 0.1208546578 | E68: 6.926312524 | F68: 1.03855618 | G68: 8.399271687e-09 | H68: 1.114505609 | I68: 3.801846794e-06 | J68: 0.0001771062042
B69: 8,2 | C69: 812 | D69: 0.1208546578 | E69: 6.917309908 | F69: 1.03855618 | G69: 8.601541881e-09 | H69: 1.115333127 | I69: 2.995295675e-06 | J69: 0.0001813712533
B70: 8,2 | C70: 813 | D70: 0.1208546578 | E70: 6.905755198 | F70: 1.03855618 | G70: 8.864859054e-09 | H70: 1.114107421 | I70: 4.184878848e-06 | J70: 0.0001869235329
B71: 8,2 | C71: 814 | D71: 0.1208546578 | E71: 6.914126863 | F71: 1.03855618 | G71: 8.674553021e-09 | H71: 1.114392254 | I71: 3.909601823e-06 | J71: 0.0001829107589
B72: 8,2 | C72: 815 | D72: 0.1208546578 | E72: 6.837836031 | F72: 1.03855618 | G72: 1.062470584e-08 | H72: 1.114327338 | I72: 3.955179341e-06 | J72: 0.0002240314864
B73: 8,2 | C73: 816 | D73: 0.1208546578 | E73: 6.78037719 | F73: 1.03855618 | G73: 1.237227485e-08 | H73: 1.113717108 | I73: 4.532876892e-06 | J73: 0.0002608805522
B74: 8,2 | C74: 821 | D74: 0.1208546578 | E74: 6.993245165 | F74: 1.03855618 | G74: 7.068375207e-09 | H74: 1.115535813 | I74: 2.811989969e-06 | J74: 0.0001490430539
B75: 8,2 | C75: 822 | D75: 0.1208546578 | E75: 6.945801714 | F75: 1.03855618 | G75: 8.007864309e-09 | H75: 1.115728335 | I75: 2.616314242e-06 | J75: 0.0001688530273
B76: 8,2 | C76: 823 | D76: 0.1208546578 | E76: 6.945801714 | F76: 1.03855618 | G76: 8.007864309e-09 | H76: 1.115728335 | I76: 2.616314242e-06 | J76: 0.0001688530273
B77: 8,2 | C77: 824 | D77: 0.1208546578 | E77: 6.872097904 | F77: 1.03855618 | G77: 9.718998412e-09 | H77: 1.115731611 | I77: 2.597728665e-06 | J77: 0.0002049338301
B78: 8,2 | C78: 1503 | D78: 0.1208546578 | E78: 6.95753671 | F78: 1.03855618 | G78: 7.114456242e-09 | H78: 1.105514316 | I78: 1.255710133e-05 | J78: 0.000150014714
B79: 8,2 | C79: 1505 | D79: 0.1208546578 | E79: 6.928371032 | F79: 1.03855618 | G79: 7.972713884e-09 | H79: 1.111587803 | I79: 6.643141151e-06 | J79: 0.0001681118489
B80: 9,2 | C80: 853 | D80: 0.1280764124 | E80: 7.485471476 | F80: 1.124078325 | G80: 2.022339397e-09 | H80: 1.184051248 | I80: 1.224530808e-06 | J80: 3.939849287e-05
B81: 9,2 | C81: 854 | D81: 0.1280764124 | E81: 7.481832879 | F81: 1.124078325 | G81: 2.034722212e-09 | H81: 1.184312288 | I81: 9.705676122e-07 | J81: 3.963973044e-05
B82: 9,2 | C82: 855 | D82: 0.1280764124 | E82: 7.470194657 | F82: 1.124078325 | G82: 2.106981265e-09 | H82: 1.183909017 | I82: 1.362083631e-06 | J82: 4.104745546e-05
B83: 9,2 | C83: 856 | D83: 0.1280764124 | E83: 7.478205333 | F83: 1.124078325 | G83: 2.06205486e-09 | H83: 1.184002623 | I83: 1.27145928e-06 | J83: 4.017221531e-05
B84: 9,2 | C84: 857 | D84: 0.1280764124 | E84: 7.369813574 | F84: 1.124078325 | G84: 2.740544072e-09 | H84: 1.184026704 | I84: 1.241935252e-06 | J84: 5.339029949e-05
B85: 9,2 | C85: 858 | D85: 0.1280764124 | E85: 7.431737275 | F85: 1.124078325 | G85: 2.32804036e-09 | H85: 1.184093023 | I85: 1.181155327e-06 | J85: 4.535404969e-05
B86: 9,2 | C86: 859 | D86: 0.1280764124 | E86: 7.332273749 | F86: 1.124078325 | G86: 3.031064664e-09 | H86: 1.183822221 | I86: 1.438172756e-06 | J86: 5.905011775e-05
B87: 9,2 | C87: 860 | D87: 0.1280764124 | E87: 7.294898338 | F87: 1.124078325 | G87: 3.34641668e-09 | H87: 1.183729022 | I87: 1.525966954e-06 | J87: 6.519369295e-05
B88: 9,2 | C88: 864 | D88: 0.1280764124 | E88: 7.557933992 | F88: 1.124078325 | G88: 1.674147682e-09 | H88: 1.184375879 | I88: 9.119729449e-07 | J88: 3.261514641e-05
B89: 9,2 | C89: 865 | D89: 0.1280764124 | E89: 7.510406801 | F89: 1.124078325 | G89: 1.892841942e-09 | H89: 1.184440674 | I89: 8.469940894e-07 | J89: 3.687566977e-05
B90: 9,2 | C90: 866 | D90: 0.1280764124 | E90: 7.510406801 | F90: 1.124078325 | G90: 1.892841942e-09 | H90: 1.184440674 | I90: 8.469940894e-07 | J90: 3.687566977e-05
B91: 9,2 | C91: 867 | D91: 0.1280764124 | E91: 7.436552061 | F91: 1.124078325 | G91: 2.293523259e-09 | H91: 1.184444362 | I91: 8.398021179e-07 | J91: 4.468159988e-05
B92: 9,2 | C92: 1504 | D92: 0.1280764124 | E92: 7.463421243 | F92: 1.124078325 | G92: 2.095264029e-09 | H92: 1.18403178 | I92: 1.242806713e-06 | J92: 4.081918447e-05
B93: 10,2 | C93: 879 | D93: 0.0860473644 | E93: 7.880207093 | F93: 1.20960047 | G93: 4.716424813e-10 | H93: 0.795998868 | I93: 3.4329314e-07 | J93: 8.538726609e-06
B94: 10,2 | C94: 880 | D94: 0.0860473644 | E94: 7.913452555 | F94: 1.20960047 | G94: 4.316688602e-10 | H94: 0.7954893381 | I94: 8.391514351e-07 | J94: 7.815034755e-06
B95: 10,2 | C95: 895 | D95: 0.0860473644 | E95: 8.061220419 | F95: 1.20960047 | G95: 2.952093714e-10 | H95: 0.7959557226 | I95: 3.868382876e-07 | J95: 5.344540018e-06
B96: 10,2 | C96: 896 | D96: 0.0860473644 | E96: 8.047881993 | F96: 1.20960047 | G96: 3.057685365e-10 | H96: 0.795910599 | I96: 4.306242966e-07 | J96: 5.535705629e-06
B97: 10,2 | C97: 897 | D97: 0.0860473644 | E97: 7.979419561 | F97: 1.20960047 | G97: 3.663698363e-10 | H97: 0.7959296488 | I97: 4.115536735e-07 | J97: 6.63284584e-06
B98: 10,2 | C98: 898 | D98: 0.0860473644 | E98: 7.954707883 | F98: 1.20960047 | G98: 3.911723749e-10 | H98: 0.7958651861 | I98: 4.74017997e-07 | J98: 7.081876843e-06
B99: 10,2 | C99: 899 | D99: 0.0860473644 | E99: 7.963433887 | F99: 1.20960047 | G99: 3.789487548e-10 | H99: 0.7960940069 | I99: 2.516083803e-07 | J99: 6.860577545e-06
B100: 10,2 | C100: 900 | D100: 0.0860473644 | E100: 7.970055404 | F100: 1.20960047 | G100: 3.749771631e-10 | H100: 0.7959933461 | I100: 3.49532945e-07 | J100: 6.788674913e-06
B101: 10,2 | C101: 908 | D101: 0.0860473644 | E101: 8.050097017 | F101: 1.20960047 | G101: 3.040997926e-10 | H101: 0.7960950533 | I101: 2.51264491e-07 | J101: 5.505494296e-06
B102: 10,2 | C102: 909 | D102: 0.0860473644 | E102: 8.046993675 | F102: 1.20960047 | G102: 3.047239515e-10 | H102: 0.796149114 | I102: 1.986868801e-07 | J102: 5.516794216e-06
B103: 10,2 | C103: 910 | D103: 0.0860473644 | E103: 8.035339217 | F103: 1.20960047 | G103: 3.166737943e-10 | H103: 0.7960656021 | I103: 2.79791441e-07 | J103: 5.733136987e-06
B104: 10,2 | C104: 911 | D104: 0.0860473644 | E104: 8.04322874 | F104: 1.20960047 | G104: 3.098303409e-10 | H104: 0.7960849753 | I104: 2.610133315e-07 | J104: 5.609241493e-06
B105: 10,2 | C105: 912 | D105: 0.0860473644 | E105: 7.919399411 | F105: 1.20960047 | G105: 4.270487978e-10 | H105: 0.7960964035 | I105: 2.488449149e-07 | J105: 7.731392056e-06
B106: 10,2 | C106: 913 | D106: 0.0860473644 | E106: 7.912334667 | F106: 1.20960047 | G106: 4.35053157e-10 | H106: 0.7960941401 | I106: 2.509739526e-07 | J106: 7.87630486e-06
B107: 10,2 | C107: 914 | D107: 0.0860473644 | E107: 7.896646062 | F107: 1.20960047 | G107: 4.55187902e-10 | H107: 0.7960486519 | I107: 2.950282582e-07 | J107: 8.240829029e-06
B108: 10,2 | C108: 915 | D108: 0.0860473644 | E108: 7.840401537 | F108: 1.20960047 | G108: 5.272872865e-10 | H108: 0.7960383681 | I108: 3.043799988e-07 | J108: 9.546133274e-06
B109: 10,2 | C109: 920 | D109: 0.0860473644 | E109: 8.123215724 | F109: 1.20960047 | G109: 2.510400214e-10 | H109: 0.7961617725 | I109: 1.868600816e-07 | J109: 4.544887697e-06
B110: 10,2 | C110: 921 | D110: 0.0860473644 | E110: 8.075621137 | F110: 1.20960047 | G110: 2.833428536e-10 | H110: 0.796175434 | I110: 1.732840626e-07 | J110: 5.129705782e-06
B111: 10,2 | C111: 922 | D111: 0.0860473644 | E111: 8.075621137 | F111: 1.20960047 | G111: 2.833428536e-10 | H111: 0.796175434 | I111: 1.732840626e-07 | J111: 5.129705782e-06
B112: 10,2 | C112: 923 | D112: 0.0860473644 | E112: 8.001660083 | F112: 1.20960047 | G112: 3.427971941e-10 | H112: 0.7961766166 | I112: 1.715990116e-07 | J112: 6.206081172e-06
B113: 11,2 | C113: 930 | D113: 0.1208264601 | E113: 8.457287527 | F113: 1.295122615 | G113: 1.448744133e-10 | H113: 1.117862118 | I113: 3.582788397e-07 | J113: 2.449643826e-06
B114: 11,2 | C114: 931 | D114: 0.1208264601 | E114: 8.53209303 | F114: 1.295122615 | G114: 1.189254253e-10 | H114: 1.117903616 | I114: 3.18157227e-07 | J114: 2.010879128e-06
B115: 11,2 | C115: 944 | D115: 0.1208264601 | E115: 8.580637883 | F115: 1.295122615 | G115: 1.048953906e-10 | H115: 1.118065645 | I115: 1.607164787e-07 | J115: 1.773648915e-06
B116: 11,2 | C116: 945 | D116: 0.1208264601 | E116: 8.565903585 | F116: 1.295122615 | G116: 1.091276186e-10 | H116: 1.118053761 | I116: 1.722352922e-07 | J116: 1.845210559e-06
B117: 11,2 | C117: 946 | D117: 0.1208264601 | E117: 8.536412844 | F117: 1.295122615 | G117: 1.178926102e-10 | H117: 1.118050911 | I117: 1.749273609e-07 | J117: 1.993415526e-06
B118: 11,2 | C118: 947 | D118: 0.1208264601 | E118: 8.519891479 | F118: 1.295122615 | G118: 1.233515275e-10 | H118: 1.11802117 | I118: 2.038001e-07 | J118: 2.08571894e-06
B119: 11,2 | C119: 948 | D119: 0.1208264601 | E119: 8.528998198 | F119: 1.295122615 | G119: 1.186266051e-10 | H119: 1.118120252 | I119: 1.074892634e-07 | J119: 2.005826454e-06
B120: 11,2 | C120: 949 | D120: 0.1208264601 | E120: 8.535549909 | F120: 1.295122615 | G120: 1.178008866e-10 | H120: 1.118076747 | I120: 1.498041121e-07 | J120: 1.991864594e-06
B121: 11,2 | C121: 958 | D121: 0.1208264601 | E121: 8.61563271 | F121: 1.295122615 | G121: 9.54182821e-11 | H121: 1.118120458 | I121: 1.074979945e-07 | J121: 1.613402949e-06
B122: 11,2 | C122: 959 | D122: 0.1208264601 | E122: 8.612696827 | F122: 1.295122615 | G122: 9.535823327e-11 | H122: 1.118143768 | I122: 8.48299949e-08 | J122: 1.612387599e-06
B123: 11,2 | C123: 960 | D123: 0.1208264601 | E123: 8.60104758 | F123: 1.295122615 | G123: 9.939165704e-11 | H123: 1.118107769 | I123: 1.198013118e-07 | J123: 1.680587714e-06
B124: 11,2 | C124: 961 | D124: 0.1208264601 | E124: 8.608897352 | F124: 1.295122615 | G124: 9.720431191e-11 | H124: 1.118116118 | I124: 1.11702647e-07 | J124: 1.643602463e-06
B125: 11,2 | C125: 966 | D125: 0.1208264601 | E125: 8.689009887 | F125: 1.295122615 | G125: 7.865258607e-11 | H125: 1.118149048 | I125: 7.984662582e-08 | J125: 1.329916149e-06
B126: 11,2 | C126: 967 | D126: 0.1208264601 | E126: 8.641365212 | F126: 1.295122615 | G126: 8.863673815e-11 | H126: 1.11815502 | I126: 7.394906523e-08 | J126: 1.498735584e-06
B127: 11,2 | C127: 968 | D127: 0.1208264601 | E127: 8.641365212 | F127: 1.295122615 | G127: 8.863673815e-11 | H127: 1.11815502 | I127: 7.394906523e-08 | J127: 1.498735584e-06
B128: 11,2 | C128: 969 | D128: 0.1208264601 | E128: 8.567319282 | F128: 1.295122615 | G128: 1.070872631e-10 | H128: 1.118155672 | I128: 7.314865434e-08 | J128: 1.810710718e-06
B129: 12,2 | C129: 973 | D129: 0.0976667479 | E129: 9.00875356 | F129: 1.38064476 | G129: 2.714374713e-11 | H129: 0.903732578 | I129: 1.54793815e-07 | J129: 4.305365158e-07
B130: 12,2 | C130: 975 | D130: 0.0976667479 | E130: 9.013535141 | F130: 1.38064476 | G130: 2.704621378e-11 | H130: 0.9038013111 | I130: 8.795430646e-08 | J130: 4.28989505e-07
B131: 12,2 | C131: 976 | D131: 0.0976667479 | E131: 9.051940347 | F131: 1.38064476 | G131: 2.443496056e-11 | H131: 0.9038132354 | I131: 7.638195637e-08 | J131: 3.875714997e-07
B132: 12,2 | C132: 987 | D132: 0.0976667479 | E132: 9.125071323 | F132: 1.38064476 | G132: 2.006925899e-11 | H132: 0.9038519747 | I132: 3.874872047e-08 | J132: 3.183255723e-07
B133: 12,2 | C133: 988 | D133: 0.0976667479 | E133: 9.109895198 | F133: 1.38064476 | G133: 2.090379874e-11 | H133: 0.9038497336 | I133: 4.092055281e-08 | J133: 3.315625007e-07
B134: 12,2 | C134: 989 | D134: 0.0976667479 | E134: 9.096952446 | F134: 1.38064476 | G134: 2.164009552e-11 | H134: 0.903847902 | I134: 4.269510182e-08 | J134: 3.432411628e-07
B135: 12,2 | C135: 990 | D135: 0.0976667479 | E135: 9.085869289 | F135: 1.38064476 | G135: 2.235606797e-11 | H135: 0.9038400721 | I135: 5.030299034e-08 | J135: 3.545974534e-07
B136: 12,2 | C136: 991 | D136: 0.0976667479 | E136: 9.095079784 | F136: 1.38064476 | G136: 2.137635531e-11 | H136: 0.9038646716 | I136: 2.638970094e-08 | J136: 3.390578866e-07
B137: 12,2 | C137: 992 | D137: 0.0976667479 | E137: 9.101627669 | F137: 1.38064476 | G137: 2.129029403e-11 | H137: 0.9038538849 | I137: 3.688016078e-08 | J137: 3.376928383e-07
B138: 12,2 | C138: 999 | D138: 0.0976667479 | E138: 9.207569264 | F138: 1.38064476 | G138: 1.596495011e-11 | H138: 0.9038732054 | I138: 1.813956341e-08 | J138: 2.532256863e-07
B139: 12,2 | C139: 1000 | D139: 0.0976667479 | E139: 9.133457995 | F139: 1.38064476 | G139: 1.926382934e-11 | H139: 0.9038733949 | I139: 1.792565597e-08 | J139: 3.055503695e-07
B140: 12,2 | C140: 1023 | D140: 0.0976667479 | E140: 9.255272236 | F140: 1.38064476 | G140: 1.418557696e-11 | H140: 0.9038717102 | I140: 1.960966468e-08 | J140: 2.250024232e-07
B141: 12,2 | C141: 1024 | D141: 0.0976667479 | E141: 9.008127992 | F141: 1.38064476 | G141: 2.505305216e-11 | H141: 0.9036548631 | I141: 2.303874588e-07 | J141: 3.973752678e-07
B142: 12,2 | C142: 1506 | D142: 0.0976667479 | E142: 9.120804687 | F142: 1.38064476 | G142: 1.893595579e-11 | H142: 0.9036711561 | I142: 2.14598112e-07 | J142: 3.003498518e-07
B143: 13,2 | C143: 1025 | D143: 0.4295621345 | E143: 9.821945257 | F143: 1.466166905 | G143: 1.392351522e-11 | H143: 3.975510058 | I143: 2.617105772e-08 | J143: 2.079637413e-07
B144: 13,2 | C144: 1026 | D144: 0.4295621345 | E144: 9.774196698 | F144: 1.466166905 | G144: 1.565097191e-11 | H144: 3.975512086 | I144: 2.418344455e-08 | J144: 2.337652972e-07
B145: 13,2 | C145: 1027 | D145: 0.4295621345 | E145: 9.68294179 | F145: 1.466166905 | G145: 2.01852615e-11 | H145: 3.975484143 | I145: 5.131560092e-08 | J145: 3.014901361e-07
B146: 14,2 | C146: 1028 | D146: 0.4888242664 | E146: 10.38898677 | F146: 1.55168905 | G146: 3.536707597e-12 | H146: 4.523990474 | I146: 9.02724223e-09 | J146: 4.99133363e-08
B147: 14,2 | C147: 1029 | D147: 0.4888242664 | E147: 10.34119719 | F147: 1.55168905 | G147: 3.971130537e-12 | H147: 4.523991183 | I147: 8.333664452e-09 | J147: 5.604432048e-08
B148: 14,2 | C148: 1030 | D148: 0.4888242664 | E148: 10.24428059 | F148: 1.55168905 | G148: 5.209013982e-12 | H148: 4.523981685 | I148: 1.755923145e-08 | J148: 7.351449323e-08
B149: 15,2 | C149: 1031 | D149: 0.7513068441 | E149: 10.95636079 | F149: 1.637211195 | G149: 1.213673962e-12 | H149: 6.953234773 | I149: 4.201758849e-09 | J149: 1.623377301e-08
B150: 15,2 | C150: 1032 | D150: 0.7513068441 | E150: 10.90853407 | F150: 1.637211195 | G150: 1.361392311e-12 | H150: 6.953235107 | I150: 3.875553663e-09 | J150: 1.82096135e-08
B151: 15,2 | C151: 1033 | D151: 0.7513068441 | E151: 10.822267 | F151: 1.637211195 | G151: 1.764917184e-12 | H151: 6.953225939 | I151: 1.278830804e-08 | J151: 2.360705251e-08
B152: 16,2 | C152: 1034 | D152: 0.1993616737 | E152: 11.52403636 | F152: 1.72273334 | G152: 7.192614685e-14 | H152: 1.845063884 | I152: 3.373852891e-10 | J152: 9.143045409e-10
B153: 16,2 | C153: 1035 | D153: 0.1993616737 | E153: 11.47617584 | F153: 1.72273334 | G153: 8.060689868e-14 | H153: 1.845063912 | I153: 3.109447608e-10 | J153: 1.024651767e-09
B154: 16,2 | C154: 1036 | D154: 0.1993616737 | E154: 11.43884647 | F154: 1.72273334 | G154: 8.799922428e-14 | H154: 1.845063933 | I154: 2.895487691e-10 | J154: 1.118620889e-09
B155: 16,2 | C155: 1037 | D155: 0.1993616737 | E155: 11.34334192 | F155: 1.72273334 | G155: 1.180086606e-13 | H155: 1.845063209 | I155: 9.938818305e-10 | J155: 1.500092233e-09
B156: 16,2 | C156: 1038 | D156: 0.1993616737 | E156: 11.38429781 | F156: 1.72273334 | G156: 1.064460547e-13 | H156: 1.845063188 | I156: 1.014466475e-09 | J156: 1.353111704e-09
B157: 17,2 | C157: 1039 | D157: 0.4651309256 | E157: 12.09198666 | F157: 1.808255485 | G157: 3.748923115e-14 | H157: 4.30472101 | I157: 2.380314918e-10 | J157: 4.540136212e-10
B158: 17,2 | C158: 1040 | D158: 0.4651309256 | E158: 11.88937378 | F158: 1.808255485 | G158: 6.510181319e-14 | H158: 4.304720548 | I158: 6.870064524e-10 | J158: 7.884160077e-10
B159: 18,2 | C159: 1041 | D159: 0.3162077354 | E159: 12.66018827 | F159: 1.89377763 | G159: 5.695305239e-15 | H159: 2.926458039 | I159: 4.890436281e-11 | J159: 6.585824642e-11
B160: 18,2 | C160: 1042 | D160: 0.3162077354 | E160: 12.44874154 | F160: 1.89377763 | G160: 1.012645274e-14 | H160: 2.926457945 | I160: 1.399578121e-10 | J160: 1.170982751e-10
B161: 19,2 | C161: 1043 | D161: 0.265462874 | E161: 13.22862067 | F161: 1.979299775 | G161: 1.068779598e-15 | H161: 2.456821525 | I161: 1.240129782e-11 | J161: 1.182493384e-11
B162: 19,2 | C162: 1044 | D162: 0.265462874 | E162: 13.01145245 | F162: 1.979299775 | G162: 1.9297719e-15 | H162: 2.456821502 | I162: 3.519308199e-11 | J162: 2.135091752e-11
B163: 20,2 | C163: 1045 | D163: 0.235573245 | E163: 13.79726571 | F163: 2.06482192 | G163: 2.120681131e-16 | H163: 2.180197225 | I163: 3.322585599e-12 | J163: 2.249131822e-12
B164: 20,2 | C164: 1046 | D164: 0.235573245 | E164: 13.59078599 | F164: 2.06482192 | G164: 3.813344874e-16 | H164: 2.180197213 | I164: 1.487696502e-11 | J164: 4.044321033e-12
B165: 21,2 | C165: 1047 | D165: 0.3456927365 | E165: 14.11290323 | F165: 2.150344065 | G165: 1.407468838e-16 | H165: 3.199337618 | I165: 6.358774382e-12 | J165: 1.433352385e-12
B166: 22,2 | C166: 1048 | D166: 0.1335454006 | E166: 14.9351312 | F166: 2.23586621 | G166: 6.015540368e-18 | H166: 1.235943887 | I166: 1.714885845e-13 | J166: 5.891840384e-14
B167: 22,2 | C167: 1049 | D167: 0.1335454006 | E167: 14.65995882 | F167: 2.23586621 | G167: 1.285525085e-17 | H167: 1.235943887 | I167: 7.250749463e-13 | J167: 1.259090314e-13
B168: 23,2 | C168: 1050 | D168: 0.05790584974 | E168: 15.5043245 | F168: 2.321388355 | G168: 5.837052513e-19 | H168: 0.5359104898 | I168: 2.242506202e-14 | J168: 5.506402313e-15
B169: 23,2 | C169: 1051 | D169: 0.05790584974 | E169: 15.22030348 | F169: 2.321388355 | G169: 1.276391109e-18 | H169: 0.5359104897 | I169: 9.396154493e-14 | J169: 1.204087669e-14
B170: 24,2 | C170: 1052 | D170: 0.02138993898 | E170: 16.07367573 | F170: 2.4069105 | G170: 4.826363711e-20 | H170: 0.1979608749 | I170: 2.497449995e-15 | J170: 4.391190168e-16
B171: 24,2 | C171: 1053 | D171: 0.02138993898 | E171: 15.78392574 | F171: 2.4069105 | G171: 1.071309831e-19 | H171: 0.1979608749 | I171: 1.037255572e-14 | J171: 9.747141901e-16
B172: 24,2 | C172: 1431 | D172: 0.02138993898 | E172: 15.77196651 | F172: 2.4069105 | G172: 1.04297629e-19 | H172: 0.1979608749 | I172: 4.427555983e-15 | J172: 9.489353695e-16
B173: 25,2 | C173: 1054 | D173: 0.01728982166 | E173: 16.64317449 | F173: 2.492432645 | G173: 8.734757243e-21 | H173: 0.1600148661 | I173: 6.084675116e-16 | J173: 7.674490426e-17
B174: 25,2 | C174: 1055 | D174: 0.01728982166 | E174: 16.36416806 | F174: 2.492432645 | G174: 1.942120166e-20 | H174: 0.1600148661 | I174: 4.009532514e-15 | J174: 1.706376285e-16
B175: 26,2 | C175: 1056 | D175: 0.007717144814 | E175: 17.21281139 | F175: 2.57795479 | G175: 8.731197905e-22 | H175: 0.07142108916 | I175: 8.183849795e-17 | J175: 7.416870145e-18
B176: 26,2 | C176: 1057 | D176: 0.007717144814 | E176: 16.92792554 | F176: 2.57795479 | G176: 1.972541671e-21 | H176: 0.07142108916 | I176: 5.314267877e-16 | J176: 1.675610333e-17
B177: 26,2 | C177: 1481 | D177: 0.007717144814 | E177: 17.21281139 | F177: 2.57795479 | G177: 8.731197905e-22 | H177: 0.07142108916 | I177: 8.183849795e-17 | J177: 7.416870145e-18
B178: 1,3 | C178: 639 | D178: 5.177272812e-21 | E178: 2.594351395 | F178: 683.6232849 | G178: 3.514119963e-24 | H178: 3.687326294e-21 | I178: 1.138259052e-23 | J178: 1.168161904e-22
B179: 1,3 | C179: 1473 | D179: 5.177272812e-21 | E179: 2.268097478 | F179: 1344.013218 | G179: 4.354308803e-24 | H179: 1.688977767e-21 | I179: 5.764209192e-24 | J179: 7.377300289e-23
B180: 2,3 | C180: 640 | D180: 0.001097039125 | E180: 3.175420417 | F180: 233.4873229 | G180: 4.466227979e-07 | H180: 0.002360435579 | I180: 3.558312775e-06 | J180: 4.328393169e-05
B181: 2,3 | C181: 1474 | D181: 0.001097039125 | E181: 2.824995201 | F181: 486.289748 | G181: 7.968848076e-07 | H181: 0.001422131361 | I181: 1.318419991e-06 | J181: 3.718023079e-05
B182: 3,3 | C182: 642 | D182: 0.006123606355 | E182: 3.747411711 | F182: 79.00241592 | G182: 9.930332052e-07 | H182: 0.02549784858 | I182: 2.137946663e-05 | J182: 0.0002830001379
B183: 3,3 | C183: 643 | D183: 0.006123606355 | E183: 3.749708446 | F183: 78.61060387 | G183: 9.954602862e-07 | H183: 0.02571221027 | I183: 2.114916427e-05 | J183: 0.0002850995681
B184: 3,3 | C184: 644 | D184: 0.006123606355 | E184: 3.717231953 | F184: 84.33597419 | G184: 1.269603885e-06 | H184: 0.02996277635 | I184: 1.454835741e-05 | J184: 0.000339033697
B185: 4,3 | C185: 646 | D185: 0.01457459895 | E185: 4.337543524 | F185: 25.15596824 | G185: 7.090934998e-07 | H185: 0.09183420862 | I185: 3.548426043e-05 | J185: 0.0006308088973
B186: 4,3 | C186: 647 | D186: 0.01457459895 | E186: 4.314003374 | F186: 26.47199422 | G186: 6.869567371e-07 | H186: 0.08441604578 | I186: 4.28973736e-05 | J186: 0.0005808849351
B187: 4,3 | C187: 651 | D187: 0.01457459895 | E187: 4.292323688 | F187: 27.74479394 | G187: 8.697937622e-07 | H187: 0.09848659707 | I187: 2.756876233e-05 | J187: 0.0007019154932
B188: 4,3 | C188: 652 | D188: 0.01457459895 | E188: 4.29702457 | F188: 27.4637136 | G188: 8.668573167e-07 | H188: 0.09940054667 | I188: 2.670640898e-05 | J188: 0.000706669235
B189: 4,3 | C189: 654 | D189: 0.01457459895 | E189: 4.275272778 | F189: 28.78866581 | G189: 9.972367233e-07 | H189: 0.1086414586 | I189: 1.654655759e-05 | J189: 0.0007757238624
B190: 4,3 | C190: 1471 | D190: 0.01457459895 | E190: 4.374231421 | F190: 23.2340732 | G190: 6.085314363e-07 | H190: 0.08853179875 | I190: 3.960078747e-05 | J190: 0.000585891499
B191: 5,3 | C191: 658 | D191: 0.03654351066 | E191: 4.919384324 | F191: 8.021057963 | G191: 4.362612164e-07 | H191: 0.2772906113 | I191: 5.531063109e-05 | J191: 0.001208902786
B192: 5,3 | C192: 659 | D192: 0.03654351066 | E192: 4.919384324 | F192: 8.021057963 | G192: 4.362612164e-07 | H192: 0.2772906113 | I192: 5.531063109e-05 | J192: 0.001208902786
B193: 5,3 | C193: 673 | D193: 0.03654351066 | E193: 4.836771464 | F193: 9.593996539 | G193: 6.300141418e-07 | H193: 0.3170783092 | I193: 1.487482594e-05 | J193: 0.001461064653
B194: 5,3 | C194: 1472 | D194: 0.03654351066 | E194: 4.88415248 | F194: 8.657612965 | G194: 5.11482165e-07 | H194: 0.2928759572 | I194: 3.947748411e-05 | J194: 0.001313706237
B195: 6,3 | C195: 692 | D195: 0.02742891336 | E195: 5.341052308 | F195: 3.572209448 | G195: 1.26602865e-07 | H195: 0.2464109813 | I195: 6.095450698e-06 | J195: 0.0007834513784
B196: 6,3 | C196: 693 | D196: 0.02742891336 | E196: 5.394545367 | F196: 3.180922475 | G196: 1.100914792e-07 | H196: 0.2453810054 | I196: 7.245665772e-06 | J196: 0.0007645250595
B197: 6,3 | C197: 694 | D197: 0.02742891336 | E197: 5.403997277 | F197: 3.116378798 | G197: 1.074228526e-07 | H197: 0.2459464702 | I197: 6.719790233e-06 | J197: 0.000761345328
B198: 6,3 | C198: 714 | D198: 0.02742891336 | E198: 5.400445801 | F198: 3.140475582 | G198: 1.07307096e-07 | H198: 0.2491809007 | I198: 3.575470954e-06 | J198: 0.0007547259214
B199: 6,3 | C199: 716 | D199: 0.02742891336 | E199: 5.296388588 | F199: 3.935521334 | G199: 1.414872019e-07 | H199: 0.2480357977 | I199: 4.381419309e-06 | J199: 0.0007952074339
B200: 7,3 | C200: 749 | D200: 0.04602978043 | E200: 5.881591284 | F200: 1.216380286 | G200: 5.03417377e-08 | H200: 0.4222782782 | I200: 3.165321246e-06 | J200: 0.0009079219465
B201: 7,3 | C201: 761 | D201: 0.04602978043 | E201: 5.962489404 | F201: 1.020530373 | G201: 3.992238447e-08 | H201: 0.4237387005 | I201: 1.838890097e-06 | J201: 0.0008571511745
B202: 8,3 | C202: 796 | D202: 0.02214331281 | E202: 6.435987387 | F202: 1.02626574 | G202: 5.473099464e-09 | H202: 0.2044071211 | I202: 4.623763392e-07 | J202: 0.0001167873085
B203: 8,3 | C203: 798 | D203: 0.02214331281 | E203: 6.418293772 | F203: 1.02626574 | G203: 5.583880871e-09 | H203: 0.2045485651 | I203: 3.238303865e-07 | J203: 0.0001191512089
B204: 8,3 | C204: 799 | D204: 0.02214331281 | E204: 6.392024441 | F204: 1.02626574 | G204: 6.119485462e-09 | H204: 0.204405406 | I204: 4.582267629e-07 | J204: 0.000130580166
... 1270 more rows

Sheet Templates (hidden)
C8: Hydrocarbon Block | D8: Starting Boiling Point | E8: Ending Boiling Point | F8: Aliphatic | G8: Aromatic
F9: (weight %) | G9: (weight %)
C10: 1
C11: 2
C12: 3
C13: 4
C14: 5
C15: 6
C16: 7
C17: 8
C18: 9
C19: 10
C20: 11
C21: 12
C22: 13
C23: 14
C24: 15
C25: 16
C26: 17
C27: 18
C28: 19
C29: 20
C30: 21
C31: 22
C32: 23
C33: 24
C34: 25
C35: 26
C36: 27
C37: 28
C38: 29
C39: 30
C40: 31
C41: 32
C42: 33
C43: 34
C44: 35
C45: 36
C46: 37
C47: 38
C48: 39
C49: 40
C50: 41
C51: 42
C52: 43
C53: 44
C54: 45
C55: 46
C56: 47
C57: 48
C58: 49
C59: 50
C60: 51
C61: 52
C62: 53
C63: 54
C64: 55
C65: 56
C66: 57
C67: 58
C68: 59
C69: 60
C70: 61
C71: 62
C72: 63
C73: 64
C74: 65
C75: 66
C76: 67
C77: 68
C78: 69
C79: 70
C80: 71
C81: 72
C82: 73
C83: 74
C84: 75
C85: 76
C86: 77
C87: 78
C88: 79
C89: 80
C90: 81
C91: 82
C92: 83
C93: 84
C94: 85
C95: 86
C96: 87
C97: 88
C98: 89
C99: 90
C100: 91
C101: 92
C102: 93
C103: 94
C104: 95
C105: 96
C106: 97
C107: 98
C108: 99
C109: 100
C113: Hydrocarbon Block | D113: Starting Carbon Number | E113: Ending Carbon Number | F113: n-P | G113: i-P | H113: n-CC5 | I113: n-CC6 | J113: i-N | K113: Di-N | L113: n-Olefins | M113: i-Olefins | N113: Poly-N | O113: AlS | P113: MoAr | Q113: NMAr | R113: DiAr | S113: NDiAr | T113: PolyAr | U113: ArS
F114: (weight %) | G114: (weight %) | H114: (weight %) | I114: (weight %) | J114: (weight %) | K114: (weight %) | L114: (weight %) | M114: (weight %) | N114: (weight %) | O114: (weight %) | P114: (weight %) | Q114: (weight %) | R114: (weight %) | S114: (weight %) | T114: (weight %) | U114: (weight %)
C115: 1
C116: 2
C117: 3
C118: 4
C119: 5
C120: 6
C121: 7
C122: 8
C123: 9
C124: 10
C125: 11
C126: 12
C127: 13
C128: 14
C129: 15
C130: 16
C131: 17
C132: 18
C133: 19
C134: 20
C135: 21
C136: 22
C137: 23
C138: 24
C139: 25
C140: 26
C141: 27
C142: 28
C143: 29
C144: 30
C145: 31
C146: 32
C147: 33
C148: 34
C149: 35
C150: 36
C151: 37
C152: 38
C153: 39
C154: 40
C155: 41
C156: 42
C157: 43
C158: 44
C159: 45
C160: 46
C161: 47
C162: 48
C163: 49
C164: 50
C165: 51
C166: 52
C167: 53
C168: 54
C169: 55
C170: 56
C171: 57
C172: 58
C173: 59
C174: 60
C175: 61
C176: 62
C177: 63
C178: 64
C179: 65
C180: 66
C181: 67
C182: 68
C183: 69
C184: 70
C185: 71
C186: 72
C187: 73
C188: 74
C189: 75
C190: 76
C191: 77
C192: 78
C193: 79
C194: 80
C195: 81
C196: 82
C197: 83
C198: 84
C199: 85
C200: 86
C201: 87
C202: 88
C203: 89
C204: 90
C205: 91
C206: 92
C207: 93
C208: 94
C209: 95
C210: 96
... 416 more rows

Sheet Output - LL50 (hidden)
A1: Product Name: | C1: =Input!C1 -> test
A2: Date: | C2: =Input!C2 -> 2011-12-20 | F2: LL50/NOEL and PNEC Report
B6: Species: | C6: Daphnia magna | E6: Acute TUs
B7: Model LL50 (mg/L water)
B8: Total Toxic Units:
B10: Test Conditions:
A11: Volume of water (L):
A12: Volume of headspace (L):
A13: Volume of free product (ml):
B19: Hydrocarbon Block | C19: Average log Kow | D19: Average Sub-Cooled Solubility | E19: Average Molecular Weight | F19: Average Henry's Law Constant | G19: Product Phase | H19: Air Phase | I19: Water Phase | J19: Avg PNEC Aliphatics | K19: Avg PNEC Aromatics | L19: Aliphatics | M19: Aromatics
D20: (mg/L) | E20: (g/mol) | F20: Log(unitless) | G20: (mg/L product) | H20: (mg/L headspace) | I20: (mg/L water) | J20: (mg/L water) | K20: (mg/L water) | L20: TU | M20: TU
B21: 1
B22: 2
B23: 3
B24: 4
B25: 5
B26: 6
B27: 7
B28: 8
B29: 9
B30: 10
B31: 11
B32: 12
B33: 13
B34: 14
B35: 15
B36: 16
B37: 17
B38: 18
B39: 19
B40: 20
B41: 21
B42: 22
B43: 23
B44: 24
B45: 25
B46: 26
B47: 27
B48: 28
B49: 29
B50: 30
B51: 31
B52: 32
B53: 33
B54: 34
B55: 35
B56: 36
B57: 37
B58: 38
B59: 39
B60: 40
B61: 41
B62: 42
B63: 43
B64: 44
B65: 45
B66: 46
B67: 47
B68: 48
B69: 49
B70: 50
B71: 51
B72: 52
B73: 53
B74: 54
B75: 55
B76: 56
B77: 57
B78: 58
B79: 59
B80: 60
B81: 61
B82: 62
B83: 63
B84: 64
B85: 65
B86: 66
B87: 67
B88: 68
B89: 69
B90: 70
B91: 71
B92: 72
B93: 73
B94: 74
B95: 75
B96: 76
B97: 77
B98: 78
B99: 79
B100: 80
B101: 81
B102: 82
B103: 83
B104: 84
B105: 85
B106: 86
B107: 87
B108: 88
B109: 89
B110: 90
B111: 91
B112: 92
B113: 93
B114: 94
B115: 95
B116: 96
B117: 97
B118: 98
B119: 99
B120: 100
K122: Totals: | L122: =SUM(L21:L120) -> 0 | M122: =SUM(M21:M120) -> 0

Sheet Output - Loads
A1: Product Name: | C1: =Input!C1 -> test
A2: Date: | C2: =Input!C2 -> 2011-12-20 | F2: Report of Individual Loads | I2: Product Loading | J2: Effect Data: Mortality | K2: Model TU
I4: (mg/L water) | J4: (%) | K4: TU
H5: 1 | I5: 0.5 | J5: 10 | K5: 0.3932235222
B6: Species: | C6: Daphnia magna | E6: Acute TUs | H6: 2 | I6: 1 | J6: 0 | K6: 0.5379749047
B7: Load (mg/L water): | C7: 0.5 | H7: 3 | I7: 5 | J7: 10 | K7: 0.9260883914 | V7: Load (mg/L water): | W7: 1 | AP7: Load (mg/L water): | AQ7: 5 | BJ7: Load (mg/L water): | BK7: 10 | CD7: Load (mg/L water): | CE7: 50 | CX7: Load (mg/L water): | CY7: 100 | DR7: Load (mg/L water): | EL7: Load (mg/L water): | FF7: Load (mg/L water): | FZ7: Load (mg/L water):
B8: Toxic Units: | C8: 0.3932235222 | H8: 4 | I8: 10 | J8: 40 | K8: 1.094299935 | V8: Toxic Units: | W8: 0.5379749047 | AP8: Toxic Units: | AQ8: 0.9260883914 | BJ8: Toxic Units: | BK8: 1.094299935 | CD8: Toxic Units: | CE8: 1.435356794 | CX8: Toxic Units: | CY8: 1.551029973 | DR8: Toxic Units: | EL8: Toxic Units: | FF8: Toxic Units: | FZ8: Toxic Units:
A9: Volume of free product (ml): | C9: 0.3118186731 | H9: 5 | I9: 50 | J9: 60 | K9: 1.435356794 | U9: Volume of free product (ml): | W9: 0.6882123153 | AO9: Volume of free product (ml): | AQ9: 4.128387853 | BI9: Volume of free product (ml): | BK9: 8.737679938 | CC9: Volume of free product (ml): | CE9: 47.58565564 | CW9: Volume of free product (ml): | CY9: 97.24621136 | DQ9: Volume of free product (ml): | EK9: Volume of free product (ml): | FE9: Volume of free product (ml): | FY9: Volume of free product (ml):
H10: 6 | I10: 100 | J10: 100 | K10: 1.551029973
B11: Test Conditions: | H11: 7
A12: Volume of water (L): | C12: 0.9 | H12: 8
A13: Volume of headspace (L): | C13: 0.1 | H13: 9
H14: 10
B19: Hydrocarbon Block | C19: Average log Kow | D19: Average Sub-Cooled Solubility | E19: Average Molecular Weight | F19: Average Henry's Law Constant | G19: Product Phase | H19: Air Phase | I19: Water Phase | J19: Avg PNEC n,i-Paraffins | K19: Avg PNEC Naphthenics | L19: Avg PNEC Mono-Aromatic | M19: Avg PNEC Di-Aromatics | N19: Avg PNEC Poly-Aromatics | O19: n,i-Paraffins | P19: Naphthenics | Q19: Mono-Aromatic | R19: Di-Aromatics | S19: Poly-Aromatics | V19: Hydrocarbon Block | W19: Average log Kow | X19: Average Sub-Cooled Solubility | Y19: Average Molecular Weight | Z19: Average Henry's Law Constant | AA19: Product Phase | AB19: Air Phase | AC19: Water Phase | AD19: Avg PNEC n,i-Paraffins | AE19: Avg PNEC Naphthenics | AF19: Avg PNEC Mono-Aromatic | AG19: Avg PNEC Di-Aromatics | AH19: Avg PNEC Poly-Aromatics | AI19: n,i-Paraffins | AJ19: Naphthenics | AK19: Mono-Aromatic | AL19: Di-Aromatics | AM19: Poly-Aromatics | AP19: Hydrocarbon Block | AQ19: Average log Kow | AR19: Average Sub-Cooled Solubility | AS19: Average Molecular Weight | AT19: Average Henry's Law Constant | AU19: Product Phase | AV19: Air Phase | AW19: Water Phase | AX19: Avg PNEC n,i-Paraffins | AY19: Avg PNEC Naphthenics | AZ19: Avg PNEC Mono-Aromatic | BA19: Avg PNEC Di-Aromatics | BB19: Avg PNEC Poly-Aromatics | BC19: n,i-Paraffins | BD19: Naphthenics | BE19: Mono-Aromatic | BF19: Di-Aromatics | BG19: Poly-Aromatics | BJ19: Hydrocarbon Block | BK19: Average log Kow | BL19: Average Sub-Cooled Solubility | BM19: Average Molecular Weight | BN19: Average Henry's Law Constant | BO19: Product Phase | BP19: Air Phase | BQ19: Water Phase | BR19: Avg PNEC n,i-Paraffins | BS19: Avg PNEC Naphthenics | BT19: Avg PNEC Mono-Aromatic | BU19: Avg PNEC Di-Aromatics | BV19: Avg PNEC Poly-Aromatics | BW19: n,i-Paraffins | BX19: Naphthenics | BY19: Mono-Aromatic | BZ19: Di-Aromatics | CA19: Poly-Aromatics | CD19: Hydrocarbon Block | CE19: Average log Kow | CF19: Average Sub-Cooled Solubility | CG19: Average Molecular Weight | CH19: Average Henry's Law Constant | CI19: Product Phase | CJ19: Air Phase | CK19: Water Phase | CL19: Avg PNEC n,i-Paraffins | CM19: Avg PNEC Naphthenics | CN19: Avg PNEC Mono-Aromatic | CO19: Avg PNEC Di-Aromatics | CP19: Avg PNEC Poly-Aromatics | CQ19: n,i-Paraffins | CR19: Naphthenics | CS19: Mono-Aromatic | CT19: Di-Aromatics | CU19: Poly-Aromatics | CX19: Hydrocarbon Block | CY19: Average log Kow | CZ19: Average Sub-Cooled Solubility | DA19: Average Molecular Weight | DB19: Average Henry's Law Constant | DC19: Product Phase | DD19: Air Phase | DE19: Water Phase | DF19: Avg PNEC n,i-Paraffins | DG19: Avg PNEC Naphthenics | DH19: Avg PNEC Mono-Aromatic | DI19: Avg PNEC Di-Aromatics | DJ19: Avg PNEC Poly-Aromatics | DK19: n,i-Paraffins | DL19: Naphthenics | DM19: Mono-Aromatic | DN19: Di-Aromatics | DO19: Poly-Aromatics | DR19: Hydrocarbon Block | DS19: Average log Kow | DT19: Average Sub-Cooled Solubility | DU19: Average Molecular Weight | DV19: Average Henry's Law Constant | DW19: Product Phase | DX19: Air Phase | DY19: Water Phase | DZ19: Avg PNEC n,i-Paraffins | EA19: Avg PNEC Naphthenics | EB19: Avg PNEC Mono-Aromatic | EC19: Avg PNEC Di-Aromatics | ED19: Avg PNEC Poly-Aromatics | EE19: n,i-Paraffins | EF19: Naphthenics | EG19: Mono-Aromatic | EH19: Di-Aromatics | EI19: Poly-Aromatics | EL19: Hydrocarbon Block | EM19: Average log Kow | EN19: Average Sub-Cooled Solubility | EO19: Average Molecular Weight | EP19: Average Henry's Law Constant | EQ19: Product Phase | ER19: Air Phase | ES19: Water Phase | ET19: Avg PNEC n,i-Paraffins | EU19: Avg PNEC Naphthenics | EV19: Avg PNEC Mono-Aromatic | EW19: Avg PNEC Di-Aromatics | EX19: Avg PNEC Poly-Aromatics | EY19: n,i-Paraffins | EZ19: Naphthenics | FA19: Mono-Aromatic | FB19: Di-Aromatics | FC19: Poly-Aromatics | FF19: Hydrocarbon Block | FG19: Average log Kow | FH19: Average Sub-Cooled Solubility | FI19: Average Molecular Weight | FJ19: Average Henry's Law Constant | FK19: Product Phase | FL19: Air Phase | FM19: Water Phase | FN19: Avg PNEC n,i-Paraffins | FO19: Avg PNEC Naphthenics | FP19: Avg PNEC Mono-Aromatic | FQ19: Avg PNEC Di-Aromatics | FR19: Avg PNEC Poly-Aromatics | FS19: n,i-Paraffins | FT19: Naphthenics | FU19: Mono-Aromatic | FV19: Di-Aromatics | FW19: Poly-Aromatics | FZ19: Hydrocarbon Block | GA19: Average log Kow | GB19: Average Sub-Cooled Solubility | GC19: Average Molecular Weight | GD19: Average Henry's Law Constant | GE19: Product Phase | GF19: Air Phase | GG19: Water Phase | GH19: Avg PNEC n,i-Paraffins | GI19: Avg PNEC Naphthenics | GJ19: Avg PNEC Mono-Aromatic | GK19: Avg PNEC Di-Aromatics | GL19: Avg PNEC Poly-Aromatics | GM19: n,i-Paraffins | GN19: Naphthenics | GO19: Mono-Aromatic | GP19: Di-Aromatics | GQ19: Poly-Aromatics
D20: (mg/L) | E20: (g/mol) | F20: Log(unitless) | G20: (mg/L product) | H20: (mg/L headspace) | I20: (mg/L water) | J20: (mg/L water) | K20: (mg/L water) | L20: (mg/L water) | M20: (mg/L water) | N20: (mg/L water) | O20: TU | P20: TU | Q20: TU | R20: TU | S20: TU | X20: (mg/L) | Y20: (g/mol) | Z20: Log(unitless) | AA20: (mg/L product) | AB20: (mg/L headspace) | AC20: (mg/L water) | AD20: (mg/L water) | AE20: (mg/L water) | AF20: (mg/L water) | AG20: (mg/L water) | AH20: (mg/L water) | AI20: TU | AJ20: TU | AK20: TU | AL20: TU | AM20: TU | AR20: (mg/L) | AS20: (g/mol) | AT20: Log(unitless) | AU20: (mg/L product) | AV20: (mg/L headspace) | AW20: (mg/L water) | AX20: (mg/L water) | AY20: (mg/L water) | AZ20: (mg/L water) | BA20: (mg/L water) | BB20: (mg/L water) | BC20: TU | BD20: TU | BE20: TU | BF20: TU | BG20: TU | BL20: (mg/L) | BM20: (g/mol) | BN20: Log(unitless) | BO20: (mg/L product) | BP20: (mg/L headspace) | BQ20: (mg/L water) | BR20: (mg/L water) | BS20: (mg/L water) | BT20: (mg/L water) | BU20: (mg/L water) | BV20: (mg/L water) | BW20: TU | BX20: TU | BY20: TU | BZ20: TU | CA20: TU | CF20: (mg/L) | CG20: (g/mol) | CH20: Log(unitless) | CI20: (mg/L product) | CJ20: (mg/L headspace) | CK20: (mg/L water) | CL20: (mg/L water) | CM20: (mg/L water) | CN20: (mg/L water) | CO20: (mg/L water) | CP20: (mg/L water) | CQ20: TU | CR20: TU | CS20: TU | CT20: TU | CU20: TU | CZ20: (mg/L) | DA20: (g/mol) | DB20: Log(unitless) | DC20: (mg/L product) | DD20: (mg/L headspace) | DE20: (mg/L water) | DF20: (mg/L water) | DG20: (mg/L water) | DH20: (mg/L water) | DI20: (mg/L water) | DJ20: (mg/L water) | DK20: TU | DL20: TU | DM20: TU | DN20: TU | DO20: TU | DT20: (mg/L) | DU20: (g/mol) | DV20: Log(unitless) | DW20: (mg/L product) | DX20: (mg/L headspace) | DY20: (mg/L water) | DZ20: (mg/L water) | EA20: (mg/L water) | EB20: (mg/L water) | EC20: (mg/L water) | ED20: (mg/L water) | EE20: TU | EF20: TU | EG20: TU | EH20: TU | EI20: TU | EN20: (mg/L) | EO20: (g/mol) | EP20: Log(unitless) | EQ20: (mg/L product) | ER20: (mg/L headspace) | ES20: (mg/L water) | ET20: (mg/L water) | EU20: (mg/L water) | EV20: (mg/L water) | EW20: (mg/L water) | EX20: (mg/L water) | EY20: TU | EZ20: TU | FA20: TU | FB20: TU | FC20: TU | FH20: (mg/L) | FI20: (g/mol) | FJ20: Log(unitless) | FK20: (mg/L product) | FL20: (mg/L headspace) | FM20: (mg/L water) | FN20: (mg/L water) | FO20: (mg/L water) | FP20: (mg/L water) | FQ20: (mg/L water) | FR20: (mg/L water) | FS20: TU | FT20: TU | FU20: TU | FV20: TU | FW20: TU | GB20: (mg/L) | GC20: (g/mol) | GD20: Log(unitless) | GE20: (mg/L product) | GF20: (mg/L headspace) | GG20: (mg/L water) | GH20: (mg/L water) | GI20: (mg/L water) | GJ20: (mg/L water) | GK20: (mg/L water) | GL20: (mg/L water) | GM20: TU | GN20: TU | GO20: TU | GP20: TU | GQ20: TU
B21: 1 | C21: 0 | D21: 1 | E21: 0 | F21: 0 | G21: 0 | H21: 0 | I21: 0 | J21: 0 | K21: 0 | L21: 0 | M21: 1013.818251 | N21: 120.3349452 | O21: 0 | P21: 0 | Q21: 0 | R21: 0 | S21: 0 | V21: 1 | W21: 0 | X21: 1 | Y21: 0 | Z21: 0 | AA21: 0 | AB21: 0 | AC21: 0 | AD21: 0 | AE21: 0 | AF21: 0 | AG21: 1013.818251 | AH21: 120.3349452 | AI21: 0 | AJ21: 0 | AK21: 0 | AL21: 0 | AM21: 0 | AP21: 1 | AQ21: 0 | AR21: 1 | AS21: 0 | AT21: 0 | AU21: 0 | AV21: 0 | AW21: 0 | AX21: 0 | AY21: 0 | AZ21: 0 | BA21: 1013.818251 | BB21: 120.3349452 | BC21: 0 | BD21: 0 | BE21: 0 | BF21: 0 | BG21: 0 | BJ21: 1 | BK21: 0 | BL21: 1 | BM21: 0 | BN21: 0 | BO21: 0 | BP21: 0 | BQ21: 0 | BR21: 0 | BS21: 0 | BT21: 0 | BU21: 1013.818251 | BV21: 120.3349452 | BW21: 0 | BX21: 0 | BY21: 0 | BZ21: 0 | CA21: 0 | CD21: 1 | CE21: 0 | CF21: 1 | CG21: 0 | CH21: 0 | CI21: 0 | CJ21: 0 | CK21: 0 | CL21: 0 | CM21: 0 | CN21: 0 | CO21: 1013.818251 | CP21: 120.3349452 | CQ21: 0 | CR21: 0 | CS21: 0 | CT21: 0 | CU21: 0 | CX21: 1 | CY21: 0 | CZ21: 1 | DA21: 0 | DB21: 0 | DC21: 0 | DD21: 0 | DE21: 0 | DF21: 0 | DG21: 0 | DH21: 0 | DI21: 1013.818251 | DJ21: 120.3349452 | DK21: 0 | DL21: 0 | DM21: 0 | DN21: 0 | DO21: 0
B22: 2 | C22: 3.000207809 | D22: 120.1149167 | E22: 83.1529 | F22: 0.559980732 | G22: 0.02362683583 | H22: 3.082019215e-05 | I22: 0.007537739583 | J22: 0 | K22: 0 | L22: 2128.288371 | M22: 330.7536017 | N22: 42.26832747 | O22: 0 | P22: 4.97771019e-07 | Q22: 0 | R22: 0 | S22: 0 | V22: 2 | W22: 3.000207809 | X22: 120.1149167 | Y22: 83.1529 | Z22: 0.559980732 | AA22: 0.04720731767 | AB22: 6.157654791e-05 | AC22: 0.01506284534 | AD22: 0 | AE22: 0 | AF22: 2128.288371 | AG22: 330.7536017 | AH22: 42.26832747 | AI22: 0 | AJ22: 9.946107727e-07 | AK22: 0 | AL22: 0 | AM22: 0 | AP22: 2 | AQ22: 3.000207809 | AR22: 120.1149167 | AS22: 83.1529 | AT22: 0.559980732 | AU22: 0.2339405491 | AV22: 0.0003049973338 | AW22: 0.07474221175 | AX22: 0 | AY22: 0 | AZ22: 2128.288371 | BA22: 330.7536017 | BB22: 42.26832747 | BC22: 0 | BD22: 4.930928313e-06 | BE22: 0 | BF22: 0 | BG22: 0 | BJ22: 2 | BK22: 3.000207809 | BL22: 120.1149167 | BM22: 83.1529 | BN22: 0.559980732 | BO22: 0.4623873877 | BP22: 0.0006024383623 | BQ22: 0.1479811259 | BR22: 0 | BS22: 0 | BT22: 2128.288371 | BU22: 330.7536017 | BV22: 42.26832747 | BW22: 0 | BX22: 9.751360562e-06 | BY22: 0 | BZ22: 0 | CA22: 0 | CD22: 2 | CE22: 3.000207809 | CF22: 120.1149167 | CG22: 83.1529 | CH22: 0.559980732 | CI22: 2.105061441 | CJ22: 0.002728837479 | CK22: 0.6825341512 | CL22: 0 | CM22: 0 | CN22: 2128.288371 | CO22: 330.7536017 | CP22: 42.26832747 | CQ22: 0 | CR22: 4.457984478e-05 | CS22: 0 | CT22: 0 | CU22: 0 | CX22: 2 | CY22: 3.000207809 | CZ22: 120.1149167 | DA22: 83.1529 | DB22: 0.559980732 | DC22: 3.78256694 | DD22: 0.004876732765 | DE22: 1.243507606 | DF22: 0 | DG22: 0 | DH22: 2128.288371 | DI22: 330.7536017 | DJ22: 42.26832747 | DK22: 0 | DL22: 8.046416248e-05 | DM22: 0 | DN22: 0 | DO22: 0
B23: 3 | C23: 3.809814261 | D23: 14.17652993 | E23: 98.41157778 | F23: 1.360103708 | G23: 1.701078164 | H23: 0.001105289387 | I23: 0.1989266938 | J23: 0 | K23: 0 | L23: 772.4003401 | M23: 110.2291919 | N23: 19.74144435 | O23: 4.951409997e-06 | P23: 1.092337797e-05 | Q23: 4.474732955e-06 | R23: 0 | S23: 0 | V23: 3 | W23: 3.809814261 | X23: 14.17652993 | Y23: 98.41157778 | Z23: 1.360103708 | AA23: 3.388940936 | AB23: 0.002202082673 | AC23: 0.397384671 | AD23: 0 | AE23: 0 | AF23: 772.4003401 | AG23: 110.2291919 | AH23: 19.74144435 | AI23: 9.855287567e-06 | AJ23: 2.176420837e-05 | AK23: 8.946565438e-06 | AL23: 0 | AM23: 0 | AP23: 3 | AQ23: 3.809814261 | AR23: 14.17652993 | AS23: 98.41157778 | AT23: 1.360103708 | AU23: 16.36601536 | AV23: 0.01063797573 | AW23: 1.966190087 | AX23: 0 | AY23: 0 | AZ23: 772.4003401 | BA23: 110.2291919 | BB23: 19.74144435 | BC23: 4.720744384e-05 | BD23: 0.0001051914216 | BE23: 4.460071232e-05 | BF23: 0 | BG23: 0 | BJ23: 3 | BK23: 3.809814261 | BL23: 14.17652993 | BM23: 98.41157778 | BN23: 1.360103708 | BO23: 31.31106907 | BP23: 0.02035942648 | BQ23: 3.880376747 | BR23: 0 | BS23: 0 | BT23: 772.4003401 | BU23: 110.2291919 | BV23: 19.74144435 | BW23: 8.939544113e-05 | BX23: 0.0002013976811 | BY23: 8.884983536e-05 | BZ23: 0 | CA23: 0 | CD23: 3 | CE23: 3.809814261 | CF23: 14.17652993 | CG23: 98.41157778 | CH23: 1.360103708 | CI23: 115.7617801 | CJ23: 0.07525628336 | CK23: 17.75012285 | CL23: 0 | CM23: 0 | CN23: 772.4003401 | CO23: 110.2291919 | CP23: 19.74144435 | CQ23: 0.0003093960904 | CR23: 0.000741675947 | CS23: 0.0004299657678 | CT23: 0 | CU23: 0 | CX23: 3 | CY23: 3.809814261 | CZ23: 14.17652993 | DA23: 98.41157778 | DB23: 1.360103708 | DC23: 176.2632616 | DD23: 0.1140984632 | DE23: 32.74210833 | DF23: 0 | DG23: 0 | DH23: 772.4003401 | DI23: 110.2291919 | DJ23: 19.74144435 | DK23: 0.0004452127444 | DL23: 0.001111513389 | DM23: 0.0008259831138 | DN23: 0 | DO23: 0
B24: 4 | C24: 4.051458395 | D24: 8.749584182 | E24: 111.10571 | F24: 1.054554796 | G24: 89.62474629 | H24: 0.01893359688 | I24: 2.181438989 | J24: 0 | K24: 0 | L24: 330.354777 | M24: 36.39748388 | N24: 3.982004603 | O24: 0.000184690682 | P24: 0.0003681720977 | Q24: 0.0001091843291 | R24: 0 | S24: 0 | V24: 4 | W24: 4.051458395 | X24: 8.749584182 | Y24: 111.10571 | Z24: 1.054554796 | AA24: 176.8812077 | AB24: 0.03737728424 | AC24: 4.344158495 | AD24: 0 | AE24: 0 | AF24: 330.354777 | AG24: 36.39748388 | AH24: 3.982004603 | AI24: 0.0003637213148 | AJ24: 0.0007269570505 | AK24: 0.0002181445823 | AL24: 0 | AM24: 0 | AP24: 4 | AQ24: 4.051458395 | AR24: 8.749584182 | AS24: 111.10571 | AT24: 1.054554796 | AU24: 789.9353346 | AV24: 0.1672764236 | AW24: 20.95245853 | AX24: 0 | AY24: 0 | AZ24: 330.354777 | BA24: 36.39748388 | BB24: 3.982004603 | BC24: 0.001595725442 | BD24: 0.003256781275 | BE24: 0.001080589023 | BF24: 0 | BG24: 0 | BJ24: 4 | BK24: 4.051458395 | BL24: 8.749584182 | BM24: 111.10571 | BN24: 1.054554796 | BO24: 1385.191935 | BP24: 0.2938763607 | BQ24: 40.22336566 | BR24: 0 | BS24: 0 | BT24: 330.354777 | BU24: 36.39748388 | BV24: 3.982004603 | BW24: 0.002742999133 | BX24: 0.005721616535 | BY24: 0.002134608948 | BZ24: 0 | CA24: 0 | CD24: 4 | CE24: 4.051458395 | CF24: 8.749584182 | CG24: 111.10571 | CH24: 1.054554796 | CI24: 3511.594332 | CJ24: 0.7439653306 | CK24: 163.2912145 | CL24: 0 | CM24: 0 | CN24: 330.354777 | CO24: 36.39748388 | CP24: 3.982004603 | CQ24: 0.006309285929 | CR24: 0.01424567541 | CS24: 0.009671564891 | CT24: 0 | CU24: 0 | CX24: 4 | CY24: 4.051458395 | CZ24: 8.749584182 | DA24: 111.10571 | DB24: 1.054554796 | DC24: 4450.512734 | DD24: 0.9321012577 | DE24: 278.7940686 | DF24: 0 | DG24: 0 | DH24: 330.354777 | DI24: 36.39748388 | DJ24: 3.982004603 | DK24: 0.007479607511 | DL24: 0.01742613246 | DM24: 0.0172733795 | DN24: 0 | DO24: 0
B25: 5 | C25: 4.488211878 | D25: 3.059118973 | E25: 124.7157297 | F25: 1.049922674 | G25: 1359.942453 | H25: 0.08914745698 | I25: 7.863782532 | J25: 0 | K25: 0 | L25: 196.7444762 | M25: 13.58867505 | N25: 2.35385849 | O25: 0.002700379964 | P25: 0.002694639512 | Q25: 0.0009184439197 | R25: 0 | S25: 0 | V25: 5 | W25: 4.488211878 | X25: 3.059118973 | Y25: 124.7157297 | Z25: 1.049922674 | AA25: 2598.461502 | AB25: 0.170841248 | AC25: 15.51110316 | AD25: 0 | AE25: 0 | AF25: 196.7444762 | AG25: 13.58867505 | AH25: 2.35385849 | AI25: 0.005142121739 | AJ25: 0.005153294452 | AK25: 0.001830933816 | AL25: 0 | AM25: 0 | AP25: 5 | AQ25: 4.488211878 | AR25: 3.059118973 | AS25: 124.7157297 | AT25: 1.049922674 | AU25: 9306.562911 | AV25: 0.6235806316 | AW25: 70.42543315 | AX25: 0 | AY25: 0 | AZ25: 196.7444762 | BA25: 13.58867505 | BB25: 2.35385849 | BC25: 0.01796188365 | BD25: 0.0184897711 | BE25: 0.008891652949 | BF25: 0 | BG25: 0 | BJ25: 5 | BK25: 4.488211878 | BL25: 3.059118973 | BM25: 124.7157297 | BN25: 1.049922674 | BO25: 13653.10739 | BP25: 0.9266182872 | BQ25: 129.2953303 | BR25: 0 | BS25: 0 | BT25: 196.7444762 | BU25: 13.58867505 | BV25: 2.35385849 | BW25: 0.0257165071 | BX25: 0.02697526236 | BY25: 0.01712601601 | BZ25: 0 | CA25: 0 | CD25: 5 | CE25: 4.488211878 | CF25: 3.059118973 | CG25: 124.7157297 | CH25: 1.049922674 | CI25: 22688.57441 | CJ25: 1.550629386 | CK25: 452.1187949 | CL25: 0 | CM25: 0 | CN25: 196.7444762 | CO25: 13.58867505 | CP25: 2.35385849 | CQ25: 0.03836665804 | CR25: 0.04177103354 | CS25: 0.06545926145 | CT25: 0 | CU25: 0 | CX25: 5 | CY25: 4.488211878 | CZ25: 3.059118973 | DA25: 124.7157297 | DB25: 1.049922674 | DC25: 25633.38779 | DD25: 1.7274624 | DE25: 686.3833322 | DF25: 0 | DG25: 0 | DH25: 196.7444762 | DI25: 13.58867505 | DJ25: 2.35385849 | DK25: 0.04055254281 | DL25: 0.04453197919 | DM25: 0.1008938256 | DN25: 0 | DO25: 0
B26: 6 | C26: 5.001863598 | D26: 0.8810362529 | E26: 138.596361 | F26: 1.109205629 | G26: 8589.244095 | H26: 0.1776781163 | I26: 10.40877998 | J26: 0 | K26: 108.9258497 | L26: 69.38670117 | M26: 3.874659158 | N26: 0.7165697132 | O26: 0.01153279242 | P26: 0.0118479838 | Q26: 0.002724945404 | R26: 3.748535229e-05 | S26: 0 | V26: 6 | W26: 5.001863598 | X26: 0.8810362529 | Y26: 138.596361 | Z26: 1.109205629 | AA26: 15097.96453 | AB26: 0.314200144 | AC26: 19.79709012 | AD26: 0 | AE26: 108.9258497 | AF26: 69.38670117 | AG26: 3.874659158 | AH26: 0.7165697132 | AI26: 0.02015081315 | AJ26: 0.02084243236 | AK26: 0.005380131799 | AL26: 7.478081186e-05 | AM26: 0 | AP26: 6 | AQ26: 5.001863598 | AR26: 0.8810362529 | AS26: 138.596361 | AT26: 1.109205629 | AU26: 36641.98921 | AV26: 0.7783782686 | AW26: 76.69981459 | AX26: 0 | AY26: 108.9258497 | AZ26: 69.38670117 | BA26: 3.874659158 | BB26: 0.7165697132 | BC26: 0.04746876671 | BD26: 0.04983886415 | BE26: 0.02411352863 | BF26: 0.0003654439527 | BG26: 0 | BJ26: 6 | BK26: 5.001863598 | BL26: 0.8810362529 | BM26: 138.596361 | BN26: 1.109205629 | BO26: 44227.78749 | BP26: 0.9422353654 | BQ26: 128.4535758 | BR26: 0 | BS26: 108.9258497 | BT26: 69.38670117 | BU26: 3.874659158 | BV26: 0.7165697132 | BW26: 0.05595967715 | BX26: 0.05878333424 | BY26: 0.04245097323 | BZ26: 0.0007093823981 | CA26: 0 | CD26: 6 | CE26: 5.001863598 | CF26: 0.8810362529 | CG26: 138.596361 | CH26: 1.109205629 | CI26: 54131.98041 | CJ26: 1.128648598 | CK26: 325.1437699 | CL26: 0 | CM26: 108.9258497 | CN26: 69.38670117 | CO26: 3.874659158 | CP26: 0.7165697132 | CQ26: 0.06307344123 | CR26: 0.06603502492 | CS26: 0.1080876814 | CT26: 0.002842101105 | CU26: 0 | CX26: 6 | CY26: 5.001863598 | CZ26: 0.8810362529 | DA26: 138.596361 | DB26: 1.109205629 | DC26: 56275.45622 | DD26: 1.15761593 | DE26: 416.0706223 | DF26: 0 | DG26: 108.9258497 | DH26: 69.38670117 | DI26: 3.874659158 | DJ26: 0.7165697132 | DK26: 0.06341853614 | DL26: 0.06634007179 | DM26: 0.1344425291 | DN26: 0.004532789701 | DO26: 0
B27: 7 | C27: 5.436433249 | D27: 0.314902757 | E27: 152.1062171 | F27: 1.052661378 | G27: 25056.871 | H27: 0.1589831613 | I27: 11.46593244 | J27: 0 | K27: 45.81506422 | L27: 29.85639085 | M27: 1.275751867 | N27: 0.5517565464 | O27: 0.00948024749 | P27: 0.02467966445 | Q27: 0.007297830058 | R27: 0.0004056472708 | S27: 0 | V27: 7 | W27: 5.436433249 | X27: 0.314902757 | Y27: 152.1062171 | Z27: 1.052661378 | AA27: 37000.79381 | AB27: 0.2365986663 | AC27: 21.04160288 | AD27: 0 | AE27: 45.81506422 | AF27: 29.85639085 | AG27: 1.275751867 | AH27: 0.5517565464 | AI27: 0.0139182442 | AJ27: 0.03617636941 | AK27: 0.01391455356 | AL27: 0.0008051198239 | AM27: 0 | AP27: 7 | AQ27: 5.436433249 | AR27: 0.314902757 | AS27: 152.1062171 | AT27: 1.052661378 | AU27: 57247.12651 | AV27: 0.3669519953 | AW27: 74.75001638 | AX27: 0 | AY27: 45.81506422 | AZ27: 29.85639085 | BA27: 1.275751867 | BB27: 0.5517565464 | BC27: 0.02070828978 | BD27: 0.0526354527 | BE27: 0.04980716536 | BF27: 0.00376378567 | BG27: 0 | BJ27: 7 | BK27: 5.436433249 | BL27: 0.314902757 | BM27: 152.1062171 | BN27: 1.052661378 | BO27: 61283.27748 | BP27: 0.38772647 | BQ27: 118.1897787 | BR27: 0 | BS27: 45.81506422 | BT27: 29.85639085 | BU27: 1.275751867 | BV27: 0.5517565464 | BW27: 0.02141981373 | BX27: 0.05400597662 | BY27: 0.0739749956 | BZ27: 0.006924222583 | CA27: 0 | CD27: 7 | CE27: 5.436433249 | CF27: 0.314902757 | CG27: 152.1062171 | CH27: 1.052661378 | CI27: 65970.42308 | CJ27: 0.3985193063 | CK27: 248.8753266 | CL27: 0 | CM27: 45.81506422 | CN27: 29.85639085 | CO27: 1.275751867 | CP27: 0.5517565464 | CQ27: 0.02115238242 | CR27: 0.05291197685 | CS27: 0.1272903197 | CT27: 0.02066366289 | CU27: 0 | CX27: 7 | CY27: 5.436433249 | CZ27: 0.314902757 | DA27: 152.1062171 | DB27: 1.052661378 | DC27: 66846.06886 | DD27: 0.3973245438 | DE27: 295.4574708 | DF27: 0 | DG27: 45.81506422 | DH27: 29.85639085 | DI27: 1.275751867 | DJ27: 0.5517565464 | DK27: 0.02088409129 | DL27: 0.05218633889 | DM27: 0.1416798955 | DN27: 0.02727310648 | DO27: 0
B28: 8 | C28: 5.538460961 | D28: 0.2736469584 | E28: 164.0749813 | F28: 0.5287981909 | G28: 48472.15381 | H28: 0.1050306974 | I28: 12.81069634 | J28: 63.0234134 | K28: 23.31876896 | L28: 14.32882026 | M28: 1.021990804 | N28: 0.613692288 | O28: 0.003512886355 | P28: 0.01895492413 | Q28: 0.01590379129 | R28: 0.003251311512 | S28: 0 | V28: 8 | W28: 5.538460961 | X28: 0.2736469584 | Y28: 164.0749813 | Z28: 0.5287981909 | AA28: 58766.34798 | AB28: 0.1291908237 | AC28: 23.25736831 | AD28: 63.0234134 | AE28: 23.31876896 | AF28: 14.32882026 | AG28: 1.021990804 | AH28: 0.613692288 | AI28: 0.00417503106 | AJ28: 0.02273060325 | AK28: 0.02794949187 | AL28: 0.006355537772 | AM28: 0 | AP28: 8 | AQ28: 5.538460961 | AR28: 0.2736469584 | AS28: 164.0749813 | AT28: 0.5287981909 | AU28: 69632.48655 | AV28: 0.1508951662 | AW28: 76.56973666 | AX28: 63.0234134 | AY28: 23.31876896 | AZ28: 14.32882026 | BA28: 1.021990804 | BB28: 0.613692288 | BC28: 0.004513886137 | BD28: 0.02447772203 | BE28: 0.07312813113 | BF28: 0.02633809338 | BG28: 0 | BJ28: 8 | BK28: 5.538460961 | BL28: 0.2736469584 | BM28: 164.0749813 | BN28: 0.5287981909 | BO28: 71766.50522 | BP28: 0.1513830761 | BQ28: 111.9259133 | BR28: 63.0234134 | BS28: 23.31876896 | BT28: 14.32882026 | BU28: 1.021990804 | BV28: 0.613692288 | BW28: 0.004414182639 | BX28: 0.02387398369 | BY28: 0.09421935994 | BZ28: 0.04286028002 | CA28: 0 | CD28: 8 | CE28: 5.538460961 | CF28: 0.2736469584 | CG28: 164.0749813 | CH28: 0.5287981909 | CI28: 74292.54003 | CJ28: 0.1478908366 | CK28: 182.9706692 | CL28: 63.0234134 | CM28: 23.31876896 | CN28: 14.32882026 | CO28: 1.021990804 | CP28: 0.613692288 | CQ28: 0.004161232683 | CR28: 0.0224476787 | CS28: 0.1250761044 | CT28: 0.08347771625 | CU28: 0 | CX28: 8 | CY28: 5.538460961 | CZ28: 0.2736469584 | DA28: 164.0749813 | DB28: 0.5287981909 | DC28: 74410.8685 | DD28: 0.1461777661 | DE28: 198.5011141 | DF28: 63.0234134 | DG28: 23.31876896 | DH28: 14.32882026 | DI28: 1.021990804 | DJ28: 0.613692288 | DK28: 0.004085177404 | DL28: 0.02202987016 | DM28: 0.1299925102 | DN28: 0.09380933541 | DO28: 0
B29: 9 | C29: 6.10383792 | D29: 0.06394112459 | E29: 177.9502909 | F29: 0.6780119867 | G29: 78114.56641 | H29: 0.0567055145 | I29: 10.91760533 | J29: 29.38074487 | K29: 10.25610184 | L29: 6.70606537 | M29: 1.104823303 | N29: 0.7493855498 | O29: 0.001201098022 | P29: 0.005945919411 | Q29: 0.032000716 | R29: 0.00926878913 | S29: 0 | V29: 9 | W29: 6.10383792 | X29: 0.06394112459 | Y29: 177.9502909 | Z29: 0.6780119867 | AA29: 82857.26507 | AB29: 0.05964757028 | AC29: 18.57756237 | AD29: 29.38074487 | AE29: 10.25610184 | AF29: 6.70606537 | AG29: 1.104823303 | AH29: 0.7493855498 | AI29: 0.001221898432 | AJ29: 0.006240401885 | AK29: 0.04640970789 | AL29: 0.01732087168 | AM29: 0 | AP29: 9 | AQ29: 6.10383792 | AR29: 0.06394112459 | AS29: 177.9502909 | AT29: 0.6780119867 | AU29: 84766.26605 | AV29: 0.05761680929 | AW29: 47.5889588 | AX29: 29.38074487 | AY29: 10.25610184 | AZ29: 6.70606537 | BA29: 1.104823303 | BB29: 0.7493855498 | BC29: 0.001114938404 | BD29: 0.005861797355 | BE29: 0.0787777036 | BF29: 0.05440149293 | BG29: 0 | BJ29: 9 | BK29: 6.10383792 | BL29: 0.06394112459 | BM29: 177.9502909 | BN29: 0.6780119867 | BO29: 84367.90933 | BP29: 0.05595772441 | BQ29: 60.33774749 | BR29: 29.38074487 | BS29: 10.25610184 | BT29: 6.70606537 | BU29: 1.104823303 | BV29: 0.7493855498 | BW29: 0.001064344422 | BX29: 0.005615815647 | BY29: 0.08774698163 | BZ29: 0.07289445837 | CA29: 0 | CD29: 9 | CE29: 6.10383792 | CF29: 0.06394112459 | CG29: 177.9502909 | CH29: 0.6780119867 | CI29: 82201.65403 | CJ29: 0.05287351692 | CK29: 76.10079564 | CL29: 29.38074487 | CM29: 10.25610184 | CN29: 6.70606537 | CO29: 1.104823303 | CP29: 0.7493855498 | CQ29: 0.0009845505883 | CR29: 0.005208763854 | CS29: 0.09521148886 | CT29: 0.09695084936 | CU29: 0 | CX29: 9 | CY29: 6.10383792 | CZ29: 0.06394112459 | DA29: 177.9502909 | DB29: 0.6780119867 | DC29: 81189.13762 | DD29: 0.05196707178 | DE29: 78.06954982 | DF29: 29.38074487 | DG29: 10.25610184 | DH29: 6.70606537 | DI29: 1.104823303 | DJ29: 0.7493855498 | DK29: 0.0009643806523 | DL29: 0.005103649461 | DM29: 0.09541085701 | DN29: 0.1001278837 | DO29: 0
B30: 10 | C30: 6.629925265 | D30: 0.01666154632 | E30: 192.0113253 | F30: 0.8230337471 | G30: 103915.7059 | H30: 0.02829599796 | I30: 8.719283593 | J30: 11.1013087 | K30: 5.425258525 | L30: 2.591586273 | M30: 1.232239459 | N30: 0.8467203288 | O30: 0.000296954211 | P30: 0.001940302686 | Q30: 0.0352959697 | R30: 0.02277163568 | S30: 0.0002166591535 | V30: 10 | W30: 6.629925265 | X30: 0.01666154632 | Y30: 192.0113253 | Z30: 0.8230337471 | AA30: 103511.3869 | AB30: 0.0276871128 | AC30: 13.50344734 | AD30: 11.1013087 | AE30: 5.425258525 | AF30: 2.591586273 | AG30: 1.232239459 | AH30: 0.8467203288 | AI30: 0.000282688378 | AJ30: 0.001872509437 | AK30: 0.04459318312 | AL30: 0.03789269062 | AM30: 0.0004024638241 | AP30: 10 | AQ30: 6.629925265 | AR30: 0.01666154632 | AS30: 192.0113253 | AT30: 0.8230337471 | AU30: 98267.00304 | AV30: 0.02477796217 | AW30: 25.15114197 | AX30: 11.1013087 | AY30: 5.425258525 | AZ30: 2.591586273 | BA30: 1.232239459 | BB30: 0.8467203288 | BC30: 0.0002443926447 | BD30: 0.001635548601 | BE30: 0.05548644033 | BF30: 0.07786659131 | BG30: 0.001238825155 | BJ30: 10 | BK30: 6.629925265 | BL30: 0.01666154632 | BM30: 192.0113253 | BN30: 0.8230337471 | BO30: 95448.52094 | BP30: 0.02366301134 | BQ30: 28.03480412 | BR30: 11.1013087 | BS30: 5.425258525 | BT30: 2.591586273 | BU30: 1.232239459 | BV30: 0.8467203288 | BW30: 0.000231866057 | BX30: 0.001553461995 | BY30: 0.05594588153 | BZ30: 0.08793605229 | CA30: 0.001658538462 | CD30: 10 | CE30: 6.629925265 | CF30: 0.01666154632 | CG30: 192.0113253 | CH30: 0.8230337471 | CI30: 89917.69225 | CJ30: 0.02191719654 | CK30: 29.99688633 | CL30: 11.1013087 | CM30: 5.425258525 | CN30: 2.591586273 | CO30: 1.232239459 | CP30: 0.8467203288 | CQ30: 0.0002135027631 | CR30: 0.001431614149 | CS30: 0.05418079326 | CT30: 0.09458952354 | CU30: 0.002243138995 | CX30: 10 | CY30: 6.629925265 | CZ30: 0.01666154632 | DA30: 192.0113253 | DB30: 0.8230337471 | DC30: 88300.0891 | DD30: 0.02147301537 | DE30: 29.96231558 | DF30: 11.1013087 | DG30: 5.425258525 | DH30: 2.591586273 | DI30: 1.232239459 | DJ30: 0.8467203288 | DK30: 0.0002090180926 | DL30: 0.001401676245 | DM30: 0.05337220165 | DN30: 0.09446636051 | DO30: 0.002329470099
B31: 11 | C31: 6.925794599 | D31: 0.008544502089 | E31: 204.8772148 | F31: 0.5555250599 | G31: 108697.1827 | H31: 0.00963526027 | I31: 5.218446591 | J31: 4.97261047 | K31: 2.363308327 | L31: 1.238730508 | M31: 1.340828564 | N31: 0.8468109404 | O31: 6.833868027e-05 | P31: 0.0003040420658 | Q31: 0.02608479854 | R31: 0.03258039073 | S31: 0.00145643361 | V31: 11 | W31: 6.925794599 | X31: 0.008544502089 | Y31: 204.8772148 | Z31: 0.5555250599 | AA31: 104185.2066 | AB31: 0.009033602776 | AC31: 7.22552883 | AD31: 4.97261047 | AE31: 2.363308327 | AF31: 1.238730508 | AG31: 1.340828564 | AH31: 0.8468109404 | AI31: 6.304767223e-05 | AJ31: 0.0002822127894 | AK31: 0.02843104916 | AL31: 0.04602671773 | AM31: 0.002458975073 | AP31: 11 | AQ31: 6.925794599 | AR31: 0.008544502089 | AS31: 204.8772148 | AT31: 0.5555250599 | AU31: 93320.1306 | AV31: 0.007743820544 | AW31: 10.55924078 | AX31: 4.97261047 | AY31: 2.363308327 | AZ31: 1.238730508 | BA31: 1.340828564 | BB31: 0.8468109404 | BC31: 5.322653193e-05 | BD31: 0.0002393118697 | BE31: 0.02817311811 | BF31: 0.06602518201 | BG31: 0.005238063549 | BJ31: 11 | BK31: 6.925794599 | BL31: 0.008544502089 | BM31: 204.8772148 | BN31: 0.5555250599 | BO31: 89316.33976 | BP31: 0.007343418552 | BQ31: 11.02983641 | BR31: 4.97261047 | BS31: 2.363308327 | BT31: 1.238730508 | BU31: 1.340828564 | BV31: 0.8468109404 | BW31: 5.036587683e-05 | BX31: 0.0002265589856 | BY31: 0.02722863584 | BZ31: 0.06804389437 | CA31: 0.006003780651 | CD31: 11 | CE31: 6.925794599 | CF31: 0.008544502089 | CG31: 204.8772148 | CH31: 0.5555250599 | CI31: 82898.40472 | CJ31: 0.00676052266 | CK31: 11.04770143 | CL31: 4.97261047 | CM31: 2.363308327 | CN31: 1.238730508 | CO31: 1.340828564 | CP31: 0.8468109404 | CQ31: 4.628729227e-05 | CR31: 0.0002082859708 | CS31: 0.02543435901 | CT31: 0.06703621777 | CU31: 0.006591149067 | CX31: 11 | CY31: 6.925794599 | CZ31: 0.008544502089 | DA31: 204.8772148 | DB31: 0.5555250599 | DC31: 81240.04769 | DD31: 0.006618449341 | DE31: 10.93239343 | DF31: 4.97261047 | DG31: 2.363308327 | DH31: 1.238730508 | DI31: 1.340828564 | DJ31: 0.8468109404 | DK31: 4.530490185e-05 | DL31: 0.0002038736444 | DM31: 0.02494235912 | DN31: 0.06616982988 | DO31: 0.006604721102
B32: 12 | C32: 7.150041286 | D32: 0.00505592126 | E32: 217.0224337 | F32: 0.1330955956 | G32: 95868.42643 | H32: 0.003252508752 | I32: 2.87696872 | J32: 2.198136667 | K32: 1.02940905 | L32: 1.065821018 | M32: 1.431241338 | N32: 1.294354462 | O32: 1.215169317e-05 | P32: 5.015603667e-05 | Q32: 0.008210056602 | R32: 0.03764149355 | S32: 0.006511289107 | V32: 12 | W32: 7.150041286 | X32: 0.00505592126 | Y32: 217.0224337 | Z32: 0.1330955956 | AA32: 90297.76803 | AB32: 0.003009224671 | AC32: 3.523575587 | AD32: 2.198136667 | AE32: 1.02940905 | AF32: 1.065821018 | AG32: 1.431241338 | AH32: 1.294354462 | AI32: 1.112091701e-05 | AJ32: 4.581428168e-05 | AK32: 0.008165147252 | AL32: 0.04399800605 | AM32: 0.009302343091 | AP32: 12 | AQ32: 7.150041286 | AR32: 0.00505592126 | AS32: 217.0224337 | AT32: 0.1330955956 | AU32: 78515.08474 | AV32: 0.00254802515 | AW32: 4.094842065 | AX32: 2.198136667 | AY32: 1.02940905 | AZ32: 1.065821018 | BA32: 1.431241338 | BB32: 1.294354462 | BC32: 9.334966319e-06 | BD32: 3.840161956e-05 | BE32: 0.007341194914 | BF32: 0.04672265667 | BG32: 0.01310590263 | BJ32: 12 | BK32: 7.150041286 | BL32: 0.00505592126 | BM32: 217.0224337 | BN32: 0.1330955956 | BO32: 74649.48456 | BP32: 0.002412098815 | BQ32: 4.063612762 | BR32: 2.198136667 | BS32: 1.02940905 | BT32: 1.065821018 | BU32: 1.431241338 | BV32: 1.294354462 | BW32: 8.827848829e-06 | BX32: 3.630973927e-05 | BY32: 0.006998011017 | BZ32: 0.04553969812 | CA32: 0.01340163243 | CD32: 12 | CE32: 7.150041286 | CF32: 0.00505592126 | CG32: 217.0224337 | CH32: 0.1330955956 | CI32: 68867.31093 | CJ32: 0.002217506372 | CK32: 3.878812816 | CL32: 2.198136667 | CM32: 1.02940905 | CN32: 1.065821018 | CO32: 1.431241338 | CP32: 1.294354462 | CQ32: 8.109334945e-06 | CR32: 3.335055139e-05 | CS32: 0.006466724988 | CT32: 0.04280622675 | CU32: 0.01310322016 | CX32: 12 | CY32: 7.150041286 | CZ32: 0.00505592126 | DA32: 217.0224337 | DB32: 0.1330955956 | DC32: 67436.74725 | DD32: 0.002170528747 | DE32: 3.813800095 | DF32: 2.198136667 | DG32: 1.02940905 | DH32: 1.065821018 | DI32: 1.431241338 | DJ32: 1.294354462 | DK32: 7.936814524e-06 | DL32: 3.264060474e-05 | DM32: 0.00633350585 | DN32: 0.04200854755 | DO32: 0.01292089905
B33: 13 | C33: 7.061048356 | D33: 0.007252610899 | E33: 228.1561219 | F33: -0.7607782948 | G33: 96621.58663 | H33: 0.0008211407077 | I33: 1.333594228 | J33: 0.9958920795 | K33: 0.7349923377 | L33: 1.096106856 | M33: 1.766035289 | N33: 1.466166905 | O33: 2.164736543e-06 | P33: 1.212107866e-05 | Q33: 0.003117383908 | R33: 0.02355932054 | S33: 0.00914030466 | V33: 13 | W33: 7.061048356 | X33: 0.007252610899 | Y33: 228.1561219 | Z33: -0.7607782948 | AA33: 89270.07326 | AB33: 0.0007477133347 | AC33: 1.45554721 | AD33: 0.9958920795 | AE33: 0.7349923377 | AF33: 1.096106856 | AG33: 1.766035289 | AH33: 1.466166905 | AI33: 1.963929348e-06 | AJ33: 1.101186208e-05 | AK33: 0.002989994905 | AL33: 0.02448665897 | AM33: 0.01072101973 | AP33: 13 | AQ33: 7.061048356 | AR33: 0.007252610899 | AS33: 228.1561219 | AT33: -0.7607782948 | AU33: 75754.27246 | AV33: 0.0006254749073 | AW33: 1.446747113 | AX33: 0.9958920795 | AY33: 0.7349923377 | AZ33: 1.096106856 | BA33: 1.766035289 | BB33: 1.466166905 | BC33: 1.638291588e-06 | BD33: 9.194803253e-06 | BE33: 0.002602430526 | BF33: 0.02294450833 | BG33: 0.01134577725 | BJ33: 13 | BK33: 7.061048356 | BL33: 0.007252610899 | BM33: 228.1561219 | BN33: -0.7607782948 | BO33: 71746.48771 | BP33: 0.0005912849685 | BQ33: 1.398112748 | BR33: 0.9958920795 | BS33: 0.7349923377 | BT33: 1.096106856 | BU33: 1.766035289 | BV33: 1.466166905 | BW33: 1.548256368e-06 | BX33: 8.690368597e-06 | BY33: 0.002471009707 | BZ33: 0.02198809166 | CA33: 0.01104617484 | CD33: 13 | CE33: 7.061048356 | CF33: 0.007252610899 | CG33: 228.1561219 | CH33: -0.7607782948 | CI33: 65983.05642 | CJ33: 0.0005430180884 | CK33: 1.305642708 | CL33: 0.9958920795 | CM33: 0.7349923377 | CN33: 1.096106856 | CO33: 1.766035289 | CP33: 1.466166905 | CQ33: 1.421543798e-06 | CR33: 7.979723047e-06 | CS33: 0.002276663063 | CT33: 0.02040095549 | CU33: 0.01037297253 | CX33: 13 | CY33: 7.061048356 | CZ33: 0.007252610899 | DA33: 228.1561219 | DB33: -0.7607782948 | DC33: 64588.09275 | DD33: 0.0005314499329 | DE33: 1.280331586 | DF33: 0.9958920795 | DG33: 0.7349923377 | DH33: 1.096106856 | DI33: 1.766035289 | DJ33: 1.466166905 | DK33: 1.391222979e-06 | DL33: 7.809586169e-06 | DM33: 0.002228994703 | DN33: 0.01999013732 | DO33: 0.01017842894
B34: 14 | C34: 7.085565679 | D34: 0.006956559726 | E34: 239.258496 | F34: -1.47464063 | G34: 93741.15276 | H34: 0.000264006001 | I34: 0.4989457786 | J34: 0.8370171652 | K34: 0.6952603126 | L34: 1.157403146 | M34: 2.1815831 | N34: 1.55168905 | O34: 4.674396894e-07 | P34: 2.622075292e-06 | Q34: 0.001204960718 | R34: 0.007414744951 | S34: 0.005418651918 | V34: 14 | W34: 7.085565679 | X34: 0.006956559726 | Y34: 239.258496 | Z34: -1.47464063 | AA34: 85619.4327 | AB34: 0.0002396022523 | AC34: 0.5145323447 | AD34: 0.8370171652 | AE34: 0.6952603126 | AF34: 1.157403146 | AG34: 2.1815831 | AH34: 1.55168905 | AI34: 4.237389513e-07 | AJ34: 2.378051023e-06 | AK34: 0.001128791519 | AL34: 0.007340650136 | AM34: 0.005717653927 | AP34: 14 | AQ34: 7.085565679 | AR34: 0.006956559726 | AS34: 239.258496 | AT34: -1.47464063 | AU34: 71844.10563 | AV34: 0.0001999333616 | AW34: 0.4851226595 | AX34: 0.8370171652 | AY34: 0.6952603126 | AZ34: 1.157403146 | BA34: 2.1815831 | BB34: 1.55168905 | BC34: 3.532832162e-07 | BD34: 1.983290537e-06 | BE34: 0.0009638320946 | BF34: 0.00656602856 | BG34: 0.005474782558 | BJ34: 14 | BK34: 7.085565679 | BL34: 0.006956559726 | BM34: 239.258496 | BN34: -1.47464063 | BO34: 67944.32311 | BP34: 0.000188952238 | BQ34: 0.4658103837 | BR34: 0.8370171652 | BS34: 0.6952603126 | BT34: 1.157403146 | BU34: 2.1815831 | BV34: 1.55168905 | BW34: 3.33848364e-07 | BX34: 1.874249624e-06 | BY34: 0.0009131613786 | BZ34: 0.006254578022 | CA34: 0.00526487375 | CD34: 14 | CE34: 7.085565679 | CF34: 0.006956559726 | CG34: 239.258496 | CH34: -1.47464063 | CI34: 62417.17919 | CJ34: 0.0001734924903 | CK34: 0.432914335 | CL34: 0.8370171652 | CM34: 0.6952603126 | CN34: 1.157403146 | CO34: 2.1815831 | CP34: 1.55168905 | CQ34: 3.065123851e-07 | CR34: 1.720826417e-06 | CS34: 0.0008399790923 | CT34: 0.005776524009 | CU34: 0.004898421417 | CX34: 14 | CY34: 7.085565679 | CZ34: 0.006956559726 | DA34: 239.258496 | DB34: -1.47464063 | DC34: 61089.67965 | DD34: 0.0001697924934 | DE34: 0.4242848544 | DF34: 0.8370171652 | DG34: 0.6952603126 | DH34: 1.157403146 | DI34: 2.1815831 | DJ34: 1.55168905 | DK34: 2.999731537e-07 | DL34: 1.684118602e-06 | DM34: 0.0008222378221 | DN34: 0.005657153235 | DO34: 0.004801376088
B35: 15 | C35: 7.666953608 | D35: 0.001570814524 | E35: 253.7535279 | F35: -1.229524252 | G35: 98610.83235 | H35: 8.343981009e-05 | I35: 0.112443133 | J35: 0.6793927661 | K35: 0.741549316 | L35: 1.22393342 | M35: 2.897818392 | N35: 1.637211195 | O35: 1.303539394e-07 | P35: 7.340691037e-07 | Q35: 0.0003830553801 | R35: 0.001075754419 | S35: 0.001793749735 | V35: 15 | W35: 7.666953608 | X35: 0.001570814524 | Y35: 253.7535279 | Z35: -1.229524252 | AA35: 89525.16443 | AB35: 7.564200603e-05 | AC35: 0.1073316837 | AD35: 0.6793927661 | AE35: 0.741549316 | AF35: 1.22393342 | AG35: 2.897818392 | AH35: 1.637211195 | AI35: 1.181407187e-07 | AJ35: 6.653330463e-07 | AK35: 0.0003529050506 | AL35: 0.001004519128 | AM35: 0.001748027357 | AP35: 15 | AQ35: 7.666953608 | AR35: 0.001570814524 | AS35: 253.7535279 | AT35: -1.229524252 | AU35: 74724.62205 | AV35: 6.3066921e-05 | AW35: 0.09320923462 | AX35: 0.6793927661 | AY35: 0.741549316 | AZ35: 1.22393342 | BA35: 2.897818392 | BB35: 1.637211195 | BC35: 9.848202692e-08 | BD35: 5.546447449e-07 | BE35: 0.0002976186029 | BF35: 0.0008557953944 | BG35: 0.001542625941 | BJ35: 15 | BK35: 7.666953608 | BL35: 0.001570814524 | BM35: 253.7535279 | BN35: -1.229524252 | BO35: 70622.77838 | BP35: 5.959769629e-05 | BQ35: 0.08848935125 | BR35: 0.6793927661 | BS35: 0.741549316 | BT35: 1.22393342 | BU35: 2.897818392 | BV35: 1.637211195 | BW35: 9.30628025e-08 | BX35: 5.241263533e-07 | BY35: 0.0002815904881 | BZ35: 0.0008106112225 | CA35: 0.001467154721 | CD35: 15 | CE35: 7.666953608 | CF35: 0.001570814524 | CG35: 253.7535279 | CH35: -1.229524252 | CI35: 64846.12404 | CJ35: 5.471790125e-05 | CK35: 0.08152211384 | CL35: 0.6793927661 | CM35: 0.741549316 | CN35: 1.22393342 | CO35: 2.897818392 | CP35: 1.637211195 | CQ35: 8.544166664e-08 | CR35: 4.812059672e-07 | CS35: 0.0002587654506 | CT35: 0.0007455174811 | CU35: 0.001353441096 | CX35: 15 | CY35: 7.666953608 | CZ35: 0.001570814524 | DA35: 253.7535279 | DB35: -1.229524252 | DC35: 63463.35827 | DD35: 5.355054923e-05 | DE35: 0.07981444265 | DF35: 0.6793927661 | DG35: 0.741549316 | DH35: 1.22393342 | DI35: 2.897818392 | DJ35: 1.637211195 | DK35: 8.361871251e-08 | DL35: 4.709392987e-07 | DM35: 0.0002532709831 | DN35: 0.0007297567233 | DO35: 0.001325294111
B36: 16 | C36: 8.073856552 | D36: 0.0005345609977 | E36: 266.1054317 | F36: -1.368186725 | G36: 67087.92743 | H36: 1.629165118e-05 | I36: 0.04376318549 | J36: 0.6994623509 | K36: 0.8051640843 | L36: 1.289349979 | M36: 2.547228691 | N36: 1.72273334 | O36: 1.654772127e-08 | P36: 1.021173376e-07 | Q36: 0.0001410994932 | R36: 0.0003141407206 | S36: 0.0007938439154 | V36: 16 | W36: 8.073856552 | X36: 0.0005345609977 | Y36: 266.1054317 | Z36: -1.368186725 | AA36: 60856.919 | AB36: 1.476549729e-05 | AC36: 0.04067935316 | AD36: 0.6994623509 | AE36: 0.8051640843 | AF36: 1.289349979 | AG36: 2.547228691 | AH36: 1.72273334 | AI36: 1.499567874e-08 | AJ36: 9.254144366e-08 | AK36: 0.000128501401 | AL36: 0.0002876010078 | AM36: 0.0007475872428 | AP36: 16 | AQ36: 8.073856552 | AR36: 0.0005345609977 | AS36: 266.1054317 | AT36: -1.368186725 | AU36: 50763.28431 | AV36: 1.230866882e-05 | AW36: 0.03454255217 | AX36: 0.6994623509 | AY36: 0.8051640843 | AZ36: 1.289349979 | BA36: 2.547228691 | BB36: 1.72273334 | BC36: 1.249944367e-08 | BD36: 7.713774536e-08 | BE36: 0.0001074806397 | BF36: 0.0002414462881 | BG36: 0.0006408291494 | BJ36: 16 | BK36: 8.073856552 | BL36: 0.0005345609977 | BM36: 266.1054317 | BN36: -1.368186725 | BO36: 47973.27143 | BP36: 1.163136949e-05 | BQ36: 0.03270717268 | BR36: 0.6994623509 | BS36: 0.8051640843 | BT36: 1.289349979 | BU36: 2.547228691 | BV36: 1.72273334 | BW36: 1.181153575e-08 | BX36: 7.289257142e-08 | BY36: 0.0001016025248 | BZ36: 0.0002283315778 | CA36: 0.0006073980077 | CD36: 16 | CE36: 8.073856552 | CF36: 0.0005345609977 | CG36: 266.1054317 | CH36: -1.368186725 | CI36: 44046.89382 | CJ36: 1.067885994e-05 | CK36: 0.03007289196 | CL36: 0.6994623509 | CM36: 0.8051640843 | CN36: 1.289349979 | CO36: 2.547228691 | CP36: 1.72273334 | CQ36: 1.084419755e-08 | CR36: 6.692290656e-08 | CS36: 9.33064277e-05 | CT36: 0.0002097482752 | CU36: 0.0005588951774 | CX36: 16 | CY36: 8.073856552 | CZ36: 0.0005345609977 | DA36: 266.1054317 | DB36: -1.368186725 | DC36: 43107.37985 | DD36: 1.04510207e-05 | DE36: 0.02943624884 | DF36: 0.6994623509 | DG36: 0.8051640843 | DH36: 1.289349979 | DI36: 2.547228691 | DJ36: 1.72273334 | DK36: 1.061282236e-08 | DL36: 6.549502666e-08 | DM36: 9.131841502e-05 | DN36: 0.0002052861308 | DO36: 0.0005471104478
B37: 17 | C37: 8.177103603 | D37: 0.0004190047536 | E37: 278.2684167 | F37: -1.911220388 | G37: 55498.51798 | H37: 4.838391317e-06 | I37: 0.0109548977 | J37: 0.7533392802 | K37: 0.8688445745 | L37: 1.353860943 | M37: 3.203240026 | N37: 1.808255485 | O37: 3.278257512e-09 | P37: 2.046940373e-08 | Q37: 4.937532717e-05 | R37: 4.411350422e-05 | S37: 0.0001874971328 | V37: 17 | W37: 8.177103603 | X37: 0.0004190047536 | Y37: 278.2684167 | Z37: -1.911220388 | AA37: 50307.41757 | AB37: 4.384641509e-06 | AC37: 0.01001353935 | AD37: 0.7533392802 | AE37: 0.8688445745 | AF37: 1.353860943 | AG37: 3.203240026 | AH37: 1.808255485 | AI37: 2.970702333e-09 | AJ37: 1.854928873e-08 | AK37: 4.483405658e-05 | AL37: 4.010642326e-05 | AM37: 0.000172183212 | AP37: 17 | AQ37: 8.177103603 | AR37: 0.0004190047536 | AS37: 278.2684167 | AT37: -1.911220388 | AU37: 41941.37224 | AV37: 3.654788494e-06 | AW37: 0.008397410293 | AX37: 0.7533392802 | AY37: 0.8688445745 | AZ37: 1.353860943 | BA37: 3.203240026 | BB37: 1.808255485 | BC37: 2.476141769e-09 | BD37: 1.546136278e-08 | BE37: 3.742268351e-05 | BF37: 3.350570262e-05 | BG37: 0.0001448633832 | BJ37: 17 | BK37: 8.177103603 | BL37: 0.0004190047536 | BM37: 278.2684167 | BN37: -1.911220388 | BO37: 39633.96009 | BP37: 3.45364994e-06 | BQ37: 0.007940375993 | BR37: 0.7533392802 | BS37: 0.8688445745 | BT37: 1.353860943 | BU37: 3.203240026 | BV37: 1.808255485 | BW37: 2.339862445e-09 | BX37: 1.461043102e-08 | BY37: 3.536830573e-05 | BZ37: 3.166926925e-05 | CA37: 0.0001370263162 | CD37: 17 | CE37: 8.177103603 | CF37: 0.0004190047536 | CG37: 278.2684167 | CH37: -1.911220388 | CI37: 36388.58904 | CJ37: 3.170805821e-06 | CK37: 0.00729351908 | CL37: 0.7533392802 | CM37: 0.8688445745 | CN37: 1.353860943 | CO37: 3.203240026 | CP37: 1.808255485 | CQ37: 2.148229851e-09 | CR37: 1.341385995e-08 | CS37: 3.247520152e-05 | CT37: 2.908070222e-05 | CU37: 0.0001258953176 | CX37: 17 | CY37: 8.177103603 | CZ37: 0.0004190047536 | DA37: 278.2684167 | DB37: -1.911220388 | DC37: 35612.25382 | DD37: 3.103152745e-06 | DE37: 0.00713828952 | DF37: 0.7533392802 | DG37: 0.8688445745 | DH37: 1.353860943 | DI37: 3.203240026 | DJ37: 1.808255485 | DK37: 2.102394196e-09 | DL37: 1.312765655e-08 | DM37: 3.178269175e-05 | DN37: 2.846079785e-05 | DO37: 0.0001232194313
B38: 18 | C38: 8.550501119 | D38: 0.0001580921227 | E38: 291.2847323 | F38: -2.074020945 | G38: 43144.30473 | H38: 1.160503045e-06 | I38: 0.002915800289 | J38: 0.7862602597 | K38: 0.8492569367 | L38: 1.418922471 | M38: 3.107134291 | N38: 1.89377763 | O38: 5.267413914e-10 | P38: 3.254228772e-09 | Q38: 1.535573307e-05 | R38: 1.366067221e-05 | S38: 4.067212393e-05 | V38: 18 | W38: 8.550501119 | X38: 0.0001580921227 | Y38: 291.2847323 | Z38: -2.074020945 | AA38: 39100.41618 | AB38: 1.051633121e-06 | AC38: 0.002652378205 | AD38: 0.7862602597 | AE38: 0.8492569367 | AF38: 1.418922471 | AG38: 3.107134291 | AH38: 1.89377763 | AI38: 4.773192376e-10 | AJ38: 2.948907989e-09 | AK38: 1.392670186e-05 | AL38: 1.239343689e-05 | AM38: 3.711250291e-05 | AP38: 18 | AQ38: 8.550501119 | AR38: 0.0001580921227 | AS38: 291.2847323 | AT38: -2.074020945 | AU38: 32593.1873 | AV38: 8.765605924e-07 | AW38: 0.002216727953 | AX38: 0.7862602597 | AY38: 0.8492569367 | AZ38: 1.418922471 | BA38: 3.107134291 | BB38: 1.89377763 | BC38: 3.978525492e-10 | BD38: 2.457964283e-09 | BE38: 1.161487573e-05 | BF38: 1.033847079e-05 | BG38: 3.108391313e-05 | BJ38: 18 | BK38: 8.550501119 | BL38: 0.0001580921227 | BM38: 291.2847323 | BN38: -2.074020945 | BO38: 30799.57561 | BP38: 8.283176249e-07 | BQ38: 0.00209531997 | BR38: 0.7862602597 | BS38: 0.8492569367 | BT38: 1.418922471 | BU38: 3.107134291 | BV38: 1.89377763 | BW38: 3.759556641e-10 | BX38: 2.32268425e-09 | BY38: 1.097629512e-05 | BZ38: 9.770299876e-06 | CA38: 2.93882105e-05 | CD38: 18 | CE38: 8.550501119 | CF38: 0.0001580921227 | CG38: 291.2847323 | CH38: -2.074020945 | CI38: 28277.26521 | CJ38: 7.604793476e-07 | CK38: 0.001924114393 | CL38: 0.7862602597 | CM38: 0.8492569367 | CN38: 1.418922471 | CO38: 3.107134291 | CP38: 1.89377763 | CQ38: 3.451650452e-10 | CR38: 2.132457768e-09 | CS38: 1.007779433e-05 | CT38: 8.970676622e-06 | CU38: 2.699146701e-05 | CX38: 18 | CY38: 8.550501119 | CZ38: 0.0001580921227 | DA38: 291.2847323 | DB38: -2.074020945 | DC38: 27673.9445 | DD38: 7.442534179e-07 | DE38: 0.001883105471 | DF38: 0.7862602597 | DG38: 0.8492569367 | DH38: 1.418922471 | DI38: 3.107134291 | DJ38: 1.89377763 | DK38: 3.378004175e-10 | DL38: 2.086958547e-09 | DM38: 9.862820043e-06 | DN38: 8.779336425e-06 | DO38: 2.641670293e-05
B39: 19 | C39: 9.018109298 | D39: 4.855136686e-05 | E39: 305.8553963 | F39: -1.937974169 | G39: 33471.97857 | H39: 3.251231957e-07 | I39: 0.0005831456997 | J39: 0.8286518417 | K39: 0.9228077954 | L39: 1.482593102 | M39: 3.122634057 | N39: 1.979299775 | O39: 9.366985594e-11 | P39: 5.497230331e-10 | Q39: 5.235634201e-06 | R39: 3.011871422e-06 | S39: 3.09889201e-06 | V39: 19 | W39: 9.018109298 | X39: 4.855136686e-05 | Y39: 305.8553963 | Z39: -1.937974169 | AA39: 30332.18774 | AB39: 2.946187474e-07 | AC39: 0.0005288520091 | AD39: 0.8286518417 | AE39: 0.9228077954 | AF39: 1.482593102 | AG39: 3.122634057 | AH39: 1.979299775 | AI39: 8.488092008e-11 | AJ39: 4.981439878e-10 | AK39: 4.746253602e-06 | AL39: 2.730455794e-06 | AM39: 2.815021168e-06 | AP39: 19 | AQ39: 9.018109298 | AR39: 4.855136686e-05 | AS39: 305.8553963 | AT39: -1.937974169 | AU39: 25282.75809 | AV39: 2.455693888e-07 | AW39: 0.0004410488907 | AX39: 0.8286518417 | AY39: 0.9228077954 | AZ39: 1.482593102 | BA39: 3.122634057 | BB39: 1.979299775 | BC39: 7.074934308e-11 | BD39: 4.152099308e-10 | BE39: 3.95714229e-06 | BF39: 2.27655252e-06 | BG39: 2.350348189e-06 | BJ39: 19 | BK39: 9.018109298 | BL39: 4.855136686e-05 | BM39: 305.8553963 | BN39: -1.937974169 | BO39: 23891.29711 | BP39: 2.320538533e-07 | BQ39: 0.0004167988579 | BR39: 0.8286518417 | BS39: 0.9228077954 | BT39: 1.482593102 | BU39: 3.122634057 | BV39: 1.979299775 | BW39: 6.68554485e-11 | BX39: 3.923577005e-10 | BY39: 3.73945713e-06 | BZ39: 2.151323945e-06 | CA39: 2.221389156e-06 | CD39: 19 | CE39: 9.018109298 | CF39: 4.855136686e-05 | CG39: 305.8553963 | CH39: -1.937974169 | CI39: 21934.63869 | CJ39: 2.130487596e-07 | CK39: 0.0003826795017 | CL39: 0.8286518417 | CM39: 0.9228077954 | CN39: 1.482593102 | CO39: 3.122634057 | CP39: 1.979299775 | CQ39: 6.138000441e-11 | CR39: 3.602237378e-10 | CS39: 3.43326879e-06 | CT39: 1.975176767e-06 | CU39: 2.03972605e-06 | CX39: 19 | CY39: 9.018109298 | CZ39: 4.855136686e-05 | DA39: 305.8553963 | DB39: -1.937974169 | DC39: 21466.63269 | DD39: 2.085030391e-07 | DE39: 0.0003745162783 | DF39: 0.8286518417 | DG39: 0.9228077954 | DH39: 1.482593102 | DI39: 3.122634057 | DJ39: 1.979299775 | DK39: 6.007036644e-11 | DL39: 3.525378071e-10 | DM39: 3.360022775e-06 | DN39: 1.933038433e-06 | DO39: 1.996235462e-06
B40: 20 | C40: 9.861933953 | D40: 5.26937895e-06 | E40: 321.8135238 | F40: -1.262116597 | G40: 25863.35923 | H40: 8.213596943e-08 | I40: 0.0001407826337 | J40: 0.8788846113 | K40: 0.9649069773 | L40: 1.553401287 | M40: 2.911118503 | N40: 2.06482192 | O40: 1.701367949e-11 | P40: 6.925650762e-11 | Q40: 1.100101504e-06 | R40: 3.717795955e-07 | S40: 1.26820257e-06 | V40: 20 | W40: 9.861933953 | X40: 5.26937895e-06 | Y40: 321.8135238 | Z40: -1.262116597 | AA40: 23436.81422 | AB40: 7.442932261e-08 | AC40: 0.0001276983918 | AD40: 0.8788846113 | AE40: 0.9649069773 | AF40: 1.553401287 | AG40: 2.911118503 | AH40: 2.06482192 | AI40: 1.541729431e-11 | AJ40: 6.275822155e-11 | AK40: 9.969875354e-07 | AL40: 3.369368121e-07 | AM40: 1.152313273e-06 | AP40: 20 | AQ40: 9.861933953 | AR40: 5.26937895e-06 | AS40: 321.8135238 | AT40: -1.262116597 | AU40: 19534.9937 | AV40: 6.203784631e-08 | AW40: 0.0001065108237 | AX40: 0.8788846113 | AY40: 0.9649069773 | AZ40: 1.553401287 | BA40: 2.911118503 | BB40: 2.06482192 | BC40: 1.285050758e-11 | BD40: 5.230977269e-11 | BE40: 8.310637427e-07 | BF40: 2.808647081e-07 | BG40: 9.622680118e-07 | BJ40: 20 | BK40: 9.861933953 | BL40: 5.26937895e-06 | BM40: 321.8135238 | BN40: -1.262116597 | BO40: 18459.83948 | BP40: 5.862341859e-08 | BQ40: 0.0001006559521 | BR40: 0.8788846113 | BS40: 0.9649069773 | BT40: 1.553401287 | BU40: 2.911118503 | BV40: 2.06482192 | BW40: 1.214324212e-11 | BX40: 4.943075163e-11 | BY40: 7.853299068e-07 | BZ40: 2.654088533e-07 | CA40: 9.094869293e-07 | CD40: 20 | CE40: 9.861933953 | CF40: 5.26937895e-06 | CG40: 321.8135238 | CH40: -1.262116597 | CI40: 16947.99048 | CJ40: 5.382217863e-08 | CK40: 9.241713134e-05 | CL40: 0.8788846113 | CM40: 0.9649069773 | CN40: 1.553401287 | CO40: 2.911118503 | CP40: 2.06482192 | CQ40: 1.114871328e-11 | CR40: 4.538238471e-11 | CS40: 7.210157237e-07 | CT40: 2.436735113e-07 | CU40: 8.351211686e-07 | CX40: 20 | CY40: 9.861933953 | CZ40: 5.26937895e-06 | DA40: 321.8135238 | DB40: -1.262116597 | DC40: 16586.37952 | DD40: 5.267379898e-08 | DE40: 9.044581617e-05 | DF40: 0.8788846113 | DG40: 0.9649069773 | DH40: 1.553401287 | DI40: 2.911118503 | DJ40: 2.06482192 | DK40: 1.091083808e-11 | DL40: 4.441408075e-11 | DM40: 7.056321953e-07 | DN40: 2.384745346e-07 | DO40: 8.173161616e-07
B41: 21 | C41: 11.10916722 | D41: 2.202156054e-07 | E41: 342.5195478 | F41: 0.1692908869 | G41: 16545.67412 | H41: 2.015667382e-08 | I41: 1.698781071e-05 | J41: 0.9310758077 | K41: 1.007006159 | L41: 1.619926516 | M41: 3.396304921 | N41: 2.150344065 | O41: 2.990219547e-12 | P41: 9.616113616e-12 | Q41: 1.883397648e-07 | R41: 7.504882709e-08 | S41: 0 | V41: 21 | W41: 11.10916722 | X41: 2.202156054e-07 | Y41: 342.5195478 | Z41: 0.1692908869 | AA41: 14993.22084 | AB41: 1.826538365e-08 | AC41: 1.539432375e-05 | AD41: 0.9310758077 | AE41: 1.007006159 | AF41: 1.619926516 | AG41: 3.396304921 | AH41: 2.150344065 | AI41: 2.709647956e-12 | AJ41: 8.713835962e-12 | AK41: 1.706731063e-07 | AL41: 6.800928486e-08 | AM41: 0 | AP41: 21 | AQ41: 11.10916722 | AR41: 2.202156054e-07 | AS41: 342.5195478 | AT41: 0.1692908869 | AU41: 12497.04808 | AV41: 1.522442601e-08 | AW41: 1.283163233e-05 | AX41: 0.9310758077 | AY41: 1.007006159 | AZ41: 1.619926516 | BA41: 3.396304921 | BB41: 2.150344065 | BC41: 2.258525012e-12 | BD41: 7.263089821e-12 | BE41: 1.422611426e-07 | BF41: 5.668788534e-08 | BG41: 0 | BJ41: 21 | BK41: 11.10916722 | BL41: 2.202156054e-07 | BM41: 342.5195478 | BN41: 0.1692908869 | BO41: 11809.2374 | BP41: 1.438650501e-08 | BQ41: 1.212543276e-05 | BR41: 0.9310758077 | BS41: 1.007006159 | BT41: 1.619926516 | BU41: 3.396304921 | BV41: 2.150344065 | BW41: 2.134220406e-12 | BX41: 6.863344184e-12 | BY41: 1.344316791e-07 | BZ41: 5.35680302e-08 | CA41: 0 | CD41: 21 | CE41: 11.10916722 | CF41: 2.202156054e-07 | CG41: 342.5195478 | CH41: 0.1692908869 | CI41: 10842.06421 | CJ41: 1.320825346e-08 | CK41: 1.113238064e-05 | CL41: 0.9310758077 | CM41: 1.007006159 | CN41: 1.619926516 | CO41: 3.396304921 | CP41: 2.150344065 | CQ41: 1.959428198e-12 | CR41: 6.301237721e-12 | CS41: 1.234219535e-07 | CT41: 4.918090716e-08 | CU41: 0 | CX41: 21 | CY41: 11.10916722 | CZ41: 2.202156054e-07 | DA41: 342.5195478 | DB41: 0.1692908869 | DC41: 10610.73193 | DD41: 1.292643475e-08 | DE41: 1.089485596e-05 | DF41: 0.9310758077 | DG41: 1.007006159 | DH41: 1.619926516 | DI41: 3.396304921 | DJ41: 2.150344065 | DK41: 1.917620734e-12 | DL41: 6.166790965e-12 | DM41: 1.207885758e-07 | DN41: 4.813156547e-08 | DO41: 0
B42: 22 | C42: 12.24010016 | D42: 1.06494833e-08 | E42: 359.05256 | F42: 1.199174541 | G42: 9710.58946 | H42: 3.1784024e-09 | I42: 2.64322754e-06 | J42: 0.9879409304 | K42: 1.066463964 | L42: 1.683273657 | M42: 4.395941375 | N42: 2.23586621 | O42: 3.885532482e-13 | P42: 1.134164407e-12 | Q42: 3.379089541e-08 | R42: 1.375220992e-09 | S42: 0 | V42: 22 | W42: 12.24010016 | X42: 1.06494833e-08 | Y42: 359.05256 | Z42: 1.199174541 | AA42: 8799.449032 | AB42: 2.880173262e-09 | AC42: 2.395277032e-06 | AD42: 0.9879409304 | AE42: 1.066463964 | AF42: 1.683273657 | AG42: 4.395941375 | AH42: 2.23586621 | AI42: 3.520953145e-13 | AJ42: 1.027745874e-12 | AK42: 3.062113475e-08 | AL42: 1.246185008e-09 | AM42: 0 | AP42: 22 | AQ42: 12.24010016 | AR42: 1.06494833e-08 | AS42: 359.05256 | AT42: 1.199174541 | AU42: 7334.450448 | AV42: 2.400659732e-09 | AW42: 1.996529166e-06 | AX42: 0.9879409304 | AY42: 1.066463964 | AZ42: 1.683273657 | BA42: 4.395941375 | BB42: 2.23586621 | BC42: 2.934757471e-13 | BD42: 8.566387801e-13 | BE42: 2.552357193e-08 | BF42: 1.038710972e-09 | BG42: 0 | BJ42: 22 | BK42: 12.24010016 | BL42: 1.06494833e-08 | BM42: 359.05256 | BN42: 1.199174541 | BO42: 6930.777375 | BP42: 2.268532299e-09 | BQ42: 1.886647886e-06 | BR42: 0.9879409304 | BS42: 1.066463964 | BT42: 1.683273657 | BU42: 4.395941375 | BV42: 2.23586621 | BW42: 2.773234368e-13 | BX42: 8.094911213e-13 | BY42: 2.411885432e-08 | BZ42: 9.815424795e-10 | CA42: 0 | CD42: 22 | CE42: 12.24010016 | CF42: 1.06494833e-08 | CG42: 359.05256 | CH42: 1.199174541 | CI42: 6363.14822 | CJ42: 2.082739959e-09 | CK42: 1.732134239e-06 | CL42: 0.9879409304 | CM42: 1.066463964 | CN42: 1.683273657 | CO42: 4.395941375 | CP42: 2.23586621 | CQ42: 2.54610702e-13 | CR42: 7.431939606e-13 | CS42: 2.214355718e-08 | CT42: 9.011543803e-10 | CU42: 0 | CX42: 22 | CY42: 12.24010016 | CZ42: 1.06494833e-08 | DA42: 359.05256 | DB42: 1.199174541 | DC42: 6227.380515 | DD42: 2.038301445e-09 | DE42: 1.69517672e-06 | DF42: 0.9879409304 | DG42: 1.066463964 | DH42: 1.683273657 | DI42: 4.395941375 | DJ42: 2.23586621 | DK42: 2.491781844e-13 | DL42: 7.273367551e-13 | DM42: 2.167109337e-08 | DN42: 8.81926846e-10 | DO42: 0
B43: 23 | C43: 12.94266047 | D43: 1.862203094e-09 | E43: 373.6243529 | F43: 1.546111328 | G43: 4577.701941 | H43: 4.871510321e-10 | I43: 2.600271839e-07 | J43: 1.039965274 | K43: 1.10924204 | L43: 1.752848697 | M43: 4.573940736 | N43: 2.321388355 | O43: 3.916615868e-14 | P43: 1.374917048e-13 | Q43: 3.138577846e-09 | R43: 1.888087313e-10 | S43: 0 | V43: 23 | W43: 12.94266047 | X43: 1.862203094e-09 | Y43: 373.6243529 | Z43: 1.546111328 | AA43: 4148.176567 | AB43: 4.414416654e-10 | AC43: 2.356300784e-07 | AD43: 1.039965274 | AE43: 1.10924204 | AF43: 1.752848697 | AG43: 4.573940736 | AH43: 2.321388355 | AI43: 3.549119822e-14 | AJ43: 1.245908629e-13 | AK43: 2.844100805e-09 | AL43: 1.710928488e-10 | AM43: 0 | AP43: 23 | AQ43: 12.94266047 | AR43: 1.862203094e-09 | AS43: 373.6243529 | AT43: 1.546111328 | AU43: 3457.555969 | AV43: 3.679470182e-10 | AW43: 1.964012594e-07 | AX43: 1.039965274 | AY43: 1.10924204 | AZ43: 1.752848697 | BA43: 4.573940736 | BB43: 2.321388355 | BC43: 2.958234651e-14 | BD43: 1.038480058e-13 | BE43: 2.370601738e-09 | BF43: 1.426079988e-10 | BG43: 0 | BJ43: 23 | BK43: 12.94266047 | BL43: 1.862203094e-09 | BM43: 373.6243529 | BN43: 1.546111328 | BO43: 3267.259107 | BP43: 3.476959596e-10 | BQ43: 1.85591803e-07 | BR43: 1.039965274 | BS43: 1.10924204 | BT43: 1.752848697 | BU43: 4.573940736 | BV43: 2.321388355 | BW43: 2.795419402e-14 | BX43: 9.813242198e-14 | BY43: 2.240129517e-09 | BZ43: 1.347591454e-10 | CA43: 0 | CD43: 23 | CE43: 12.94266047 | CF43: 1.862203094e-09 | CG43: 373.6243529 | CH43: 1.546111328 | CI43: 2999.671239 | CJ43: 3.192197288e-10 | CK43: 1.703919184e-07 | CL43: 1.039965274 | CM43: 1.10924204 | CN43: 1.752848697 | CO43: 4.573940736 | CP43: 2.321388355 | CQ43: 2.566475099e-14 | CR43: 9.009539593e-14 | CS43: 2.056663951e-09 | CT43: 1.237223992e-10 | CU43: 0 | CX43: 23 | CY43: 12.94266047 | CZ43: 1.862203094e-09 | DA43: 373.6243529 | DB43: 1.546111328 | DC43: 2935.668561 | DD43: 3.124086765e-10 | DE43: 1.667563456e-07 | DF43: 1.039965274 | DG43: 1.10924204 | DH43: 1.752848697 | DI43: 4.573940736 | DJ43: 2.321388355 | DK43: 2.511715337e-14 | DL43: 8.817306971e-14 | DM43: 2.012781876e-09 | DN43: 1.210825885e-10 | DO43: 0
B44: 24 | C44: 13.71941645 | D44: 2.40939737e-10 | E44: 388.9427778 | F44: 2.042970506 | G44: 2338.144943 | H44: 8.070073407e-11 | I44: 2.604353908e-08 | J44: 1.068715804 | K44: 1.152020115 | L44: 1.820071082 | M44: 4.345071831 | N44: 2.4069105 | O44: 5.427647052e-15 | P44: 1.586814719e-14 | Q44: 3.163082519e-10 | R44: 0 | S44: 0 | V44: 24 | W44: 13.71941645 | X44: 2.40939737e-10 | Y44: 388.9427778 | Z44: 2.042970506 | AA44: 2118.756828 | AB44: 7.312858453e-11 | AC44: 2.359991077e-08 | AD44: 1.068715804 | AE44: 1.152020115 | AF44: 1.820071082 | AG44: 4.345071831 | AH44: 2.4069105 | AI44: 4.918370891e-15 | AJ44: 1.437923897e-14 | AK44: 2.866294988e-10 | AL44: 0 | AM44: 0 | AP44: 24 | AQ44: 13.71941645 | AR44: 2.40939737e-10 | AS44: 388.9427778 | AT44: 2.042970506 | AU44: 1766.00966 | AV44: 6.095356692e-11 | AW44: 1.967083461e-08 | AX44: 1.068715804 | AY44: 1.152020115 | AZ44: 1.820071082 | BA44: 4.345071831 | BB44: 2.4069105 | BC44: 4.099522076e-15 | BD44: 1.1985271e-14 | BE44: 2.389094407e-10 | BF44: 0 | BG44: 0 | BJ44: 24 | BK44: 13.71941645 | BL44: 2.40939737e-10 | BM44: 388.9427778 | BN44: 2.042970506 | BO44: 1668.812063 | BP44: 5.759880594e-11 | BQ44: 1.85881938e-08 | BR44: 1.068715804 | BS44: 1.152020115 | BT44: 1.820071082 | BU44: 4.345071831 | BV44: 2.4069105 | BW44: 3.873892673e-15 | BX44: 1.132562593e-14 | BY44: 2.257603743e-10 | BZ44: 0 | CA44: 0 | CD44: 24 | CE44: 13.71941645 | CF44: 2.40939737e-10 | CG44: 388.9427778 | CH44: 2.042970506 | CI44: 1532.136681 | CJ44: 5.288147497e-11 | CK44: 1.706582577e-08 | CL44: 1.068715804 | CM44: 1.152020115 | CN44: 1.820071082 | CO44: 4.345071831 | CP44: 2.4069105 | CQ44: 3.556621617e-15 | CR44: 1.039805938e-14 | CS44: 2.07270661e-10 | CT44: 0 | CU44: 0 | CX44: 24 | CY44: 13.71941645 | CZ44: 2.40939737e-10 | DA44: 388.9427778 | DB44: 2.042970506 | DC44: 1499.446148 | DD44: 5.175316597e-11 | DE44: 1.670169984e-08 | DF44: 1.068715804 | DG44: 1.152020115 | DH44: 1.820071082 | DI44: 4.345071831 | DJ44: 2.4069105 | DK44: 3.48073553e-15 | DL44: 1.017620051e-14 | DM44: 2.028482191e-10 | DN44: 0 | DO44: 0
B45: 25 | C45: 13.95940218 | D45: 1.408224767e-10 | E45: 402.34396 | F45: 1.687673314 | G45: 1132.450126 | H45: 1.30168035e-11 | I45: 2.239751168e-09 | J45: 1.122377711 | K45: 1.194798191 | L45: 1.886610436 | M45: 4.505982412 | N45: 2.492432645 | O45: 5.489664029e-16 | P45: 8.537449027e-16 | Q45: 2.623285983e-11 | R45: 0 | S45: 0 | V45: 25 | W45: 13.95940218 | X45: 1.408224767e-10 | Y45: 402.34396 | Z45: 1.687673314 | AA45: 1026.192324 | AB45: 1.179543674e-11 | AC45: 2.029596227e-09 | AD45: 1.122377711 | AE45: 1.194798191 | AF45: 1.886610436 | AG45: 4.505982412 | AH45: 2.492432645 | AI45: 4.974568806e-16 | AJ45: 7.736380119e-16 | AK45: 2.377144129e-11 | AL45: 0 | AM45: 0 | AP45: 25 | AQ45: 13.95940218 | AR45: 1.408224767e-10 | AS45: 402.34396 | AT45: 1.687673314 | AU45: 855.3438082 | AV45: 9.831640275e-12 | AW45: 1.691693723e-09 | AX45: 1.122377711 | AY45: 1.194798191 | AZ45: 1.886610436 | BA45: 4.505982412 | BB45: 2.492432645 | BC45: 4.146363717e-16 | BD45: 6.448367107e-16 | BE45: 1.981379227e-11 | BF45: 0 | BG45: 0 | BJ45: 25 | BK45: 13.95940218 | BL45: 1.408224767e-10 | BM45: 402.34396 | BN45: 1.687673314 | BO45: 808.2674152 | BP45: 9.290526682e-12 | BQ45: 1.598586375e-09 | BR45: 1.122377711 | BS45: 1.194798191 | BT45: 1.886610436 | BU45: 4.505982412 | BV45: 2.492432645 | BW45: 3.918156245e-16 | BX45: 6.093462024e-16 | BY45: 1.872328185e-11 | BZ45: 0 | CA45: 0 | CD45: 25 | CE45: 13.95940218 | CF45: 1.408224767e-10 | CG45: 402.34396 | CH45: 1.687673314 | CI45: 742.0704711 | CJ45: 8.529634354e-12 | CK45: 1.467662498e-09 | CL45: 1.122377711 | CM45: 1.194798191 | CN45: 1.886610436 | CO45: 4.505982412 | CP45: 2.492432645 | CQ45: 3.59726001e-16 | CR45: 5.594408669e-16 | CS45: 1.718984913e-11 | CT45: 0 | CU45: 0 | CX45: 25 | CY45: 13.95940218 | CZ45: 1.408224767e-10 | DA45: 402.34396 | DB45: 1.687673314 | DC45: 726.2372365 | DD45: 8.347641259e-12 | DE45: 1.436347626e-09 | DF45: 1.122377711 | DG45: 1.194798191 | DH45: 1.886610436 | DI45: 4.505982412 | DJ45: 2.492432645 | DK45: 3.520506839e-16 | DL45: 5.475043207e-16 | DM45: 1.682307685e-11 | DN45: 0 | DO45: 0
B46: 26 | C46: 16.87211642 | D46: 5.421506495e-14 | E46: 422.1478667 | F46: 4.876640329 | G46: 134.7033601 | H46: 8.209289631e-13 | I46: 1.264117259e-14 | J46: 1.163565166 | K46: 1.237576266 | L46: 1.948368585 | M46: 4.660697371 | N46: 2.57795479 | O46: 7.532014007e-17 | P46: 1.078970724e-16 | Q46: 0 | R46: 0 | S46: 0 | V46: 26 | W46: 16.87211642 | X46: 5.421506495e-14 | Y46: 422.1478667 | Z46: 4.876640329 | AA46: 122.0641425 | AB46: 7.439011907e-13 | AC46: 1.145505124e-14 | AD46: 1.163565166 | AE46: 1.237576266 | AF46: 1.948368585 | AG46: 4.660697371 | AH46: 2.57795479 | AI46: 6.825285055e-17 | AJ46: 9.777308907e-17 | AK46: 0 | AL46: 0 | AM46: 0 | AP46: 26 | AQ46: 16.87211642 | AR46: 5.421506495e-14 | AS46: 422.1478667 | AT46: 4.876640329 | AU46: 0 | AV46: 0 | AW46: 0 | AX46: 1.163565166 | AY46: 1.237576266 | AZ46: 1.948368585 | BA46: 4.660697371 | BB46: 2.57795479 | BC46: 5.688958256e-17 | BD46: 8.149506108e-17 | BE46: 0 | BF46: 0 | BG46: 0 | BJ46: 26 | BK46: 16.87211642 | BL46: 5.421506495e-14 | BM46: 422.1478667 | BN46: 4.876640329 | BO46: 0 | BP46: 0 | BQ46: 0 | BR46: 1.163565166 | BS46: 1.237576266 | BT46: 1.948368585 | BU46: 4.660697371 | BV46: 2.57795479 | BW46: 5.375849499e-17 | BX46: 7.700973775e-17 | BY46: 0 | BZ46: 0 | CA46: 0 | CD46: 26 | CE46: 16.87211642 | CF46: 5.421506495e-14 | CG46: 422.1478667 | CH46: 4.876640329 | CI46: 0 | CJ46: 0 | CK46: 0 | CL46: 1.163565166 | CM46: 1.237576266 | CN46: 1.948368585 | CO46: 4.660697371 | CP46: 2.57795479 | CQ46: 4.93556847e-17 | CR46: 7.070265519e-17 | CS46: 0 | CT46: 0 | CU46: 0 | CX46: 26 | CY46: 16.87211642 | CZ46: 5.421506495e-14 | DA46: 422.1478667 | DB46: 4.876640329 | DC46: 0 | DD46: 0 | DE46: 0 | DF46: 1.163565166 | DG46: 1.237576266 | DH46: 1.948368585 | DI46: 4.660697371 | DJ46: 2.57795479 | DK46: 4.830260394e-17 | DL46: 6.919410342e-17 | DM46: 0 | DN46: 0 | DO46: 0
B47: 27 | V47: 27 | AP47: 27 | BJ47: 27 | CD47: 27 | CX47: 27
B48: 28 | V48: 28 | AP48: 28 | BJ48: 28 | CD48: 28 | CX48: 28
B49: 29 | V49: 29 | AP49: 29 | BJ49: 29 | CD49: 29 | CX49: 29
B50: 30 | V50: 30 | AP50: 30 | BJ50: 30 | CD50: 30 | CX50: 30
B51: 31 | V51: 31 | AP51: 31 | BJ51: 31 | CD51: 31 | CX51: 31
B52: 32 | V52: 32 | AP52: 32 | BJ52: 32 | CD52: 32 | CX52: 32
B53: 33 | V53: 33 | AP53: 33 | BJ53: 33 | CD53: 33 | CX53: 33
B54: 34 | V54: 34 | AP54: 34 | BJ54: 34 | CD54: 34 | CX54: 34
B55: 35 | V55: 35 | AP55: 35 | BJ55: 35 | CD55: 35 | CX55: 35
B56: 36 | V56: 36 | AP56: 36 | BJ56: 36 | CD56: 36 | CX56: 36
B57: 37 | V57: 37 | AP57: 37 | BJ57: 37 | CD57: 37 | CX57: 37
B58: 38 | V58: 38 | AP58: 38 | BJ58: 38 | CD58: 38 | CX58: 38
B59: 39 | V59: 39 | AP59: 39 | BJ59: 39 | CD59: 39 | CX59: 39
B60: 40 | V60: 40 | AP60: 40 | BJ60: 40 | CD60: 40 | CX60: 40
B61: 41 | V61: 41 | AP61: 41 | BJ61: 41 | CD61: 41 | CX61: 41
B62: 42 | V62: 42 | AP62: 42 | BJ62: 42 | CD62: 42 | CX62: 42
B63: 43 | V63: 43 | AP63: 43 | BJ63: 43 | CD63: 43 | CX63: 43
B64: 44 | V64: 44 | AP64: 44 | BJ64: 44 | CD64: 44 | CX64: 44
B65: 45 | V65: 45 | AP65: 45 | BJ65: 45 | CD65: 45 | CX65: 45
B66: 46 | V66: 46 | AP66: 46 | BJ66: 46 | CD66: 46 | CX66: 46
B67: 47 | V67: 47 | AP67: 47 | BJ67: 47 | CD67: 47 | CX67: 47
B68: 48 | V68: 48 | AP68: 48 | BJ68: 48 | CD68: 48 | CX68: 48
B69: 49 | V69: 49 | AP69: 49 | BJ69: 49 | CD69: 49 | CX69: 49
B70: 50 | V70: 50 | AP70: 50 | BJ70: 50 | CD70: 50 | CX70: 50
B71: 51 | V71: 51 | AP71: 51 | BJ71: 51 | CD71: 51 | CX71: 51
B72: 52 | V72: 52 | AP72: 52 | BJ72: 52 | CD72: 52 | CX72: 52
B73: 53 | V73: 53 | AP73: 53 | BJ73: 53 | CD73: 53 | CX73: 53
B74: 54 | V74: 54 | AP74: 54 | BJ74: 54 | CD74: 54 | CX74: 54
B75: 55 | V75: 55 | AP75: 55 | BJ75: 55 | CD75: 55 | CX75: 55
B76: 56 | V76: 56 | AP76: 56 | BJ76: 56 | CD76: 56 | CX76: 56
B77: 57 | V77: 57 | AP77: 57 | BJ77: 57 | CD77: 57 | CX77: 57
B78: 58 | V78: 58 | AP78: 58 | BJ78: 58 | CD78: 58 | CX78: 58
B79: 59 | V79: 59 | AP79: 59 | BJ79: 59 | CD79: 59 | CX79: 59
B80: 60 | V80: 60 | AP80: 60 | BJ80: 60 | CD80: 60 | CX80: 60
B81: 61 | V81: 61 | AP81: 61 | BJ81: 61 | CD81: 61 | CX81: 61
B82: 62 | V82: 62 | AP82: 62 | BJ82: 62 | CD82: 62 | CX82: 62
B83: 63 | V83: 63 | AP83: 63 | BJ83: 63 | CD83: 63 | CX83: 63
B84: 64 | V84: 64 | AP84: 64 | BJ84: 64 | CD84: 64 | CX84: 64
B85: 65 | V85: 65 | AP85: 65 | BJ85: 65 | CD85: 65 | CX85: 65
B86: 66 | V86: 66 | AP86: 66 | BJ86: 66 | CD86: 66 | CX86: 66
B87: 67 | V87: 67 | AP87: 67 | BJ87: 67 | CD87: 67 | CX87: 67
B88: 68 | V88: 68 | AP88: 68 | BJ88: 68 | CD88: 68 | CX88: 68
B89: 69 | V89: 69 | AP89: 69 | BJ89: 69 | CD89: 69 | CX89: 69
B90: 70 | V90: 70 | AP90: 70 | BJ90: 70 | CD90: 70 | CX90: 70
B91: 71 | V91: 71 | AP91: 71 | BJ91: 71 | CD91: 71 | CX91: 71
B92: 72 | V92: 72 | AP92: 72 | BJ92: 72 | CD92: 72 | CX92: 72
B93: 73 | V93: 73 | AP93: 73 | BJ93: 73 | CD93: 73 | CX93: 73
B94: 74 | V94: 74 | AP94: 74 | BJ94: 74 | CD94: 74 | CX94: 74
B95: 75 | V95: 75 | AP95: 75 | BJ95: 75 | CD95: 75 | CX95: 75
B96: 76 | V96: 76 | AP96: 76 | BJ96: 76 | CD96: 76 | CX96: 76
B97: 77 | V97: 77 | AP97: 77 | BJ97: 77 | CD97: 77 | CX97: 77
B98: 78 | V98: 78 | AP98: 78 | BJ98: 78 | CD98: 78 | CX98: 78
B99: 79 | V99: 79 | AP99: 79 | BJ99: 79 | CD99: 79 | CX99: 79
B100: 80 | V100: 80 | AP100: 80 | BJ100: 80 | CD100: 80 | CX100: 80
B101: 81 | V101: 81 | AP101: 81 | BJ101: 81 | CD101: 81 | CX101: 81
B102: 82 | V102: 82 | AP102: 82 | BJ102: 82 | CD102: 82 | CX102: 82
B103: 83 | V103: 83 | AP103: 83 | BJ103: 83 | CD103: 83 | CX103: 83
B104: 84 | V104: 84 | AP104: 84 | BJ104: 84 | CD104: 84 | CX104: 84
B105: 85 | V105: 85 | AP105: 85 | BJ105: 85 | CD105: 85 | CX105: 85
B106: 86 | V106: 86 | AP106: 86 | BJ106: 86 | CD106: 86 | CX106: 86
B107: 87 | V107: 87 | AP107: 87 | BJ107: 87 | CD107: 87 | CX107: 87
B108: 88 | V108: 88 | AP108: 88 | BJ108: 88 | CD108: 88 | CX108: 88
B109: 89 | V109: 89 | AP109: 89 | BJ109: 89 | CD109: 89 | CX109: 89
B110: 90 | V110: 90 | AP110: 90 | BJ110: 90 | CD110: 90 | CX110: 90
B111: 91 | V111: 91 | AP111: 91 | BJ111: 91 | CD111: 91 | CX111: 91
B112: 92 | V112: 92 | AP112: 92 | BJ112: 92 | CD112: 92 | CX112: 92
B113: 93 | V113: 93 | AP113: 93 | BJ113: 93 | CD113: 93 | CX113: 93
B114: 94 | V114: 94 | AP114: 94 | BJ114: 94 | CD114: 94 | CX114: 94
B115: 95 | V115: 95 | AP115: 95 | BJ115: 95 | CD115: 95 | CX115: 95
B116: 96 | V116: 96 | AP116: 96 | BJ116: 96 | CD116: 96 | CX116: 96
B117: 97 | V117: 97 | AP117: 97 | BJ117: 97 | CD117: 97 | CX117: 97
B118: 98 | V118: 98 | AP118: 98 | BJ118: 98 | CD118: 98 | CX118: 98
B119: 99 | V119: 99 | AP119: 99 | BJ119: 99 | CD119: 99 | CX119: 99
B120: 100 | V120: 100 | AP120: 100 | BJ120: 100 | CD120: 100 | CX120: 100
N122: Totals: | O122: =SUM(O21:O120) -> 0.02899727392 | P122: =SUM(P21:P120) -> 0.06681282903 | Q122: =SUM(Q21:Q120) -> 0.1334680025 | R122: =SUM(R21:R120) -> 0.1383819483 | S122: =SUM(S21:S120) -> 0.02556346845 | AH122: Totals: | AI122: =SUM(AI21:AI120) -> 0.04534106651 | AJ122: =SUM(AJ21:AJ120) -> 0.09410752358 | AK122: =SUM(AK21:AK120) -> 0.1815661909 | AL122: =SUM(AL21:AL120) -> 0.1856487904 | AM122: =SUM(AM21:AM120) -> 0.03131133329 | BB122: Totals: | BC122: =SUM(BC21:BC120) -> 0.09371975723 | BD122: =SUM(BD21:BD120) -> 0.1565956013 | BE122: =SUM(BE21:BE120) -> 0.3308694828 | BF122: =SUM(BF21:BF120) -> 0.3061374839 | BG122: =SUM(BG21:BG120) -> 0.03876606614 | BV122: Totals: | BW122: =SUM(BW21:BW120) -> 0.1116999692 | BX122: =SUM(BX21:BX120) -> 0.1770146479 | BY122: =SUM(BY21:BY120) -> 0.4117327081 | BZ122: =SUM(BZ21:BZ120) -> 0.3542335116 | CA122: =SUM(CA21:CA120) -> 0.03961909826 | CP122: Totals: | CQ122: =SUM(CQ21:CQ120) -> 0.1346266733 | CR122: =SUM(CR21:CR120) -> 0.2050899244 | CS122: =SUM(CS21:CS120) -> 0.6208238329 | CT122: =SUM(CT21:CT120) -> 0.4355393634 | CU122: =SUM(CU21:CU120) -> 0.03927700007 | DJ122: Totals: | DK122: =SUM(DK21:DK120) -> 0.1380935963 | DL122: =SUM(DL21:DL120) -> 0.2104582558 | DM122: =SUM(DM21:DM120) -> 0.7086087245 | DN122: =SUM(DN21:DN120) -> 0.4550096474 | DO122: =SUM(DO21:DO120) -> 0.03885974952 | ED122: Totals: | EE122: =SUM(EE21:EE120) -> 0 | EF122: =SUM(EF21:EF120) -> 0 | EG122: =SUM(EG21:EG120) -> 0 | EH122: =SUM(EH21:EH120) -> 0 | EI122: =SUM(EI21:EI120) -> 0 | EX122: Totals: | EY122: =SUM(EY21:EY120) -> 0 | EZ122: =SUM(EZ21:EZ120) -> 0 | FA122: =SUM(FA21:FA120) -> 0 | FB122: =SUM(FB21:FB120) -> 0 | FC122: =SUM(FC21:FC120) -> 0 | FR122: Totals: | FS122: =SUM(FS21:FS120) -> 0 | FT122: =SUM(FT21:FT120) -> 0 | FU122: =SUM(FU21:FU120) -> 0 | FV122: =SUM(FV21:FV120) -> 0 | FW122: =SUM(FW21:FW120) -> 0 | GL122: Totals: | GM122: =SUM(GM21:GM120) -> 0 | GN122: =SUM(GN21:GN120) -> 0 | GO122: =SUM(GO21:GO120) -> 0 | GP122: =SUM(GP21:GP120) -> 0 | GQ122: =SUM(GQ21:GQ120) -> 0

Sheet Charts
I2: Product: | J2: test | N2: Load | O2: TU
A3: This sheet contains charts generated with data from Output sheets | I3: Date: | J3: =TODAY() -> 2011-12-20 | N3: (mg/L water) | O3: Acute TUs | Q3: Species:
A4: There are two charts for each load: 1 pie (TU vs Chemical class) and 1 stacked bar (TU for each hdyrocarbon block vs chemical class) | M4: 1 | N4: 0.1 | O4: 0.9847071075 | Q4: Jordanella floridae
M5: 2 | N5: 0.5 | O5: 1.58914648
M6: 3 | N6: 1 | O6: 1.873495501
M7: 4 | N7: 5 | O7: 2.614811074
M8: 5 | N8: 10 | O8: 2.969693641
M9: 6 | N9: 50 | O9: 3.828652283
M10: 7 | N10: 100 | O10: 4.168285473
M11: 8 | N11: 500 | O11: 4.735155645
M12: 9 | N12: 1000 | O12: 4.870373246
M13: 10

Sheet CTLBB
C1: Distribution of CTLBBs
A3: ID | B3: Species | C3: Intercept | D3: Log(Standard Error) | E3: CTLBB | F3: Standard Error | G3: Reference
E4: (mmol / g octanol) | I4: Selected Acute-to-Chronic Ratio: | J4: Default | K4: User-Defined | L4: Working Value
A5: 1 | B5: USER-DEFINED | I5: ACR: | J5: 3.83 | K5: 0 | L5: =IF(N($K$5)>0,$K$5,$J$5) -> 3.83
A6: 2 | B6: Rhepoxyinus abronius | C6: 1.494 | D6: 0.158 | E6: 31.2 | F6: 12.5 | G6: McGrath and Di Toro 2009
A7: 3 | B7: Hyalella azteca | C7: 1.512 | D7: NA | E7: 32.5 | F7: NA | G7: McGrath and Di Toro 2009 | I7: NOTE:
A8: 4 | B8: Mysidopsis bahia | C8: 1.535 | D8: 0.087 | E8: 34.3 | F8: 7.1 | G8: McGrath and Di Toro 2009 | I8: If values are left blank the model will assume default conditions
A9: 5 | B9: Chlamydomonas reinhardtii | C9: 1.536 | D9: 0.141 | E9: 34.4 | F9: 12.1 | G9: McGrath and Di Toro 2009
A10: 6 | B10: Chironomus tentans | C10: 1.599 | D10: NA | E10: 39.7 | F10: NA | G10: McGrath and Di Toro 2009
A11: 7 | B11: Eohaustorius estuarius | C11: 1.617 | D11: NA | E11: 41.4 | F11: NA | G11: McGrath and Di Toro 2009
A12: 8 | B12: Leptocheirus plumulosus | C12: 1.634 | D12: 0.203 | E12: 43.1 | F12: 23.8 | G12: McGrath and Di Toro 2009
A13: 9 | B13: Pseudokirchneriella subcapitata | C13: 1.687 | D13: 0.091 | E13: 48.6 | F13: 10.5 | G13: McGrath and Di Toro 2009
A14: 10 | B14: Portunus pelagicus | C14: 1.727 | D14: 0.203 | E14: 53.3 | F14: 29.4 | G14: McGrath and Di Toro 2009
A15: 11 | B15: Ampelisca abdita | C15: 1.731 | D15: NA | E15: 53.8 | F15: NA | G15: McGrath and Di Toro 2009
A16: 12 | B16: Palaemonetes pugio | C16: 1.758 | D16: 0.127 | E16: 57.3 | F16: 17.9 | G16: McGrath and Di Toro 2009 | H16: PNEC calculation based with HC5 formulation
A17: 13 | B17: Oncorhynchus mykiss | C17: 1.82 | D17: 0.067 | E17: 66.1 | F17: 10.4 | G17: McGrath and Di Toro 2009
A18: 14 | B18: Jordanella floridae | C18: 1.827 | D18: 0.101 | E18: 67.1 | F18: 16.3 | G18: McGrath and Di Toro 2009 | H18: LogHC5 = UNS * LogKmw + (geomean of CTLBB + Chemical Class Correction) - Log(geomeanACR) - kz * (Variane of UNS * LogKmw^2 + Variance of CTLBBs + Variance of ACR )^0.5
A19: 15 | B19: Ictalurus punctatus | C19: 1.864 | D19: 0.149 | E19: 73.1 | F19: 27.4 | G19: McGrath and Di Toro 2009
A20: 16 | B20: Daphnia pulex | C20: 1.957 | D20: 0.089 | E20: 90.6 | F20: 19.2 | G20: McGrath and Di Toro 2009 | I20: Universal Narcosis Slope | J20: -0.936
A21: 17 | B21: Cyprinodon variagatus | C21: 2.055 | D21: 0.094 | E21: 114 | F21: 25.5 | G21: McGrath and Di Toro 2009 | I21: Geomean of CTLBB | J21: 119 | K21: (mmol / g octanol)
A22: 18 | B22: Daphnia magna | C22: 2.062 | D22: 0.05 | E22: 115 | F22: 13.4 | G22: McGrath and Di Toro 2009 | I22: ACR | J22: 3.83
A23: 19 | B23: Pimephales promelas | C23: 2.087 | D23: 0.044 | E23: 122 | F23: 12.5 | G23: McGrath and Di Toro 2009 | I23: kz | J23: 2.3
A24: 20 | B24: Danio rerio | C24: 2.099 | D24: 0.101 | E24: 126 | F24: 30.5 | G24: McGrath and Di Toro 2009 | I24: Variance of UNS | J24: 0.000225
A25: 21 | B25: Rana catesbian | C25: 2.101 | D25: 0.174 | E25: 126 | F25: 57.1 | G25: McGrath and Di Toro 2009 | I25: Variance of logCTLBB | J25: 0.105
A26: 22 | B26: Oryzias latipes | C26: 2.104 | D26: 0.174 | E26: 127 | F26: 57.5 | G26: McGrath and Di Toro 2009 | I26: Variance of logACR | J26: 0.112
A27: 23 | B27: Lepomis machrochirus | C27: 2.117 | D27: 0.059 | E27: 131 | F27: 18.1 | G27: McGrath and Di Toro 2009
A28: 24 | B28: Orconectes immunis | C28: 2.137 | D28: 0.16 | E28: 137 | F28: 56 | G28: McGrath and Di Toro 2009 | J28: **These parameters cannot be modified at this time
A29: 25 | B29: Oithona davisae | C29: 2.151 | D29: 0.142 | E29: 142 | F29: 50.2 | G29: McGrath and Di Toro 2009 | J29: McGrath and Di Toro. 2009. VALIDATION OF THE TARGET LIPID MODEL FOR TOXICITY ASSESSMENT OF RESIDUAL PETROLEUM CONSTITUENTS: MONOCYCLIC AND POLYCYCLIC AROMATIC HYDROCARBONS. ETC.
A30: 26 | B30: Carassius auratus | C30: 2.18 | D30: 0.067 | E30: 151 | F30: 23.8 | G30: McGrath and Di Toro 2009
A31: 27 | B31: Leucisus idus | C31: 2.183 | D31: 0.078 | E31: 152 | F31: 28.1 | G31: McGrath and Di Toro 2009
A32: 28 | B32: Xenopus leavis | C32: 2.214 | D32: 0.16 | E32: 164 | F32: 66.9 | G32: McGrath and Di Toro 2009 | I32: Chemical Class corrections (additive)
A33: 29 | B33: Alburnus alburnus | C33: 2.234 | D33: 0.147 | E33: 171 | F33: 63.3 | G33: McGrath and Di Toro 2009 | I33: ketone correction | J33: 0 | K33: None in database
A34: 30 | B34: Nitocra spinipes | C34: 2.256 | D34: 0.158 | E34: 180 | F34: 72.6 | G34: McGrath and Di Toro 2009 | I34: halogenated chemical correction | J34: -0.339 | K34: None in database
A35: 31 | B35: Neanthes arenaceode | C35: 2.26 | D35: 0.202 | E35: 182 | F35: 99.8 | G35: McGrath and Di Toro 2009 | I35: PAHs correction | J35: -0.352 | K35: Applied to PolyAr, DiAr, NDiAr structures
A36: 32 | B36: Tanytarsus dissimilis | C36: 2.264 | D36: 0.132 | E36: 184 | F36: 59.9 | G36: McGrath and Di Toro 2009 | I36: Monoaromatic hydrocarbon correction | J36: -0.109 | K36: Applied to MoAr, NMoAr and ArS structures
A37: 33 | B37: Artemia salina | C37: 2.288 | D37: 0.079 | E37: 194 | F37: 36.2 | G37: McGrath and Di Toro 2009 | I37: Aliphatic correction | J37: 0 | K37: Applied to n-P, I-P, n-CC6, n-CC5, I-N, Di-N, PolyN, AlS structures
A38: 34 | B38: Lymnaea stagnalis | C38: 2.288 | D38: 0.174 | E38: 194 | F38: 87.9 | G38: McGrath and Di Toro 2009
A39: 35 | B39: Gambusia affinis | C39: 2.31 | D39: 0.147 | E39: 204 | F39: 75.4 | G39: McGrath and Di Toro 2009
A40: 36 | B40: Hydra oligactis | C40: 2.329 | D40: 0.174 | E40: 213 | F40: 96.6 | G40: McGrath and Di Toro 2009
A41: 37 | B41: Culex pipiens | C41: 2.333 | D41: 0.174 | E41: 215 | F41: 97.5 | G41: McGrath and Di Toro 2009 | I41: Set log(Kmw) cutoff and slope | J41: Default | K41: User-Defined | L41: Working Value
A42: 38 | B42: Scenedesmus subspicatus | C42: 2.345 | D42: 0.086 | E42: 221 | F42: 45.2 | G42: McGrath and Di Toro 2009 | I42: slope: | J42: 0 | K42: 0 | L42: =IF(N($K$42)>0,$K$42,$J$42) -> 0
A43: 39 | B43: Ambystoma mexicanum | C43: 2.388 | D43: 0.174 | E43: 244 | F43: 111 | G43: McGrath and Di Toro 2009 | I43: cutoff: | J43: 6 | K43: 0 | L43: =IF(N($K$43)>0,$K$43,$J$43) -> 6
A44: 40 | B44: Daphnia cucullata | C44: 2.394 | D44: 0.174 | E44: 248 | F44: 112 | G44: McGrath and Di Toro 2009
A45: 41 | B45: Microtox | C45: 2.401 | D45: 0.074 | E45: 251.7676928 | F45: 43.89611204 | G45: Redman et al 2007 | I45: NOTE:
A46: 42 | B46: Poecilia reticulata | C46: 2.402 | D46: 0.108 | E46: 252 | F46: 65.8 | G46: McGrath and Di Toro 2009 | I46: *cutoff is the log(Kow) value where log(Kmw) deviates from log-linear partitioning (Default if 5.5)
A47: 43 | B47: T.pyriformis | C47: 2.404 | D47: 0.028 | E47: 253.512863 | F47: 16.4149557 | G47: Redman et al 2007 | I47: If values are left blank the model will assume default conditions
A48: 44 | B48: Aedes aegypti | C48: 2.415 | D48: 0.174 | E48: 260 | F48: 118 | G48: McGrath and Di Toro 2009
A49: 45 | B49: Tetrahymena elliotti | C49: 2.435 | D49: 0.129 | E49: 272 | F49: 86.5 | G49: McGrath and Di Toro 2009
A50: 46 | B50: Menidia beryllina | C50: 2.465 | D50: 0.143 | E50: 292 | F50: 104 | G50: McGrath and Di Toro 2009
A51: 47 | B51: Chlamydomonas angulosa | C51: 2.524 | D51: 0.083 | E51: 334 | F51: 65.7 | G51: McGrath and Di Toro 2009
A52: 48 | B52: SHK1 | C52: 2.63 | D52: 0.083 | E52: 426.5795188 | F52: 83.89946337 | G52: Redman et al 2007
A53: 49 | B53: Chlorella vulgaris | C53: 2.65 | D53: 0.078 | E53: 447 | F53: 82.3 | G53: McGrath and Di Toro 2009
A54: 50 | B54: Ankistrodesmus falcatus | C54: 2.699 | D54: 0.139 | E54: 500 | F54: 173 | G54: McGrath and Di Toro 2009
A55: 51 | B55: Ploytox | C55: 2.708 | D55: 0.063 | E55: 510.505 | F55: 75.33263297 | G55: Redman et al 2007
A56: 52 | B56: Spirotox | C56: 2.717 | D56: 0.105 | E56: 521.1947111 | F56: 131.8408872 | G56: Redman et al 2007
A57: 53 | B57: R.sphaeroides membranes | C57: 2.729 | D57: 0.128 | E57: 535.7966575 | F57: 168.7984024 | G57: Redman et al 2007
A58: 54 | B58: Activated Sludge | C58: 2.86 | D58: 0.051 | E58: 724.4359601 | F58: 86.07451243 | G58: Redman et al 2007
A59: 55 | B59: Nitrobacter | C59: 2.993 | D59: 0.081 | E59: 984.0111058 | F59: 188.6530176 | G59: Redman et al 2007
A60: 56 | B60: P.putida | C60: 3.352 | D60: 0.097 | E60: 2249.054606 | F60: 522.3322376 | G60: Redman et al 2007

Sheet Concawe Library
A1: WORKSHEET PROTECTED: CONCAWE | E1: PHYS-CHEM properties for these representative structures are from SPARC v4.2 (May 2008) | Y1: Indicates HC5 > SubCooled Solubility
A2: =COUNT(A4:A2008) -> 1512 | B2: CAS | C2: Name | D2: Smiles | E2: Carbon # | F2: Class | G2: SubClass | H2: General Class | I2: Mol Wt | J2: Boil Pt (C) | K2: Wat Sol (mg/L) | L2: Log Kaw | M2: HenryLC | N2: LogKow | O2: LogKmw | P2: Class Correction | T2: Sub Cooled solubility | U2: subcooled Solubility | V2: Molecular Volume | W2: Molar density | Y2: Chronic PNEC
A3: ID | C3: Name | D3: SMILES | G3: See key 'CTLBB' | H3: Al = 1, Ar = 2, S- and Olefins = 3 | I3: g/mol | J3: C | K3: mg/L | L3: air/water | M3: Atm-m3/mol | N3: octanol/water | T3: (M) | U3: Log(M) | V3: cm3/mol | W3: mol/L | Y3: ug/L
A4: 1 | B4: 71-43-2 | C4: Benzene | D4: c1ccccc1 | E4: 6 | F4: Mono-Aromatic | G4: 11 | H4: 2 | I4: 78.1134 | J4: 79.04618919 | K4: =T4*1000*I4 -> 1586.278197 | L4: =IF(M4=0,AB3,LOG(40.88*M4)) -> -0.5640646364 | M4: 0.006674588202 | N4: 2.002567392 | O4: =IF(N4<CTLBB!$L$43,N4,(CTLBB!$L$43-CTLBB!$L$43*CTLBB!$L$42)+CTLBB!$L$42*N4) -> 2.002567392 | P4: -0.109 | T4: =10^U4 -> 0.02030737616 | U4: -1.692346187 | V4: 89.4 | W4: =IF(V4=0,AG4,1/V4*1000) -> 11.18568233 | Y4: =10^(CTLBB!$J$20*$O4+LOG(CTLBB!$J$21)-LOG(CTLBB!$J$22)+$P4-CTLBB!$J$23*(CTLBB!$J$24*$O4^2+CTLBB!$J$25+CTLBB!$J$26)^0.5)*I4*1000 -> 2128.288371
A5: 2 | B5: 108-88-3 | C5: Toluene | D5: c1ccccc1C | E5: 7 | F5: Mono-Aromatic | G5: 11 | H5: 2 | I5: 92.1402 | J5: 116.8030403 | K5: 509.0040657 | L5: =IF(M5=0,AB5,LOG(40.88*M5)) -> -0.4926881521 | M5: 0.007866851655 | N5: 2.54801255 | O5: =IF(N5<CTLBB!$L$43,N5,(CTLBB!$L$43-CTLBB!$L$43*CTLBB!$L$42)+CTLBB!$L$42*N5) -> 2.54801255 | P5: -0.109 | T5: 0.005524234435 | U5: -2.257727899 | V5: 106.9953579 | W5: 9.346199865 | Y5: =10^(CTLBB!$J$20*$O5+LOG(CTLBB!$J$21)-LOG(CTLBB!$J$22)+$P5-CTLBB!$J$23*(CTLBB!$J$24*$O5^2+CTLBB!$J$25+CTLBB!$J$26)^0.5)*I5*1000 -> 772.4003401
A6: 3 | B6: #38 | C6: Dihydro-benzo(b)thiophene | D6: c1ccc2CCSc2c1 | E6: 8 | F6: S-containing Aromatics | G6: 16 | H6: 3 | I6: 136.2172 | J6: 261.4451112 | K6: 127.560495 | L6: -3.102281503 | M6: 1.932892094e-05 | N6: 2.774827988 | O6: =IF(N6<CTLBB!$L$43,N6,(CTLBB!$L$43-CTLBB!$L$43*CTLBB!$L$42)+CTLBB!$L$42*N6) -> 2.774827988 | P6: 0 | T6: 0.0009364492514 | U6: -3.028515753 | V6: 119.9792881 | W6: 8.334771907 | Y6: =10^(CTLBB!$J$20*$O6+LOG(CTLBB!$J$21)-LOG(CTLBB!$J$22)+$P6-CTLBB!$J$23*(CTLBB!$J$24*$O6^2+CTLBB!$J$25+CTLBB!$J$26)^0.5)*I6*1000 -> 898.7892159
A7: 4 | B7: 95-47-6 | C7: 1,2-Dimethylbenzene | D7: Cc1c(C)cccc1 | E7: 8 | F7: Mono-Aromatic | G7: 11 | H7: 2 | I7: 106.167 | J7: 142.3584616 | K7: 218.2754802 | L7: -0.6246395512 | M7: 0.005805632773 | N7: 2.944915523 | O7: =IF(N7<CTLBB!$L$43,N7,(CTLBB!$L$43-CTLBB!$L$43*CTLBB!$L$42)+CTLBB!$L$42*N7) -> 2.944915523 | P7: -0.109 | T7: 0.002055963531 | U7: -2.686984593 | V7: 121.3040988 | W7: 8.243744523 | Y7: =10^(CTLBB!$J$20*$O7+LOG(CTLBB!$J$21)-LOG(CTLBB!$J$22)+$P7-CTLBB!$J$23*(CTLBB!$J$24*$O7^2+CTLBB!$J$25+CTLBB!$J$26)^0.5)*I7*1000 -> 377.2901052
A8: 5 | B8: 95-15-8 | C8: Benzo(b)thiophene | D8: c1ccc2ccsc2c1 | E8: 8 | F8: S-containing Aromatics | G8: 16 | H8: 3 | I8: 134.2014 | J8: 224.358033 | K8: 107.6086202 | L8: -2.203193052 | M8: 0.0001532131569 | N8: 3.002271033 | O8: =IF(N8<CTLBB!$L$43,N8,(CTLBB!$L$43-CTLBB!$L$43*CTLBB!$L$42)+CTLBB!$L$42*N8) -> 3.002271033 | P8: 0 | T8: 0.0008018442443 | U8: -3.095909984 | V8: 118.5773129 | W8: 8.433316422 | Y8: =10^(CTLBB!$J$20*$O8+LOG(CTLBB!$J$21)-LOG(CTLBB!$J$22)+$P8-CTLBB!$J$23*(CTLBB!$J$24*$O8^2+CTLBB!$J$25+CTLBB!$J$26)^0.5)*I8*1000 -> 541.4639581
A9: 6 | B9: 100-41-4 | C9: Ethylbenzene | D9: c1ccccc1CC | E9: 8 | F9: Mono-Aromatic | G9: 11 | H9: 2 | I9: 106.167 | J9: 142.0900274 | K9: 179.8957785 | L9: -0.4203191536 | M9: 0.009293300049 | N9: 3.018065037 | O9: =IF(N9<CTLBB!$L$43,N9,(CTLBB!$L$43-CTLBB!$L$43*CTLBB!$L$42)+CTLBB!$L$42*N9) -> 3.018065037 | P9: -0.109 | T9: 0.001694460412 | U9: -2.770968573 | V9: 123.6978483 | W9: 8.084214994 | Y9: =10^(CTLBB!$J$20*$O9+LOG(CTLBB!$J$21)-LOG(CTLBB!$J$22)+$P9-CTLBB!$J$23*(CTLBB!$J$24*$O9^2+CTLBB!$J$25+CTLBB!$J$26)^0.5)*I9*1000 -> 322.081882
A10: 7 | B10: 106-42-3 | C10: 1,4-Dimethylbenzene | D10: Cc1ccc(C)cc1 | E10: 8 | F10: Mono-Aromatic | G10: 11 | H10: 2 | I10: 106.167 | J10: 144.1825652 | K10: 180.0676107 | L10: -0.5691250335 | M10: 0.006597267281 | N10: 3.023713388 | O10: =IF(N10<CTLBB!$L$43,N10,(CTLBB!$L$43-CTLBB!$L$43*CTLBB!$L$42)+CTLBB!$L$42*N10) -> 3.023713388 | P10: -0.109 | T10: 0.00169607892 | U10: -2.770553944 | V10: 122.8758217 | W10: 8.138297559 | Y10: =10^(CTLBB!$J$20*$O10+LOG(CTLBB!$J$21)-LOG(CTLBB!$J$22)+$P10-CTLBB!$J$23*(CTLBB!$J$24*$O10^2+CTLBB!$J$25+CTLBB!$J$26)^0.5)*I10*1000 -> 318.1709851
A11: 8 | B11: #36 | C11: Octahydro-benzo(b)thiophene | D11: C12SCCC1CCCC2 | E11: 8 | F11: S-containing Aliphatics | G11: 10 | H11: 3 | I11: 142.2646 | J11: 206.3084362 | K11: 566.326377 | L11: -2.765925475 | M11: 4.193374388e-05 | N11: 2.586875054 | O11: =IF(N11<CTLBB!$L$43,N11,(CTLBB!$L$43-CTLBB!$L$43*CTLBB!$L$42)+CTLBB!$L$42*N11) -> 2.586875054 | P11: 0 | T11: 0.003980796186 | U11: -2.400030057 | V11: 140.3426868 | W11: 7.125415815 | Y11: =10^(CTLBB!$J$20*$O11+LOG(CTLBB!$J$21)-LOG(CTLBB!$J$22)+$P11-CTLBB!$J$23*(CTLBB!$J$24*$O11^2+CTLBB!$J$25+CTLBB!$J$26)^0.5)*I11*1000 -> 1409.303018
A12: 9 | B12: 496-11-7 | C12: Indan (dihydroindene) | D12: c1ccc2CCCc2c1 | E12: 9 | F12: Naphthenic Mono-Aromatics | G12: 12 | H12: 2 | I12: 118.178 | J12: 195.5219432 | K12: 141.8426243 | L12: -1.436137542 | M12: 0.0008960898769 | N12: 3.007157795 | O12: =IF(N12<CTLBB!$L$43,N12,(CTLBB!$L$43-CTLBB!$L$43*CTLBB!$L$42)+CTLBB!$L$42*N12) -> 3.007157795 | P12: -0.109 | T12: 0.001200245598 | U12: -2.920729878 | V12: 122.9730556 | W12: 8.131862668 | Y12: =10^(CTLBB!$J$20*$O12+LOG(CTLBB!$J$21)-LOG(CTLBB!$J$22)+$P12-CTLBB!$J$23*(CTLBB!$J$24*$O12^2+CTLBB!$J$25+CTLBB!$J$26)^0.5)*I12*1000 -> 367.0784566
A13: 10 | B13: 108-38-3 | C13: 1,3-Dimethylbenzene | D13: Cc1cc(C)ccc1 | E13: 8 | F13: Mono-Aromatic | G13: 11 | H13: 2 | I13: 106.167 | J13: 139.7885783 | K13: 173.3533706 | L13: -0.4725558551 | M13: 0.008240114715 | N13: 3.044966246 | O13: =IF(N13<CTLBB!$L$43,N13,(CTLBB!$L$43-CTLBB!$L$43*CTLBB!$L$42)+CTLBB!$L$42*N13) -> 3.044966246 | P13: -0.109 | T13: 0.001632836669 | U13: -2.787057255 | V13: 123.5 | W13: 8.097165992 | Y13: =10^(CTLBB!$J$20*$O13+LOG(CTLBB!$J$21)-LOG(CTLBB!$J$22)+$P13-CTLBB!$J$23*(CTLBB!$J$24*$O13^2+CTLBB!$J$25+CTLBB!$J$26)^0.5)*I13*1000 -> 303.8761358
A14: 11 | B14: 91-20-3 | C14: Naphthalene | D14: c1ccc2ccccc2c1 | E14: 10 | F14: Di-Aromatics | G14: 13 | H14: 2 | I14: 128.1732 | J14: 208.8999293 | K14: 93.25096589 | L14: -1.700746109 | M14: 0.0004872400783 | N14: 3.347641711 | O14: =IF(N14<CTLBB!$L$43,N14,(CTLBB!$L$43-CTLBB!$L$43*CTLBB!$L$42)+CTLBB!$L$42*N14) -> 3.347641711 | P14: -0.352 | T14: 0.0007275387202 | U14: -3.138143888 | V14: 124.6243562 | W14: 8.024113666 | Y14: =10^(CTLBB!$J$20*$O14+LOG(CTLBB!$J$21)-LOG(CTLBB!$J$22)+$P14-CTLBB!$J$23*(CTLBB!$J$24*$O14^2+CTLBB!$J$25+CTLBB!$J$26)^0.5)*I14*1000 -> 108.9258497
A15: 12 | B15: #61 | C15: Perhydro-5,10-dithia-indeno[12a]indene | D15: C1CCC2C3SC4CCCCC4C3SC2C1 | E15: 14 | F15: S-containing Aliphatics | G15: 10 | H15: 3 | I15: 254.4598 | J15: 362.6737737 | K15: 2.900291194 | L15: -5.390774291 | M15: 9.947520026e-08 | N15: 4.345222201 | O15: =IF(N15<CTLBB!$L$43,N15,(CTLBB!$L$43-CTLBB!$L$43*CTLBB!$L$42)+CTLBB!$L$42*N15) -> 4.345222201 | P15: 0 | T15: 1.139783649e-05 | U15: -4.943177577 | V15: 222.1131305 | W15: 4.502210192 | Y15: =10^(CTLBB!$J$20*$O15+LOG(CTLBB!$J$21)-LOG(CTLBB!$J$22)+$P15-CTLBB!$J$23*(CTLBB!$J$24*$O15^2+CTLBB!$J$25+CTLBB!$J$26)^0.5)*I15*1000 -> 56.10320977
A16: 13 | B16: 119-64-2 | C16: Tetralin (tetrahydronaphthalene) | D16: c1ccc2CCCCc2c1 | E16: 10 | F16: Naphthenic Mono-Aromatics | G16: 12 | H16: 2 | I16: 132.2048 | J16: 219.4240811 | K16: 40.0754286 | L16: -1.340354681 | M16: 0.001117209015 | N16: 3.5413695 | O16: =IF(N16<CTLBB!$L$43,N16,(CTLBB!$L$43-CTLBB!$L$43*CTLBB!$L$42)+CTLBB!$L$42*N16) -> 3.5413695 | P16: -0.109 | T16: 0.0003031314188 | U16: -3.518369048 | V16: 137.7520932 | W16: 7.259417821 | Y16: =10^(CTLBB!$J$20*$O16+LOG(CTLBB!$J$21)-LOG(CTLBB!$J$22)+$P16-CTLBB!$J$23*(CTLBB!$J$24*$O16^2+CTLBB!$J$25+CTLBB!$J$26)^0.5)*I16*1000 -> 129.2751216
A17: 14 | B17: 611-14-3 | C17: 1-Methyl-2-ethylbenzene | D17: Cc1c(CC)cccc1 | E17: 9 | F17: Mono-Aromatic | G17: 11 | H17: 2 | I17: 120.1938 | J17: 167.5278356 | K17: 84.56943219 | L17: -0.5572192719 | M17: 0.006780626787 | N17: 3.369578203 | O17: =IF(N17<CTLBB!$L$43,N17,(CTLBB!$L$43-CTLBB!$L$43*CTLBB!$L$42)+CTLBB!$L$42*N17) -> 3.369578203 | P17: -0.109 | T17: 0.0007036089398 | U17: -3.152668651 | V17: 137.6840432 | W17: 7.263005767 | Y17: =10^(CTLBB!$J$20*$O17+LOG(CTLBB!$J$21)-LOG(CTLBB!$J$22)+$P17-CTLBB!$J$23*(CTLBB!$J$24*$O17^2+CTLBB!$J$25+CTLBB!$J$26)^0.5)*I17*1000 -> 170.451907
A18: 15 | C18: Methyl benzo(b)thiophene | D18: c1c(C)cc2ccsc2c1 | E18: 9 | F18: S-containing Aromatics | G18: 16 | H18: 3 | I18: 148.2282 | J18: 245.3834525 | K18: 36.03181727 | L18: -2.342841355 | M18: 0.0001110830403 | N18: 3.52338579 | O18: =IF(N18<CTLBB!$L$43,N18,(CTLBB!$L$43-CTLBB!$L$43*CTLBB!$L$42)+CTLBB!$L$42*N18) -> 3.52338579 | P18: 0 | T18: 0.0002430834165 | U18: -3.614244668 | V18: 134.6810149 | W18: 7.424951474 | Y18: =10^(CTLBB!$J$20*$O18+LOG(CTLBB!$J$21)-LOG(CTLBB!$J$22)+$P18-CTLBB!$J$23*(CTLBB!$J$24*$O18^2+CTLBB!$J$25+CTLBB!$J$26)^0.5)*I18*1000 -> 193.6874305
A19: 16 | C19: Methyl octahydro-benzo(b)thiophene | D19: C12SCCC1CC(C)CC2 | E19: 9 | F19: S-containing Aliphatics | G19: 10 | H19: 3 | I19: 156.2914 | J19: 206.3968402 | K19: 287.11943 | L19: -2.632276594 | M19: 5.704433457e-05 | N19: 2.951919361 | O19: =IF(N19<CTLBB!$L$43,N19,(CTLBB!$L$43-CTLBB!$L$43*CTLBB!$L$42)+CTLBB!$L$42*N19) -> 2.951919361 | P19: 0 | T19: 0.0018370776 | U19: -2.735872498 | V19: 158.6300657 | W19: 6.3039752 | Y19: =10^(CTLBB!$J$20*$O19+LOG(CTLBB!$J$21)-LOG(CTLBB!$J$22)+$P19-CTLBB!$J$23*(CTLBB!$J$24*$O19^2+CTLBB!$J$25+CTLBB!$J$26)^0.5)*I19*1000 -> 703.1411595
A20: 17 | C20: Methyl dihydro-benzo(b)thiophene | D20: c1c(C)cc2CCSc2c1 | E20: 9 | F20: S-containing Aromatics | G20: 16 | H20: 3 | I20: 150.244 | J20: 281.896471 | K20: 44.78505476 | L20: -3.244174396 | M20: 1.394166738e-05 | N20: 3.300375978 | O20: =IF(N20<CTLBB!$L$43,N20,(CTLBB!$L$43-CTLBB!$L$43*CTLBB!$L$42)+CTLBB!$L$42*N20) -> 3.300375978 | P20: 0 | T20: 0.0002980821514 | U20: -3.525664028 | V20: 136.1756178 | W20: 7.343458515 | Y20: =10^(CTLBB!$J$20*$O20+LOG(CTLBB!$J$21)-LOG(CTLBB!$J$22)+$P20-CTLBB!$J$23*(CTLBB!$J$24*$O20^2+CTLBB!$J$25+CTLBB!$J$26)^0.5)*I20*1000 -> 318.0864278
A21: 18 | B21: 95-63-6 | C21: 1,2,4-Trimethylbenzene | D21: Cc1c(C)cc(C)cc1 | E21: 9 | F21: Mono-Aromatic | G21: 11 | H21: 2 | I21: 120.1938 | J21: 168.7024026 | K21: 76.08812031 | L21: -0.6835974079 | M21: 0.005068643015 | N21: 3.420166286 | O21: =IF(N21<CTLBB!$L$43,N21,(CTLBB!$L$43-CTLBB!$L$43*CTLBB!$L$42)+CTLBB!$L$42*N21) -> 3.420166286 | P21: -0.109 | T21: 0.0006330453011 | U21: -3.198565211 | V21: 137.2333061 | W21: 7.286860809 | Y21: =10^(CTLBB!$J$20*$O21+LOG(CTLBB!$J$21)-LOG(CTLBB!$J$22)+$P21-CTLBB!$J$23*(CTLBB!$J$24*$O21^2+CTLBB!$J$25+CTLBB!$J$26)^0.5)*I21*1000 -> 152.7783308
A22: 19 | B22: 95-63-6 | C22: 1,2,5-Trimethylbenzene | D22: Cc1c(C)ccc(C)c1 | E22: 9 | F22: Mono-Aromatic | G22: 11 | H22: 2 | I22: 120.1938 | J22: 168.7024026 | K22: 76.08812031 | L22: -0.6835974079 | M22: 0.005068643015 | N22: 3.420166286 | O22: =IF(N22<CTLBB!$L$43,N22,(CTLBB!$L$43-CTLBB!$L$43*CTLBB!$L$42)+CTLBB!$L$42*N22) -> 3.420166286 | P22: -0.109 | T22: 0.0006330453011 | U22: -3.198565211 | V22: 137.2333061 | W22: 7.286860809 | Y22: =10^(CTLBB!$J$20*$O22+LOG(CTLBB!$J$21)-LOG(CTLBB!$J$22)+$P22-CTLBB!$J$23*(CTLBB!$J$24*$O22^2+CTLBB!$J$25+CTLBB!$J$26)^0.5)*I22*1000 -> 152.7783308
A23: 20 | B23: 622-96-8 | C23: 1-Methyl-4-ethylbenzene | D23: Cc1ccc(CC)cc1 | E23: 9 | F23: Mono-Aromatic | G23: 11 | H23: 2 | I23: 120.1938 | J23: 171.6069255 | K23: 65.40350602 | L23: -0.5160346175 | M23: 0.007455117545 | N23: 3.467065494 | O23: =IF(N23<CTLBB!$L$43,N23,(CTLBB!$L$43-CTLBB!$L$43*CTLBB!$L$42)+CTLBB!$L$42*N23) -> 3.467065494 | P23: -0.109 | T23: 0.0005441504139 | U23: -3.264281036 | V23: 139.5997363 | W23: 7.163337313 | Y23: =10^(CTLBB!$J$20*$O23+LOG(CTLBB!$J$21)-LOG(CTLBB!$J$22)+$P23-CTLBB!$J$23*(CTLBB!$J$24*$O23^2+CTLBB!$J$25+CTLBB!$J$26)^0.5)*I23*1000 -> 138.0339066
A24: 21 | B24: 98-82-8 | C24: iso-Propylbenzene | D24: c1ccccc1C(C)C | E24: 9 | F24: Mono-Aromatic | G24: 11 | H24: 2 | I24: 120.1938 | J24: 149.332493 | K24: 62.57197032 | L24: -0.1727016831 | M24: 0.01643567064 | N24: 3.481542442 | O24: =IF(N24<CTLBB!$L$43,N24,(CTLBB!$L$43-CTLBB!$L$43*CTLBB!$L$42)+CTLBB!$L$42*N24) -> 3.481542442 | P24: -0.109 | T24: 0.0005205923294 | U24: -3.283502235 | V24: 141.2013763 | W24: 7.082083946 | Y24: =10^(CTLBB!$J$20*$O24+LOG(CTLBB!$J$21)-LOG(CTLBB!$J$22)+$P24-CTLBB!$J$23*(CTLBB!$J$24*$O24^2+CTLBB!$J$25+CTLBB!$J$26)^0.5)*I24*1000 -> 133.776499
A25: 22 | B25: 526-73-8 | C25: 1,2,3-Trimethylbenzene | D25: Cc1c(C)c(C)ccc1 | E25: 9 | F25: Mono-Aromatic | G25: 11 | H25: 2 | I25: 120.1938 | J25: 171.0884527 | K25: 82.26821046 | L25: -0.7633269944 | M25: 0.004218539486 | N25: 3.38549542 | O25: =IF(N25<CTLBB!$L$43,N25,(CTLBB!$L$43-CTLBB!$L$43*CTLBB!$L$42)+CTLBB!$L$42*N25) -> 3.38549542 | P25: -0.109 | T25: 0.0006844630128 | U25: -3.164650015 | V25: 136.1599701 | W25: 7.344302433 | Y25: =10^(CTLBB!$J$20*$O25+LOG(CTLBB!$J$21)-LOG(CTLBB!$J$22)+$P25-CTLBB!$J$23*(CTLBB!$J$24*$O25^2+CTLBB!$J$25+CTLBB!$J$26)^0.5)*I25*1000 -> 164.6811821
A26: 23 | B26: 103-65-1 | C26: n-Propylbenzene | D26: c1ccccc1CCC | E26: 9 | F26: Mono-Aromatic | G26: 11 | H26: 2 | I26: 120.1938 | J26: 168.503207 | K26: 44.27025775 | L26: -0.2607229126 | M26: 0.01342042287 | N26: 3.593576832 | O26: =IF(N26<CTLBB!$L$43,N26,(CTLBB!$L$43-CTLBB!$L$43*CTLBB!$L$42)+CTLBB!$L$42*N26) -> 3.593576832 | P26: -0.109 | T26: 0.0003683239714 | U26: -3.433770015 | V26: 140.0962341 | W26: 7.137950615 | Y26: =10^(CTLBB!$J$20*$O26+LOG(CTLBB!$J$21)-LOG(CTLBB!$J$22)+$P26-CTLBB!$J$23*(CTLBB!$J$24*$O26^2+CTLBB!$J$25+CTLBB!$J$26)^0.5)*I26*1000 -> 104.9731381
A27: 24 | B27: 135-01-3 | C27: 1,2-Diethylbenzene | D27: CCc1c(CC)cccc1 | E27: 10 | F27: Mono-Aromatic | G27: 11 | H27: 2 | I27: 134.2206 | J27: 187.9082973 | K27: 23.07433436 | L27: -0.3450144832 | M27: 0.011052859 | N27: 3.905869048 | O27: =IF(N27<CTLBB!$L$43,N27,(CTLBB!$L$43-CTLBB!$L$43*CTLBB!$L$42)+CTLBB!$L$42*N27) -> 3.905869048 | P27: -0.109 | T27: 0.0001719135092 | U27: -3.764689994 | V27: 153.864984 | W27: 6.499204522 | Y27: =10^(CTLBB!$J$20*$O27+LOG(CTLBB!$J$21)-LOG(CTLBB!$J$22)+$P27-CTLBB!$J$23*(CTLBB!$J$24*$O27^2+CTLBB!$J$25+CTLBB!$J$26)^0.5)*I27*1000 -> 59.62361193
A28: 25 | B28: #46 | C28: Perhydro-dibenzothiophene | D28: C1CCC2SC3CCCCC3C2C1 | E28: 12 | F28: S-containing Aliphatics | G28: 10 | H28: 3 | I28: 196.356 | J28: 285.4790031 | K28: 13.97359008 | L28: -3.304971771 | M28: 1.212041086e-05 | N28: 4.005891196 | O28: =IF(N28<CTLBB!$L$43,N28,(CTLBB!$L$43-CTLBB!$L$43*CTLBB!$L$42)+CTLBB!$L$42*N28) -> 4.005891196 | P28: 0 | T28: 7.116456883e-05 | U28: -4.147736178 | V28: 190.2641498 | W28: 5.255850884 | Y28: =10^(CTLBB!$J$20*$O28+LOG(CTLBB!$J$21)-LOG(CTLBB!$J$22)+$P28-CTLBB!$J$23*(CTLBB!$J$24*$O28^2+CTLBB!$J$25+CTLBB!$J$26)^0.5)*I28*1000 -> 90.27895302
A29: 26 | B29: 91-57-6 | C29: 2-Methylnaphthalene | D29: Cc1ccc2ccccc2c1 | E29: 11 | F29: Di-Aromatics | G29: 13 | H29: 2 | I29: 142.2 | J29: 240.760204 | K29: 33.53464962 | L29: -1.793926099 | M29: 0.0003931542855 | N29: 3.80447614 | O29: =IF(N29<CTLBB!$L$43,N29,(CTLBB!$L$43-CTLBB!$L$43*CTLBB!$L$42)+CTLBB!$L$42*N29) -> 3.80447614 | P29: -0.352 | T29: 0.0002358273531 | U29: -3.627405823 | V29: 140.4999947 | W29: 7.117437989 | Y29: =10^(CTLBB!$J$20*$O29+LOG(CTLBB!$J$21)-LOG(CTLBB!$J$22)+$P29-CTLBB!$J$23*(CTLBB!$J$24*$O29^2+CTLBB!$J$25+CTLBB!$J$26)^0.5)*I29*1000 -> 44.96073448
A30: 27 | B30: 90-12-0 | C30: 1-Methylnaphthalene | D30: c1ccc2ccccc2c1C | E30: 11 | F30: Di-Aromatics | G30: 13 | H30: 2 | I30: 142.2 | J30: 241.7765548 | K30: 34.76095747 | L30: -1.83343257 | M30: 0.0003589686677 | N30: 3.787246817 | O30: =IF(N30<CTLBB!$L$43,N30,(CTLBB!$L$43-CTLBB!$L$43*CTLBB!$L$42)+CTLBB!$L$42*N30) -> 3.787246817 | P30: -0.352 | T30: 0.0002444511777 | U30: -3.611807866 | V30: 139.92 | W30: 7.146941109 | Y30: =10^(CTLBB!$J$20*$O30+LOG(CTLBB!$J$21)-LOG(CTLBB!$J$22)+$P30-CTLBB!$J$23*(CTLBB!$J$24*$O30^2+CTLBB!$J$25+CTLBB!$J$26)^0.5)*I30*1000 -> 46.66939397
A31: 28 | B31: 824-63-5 | C31: Methyl indan | D31: c1ccc2CC(C)Cc2c1 | E31: 10 | F31: Naphthenic Mono-Aromatics | G31: 12 | H31: 2 | I31: 132.2048 | J31: 198.8066882 | K31: 65.33158896 | L31: -1.308156086 | M31: 0.001203186711 | N31: 3.425019657 | O31: =IF(N31<CTLBB!$L$43,N31,(CTLBB!$L$43-CTLBB!$L$43*CTLBB!$L$42)+CTLBB!$L$42*N31) -> 3.425019657 | P31: -0.109 | T31: 0.0004941695685 | U31: -3.306124002 | V31: 141.2439787 | W31: 7.079947826 | Y31: =10^(CTLBB!$J$20*$O31+LOG(CTLBB!$J$21)-LOG(CTLBB!$J$22)+$P31-CTLBB!$J$23*(CTLBB!$J$24*$O31^2+CTLBB!$J$25+CTLBB!$J$26)^0.5)*I31*1000 -> 166.2898803
A32: 29 | C32: Methyl perhydro-5,10-dithia-indeno[21a]indene | D32: C1CCC2C3SC4CCC(C)CC4C3SC2C1 | E32: 15 | F32: S-containing Aliphatics | G32: 10 | H32: 3 | I32: 268.4866 | J32: 354.4768635 | K32: 1.532730035 | L32: -5.240937165 | M32: 1.404597684e-07 | N32: 4.735137453 | O32: =IF(N32<CTLBB!$L$43,N32,(CTLBB!$L$43-CTLBB!$L$43*CTLBB!$L$42)+CTLBB!$L$42*N32) -> 4.735137453 | P32: 0 | T32: 5.708776658e-06 | U32: -5.243456947 | V32: 240.370763 | W32: 4.160239737 | Y32: =10^(CTLBB!$J$20*$O32+LOG(CTLBB!$J$21)-LOG(CTLBB!$J$22)+$P32-CTLBB!$J$23*(CTLBB!$J$24*$O32^2+CTLBB!$J$25+CTLBB!$J$26)^0.5)*I32*1000 -> 25.43223649
A33: 30 | B33: 83-32-9 | C33: Acenaphthene | D33: c12cccc(CC3)c1c3ccc2 | E33: 12 | F33: Naphthenic Di-Aromatic | G33: 14 | H33: 2 | I33: 154.211 | J33: 275.1963573 | K33: 19.9898118 | L33: -2.777764021 | M33: 4.080610024e-05 | N33: 3.897477195 | O33: =IF(N33<CTLBB!$L$43,N33,(CTLBB!$L$43-CTLBB!$L$43*CTLBB!$L$42)+CTLBB!$L$42*N33) -> 3.897477195 | P33: -0.352 | T33: 0.0001296263677 | U33: -3.887306648 | V33: 142.0020652 | W33: 7.042151104 | Y33: =10^(CTLBB!$J$20*$O33+LOG(CTLBB!$J$21)-LOG(CTLBB!$J$22)+$P33-CTLBB!$J$23*(CTLBB!$J$24*$O33^2+CTLBB!$J$25+CTLBB!$J$26)^0.5)*I33*1000 -> 39.86624425
A34: 31 | B34: 208-96-8 | C34: Acenaphthylene | D34: c12cccc(C=C3)c1c3ccc2 | E34: 12 | F34: Poly-Aromatic | G34: 15 | H34: 2 | I34: 152.1952 | J34: 242.0403421 | K34: 46.14819594 | L34: -2.397311094 | M34: 9.798915646e-05 | N34: 3.679847106 | O34: =IF(N34<CTLBB!$L$43,N34,(CTLBB!$L$43-CTLBB!$L$43*CTLBB!$L$42)+CTLBB!$L$42*N34) -> 3.679847106 | P34: -0.352 | T34: 0.0003032171576 | U34: -3.518246228 | V34: 139.1332641 | W34: 7.187353839 | Y34: =10^(CTLBB!$J$20*$O34+LOG(CTLBB!$J$21)-LOG(CTLBB!$J$22)+$P34-CTLBB!$J$23*(CTLBB!$J$24*$O34^2+CTLBB!$J$25+CTLBB!$J$26)^0.5)*I34*1000 -> 63.0234134
A35: 32 | B35: 620-14-4 | C35: 1-Methyl-3-ethylbenzene | D35: Cc1cc(CC)ccc1 | E35: 9 | F35: Mono-Aromatic | G35: 11 | H35: 2 | I35: 120.1938 | J35: 167.5482176 | K35: 67.32409169 | L35: -0.4551470431 | M35: 0.008577131526 | N35: 3.459899794 | O35: =IF(N35<CTLBB!$L$43,N35,(CTLBB!$L$43-CTLBB!$L$43*CTLBB!$L$42)+CTLBB!$L$42*N35) -> 3.459899794 | P35: -0.109 | T35: 0.0005601294883 | U35: -3.251711563 | V35: 139.6002062 | W35: 7.163313203 | Y35: =10^(CTLBB!$J$20*$O35+LOG(CTLBB!$J$21)-LOG(CTLBB!$J$22)+$P35-CTLBB!$J$23*(CTLBB!$J$24*$O35^2+CTLBB!$J$25+CTLBB!$J$26)^0.5)*I35*1000 -> 140.1910456
A36: 33 | B36: 92-52-4 | C36: Biphenyl | D36: c1ccccc1c2ccccc2 | E36: 12 | F36: Di-Aromatics | G36: 13 | H36: 2 | I36: 154.211 | J36: 239.4499919 | K36: 11.18293148 | L36: -1.479507678 | M36: 0.0008109263922 | N36: 4.109986255 | O36: =IF(N36<CTLBB!$L$43,N36,(CTLBB!$L$43-CTLBB!$L$43*CTLBB!$L$42)+CTLBB!$L$42*N36) -> 4.109986255 | P36: -0.109 | T36: 7.251708038e-05 | U36: -4.139559689 | V36: 151.0205756 | W36: 6.621614278 | Y36: =10^(CTLBB!$J$20*$O36+LOG(CTLBB!$J$21)-LOG(CTLBB!$J$22)+$P36-CTLBB!$J$23*(CTLBB!$J$24*$O36^2+CTLBB!$J$25+CTLBB!$J$26)^0.5)*I36*1000 -> 44.03108717
A37: 34 | B37: 488-23-3 | C37: 1,2,3,4-Tetramethylbenzene | D37: Cc1c(C)c(C)c(C)cc1 | E37: 10 | F37: Mono-Aromatic | G37: 11 | H37: 2 | I37: 134.2206 | J37: 196.9346547 | K37: 29.42941711 | L37: -0.8735965382 | M37: 0.003272597352 | N37: 3.836295358 | O37: =IF(N37<CTLBB!$L$43,N37,(CTLBB!$L$43-CTLBB!$L$43*CTLBB!$L$42)+CTLBB!$L$42*N37) -> 3.836295358 | P37: -0.109 | T37: 0.0002192615524 | U37: -3.659037515 | V37: 151.0489849 | W37: 6.620368885 | Y37: =10^(CTLBB!$J$20*$O37+LOG(CTLBB!$J$21)-LOG(CTLBB!$J$22)+$P37-CTLBB!$J$23*(CTLBB!$J$24*$O37^2+CTLBB!$J$25+CTLBB!$J$26)^0.5)*I37*1000 -> 69.3164248
A38: 35 | C38: Ethyl benzo(b)thiophene | D38: c1c(CC)cc2ccsc2c1 | E38: 10 | F38: S-containing Aromatics | G38: 16 | H38: 3 | I38: 162.255 | J38: 264.9659692 | K38: 10.50344927 | L38: -2.138507288 | M38: 0.0001778204991 | N38: 4.117981201 | O38: =IF(N38<CTLBB!$L$43,N38,(CTLBB!$L$43-CTLBB!$L$43*CTLBB!$L$42)+CTLBB!$L$42*N38) -> 4.117981201 | P38: 0 | T38: 6.473421015e-05 | U38: -4.188866147 | V38: 151.5570676 | W38: 6.598174639 | Y38: =10^(CTLBB!$J$20*$O38+LOG(CTLBB!$J$21)-LOG(CTLBB!$J$22)+$P38-CTLBB!$J$23*(CTLBB!$J$24*$O38^2+CTLBB!$J$25+CTLBB!$J$26)^0.5)*I38*1000 -> 58.52247057
A39: 36 | C39: Ethyl octahydro-benzo(b)thiophene | D39: C12SCCC1CC(CC)CC2 | E39: 10 | F39: S-containing Aliphatics | G39: 10 | H39: 3 | I39: 170.3182 | J39: 224.5400272 | K39: 90.01340795 | L39: -2.567693844 | M39: 6.619044012e-05 | N39: 3.439771069 | O39: =IF(N39<CTLBB!$L$43,N39,(CTLBB!$L$43-CTLBB!$L$43*CTLBB!$L$42)+CTLBB!$L$42*N39) -> 3.439771069 | P39: 0 | T39: 0.0005285014047 | U39: -3.276953854 | V39: 174.8811772 | W39: 5.718168277 | Y39: =10^(CTLBB!$J$20*$O39+LOG(CTLBB!$J$21)-LOG(CTLBB!$J$22)+$P39-CTLBB!$J$23*(CTLBB!$J$24*$O39^2+CTLBB!$J$25+CTLBB!$J$26)^0.5)*I39*1000 -> 266.6959531
A40: 37 | C40: Ethyl dihydro-benzo(b)thiophene | D40: c1c(CC)cc2CCSc2c1 | E40: 10 | F40: S-containing Aromatics | G40: 16 | H40: 3 | I40: 164.2708 | J40: 298.6443345 | K40: 14.31959511 | L40: -3.05255948 | M40: 2.167352907e-05 | N40: 3.871591873 | O40: =IF(N40<CTLBB!$L$43,N40,(CTLBB!$L$43-CTLBB!$L$43*CTLBB!$L$42)+CTLBB!$L$42*N40) -> 3.871591873 | P40: 0 | T40: 8.71706664e-05 | U40: -4.059629634 | V40: 153.1307896 | W40: 6.530365335 | Y40: =10^(CTLBB!$J$20*$O40+LOG(CTLBB!$J$21)-LOG(CTLBB!$J$22)+$P40-CTLBB!$J$23*(CTLBB!$J$24*$O40^2+CTLBB!$J$25+CTLBB!$J$26)^0.5)*I40*1000 -> 101.0159251
A41: 38 | B41: #60 | C41: Decahydro-1,9-dithia-fluorene | D41: C1CSC2SC3CCCCC3C2C1 | E41: 11 | F41: S-containing Aliphatics | G41: 10 | H41: 3 | I41: 214.3952 | J41: 331.8565229 | K41: 29.92950978 | L41: -4.844339559 | M41: 3.500656951e-07 | N41: 3.442158103 | O41: =IF(N41<CTLBB!$L$43,N41,(CTLBB!$L$43-CTLBB!$L$43*CTLBB!$L$42)+CTLBB!$L$42*N41) -> 3.442158103 | P41: 0 | T41: 0.0001395997195 | U41: -3.855115454 | V41: 187.9869473 | W41: 5.319518267 | Y41: =10^(CTLBB!$J$20*$O41+LOG(CTLBB!$J$21)-LOG(CTLBB!$J$22)+$P41-CTLBB!$J$23*(CTLBB!$J$24*$O41^2+CTLBB!$J$25+CTLBB!$J$26)^0.5)*I41*1000 -> 333.9851001
A42: 39 | B42: 527-53-7 | C42: 1,2,3,5-Tetramethylbenzene | D42: Cc1c(C)c(C)cc(C)c1 | E42: 10 | F42: Mono-Aromatic | G42: 11 | H42: 2 | I42: 134.2206 | J42: 192.5048836 | K42: 28.26311866 | L42: -0.7616353045 | M42: 0.004235003839 | N42: 3.859000721 | O42: =IF(N42<CTLBB!$L$43,N42,(CTLBB!$L$43-CTLBB!$L$43*CTLBB!$L$42)+CTLBB!$L$42*N42) -> 3.859000721 | P42: -0.109 | T42: 0.0002105721377 | U42: -3.676599094 | V42: 152.1243247 | W42: 6.573570676 | Y42: =10^(CTLBB!$J$20*$O42+LOG(CTLBB!$J$21)-LOG(CTLBB!$J$22)+$P42-CTLBB!$J$23*(CTLBB!$J$24*$O42^2+CTLBB!$J$25+CTLBB!$J$26)^0.5)*I42*1000 -> 65.99144211
A43: 40 | B43: 86-73-7 | C43: Fluorene | D43: c1ccc2Cc3ccccc3c2c1 | E43: 13 | F43: Naphthenic Di-Aromatic | G43: 14 | H43: 2 | I43: 166.222 | J43: 275.7483739 | K43: 10.45046205 | L43: -2.421889401 | M43: 9.259759593e-05 | N43: 4.053527157 | O43: =IF(N43<CTLBB!$L$43,N43,(CTLBB!$L$43-CTLBB!$L$43*CTLBB!$L$42)+CTLBB!$L$42*N43) -> 4.053527157 | P43: -0.352 | T43: 6.287051085e-05 | U43: -4.201553011 | V43: 154.8385961 | W43: 6.458338071 | Y43: =10^(CTLBB!$J$20*$O43+LOG(CTLBB!$J$21)-LOG(CTLBB!$J$22)+$P43-CTLBB!$J$23*(CTLBB!$J$24*$O43^2+CTLBB!$J$25+CTLBB!$J$26)^0.5)*I43*1000 -> 30.65011472
A44: 41 | B44: #42 | C44: Dihydro-naphtho[21b]thiophene | D44: C1Sc2ccc3ccccc3c2C1 | E44: 12 | F44: S-containing Aromatics | G44: 16 | H44: 3 | I44: 186.277 | J44: 347.7235647 | K44: 4.384657664 | L44: -4.415890447 | M44: 9.388553084e-07 | N44: 4.28465814 | O44: =IF(N44<CTLBB!$L$43,N44,(CTLBB!$L$43-CTLBB!$L$43*CTLBB!$L$42)+CTLBB!$L$42*N44) -> 4.28465814 | P44: 0 | T44: 2.353837384e-05 | U44: -4.628223544 | V44: 154.0091217 | W44: 6.493121895 | Y44: =10^(CTLBB!$J$20*$O44+LOG(CTLBB!$J$21)-LOG(CTLBB!$J$22)+$P44-CTLBB!$J$23*(CTLBB!$J$24*$O44^2+CTLBB!$J$25+CTLBB!$J$26)^0.5)*I44*1000 -> 46.82774839
A45: 42 | C45: Methyl perhydro-dibenzothiophene | D45: C1CCC2SC3CCC(C)CC3C2C1 | E45: 13 | F45: S-containing Aliphatics | G45: 10 | H45: 3 | I45: 210.3828 | J45: 288.3103141 | K45: 7.114697732 | L45: -3.166612803 | M45: 1.666772437e-05 | N45: 4.384457985 | O45: =IF(N45<CTLBB!$L$43,N45,(CTLBB!$L$43-CTLBB!$L$43*CTLBB!$L$42)+CTLBB!$L$42*N45) -> 4.384457985 | P45: 0 | T45: 3.381786787e-05 | U45: -4.470853777 | V45: 208.4835371 | W45: 4.796541799 | Y45: =10^(CTLBB!$J$20*$O45+LOG(CTLBB!$J$21)-LOG(CTLBB!$J$22)+$P45-CTLBB!$J$23*(CTLBB!$J$24*$O45^2+CTLBB!$J$25+CTLBB!$J$26)^0.5)*I45*1000 -> 42.60549965
A46: 43 | B46: 573-98-8 | C46: 1,2-Dimethylnaphthalene | D46: Cc1ccc2ccccc2c1C | E46: 12 | F46: Di-Aromatics | G46: 13 | H46: 2 | I46: 156.2268 | J46: 264.2032345 | K46: 13.97213237 | L46: -1.936221825 | M46: 0.0002833135119 | N46: 4.199063858 | O46: =IF(N46<CTLBB!$L$43,N46,(CTLBB!$L$43-CTLBB!$L$43*CTLBB!$L$42)+CTLBB!$L$42*N46) -> 4.199063858 | P46: -0.352 | T46: 8.94349265e-05 | U46: -4.048492846 | V46: 154.6902825 | W46: 6.46453018 | Y46: =10^(CTLBB!$J$20*$O46+LOG(CTLBB!$J$21)-LOG(CTLBB!$J$22)+$P46-CTLBB!$J$23*(CTLBB!$J$24*$O46^2+CTLBB!$J$25+CTLBB!$J$26)^0.5)*I46*1000 -> 21.01916526
A47: 44 | B47: 581-42-0 | C47: 2,6-Dimethylnaphthalene | D47: Cc1ccc2cc(C)ccc2c1 | E47: 12 | F47: Di-Aromatics | G47: 13 | H47: 2 | I47: 156.2268 | J47: 263.4912 | K47: 11.54169765 | L47: -1.871760252 | M47: 0.0003286463864 | N47: 4.274986625 | O47: =IF(N47<CTLBB!$L$43,N47,(CTLBB!$L$43-CTLBB!$L$43*CTLBB!$L$42)+CTLBB!$L$42*N47) -> 4.274986625 | P47: -0.352 | T47: 7.387783434e-05 | U47: -4.131485844 | V47: 156.4222009 | W47: 6.392954415 | Y47: =10^(CTLBB!$J$20*$O47+LOG(CTLBB!$J$21)-LOG(CTLBB!$J$22)+$P47-CTLBB!$J$23*(CTLBB!$J$24*$O47^2+CTLBB!$J$25+CTLBB!$J$26)^0.5)*I47*1000 -> 17.83190204
A48: 45 | B48: 582-16-1 | C48: 2,7-Dimethylnaphthalene | D48: Cc1ccc2ccc(C)cc2c1 | E48: 12 | F48: Di-Aromatics | G48: 13 | H48: 2 | I48: 156.2268 | J48: 262.3677888 | K48: 11.56958068 | L48: -1.844550697 | M48: 0.0003498955475 | N48: 4.275680426 | O48: =IF(N48<CTLBB!$L$43,N48,(CTLBB!$L$43-CTLBB!$L$43*CTLBB!$L$42)+CTLBB!$L$42*N48) -> 4.275680426 | P48: -0.352 | T48: 7.405631222e-05 | U48: -4.130437918 | V48: 156.422338 | W48: 6.392948813 | Y48: =10^(CTLBB!$J$20*$O48+LOG(CTLBB!$J$21)-LOG(CTLBB!$J$22)+$P48-CTLBB!$J$23*(CTLBB!$J$24*$O48^2+CTLBB!$J$25+CTLBB!$J$26)^0.5)*I48*1000 -> 17.8051242
A49: 46 | C49: Ethyl perhydro-5,10-dithia-indeno[21a]indene | D49: C1CCC2C3SC4CCC(CC)CC4C3SC2C1 | E49: 16 | F49: S-containing Aliphatics | G49: 10 | H49: 3 | I49: 282.5134 | J49: 361.0155747 | K49: 0.500028409 | L49: -5.195270559 | M49: 1.560337529e-07 | N49: 5.217205032 | O49: =IF(N49<CTLBB!$L$43,N49,(CTLBB!$L$43-CTLBB!$L$43*CTLBB!$L$42)+CTLBB!$L$42*N49) -> 5.217205032 | P49: 0 | T49: 1.769928113e-06 | U49: -5.752044372 | V49: 256.6075076 | W49: 3.897002116 | Y49: =10^(CTLBB!$J$20*$O49+LOG(CTLBB!$J$21)-LOG(CTLBB!$J$22)+$P49-CTLBB!$J$23*(CTLBB!$J$24*$O49^2+CTLBB!$J$25+CTLBB!$J$26)^0.5)*I49*1000 -> 9.411404949
A50: 47 | B50: 104-51-8 | C50: n-Butylbenzene | D50: c1ccccc1CCCC | E50: 10 | F50: Mono-Aromatic | G50: 11 | H50: 2 | I50: 134.2206 | J50: 193.8878185 | K50: 10.88231144 | L50: -0.121120818 | M50: 0.0185083752 | N50: 4.161439114 | O50: =IF(N50<CTLBB!$L$43,N50,(CTLBB!$L$43-CTLBB!$L$43*CTLBB!$L$42)+CTLBB!$L$42*N50) -> 4.161439114 | P50: -0.109 | T50: 8.107780354e-05 | U50: -4.091098025 | V50: 156.5924944 | W50: 6.386002111 | Y50: =10^(CTLBB!$J$20*$O50+LOG(CTLBB!$J$21)-LOG(CTLBB!$J$22)+$P50-CTLBB!$J$23*(CTLBB!$J$24*$O50^2+CTLBB!$J$25+CTLBB!$J$26)^0.5)*I50*1000 -> 34.28222712
A51: 48 | C51: Ethyl indan | D51: c1ccc2CC(CC)Cc2c1 | E51: 11 | F51: Naphthenic Mono-Aromatics | G51: 12 | H51: 2 | I51: 146.2316 | J51: 216.4153112 | K51: 16.91949354 | L51: -1.159409916 | M51: 0.001694646804 | N51: 3.987684334 | O51: =IF(N51<CTLBB!$L$43,N51,(CTLBB!$L$43-CTLBB!$L$43*CTLBB!$L$42)+CTLBB!$L$42*N51) -> 3.987684334 | P51: -0.109 | T51: 0.0001157034016 | U51: -3.936653873 | V51: 157.4994851 | W51: 6.349227107 | Y51: =10^(CTLBB!$J$20*$O51+LOG(CTLBB!$J$21)-LOG(CTLBB!$J$22)+$P51-CTLBB!$J$23*(CTLBB!$J$24*$O51^2+CTLBB!$J$25+CTLBB!$J$26)^0.5)*I51*1000 -> 54.4133382
A52: 49 | B52: 3877-19-8 | C52: Methyl tetralin | D52: c1ccc2CC(C)CCc2c1 | E52: 11 | F52: Naphthenic Mono-Aromatics | G52: 12 | H52: 2 | I52: 146.2316 | J52: 219.3258409 | K52: 18.28204467 | L52: -1.213286582 | M52: 0.001496933581 | N52: 3.950701986 | O52: =IF(N52<CTLBB!$L$43,N52,(CTLBB!$L$43-CTLBB!$L$43*CTLBB!$L$42)+CTLBB!$L$42*N52) -> 3.950701986 | P52: -0.109 | T52: 0.0001250211628 | U52: -3.903016466 | V52: 155.9391441 | W52: 6.412758039 | Y52: =10^(CTLBB!$J$20*$O52+LOG(CTLBB!$J$21)-LOG(CTLBB!$J$22)+$P52-CTLBB!$J$23*(CTLBB!$J$24*$O52^2+CTLBB!$J$25+CTLBB!$J$26)^0.5)*I52*1000 -> 58.94983633
A53: 50 | B53: 939-27-5 | C53: 2-Ethylnaphthalene | D53: CCc1ccc2ccccc2c1 | E53: 12 | F53: Di-Aromatics | G53: 13 | H53: 2 | I53: 156.2268 | J53: 262.5537085 | K53: 12.10325479 | L53: -1.7252053 | M53: 0.0004605574506 | N53: 4.238874505 | O53: =IF(N53<CTLBB!$L$43,N53,(CTLBB!$L$43-CTLBB!$L$43*CTLBB!$L$42)+CTLBB!$L$42*N53) -> 4.238874505 | P53: -0.352 | T53: 7.747233377e-05 | U53: -4.110853361 | V53: 157.1856244 | W53: 6.361904937 | Y53: =10^(CTLBB!$J$20*$O53+LOG(CTLBB!$J$21)-LOG(CTLBB!$J$22)+$P53-CTLBB!$J$23*(CTLBB!$J$24*$O53^2+CTLBB!$J$25+CTLBB!$J$26)^0.5)*I53*1000 -> 19.28269839
A54: 51 | B54: 132-65-0 | C54: Dibenzothiophene | D54: c1ccc2sc3ccccc3c2c1 | E54: 12 | F54: S-containing Aromatics | G54: 16 | H54: 3 | I54: 184.2612 | J54: 327.1299128 | K54: 3.073492181 | L54: -3.433621751 | M54: 9.0129583e-06 | N54: 4.324863119 | O54: =IF(N54<CTLBB!$L$43,N54,(CTLBB!$L$43-CTLBB!$L$43*CTLBB!$L$42)+CTLBB!$L$42*N54) -> 4.324863119 | P54: 0 | T54: 1.668008339e-05 | U54: -4.777801783 | V54: 154.4455014 | W54: 6.474775834 | Y54: =10^(CTLBB!$J$20*$O54+LOG(CTLBB!$J$21)-LOG(CTLBB!$J$22)+$P54-CTLBB!$J$23*(CTLBB!$J$24*$O54^2+CTLBB!$J$25+CTLBB!$J$26)^0.5)*I54*1000 -> 42.45761829
A55: 52 | B55: #50 | C55: Hexahydro-dibenzothiophene | D55: c1ccc2SC3CCCCC3c2c1 | E55: 12 | F55: S-containing Aromatics | G55: 16 | H55: 3 | I55: 190.3086 | J55: 316.588168 | K55: 5.075475398 | L55: -3.43075222 | M55: 9.072707143e-06 | N55: 4.235102027 | O55: =IF(N55<CTLBB!$L$43,N55,(CTLBB!$L$43-CTLBB!$L$43*CTLBB!$L$42)+CTLBB!$L$42*N55) -> 4.235102027 | P55: 0 | T55: 2.666971119e-05 | U55: -4.573981687 | V55: 170.7032722 | W55: 5.858118518 | Y55: =10^(CTLBB!$J$20*$O55+LOG(CTLBB!$J$21)-LOG(CTLBB!$J$22)+$P55-CTLBB!$J$23*(CTLBB!$J$24*$O55^2+CTLBB!$J$25+CTLBB!$J$26)^0.5)*I55*1000 -> 53.26222671
A56: 53 | B56: 581-40-8 | C56: 2,3-Dimethylnaphthalene | D56: Cc1c(C)cc2ccccc2c1 | E56: 12 | F56: Di-Aromatics | G56: 13 | H56: 2 | I56: 156.2268 | J56: 264.0182592 | K56: 13.84783176 | L56: -1.926949179 | M56: 0.0002894275935 | N56: 4.203274951 | O56: =IF(N56<CTLBB!$L$43,N56,(CTLBB!$L$43-CTLBB!$L$43*CTLBB!$L$42)+CTLBB!$L$42*N56) -> 4.203274951 | P56: -0.352 | T56: 8.863928444e-05 | U56: -4.052373759 | V56: 154.8498686 | W56: 6.457867927 | Y56: =10^(CTLBB!$J$20*$O56+LOG(CTLBB!$J$21)-LOG(CTLBB!$J$22)+$P56-CTLBB!$J$23*(CTLBB!$J$24*$O56^2+CTLBB!$J$25+CTLBB!$J$26)^0.5)*I56*1000 -> 20.82832788
A57: 54 | B57: 1127-76-0 | C57: 1-Ethylnaphthalene | D57: c1ccc2ccccc2c1CC | E57: 12 | F57: Di-Aromatics | G57: 13 | H57: 2 | I57: 156.2268 | J57: 265.3170741 | K57: 13.47823369 | L57: -1.836819913 | M57: 0.0003561797296 | N57: 4.188315015 | O57: =IF(N57<CTLBB!$L$43,N57,(CTLBB!$L$43-CTLBB!$L$43*CTLBB!$L$42)+CTLBB!$L$42*N57) -> 4.188315015 | P57: -0.352 | T57: 8.627350549e-05 | U57: -4.064122555 | V57: 155.6 | W57: 6.426735219 | Y57: =10^(CTLBB!$J$20*$O57+LOG(CTLBB!$J$21)-LOG(CTLBB!$J$22)+$P57-CTLBB!$J$23*(CTLBB!$J$24*$O57^2+CTLBB!$J$25+CTLBB!$J$26)^0.5)*I57*1000 -> 21.51423999
A58: 55 | B58: 575-41-7 | C58: 2,4-Dimethylnaphthalene | D58: Cc1cc(C)c2ccccc2c1 | E58: 12 | F58: Di-Aromatics | G58: 13 | H58: 2 | I58: 156.2268 | J58: 261.4607458 | K58: 12.12026198 | L58: -1.82850363 | M58: 0.0003630659186 | N58: 4.260470281 | O58: =IF(N58<CTLBB!$L$43,N58,(CTLBB!$L$43-CTLBB!$L$43*CTLBB!$L$42)+CTLBB!$L$42*N58) -> 4.260470281 | P58: -0.352 | T58: 7.758119594e-05 | U58: -4.11024353 | V58: 156.2808707 | W58: 6.398735787 | Y58: =10^(CTLBB!$J$20*$O58+LOG(CTLBB!$J$21)-LOG(CTLBB!$J$22)+$P58-CTLBB!$J$23*(CTLBB!$J$24*$O58^2+CTLBB!$J$25+CTLBB!$J$26)^0.5)*I58*1000 -> 18.40149677
A59: 56 | C59: 2,5-Dimethylnaphthalene | D59: Cc1ccc2c(C)cccc2c1 | E59: 12 | F59: Di-Aromatics | G59: 13 | H59: 2 | I59: 156.2268 | J59: 262.527385 | K59: 11.66307441 | L59: -1.852781562 | M59: 0.0003433266778 | N59: 4.271949712 | O59: =IF(N59<CTLBB!$L$43,N59,(CTLBB!$L$43-CTLBB!$L$43*CTLBB!$L$42)+CTLBB!$L$42*N59) -> 4.271949712 | P59: -0.352 | T59: 7.465476095e-05 | U59: -4.126942491 | V59: 156.2806685 | W59: 6.398744065 | Y59: =10^(CTLBB!$J$20*$O59+LOG(CTLBB!$J$21)-LOG(CTLBB!$J$22)+$P59-CTLBB!$J$23*(CTLBB!$J$24*$O59^2+CTLBB!$J$25+CTLBB!$J$26)^0.5)*I59*1000 -> 17.94958875
A60: 57 | C60: 2,8-Dimethylnaphthalene | D60: Cc1ccc2cccc(C)c2c1 | E60: 12 | F60: Di-Aromatics | G60: 13 | H60: 2 | I60: 156.2268 | J60: 263.6517043 | K60: 11.63436285 | L60: -1.879991125 | M60: 0.0003224764377 | N60: 4.271255908 | O60: =IF(N60<CTLBB!$L$43,N60,(CTLBB!$L$43-CTLBB!$L$43*CTLBB!$L$42)+CTLBB!$L$42*N60) -> 4.271255908 | P60: -0.352 | T60: 7.447097968e-05 | U60: -4.128012933 | V60: 156.2805313 | W60: 6.398749682 | Y60: =10^(CTLBB!$J$20*$O60+LOG(CTLBB!$J$21)-LOG(CTLBB!$J$22)+$P60-CTLBB!$J$23*(CTLBB!$J$24*$O60^2+CTLBB!$J$25+CTLBB!$J$26)^0.5)*I60*1000 -> 17.97658388
A61: 58 | B61: 120-12-7 | C61: Anthracene | D61: c1ccc2cc3ccccc3cc2c1 | E61: 14 | F61: Poly-Aromatic | G61: 15 | H61: 2 | I61: 178.233 | J61: 326.3957221 | K61: 3.524180459 | L61: -2.931679156 | M61: 2.86292491e-05 | N61: 4.608657938 | O61: =IF(N61<CTLBB!$L$43,N61,(CTLBB!$L$43-CTLBB!$L$43*CTLBB!$L$42)+CTLBB!$L$42*N61) -> 4.608657938 | P61: -0.352 | T61: 1.977288414e-05 | U61: -4.703929978 | V61: 159.1186413 | W61: 6.284618773 | Y61: =10^(CTLBB!$J$20*$O61+LOG(CTLBB!$J$21)-LOG(CTLBB!$J$22)+$P61-CTLBB!$J$23*(CTLBB!$J$24*$O61^2+CTLBB!$J$25+CTLBB!$J$26)^0.5)*I61*1000 -> 9.873792918
A62: 59 | B62: 85-01-8 | C62: Phenanthrene | D62: c1ccc2ccc3ccccc3c2c1 | E62: 14 | F62: Poly-Aromatic | G62: 15 | H62: 2 | I62: 178.233 | J62: 323.1868005 | K62: 3.290286592 | L62: -2.827438844 | M62: 3.639571609e-05 | N62: 4.653359604 | O62: =IF(N62<CTLBB!$L$43,N62,(CTLBB!$L$43-CTLBB!$L$43*CTLBB!$L$42)+CTLBB!$L$42*N62) -> 4.653359604 | P62: -0.352 | T62: 1.846059143e-05 | U62: -4.733754389 | V62: 160.5592815 | W62: 6.228229165 | Y62: =10^(CTLBB!$J$20*$O62+LOG(CTLBB!$J$21)-LOG(CTLBB!$J$22)+$P62-CTLBB!$J$23*(CTLBB!$J$24*$O62^2+CTLBB!$J$25+CTLBB!$J$26)^0.5)*I62*1000 -> 8.962224032
A63: 60 | C63: Methyl acenaphthylene | D63: c12cccc(C=C3)c1c3c(C)cc2 | E63: 13 | F63: Poly-Aromatic | G63: 15 | H63: 2 | I63: 166.222 | J63: 270.3549258 | K63: 19.1595589 | L63: -2.573086569 | M63: 6.537362145e-05 | N63: 4.073059081 | O63: =IF(N63<CTLBB!$L$43,N63,(CTLBB!$L$43-CTLBB!$L$43*CTLBB!$L$42)+CTLBB!$L$42*N63) -> 4.073059081 | P63: -0.352 | T63: 0.0001152648801 | U63: -3.938302997 | V63: 152.9279065 | W63: 6.539028898 | Y63: =10^(CTLBB!$J$20*$O63+LOG(CTLBB!$J$21)-LOG(CTLBB!$J$22)+$P63-CTLBB!$J$23*(CTLBB!$J$24*$O63^2+CTLBB!$J$25+CTLBB!$J$26)^0.5)*I63*1000 -> 29.38074487
A64: 61 | C64: Methyl decahydro-1,9-dithia-fluorene | D64: C1CSC2SC3CCC(C)CC3C2C1 | E64: 12 | F64: S-containing Aliphatics | G64: 10 | H64: 3 | I64: 228.422 | J64: 326.5469997 | K64: 15.74323592 | L64: -4.694390273 | M64: 4.944231984e-07 | N64: 3.828727748 | O64: =IF(N64<CTLBB!$L$43,N64,(CTLBB!$L$43-CTLBB!$L$43*CTLBB!$L$42)+CTLBB!$L$42*N64) -> 3.828727748 | P64: 0 | T64: 6.892171474e-05 | U64: -4.161643926 | V64: 206.297339 | W64: 4.847372268 | Y64: =10^(CTLBB!$J$20*$O64+LOG(CTLBB!$J$21)-LOG(CTLBB!$J$22)+$P64-CTLBB!$J$23*(CTLBB!$J$24*$O64^2+CTLBB!$J$25+CTLBB!$J$26)^0.5)*I64*1000 -> 154.1239634
A65: 62 | B65: 1074-17-5 | C65: 1-Methyl-2-propylbenzene | D65: Cc1c(CCC)cccc1 | E65: 10 | F65: Mono-Aromatic | G65: 11 | H65: 2 | I65: 134.2206 | J65: 192.2101943 | K65: 21.47083525 | L65: -0.4056899195 | M65: 0.009611677564 | N65: 3.930271147 | O65: =IF(N65<CTLBB!$L$43,N65,(CTLBB!$L$43-CTLBB!$L$43*CTLBB!$L$42)+CTLBB!$L$42*N65) -> 3.930271147 | P65: -0.109 | T65: 0.0001599667655 | U65: -3.795970236 | V65: 153.851139 | W65: 6.499789383 | Y65: =10^(CTLBB!$J$20*$O65+LOG(CTLBB!$J$21)-LOG(CTLBB!$J$22)+$P65-CTLBB!$J$23*(CTLBB!$J$24*$O65^2+CTLBB!$J$25+CTLBB!$J$26)^0.5)*I65*1000 -> 56.55519948
A66: 63 | C66: Propyl octahydro-benzo(b)thiophene | D66: C12SCCC1CC(CCC)CC2 | E66: 11 | F66: S-containing Aliphatics | G66: 10 | H66: 3 | I66: 184.345 | J66: 243.5185156 | K66: 27.44279272 | L66: -2.520298047 | M66: 7.382289399e-05 | N66: 3.933830102 | O66: =IF(N66<CTLBB!$L$43,N66,(CTLBB!$L$43-CTLBB!$L$43*CTLBB!$L$42)+CTLBB!$L$42*N66) -> 3.933830102 | P66: 0 | T66: 0.0001488664879 | U66: -3.827203057 | V66: 191.2817789 | W66: 5.227889481 | Y66: =10^(CTLBB!$J$20*$O66+LOG(CTLBB!$J$21)-LOG(CTLBB!$J$22)+$P66-CTLBB!$J$23*(CTLBB!$J$24*$O66^2+CTLBB!$J$25+CTLBB!$J$26)^0.5)*I66*1000 -> 99.06907774
A67: 64 | B67: 233-02-3 | C67: Naphtho[21b]thiophene | D67: c1sc2ccc3ccccc3c2c1 | E67: 12 | F67: S-containing Aromatics | G67: 16 | H67: 3 | I67: 184.2612 | J67: 311.764881 | K67: 4.035680345 | L67: -3.517233302 | M67: 7.434569253e-06 | N67: 4.491982254 | O67: =IF(N67<CTLBB!$L$43,N67,(CTLBB!$L$43-CTLBB!$L$43*CTLBB!$L$42)+CTLBB!$L$42*N67) -> 4.491982254 | P67: 0 | T67: 2.19019541e-05 | U67: -4.659517135 | V67: 152.4407018 | W67: 6.559927815 | Y67: =10^(CTLBB!$J$20*$O67+LOG(CTLBB!$J$21)-LOG(CTLBB!$J$22)+$P67-CTLBB!$J$23*(CTLBB!$J$24*$O67^2+CTLBB!$J$25+CTLBB!$J$26)^0.5)*I67*1000 -> 29.56118217
A68: 65 | C68: 1-Methyl-2-butylbenzene | D68: Cc1c(CCCC)cccc1 | E68: 11 | F68: Mono-Aromatic | G68: 11 | H68: 2 | I68: 148.2474 | J68: 215.9237966 | K68: =T68*1000*I68 -> 5.365081259 | L68: -0.2780566871 | M68: 0.01289532897 | N68: 4.481021851 | O68: =IF(N68<CTLBB!$L$43,N68,(CTLBB!$L$43-CTLBB!$L$43*CTLBB!$L$42)+CTLBB!$L$42*N68) -> 4.481021851 | P68: -0.109 | T68: =10^U68 -> 3.619005298e-05 | U68: -4.441410781 | V68: 170.1741167 | W68: =IF(V68=0,AG68,1/V68*1000) -> 5.876334307 | Y68: =10^(CTLBB!$J$20*$O68+LOG(CTLBB!$J$21)-LOG(CTLBB!$J$22)+$P68-CTLBB!$J$23*(CTLBB!$J$24*$O68^2+CTLBB!$J$25+CTLBB!$J$26)^0.5)*I68*1000 -> 18.94907404
A69: 66 | C69: 1-Methyl-3-butylbenzene | D69: Cc1cc(CCCC)ccc1 | E69: 11 | F69: Mono-Aromatic | G69: 11 | H69: 2 | I69: 148.2474 | J69: 216.0775387 | K69: 4.069366148 | L69: =IF(M69=0,AB69,LOG(40.88*M69)) -> -0.156508103 | M69: 0.0170600779 | N69: 4.586096061 | O69: =IF(N69<CTLBB!$L$43,N69,(CTLBB!$L$43-CTLBB!$L$43*CTLBB!$L$42)+CTLBB!$L$42*N69) -> 4.586096061 | P69: -0.109 | T69: 2.744983149e-05 | U69: -4.561460317 | V69: 172.5282955 | W69: 5.796150697 | Y69: =10^(CTLBB!$J$20*$O69+LOG(CTLBB!$J$21)-LOG(CTLBB!$J$22)+$P69-CTLBB!$J$23*(CTLBB!$J$24*$O69^2+CTLBB!$J$25+CTLBB!$J$26)^0.5)*I69*1000 -> 15.0908912
A70: 67 | C70: 1-Methyl-4-butylbenzene | D70: Cc1ccc(CCCC)cc1 | E70: 11 | F70: Mono-Aromatic | G70: 11 | H70: 2 | I70: 148.2474 | J70: 219.7769983 | K70: 3.933425008 | L70: -0.22068903 | M70: 0.01471634914 | N70: 4.595470741 | O70: =IF(N70<CTLBB!$L$43,N70,(CTLBB!$L$43-CTLBB!$L$43*CTLBB!$L$42)+CTLBB!$L$42*N70) -> 4.595470741 | P70: -0.109 | T70: 2.653284313e-05 | U70: -4.576216211 | V70: 172.5278875 | W70: 5.796164403 | Y70: =10^(CTLBB!$J$20*$O70+LOG(CTLBB!$J$21)-LOG(CTLBB!$J$22)+$P70-CTLBB!$J$23*(CTLBB!$J$24*$O70^2+CTLBB!$J$25+CTLBB!$J$26)^0.5)*I70*1000 -> 14.78743641
A71: 68 | C71: 1-Ethyl-2-propylbenzene | D71: CCc1c(CCC)cccc1 | E71: 11 | F71: Mono-Aromatic | G71: 11 | H71: 2 | I71: 148.2474 | J71: 211.0025109 | K71: 6.047233806 | L71: -0.2169009384 | M71: 0.01484527252 | N71: 4.439712989 | O71: =IF(N71<CTLBB!$L$43,N71,(CTLBB!$L$43-CTLBB!$L$43*CTLBB!$L$42)+CTLBB!$L$42*N71) -> 4.439712989 | P71: -0.109 | T71: 4.079149992e-05 | U71: -4.389430325 | V71: 169.9107275 | W71: 5.885443578 | Y71: =10^(CTLBB!$J$20*$O71+LOG(CTLBB!$J$21)-LOG(CTLBB!$J$22)+$P71-CTLBB!$J$23*(CTLBB!$J$24*$O71^2+CTLBB!$J$25+CTLBB!$J$26)^0.5)*I71*1000 -> 20.72314651
A72: 69 | C72: 1-Ethyl-3-propylbenzene | D72: CCc1cc(CCC)ccc1 | E72: 11 | F72: Mono-Aromatic | G72: 11 | H72: 2 | I72: 148.2474 | J72: 211.6960115 | K72: 4.288646564 | L72: -0.08852933003 | M72: 0.01995077555 | N72: 4.568737864 | O72: =IF(N72<CTLBB!$L$43,N72,(CTLBB!$L$43-CTLBB!$L$43*CTLBB!$L$42)+CTLBB!$L$42*N72) -> 4.568737864 | P72: -0.109 | T72: 2.892898334e-05 | U72: -4.538666829 | V72: 172.7156762 | W72: 5.789862403 | Y72: =10^(CTLBB!$J$20*$O72+LOG(CTLBB!$J$21)-LOG(CTLBB!$J$22)+$P72-CTLBB!$J$23*(CTLBB!$J$24*$O72^2+CTLBB!$J$25+CTLBB!$J$26)^0.5)*I72*1000 -> 15.66929602
A73: 70 | C73: 1-Ethyl-4-propylbenzene | D73: CCc1ccc(CCC)cc1 | E73: 11 | F73: Mono-Aromatic | G73: 11 | H73: 2 | I73: 148.2474 | J73: 215.8383831 | K73: 4.112542547 | L73: -0.161433506 | M73: 0.01686768985 | N73: 4.58101986 | O73: =IF(N73<CTLBB!$L$43,N73,(CTLBB!$L$43-CTLBB!$L$43*CTLBB!$L$42)+CTLBB!$L$42*N73) -> 4.58101986 | P73: -0.109 | T73: 2.774107706e-05 | U73: -4.556876681 | V73: 172.7152015 | W73: 5.789878316 | Y73: =10^(CTLBB!$J$20*$O73+LOG(CTLBB!$J$21)-LOG(CTLBB!$J$22)+$P73-CTLBB!$J$23*(CTLBB!$J$24*$O73^2+CTLBB!$J$25+CTLBB!$J$26)^0.5)*I73*1000 -> 15.25779523
A74: 71 | B74: 700-12-9 | C74: 1,2,3,4,5-Pentamethylbenzene | D74: Cc1c(C)c(C)c(C)c(C)c1 | E74: 11 | F74: Mono-Aromatic | G74: 11 | H74: 2 | I74: 148.2474 | J74: 223.5244304 | K74: 10.1142983 | L74: -1.010267238 | M74: 0.002389031492 | N74: 4.289519629 | O74: =IF(N74<CTLBB!$L$43,N74,(CTLBB!$L$43-CTLBB!$L$43*CTLBB!$L$42)+CTLBB!$L$42*N74) -> 4.289519629 | P74: -0.109 | T74: 6.822580565e-05 | U74: -4.166051327 | V74: 165.9619916 | W74: 6.025476015 | Y74: =10^(CTLBB!$J$20*$O74+LOG(CTLBB!$J$21)-LOG(CTLBB!$J$22)+$P74-CTLBB!$J$23*(CTLBB!$J$24*$O74^2+CTLBB!$J$25+CTLBB!$J$26)^0.5)*I74*1000 -> 28.69180279
A75: 72 | C75: Methylfluorene | D75: c1ccc2Cc3ccc(C)cc3c2c1 | E75: 14 | F75: Naphthenic Di-Aromatic | G75: 14 | H75: 2 | I75: 180.2488 | J75: 300.2137928 | K75: 3.540911905 | L75: -2.447550006 | M75: 8.728489772e-05 | N75: 4.530385176 | O75: =IF(N75<CTLBB!$L$43,N75,(CTLBB!$L$43-CTLBB!$L$43*CTLBB!$L$42)+CTLBB!$L$42*N75) -> 4.530385176 | P75: -0.352 | T75: 1.964457963e-05 | U75: -4.70675726 | V75: 170.7874799 | W75: 5.855230141 | Y75: =10^(CTLBB!$J$20*$O75+LOG(CTLBB!$J$21)-LOG(CTLBB!$J$22)+$P75-CTLBB!$J$23*(CTLBB!$J$24*$O75^2+CTLBB!$J$25+CTLBB!$J$26)^0.5)*I75*1000 -> 11.83108818
A76: 73 | B76: 141-93-5 | C76: 1,3-Diethylbenzene | D76: CCc1cc(CC)ccc1 | E76: 10 | F76: Mono-Aromatic | G76: 11 | H76: 2 | I76: 134.2206 | J76: 188.8999289 | K76: 17.04360807 | L76: -0.2331524958 | M76: 0.01430001908 | N76: 4.021292073 | O76: =IF(N76<CTLBB!$L$43,N76,(CTLBB!$L$43-CTLBB!$L$43*CTLBB!$L$42)+CTLBB!$L$42*N76) -> 4.021292073 | P76: -0.109 | T76: 0.0001269820584 | U76: -3.896257637 | V76: 156.3092949 | W76: 6.397572203 | Y76: =10^(CTLBB!$J$20*$O76+LOG(CTLBB!$J$21)-LOG(CTLBB!$J$22)+$P76-CTLBB!$J$23*(CTLBB!$J$24*$O76^2+CTLBB!$J$25+CTLBB!$J$26)^0.5)*I76*1000 -> 46.43850071
A77: 74 | B77: 105-05-5 | C77: 1,4-Diethylbenzene | D77: CCc1ccc(CC)cc1 | E77: 10 | F77: Mono-Aromatic | G77: 11 | H77: 2 | I77: 134.2206 | J77: 193.1320613 | K77: 16.40774177 | L77: -0.3033044418 | M77: 0.01216703258 | N77: 4.032720024 | O77: =IF(N77<CTLBB!$L$43,N77,(CTLBB!$L$43-CTLBB!$L$43*CTLBB!$L$42)+CTLBB!$L$42*N77) -> 4.032720024 | P77: -0.109 | T77: 0.0001222445866 | U77: -3.912770364 | V77: 156.3087955 | W77: 6.397592642 | Y77: =10^(CTLBB!$J$20*$O77+LOG(CTLBB!$J$21)-LOG(CTLBB!$J$22)+$P77-CTLBB!$J$23*(CTLBB!$J$24*$O77^2+CTLBB!$J$25+CTLBB!$J$26)^0.5)*I77*1000 -> 45.30341361
A78: 75 | B78: 1074-55-1 | C78: 1-Methyl-4-propylbenzene | D78: Cc1ccc(CCC)cc1 | E78: 10 | F78: Mono-Aromatic | G78: 11 | H78: 2 | I78: 134.2206 | J78: 196.4411388 | K78: 16.05138402 | L78: -0.3587831883 | M78: 0.01070793989 | N78: 4.039582958 | O78: =IF(N78<CTLBB!$L$43,N78,(CTLBB!$L$43-CTLBB!$L$43*CTLBB!$L$42)+CTLBB!$L$42*N78) -> 4.039582958 | P78: -0.109 | T78: 0.0001195895714 | U78: -3.922306691 | V78: 156.0161834 | W78: 6.40959148 | Y78: =10^(CTLBB!$J$20*$O78+LOG(CTLBB!$J$21)-LOG(CTLBB!$J$22)+$P78-CTLBB!$J$23*(CTLBB!$J$24*$O78^2+CTLBB!$J$25+CTLBB!$J$26)^0.5)*I78*1000 -> 44.63511994
A79: 76 | B79: 2027-17-0 | C79: 2-iso-Propylnaphthalene | D79: CC(C)c1ccc2ccccc2c1 | E79: 13 | F79: Di-Aromatics | G79: 13 | H79: 2 | I79: 170.2536 | J79: 257.0617462 | K79: 4.554673219 | L79: -1.477276968 | M79: 0.0008151023485 | N79: 4.65557322 | O79: =IF(N79<CTLBB!$L$43,N79,(CTLBB!$L$43-CTLBB!$L$43*CTLBB!$L$42)+CTLBB!$L$42*N79) -> 4.65557322 | P79: -0.352 | T79: 2.675228729e-05 | U79: -4.57263908 | V79: 174.6772504 | W79: 5.724843949 | Y79: =10^(CTLBB!$J$20*$O79+LOG(CTLBB!$J$21)-LOG(CTLBB!$J$22)+$P79-CTLBB!$J$23*(CTLBB!$J$24*$O79^2+CTLBB!$J$25+CTLBB!$J$26)^0.5)*I79*1000 -> 8.52002205
A80: 77 | B80: 644-08-6 | C80: 4-Methylbiphenyl | D80: c1ccccc1c2ccc(C)cc2 | E80: 13 | F80: Di-Aromatics | G80: 13 | H80: 2 | I80: 168.2378 | J80: 268.7265911 | K80: 4.028683276 | L80: -1.582003768 | M80: 0.00064045017 | N80: 4.557512226 | O80: =IF(N80<CTLBB!$L$43,N80,(CTLBB!$L$43-CTLBB!$L$43*CTLBB!$L$42)+CTLBB!$L$42*N80) -> 4.557512226 | P80: -0.109 | T80: 2.394636209e-05 | U80: -4.620760455 | V80: 166.9322399 | W80: 5.990454574 | Y80: =10^(CTLBB!$J$20*$O80+LOG(CTLBB!$J$21)-LOG(CTLBB!$J$22)+$P80-CTLBB!$J$23*(CTLBB!$J$24*$O80^2+CTLBB!$J$25+CTLBB!$J$26)^0.5)*I80*1000 -> 18.22004637
A81: 78 | B81: 1074-43-7 | C81: 1-Methyl-3-propylbenzene | D81: Cc1cc(CCC)ccc1 | E81: 10 | F81: Mono-Aromatic | G81: 11 | H81: 2 | I81: 134.2206 | J81: 192.5852662 | K81: 16.5827388 | L81: -0.2950704978 | M81: 0.01239991234 | N81: 4.030286563 | O81: =IF(N81<CTLBB!$L$43,N81,(CTLBB!$L$43-CTLBB!$L$43*CTLBB!$L$42)+CTLBB!$L$42*N81) -> 4.030286563 | P81: -0.109 | T81: 0.0001235483882 | U81: -3.908162916 | V81: 156.016629 | W81: 6.409573175 | Y81: =10^(CTLBB!$J$20*$O81+LOG(CTLBB!$J$21)-LOG(CTLBB!$J$22)+$P81-CTLBB!$J$23*(CTLBB!$J$24*$O81^2+CTLBB!$J$25+CTLBB!$J$26)^0.5)*I81*1000 -> 45.54277137
A82: 79 | C82: 2-Propylnaphthalene | D82: CCCc1ccc2ccccc2c1 | E82: 13 | F82: Di-Aromatics | G82: 13 | H82: 2 | I82: 170.2536 | J82: 283.9663301 | K82: 2.942299982 | L82: -1.566742412 | M82: 0.0006633560598 | N82: 4.794046216 | O82: =IF(N82<CTLBB!$L$43,N82,(CTLBB!$L$43-CTLBB!$L$43*CTLBB!$L$42)+CTLBB!$L$42*N82) -> 4.794046216 | P82: -0.352 | T82: 1.728186647e-05 | U82: -4.762409355 | V82: 173.5734942 | W82: 5.761248309 | Y82: =10^(CTLBB!$J$20*$O82+LOG(CTLBB!$J$21)-LOG(CTLBB!$J$22)+$P82-CTLBB!$J$23*(CTLBB!$J$24*$O82^2+CTLBB!$J$25+CTLBB!$J$26)^0.5)*I82*1000 -> 6.311192676
A83: 80 | B83: 2765-18-6 | C83: 1-Propylnaphthalene | D83: c1ccc2ccccc2c1CCC | E83: 13 | F83: Di-Aromatics | G83: 13 | H83: 2 | I83: 170.2536 | J83: 284.5012638 | K83: 3.020430135 | L83: -1.593083543 | M83: 0.0006243175885 | N83: 4.782180362 | O83: =IF(N83<CTLBB!$L$43,N83,(CTLBB!$L$43-CTLBB!$L$43*CTLBB!$L$42)+CTLBB!$L$42*N83) -> 4.782180362 | P83: -0.352 | T83: 1.774077103e-05 | U83: -4.751027509 | V83: 173.1719621 | W83: 5.774606859 | Y83: =10^(CTLBB!$J$20*$O83+LOG(CTLBB!$J$21)-LOG(CTLBB!$J$22)+$P83-CTLBB!$J$23*(CTLBB!$J$24*$O83^2+CTLBB!$J$25+CTLBB!$J$26)^0.5)*I83*1000 -> 6.475603639
A84: 81 | C84: Methyl acenaphthene | D84: c12cccc(CC3)c1c3c(C)cc2 | E84: 13 | F84: Naphthenic Di-Aromatic | G84: 14 | H84: 2 | I84: 168.2378 | J84: 300.8679985 | K84: 7.902712494 | L84: -2.94175087 | M84: 2.797294829e-05 | N84: 4.321987764 | O84: =IF(N84<CTLBB!$L$43,N84,(CTLBB!$L$43-CTLBB!$L$43*CTLBB!$L$42)+CTLBB!$L$42*N84) -> 4.321987764 | P84: -0.352 | T84: 4.69734655e-05 | U84: -4.328147398 | V84: 156.472918 | W84: 6.390882288 | Y84: =10^(CTLBB!$J$20*$O84+LOG(CTLBB!$J$21)-LOG(CTLBB!$J$22)+$P84-CTLBB!$J$23*(CTLBB!$J$24*$O84^2+CTLBB!$J$25+CTLBB!$J$26)^0.5)*I84*1000 -> 17.34404229
A85: 82 | C85: Methyl naphtho[21b]thiophene | D85: c1sc2ccc3cc(C)ccc3c2c1 | E85: 13 | F85: S-containing Aromatics | G85: 16 | H85: 3 | I85: 198.288 | J85: 330.9119079 | K85: 1.383480661 | L85: -3.651568375 | M85: 5.456582647e-06 | N85: 4.964302549 | O85: =IF(N85<CTLBB!$L$43,N85,(CTLBB!$L$43-CTLBB!$L$43*CTLBB!$L$42)+CTLBB!$L$42*N85) -> 4.964302549 | P85: 0 | T85: 6.977127517e-06 | U85: -5.15632334 | V85: 168.4972604 | W85: 5.934814592 | Y85: =10^(CTLBB!$J$20*$O85+LOG(CTLBB!$J$21)-LOG(CTLBB!$J$22)+$P85-CTLBB!$J$23*(CTLBB!$J$24*$O85^2+CTLBB!$J$25+CTLBB!$J$26)^0.5)*I85*1000 -> 11.42983548
A86: 83 | C86: Methyl dibenzothiophene | D86: c1ccc2sc3ccc(C)cc3c2c1 | E86: 13 | F86: S-containing Aromatics | G86: 16 | H86: 3 | I86: 198.288 | J86: 341.5255648 | K86: 1.09534436 | L86: -3.442742736 | M86: 8.82564342e-06 | N86: 4.805995747 | O86: =IF(N86<CTLBB!$L$43,N86,(CTLBB!$L$43-CTLBB!$L$43*CTLBB!$L$42)+CTLBB!$L$42*N86) -> 4.805995747 | P86: 0 | T86: 5.524007302e-06 | U86: -5.257745756 | V86: 170.4931901 | W86: 5.865336906 | Y86: =10^(CTLBB!$J$20*$O86+LOG(CTLBB!$J$21)-LOG(CTLBB!$J$22)+$P86-CTLBB!$J$23*(CTLBB!$J$24*$O86^2+CTLBB!$J$25+CTLBB!$J$26)^0.5)*I86*1000 -> 16.10882394
A87: 84 | C87: 2,3,6-Trimethylnaphthalene | D87: Cc1c(C)cc2cc(C)ccc2c1 | E87: 13 | F87: Di-Aromatics | G87: 13 | H87: 2 | I87: 170.2536 | J87: 288.9696271 | K87: 4.653071218 | L87: -1.997327039 | M87: 0.0002461285956 | N87: 4.66888289 | O87: =IF(N87<CTLBB!$L$43,N87,(CTLBB!$L$43-CTLBB!$L$43*CTLBB!$L$42)+CTLBB!$L$42*N87) -> 4.66888289 | P87: -0.352 | T87: 2.733023688e-05 | U87: -4.563356604 | V87: 170.8038063 | W87: 5.854670466 | Y87: =10^(CTLBB!$J$20*$O87+LOG(CTLBB!$J$21)-LOG(CTLBB!$J$22)+$P87-CTLBB!$J$23*(CTLBB!$J$24*$O87^2+CTLBB!$J$25+CTLBB!$J$26)^0.5)*I87*1000 -> 8.277795548
A88: 85 | C88: 2,3,7-Trimethylnaphthalene | D88: Cc1c(C)cc2ccc(C)cc2c1 | E88: 13 | F88: Di-Aromatics | G88: 13 | H88: 2 | I88: 170.2536 | J88: 289.6106454 | K88: 4.46612428 | L88: -2.023465489 | M88: 0.0002317520708 | N88: 4.681279415 | O88: =IF(N88<CTLBB!$L$43,N88,(CTLBB!$L$43-CTLBB!$L$43*CTLBB!$L$42)+CTLBB!$L$42*N88) -> 4.681279415 | P88: -0.352 | T88: 2.623218704e-05 | U88: -4.5811655 | V88: 170.803607 | W88: 5.854677297 | Y88: =10^(CTLBB!$J$20*$O88+LOG(CTLBB!$J$21)-LOG(CTLBB!$J$22)+$P88-CTLBB!$J$23*(CTLBB!$J$24*$O88^2+CTLBB!$J$25+CTLBB!$J$26)^0.5)*I88*1000 -> 8.058382599
A89: 86 | C89: Ethyl perhydro-dibenzothiophene | D89: C1CCC2SC3CCC(CC)CC3C2C1 | E89: 14 | F89: S-containing Aliphatics | G89: 10 | H89: 3 | I89: 224.4096 | J89: 295.2664006 | K89: 2.277551411 | L89: -3.120232004 | M89: 1.854629267e-05 | N89: 4.8653924 | O89: =IF(N89<CTLBB!$L$43,N89,(CTLBB!$L$43-CTLBB!$L$43*CTLBB!$L$42)+CTLBB!$L$42*N89) -> 4.8653924 | P89: 0 | T89: 1.014908191e-05 | U89: -4.993573243 | V89: 224.6894703 | W89: 4.450586841 | Y89: =10^(CTLBB!$J$20*$O89+LOG(CTLBB!$J$21)-LOG(CTLBB!$J$22)+$P89-CTLBB!$J$23*(CTLBB!$J$24*$O89^2+CTLBB!$J$25+CTLBB!$J$26)^0.5)*I89*1000 -> 16.02869944
A90: 87 | C90: 5-Phenyl-benzo[b]thiophene | D90: c1sc2ccc(c3ccccc3)cc2c1 | E90: 14 | F90: S-containing Aromatics | G90: 16 | H90: 3 | I90: 210.299 | J90: 337.6876281 | K90: 0.5854822287 | L90: -3.387366195 | M90: 1.002588959e-05 | N90: 5.106632374 | O90: =IF(N90<CTLBB!$L$43,N90,(CTLBB!$L$43-CTLBB!$L$43*CTLBB!$L$42)+CTLBB!$L$42*N90) -> 5.106632374 | P90: 0 | T90: 2.784046661e-06 | U90: -5.55532349 | V90: 179.0598284 | W90: 5.584725558 | Y90: =10^(CTLBB!$J$20*$O90+LOG(CTLBB!$J$21)-LOG(CTLBB!$J$22)+$P90-CTLBB!$J$23*(CTLBB!$J$24*$O90^2+CTLBB!$J$25+CTLBB!$J$26)^0.5)*I90*1000 -> 8.903773733
A91: 88 | C91: Methyl dihydro-naphtho[21b]thiophene | D91: C1Sc2ccc3cc(C)ccc3c2C1 | E91: 13 | F91: S-containing Aromatics | G91: 16 | H91: 3 | I91: 200.3038 | J91: 365.5388473 | K91: 1.563518319 | L91: -4.561496122 | M91: 6.714180162e-07 | N91: 4.756734098 | O91: =IF(N91<CTLBB!$L$43,N91,(CTLBB!$L$43-CTLBB!$L$43*CTLBB!$L$42)+CTLBB!$L$42*N91) -> 4.756734098 | P91: 0 | T91: 7.805734686e-06 | U91: -5.107586214 | V91: 170.1260555 | W91: 5.877994392 | Y91: =10^(CTLBB!$J$20*$O91+LOG(CTLBB!$J$21)-LOG(CTLBB!$J$22)+$P91-CTLBB!$J$23*(CTLBB!$J$24*$O91^2+CTLBB!$J$25+CTLBB!$J$26)^0.5)*I91*1000 -> 18.10606645
A92: 89 | B92: #44 | C92: 4-Thiacyclopenta[def]phenanthrene | D92: c1(s4)cccc2c1c(c4ccc3)c3cc2 | E92: 14 | F92: S-containing Aromatics | G92: 16 | H92: 3 | I92: 208.2832 | J92: 389.3202927 | K92: 2.319240421 | L92: -5.342995258 | M92: 1.110436822e-07 | N92: 4.455021606 | O92: =IF(N92<CTLBB!$L$43,N92,(CTLBB!$L$43-CTLBB!$L$43*CTLBB!$L$42)+CTLBB!$L$42*N92) -> 4.455021606 | P92: 0 | T92: 1.113503355e-05 | U92: -4.95330847 | V92: 161.7022506 | W92: 6.184205826 | Y92: =10^(CTLBB!$J$20*$O92+LOG(CTLBB!$J$21)-LOG(CTLBB!$J$22)+$P92-CTLBB!$J$23*(CTLBB!$J$24*$O92^2+CTLBB!$J$25+CTLBB!$J$26)^0.5)*I92*1000 -> 36.20087911
A93: 90 | C93: iso-Propyl indan | D93: c1ccc2CC(C(C)C)Cc2c1 | E93: 12 | F93: Naphthenic Mono-Aromatics | G93: 12 | H93: 2 | I93: 160.2584 | J93: 230.6394717 | K93: 7.681639596 | L93: -1.187378968 | M93: 0.001588949684 | N93: 4.334513491 | O93: =IF(N93<CTLBB!$L$43,N93,(CTLBB!$L$43-CTLBB!$L$43*CTLBB!$L$42)+CTLBB!$L$42*N93) -> 4.334513491 | P93: -0.109 | T93: 4.793283595e-05 | U93: -4.319366875 | V93: 174.6290139 | W93: 5.72642528 | Y93: =10^(CTLBB!$J$20*$O93+LOG(CTLBB!$J$21)-LOG(CTLBB!$J$22)+$P93-CTLBB!$J$23*(CTLBB!$J$24*$O93^2+CTLBB!$J$25+CTLBB!$J$26)^0.5)*I93*1000 -> 28.13609452
A94: 91 | C94: 1,2-Dimethyl tetralin | D94: c1ccc2C(C)C(C)CCc2c1 | E94: 12 | F94: Naphthenic Mono-Aromatics | G94: 12 | H94: 2 | I94: 160.2584 | J94: 225.788617 | K94: 9.534225648 | L94: -1.061875883 | M94: 0.002121354405 | N94: 4.268478084 | O94: =IF(N94<CTLBB!$L$43,N94,(CTLBB!$L$43-CTLBB!$L$43*CTLBB!$L$42)+CTLBB!$L$42*N94) -> 4.268478084 | P94: -0.109 | T94: 5.949282938e-05 | U94: -4.225535376 | V94: 173.7364548 | W94: 5.755844399 | Y94: =10^(CTLBB!$J$20*$O94+LOG(CTLBB!$J$21)-LOG(CTLBB!$J$22)+$P94-CTLBB!$J$23*(CTLBB!$J$24*$O94^2+CTLBB!$J$25+CTLBB!$J$26)^0.5)*I94*1000 -> 32.46276646
A95: 92 | C95: 1,3-Dimethyl tetralin | D95: c1ccc2C(C)CC(C)Cc2c1 | E95: 12 | F95: Naphthenic Mono-Aromatics | G95: 12 | H95: 2 | I95: 160.2584 | J95: 226.9669534 | K95: 9.430636431 | L95: -1.066754545 | M95: 0.002097657444 | N95: 4.271766726 | O95: =IF(N95<CTLBB!$L$43,N95,(CTLBB!$L$43-CTLBB!$L$43*CTLBB!$L$42)+CTLBB!$L$42*N95) -> 4.271766726 | P95: -0.109 | T95: 5.884644069e-05 | U95: -4.2302798 | V95: 173.7641431 | W95: 5.754927236 | Y95: =10^(CTLBB!$J$20*$O95+LOG(CTLBB!$J$21)-LOG(CTLBB!$J$22)+$P95-CTLBB!$J$23*(CTLBB!$J$24*$O95^2+CTLBB!$J$25+CTLBB!$J$26)^0.5)*I95*1000 -> 32.23234505
A96: 93 | B96: 4175-54-6 | C96: 1,4-Dimethyl tetralin | D96: c1ccc2C(C)CCC(C)c2c1 | E96: 12 | F96: Naphthenic Mono-Aromatics | G96: 12 | H96: 2 | I96: 160.2584 | J96: 222.6526747 | K96: 10.16251007 | L96: -1.073839437 | M96: 0.002063714787 | N96: 4.243208315 | O96: =IF(N96<CTLBB!$L$43,N96,(CTLBB!$L$43-CTLBB!$L$43*CTLBB!$L$42)+CTLBB!$L$42*N96) -> 4.243208315 | P96: -0.109 | T96: 6.341327552e-05 | U96: -4.197819813 | V96: 173.4124416 | W96: 5.766598928 | Y96: =10^(CTLBB!$J$20*$O96+LOG(CTLBB!$J$21)-LOG(CTLBB!$J$22)+$P96-CTLBB!$J$23*(CTLBB!$J$24*$O96^2+CTLBB!$J$25+CTLBB!$J$26)^0.5)*I96*1000 -> 34.28912453
A97: 94 | B97: #54 | C97: 5-Phenyl-dihydrobenzo[b]thiophene | D97: C1Sc2ccc(c3ccccc3)cc2C1 | E97: 14 | F97: S-containing Aromatics | G97: 16 | H97: 3 | I97: 212.3148 | J97: 369.9718719 | K97: 0.6914195872 | L97: -4.298827769 | M97: 1.2293098e-06 | N97: 4.863875349 | O97: =IF(N97<CTLBB!$L$43,N97,(CTLBB!$L$43-CTLBB!$L$43*CTLBB!$L$42)+CTLBB!$L$42*N97) -> 4.863875349 | P97: 0 | T97: 3.256577437e-06 | U97: -5.48723859 | V97: 180.7265412 | W97: 5.533221593 | Y97: =10^(CTLBB!$J$20*$O97+LOG(CTLBB!$J$21)-LOG(CTLBB!$J$22)+$P97-CTLBB!$J$23*(CTLBB!$J$24*$O97^2+CTLBB!$J$25+CTLBB!$J$26)^0.5)*I97*1000 -> 15.21476266
A98: 95 | B98: 5707-44-8 | C98: 4-Ethylbiphenyl | D98: c1ccccc1c2ccc(CC)cc2 | E98: 14 | F98: Di-Aromatics | G98: 13 | H98: 2 | I98: 182.2646 | J98: 291.6640053 | K98: 1.426365806 | L98: -1.517573362 | M98: 0.0007428750128 | N98: 4.988468117 | O98: =IF(N98<CTLBB!$L$43,N98,(CTLBB!$L$43-CTLBB!$L$43*CTLBB!$L$42)+CTLBB!$L$42*N98) -> 4.988468117 | P98: -0.109 | T98: 7.825797255e-06 | U98: -5.106471408 | V98: 183.6099572 | W98: 5.446327722 | Y98: =10^(CTLBB!$J$20*$O98+LOG(CTLBB!$J$21)-LOG(CTLBB!$J$22)+$P98-CTLBB!$J$23*(CTLBB!$J$24*$O98^2+CTLBB!$J$25+CTLBB!$J$26)^0.5)*I98*1000 -> 7.757021399
A99: 96 | C99: 1,2,3-Trimethylnaphthalene | D99: Cc1c(C)cc2ccccc2c1C | E99: 13 | F99: Di-Aromatics | G99: 13 | H99: 2 | I99: 170.2536 | J99: 290.7747322 | K99: 5.037560653 | L99: -2.07405619 | M99: 0.0002062685058 | N99: 4.632925884 | O99: =IF(N99<CTLBB!$L$43,N99,(CTLBB!$L$43-CTLBB!$L$43*CTLBB!$L$42)+CTLBB!$L$42*N99) -> 4.632925884 | P99: -0.352 | T99: 2.958857054e-05 | U99: -4.528876016 | V99: 169.5698172 | W99: 5.89727592 | Y99: =10^(CTLBB!$J$20*$O99+LOG(CTLBB!$J$21)-LOG(CTLBB!$J$22)+$P99-CTLBB!$J$23*(CTLBB!$J$24*$O99^2+CTLBB!$J$25+CTLBB!$J$26)^0.5)*I99*1000 -> 8.948581241
A100: 97 | B100: 2717-42-2 | C100: 1,2,4-Trimethylnaphthalene | D100: Cc1cc(C)c2ccccc2c1C | E100: 13 | F100: Di-Aromatics | G100: 13 | H100: 2 | I100: 170.2536 | J100: 289.0735336 | K100: 4.824719501 | L100: -2.00272547 | M100: 0.0002430880687 | N100: 4.65517297 | O100: =IF(N100<CTLBB!$L$43,N100,(CTLBB!$L$43-CTLBB!$L$43*CTLBB!$L$42)+CTLBB!$L$42*N100) -> 4.65517297 | P100: -0.352 | T100: 2.833842868e-05 | U100: -4.547624234 | V100: 170.5018629 | W100: 5.865038556 | Y100: =10^(CTLBB!$J$20*$O100+LOG(CTLBB!$J$21)-LOG(CTLBB!$J$22)+$P100-CTLBB!$J$23*(CTLBB!$J$24*$O100^2+CTLBB!$J$25+CTLBB!$J$26)^0.5)*I100*1000 -> 8.527415008
A101: 98 | B101: 641-91-8 | C101: 1,2,5-Trimethylnaphthalene | D101: Cc1ccc2c(C)cccc2c1C | E101: 13 | F101: Di-Aromatics | G101: 13 | H101: 2 | I101: 170.2536 | J101: 289.3276778 | K101: 4.733830506 | L101: -2.014863826 | M101: 0.0002363879243 | N101: 4.660929744 | O101: =IF(N101<CTLBB!$L$43,N101,(CTLBB!$L$43-CTLBB!$L$43*CTLBB!$L$42)+CTLBB!$L$42*N101) -> 4.660929744 | P101: -0.352 | T101: 2.78045839e-05 | U101: -4.5558836 | V101: 170.5017702 | W101: 5.865041745 | Y101: =10^(CTLBB!$J$20*$O101+LOG(CTLBB!$J$21)-LOG(CTLBB!$J$22)+$P101-CTLBB!$J$23*(CTLBB!$J$24*$O101^2+CTLBB!$J$25+CTLBB!$J$26)^0.5)*I101*1000 -> 8.421696745
A102: 99 | C102: 2,3,4-Trimethylnaphthalene | D102: Cc1c(C)c(C)c2ccccc2c1 | E102: 13 | F102: Di-Aromatics | G102: 13 | H102: 2 | I102: 170.2536 | J102: 290.7747322 | K102: 5.037560653 | L102: -2.07405619 | M102: 0.0002062685058 | N102: 4.632925884 | O102: =IF(N102<CTLBB!$L$43,N102,(CTLBB!$L$43-CTLBB!$L$43*CTLBB!$L$42)+CTLBB!$L$42*N102) -> 4.632925884 | P102: -0.352 | T102: 2.958857054e-05 | U102: -4.528876016 | V102: 169.5698172 | W102: 5.89727592 | Y102: =10^(CTLBB!$J$20*$O102+LOG(CTLBB!$J$21)-LOG(CTLBB!$J$22)+$P102-CTLBB!$J$23*(CTLBB!$J$24*$O102^2+CTLBB!$J$25+CTLBB!$J$26)^0.5)*I102*1000 -> 8.948581241
A103: 100 | C103: 2,3,5-Trimethylnaphthalene | D103: Cc1c(C)cc2c(C)cccc2c1 | E103: 13 | F103: Di-Aromatics | G103: 13 | H103: 2 | I103: 170.2536 | J103: 289.1378509 | K103: 4.690923649 | L103: -2.005572993 | M103: 0.0002414994356 | N103: 4.665143197 | O103: =IF(N103<CTLBB!$L$43,N103,(CTLBB!$L$43-CTLBB!$L$43*CTLBB!$L$42)+CTLBB!$L$42*N103) -> 4.665143197 | P103: -0.352 | T103: 2.755256658e-05 | U103: -4.559837939 | V103: 170.6617859 | W103: 5.859542574 | Y103: =10^(CTLBB!$J$20*$O103+LOG(CTLBB!$J$21)-LOG(CTLBB!$J$22)+$P103-CTLBB!$J$23*(CTLBB!$J$24*$O103^2+CTLBB!$J$25+CTLBB!$J$26)^0.5)*I103*1000 -> 8.34515144
A104: 101 | C104: 2,3,8-Trimethylnaphthalene | D104: Cc1c(C)cc2cccc(C)c2c1 | E104: 13 | F104: Di-Aromatics | G104: 13 | H104: 2 | I104: 170.2536 | J104: 289.7779924 | K104: 4.502076768 | L104: -2.031711455 | M104: 0.0002273932967 | N104: 4.677539717 | O104: =IF(N104<CTLBB!$L$43,N104,(CTLBB!$L$43-CTLBB!$L$43*CTLBB!$L$42)+CTLBB!$L$42*N104) -> 4.677539717 | P104: -0.352 | T104: 2.644335725e-05 | U104: -4.577683408 | V104: 170.6615864 | W104: 5.859549422 | Y104: =10^(CTLBB!$J$20*$O104+LOG(CTLBB!$J$21)-LOG(CTLBB!$J$22)+$P104-CTLBB!$J$23*(CTLBB!$J$24*$O104^2+CTLBB!$J$25+CTLBB!$J$26)^0.5)*I104*1000 -> 8.123954161
A105: 102 | C105: 2,4,5-Trimethylnaphthalene | D105: Cc1cc(C)c2c(C)cccc2c1 | E105: 13 | F105: Di-Aromatics | G105: 13 | H105: 2 | I105: 170.2536 | J105: 284.1547848 | K105: 4.117271946 | L105: -1.85270772 | M105: 0.0003433850579 | N105: 4.722294012 | O105: =IF(N105<CTLBB!$L$43,N105,(CTLBB!$L$43-CTLBB!$L$43*CTLBB!$L$42)+CTLBB!$L$42*N105) -> 4.722294012 | P105: -0.352 | T105: 2.418317114e-05 | U105: -4.616486751 | V105: 172.0946415 | W105: 5.810756172 | Y105: =10^(CTLBB!$J$20*$O105+LOG(CTLBB!$J$21)-LOG(CTLBB!$J$22)+$P105-CTLBB!$J$23*(CTLBB!$J$24*$O105^2+CTLBB!$J$25+CTLBB!$J$26)^0.5)*I105*1000 -> 7.373036827
A106: 103 | C106: 2,4,6-Trimethylnaphthalene | D106: Cc1cc(C)c2cc(C)ccc2c1 | E106: 13 | F106: Di-Aromatics | G106: 13 | H106: 2 | I106: 170.2536 | J106: 287.2106416 | K106: 4.061400438 | L106: -1.926087057 | M106: 0.0002900027098 | N106: 4.72402312 | O106: =IF(N106<CTLBB!$L$43,N106,(CTLBB!$L$43-CTLBB!$L$43*CTLBB!$L$42)+CTLBB!$L$42*N106) -> 4.72402312 | P106: -0.352 | T106: 2.385500476e-05 | U106: -4.622420492 | V106: 172.2363099 | W106: 5.805976687 | Y106: =10^(CTLBB!$J$20*$O106+LOG(CTLBB!$J$21)-LOG(CTLBB!$J$22)+$P106-CTLBB!$J$23*(CTLBB!$J$24*$O106^2+CTLBB!$J$25+CTLBB!$J$26)^0.5)*I106*1000 -> 7.345459839
A107: 104 | C107: 2,4,7-Trimethylnaphthalene | D107: Cc1cc(C)c2ccc(C)cc2c1 | E107: 13 | F107: Di-Aromatics | G107: 13 | H107: 2 | I107: 170.2536 | J107: 283.9939007 | K107: 4.083008547 | L107: -1.844461127 | M107: 0.0003499677184 | N107: 4.726034969 | O107: =IF(N107<CTLBB!$L$43,N107,(CTLBB!$L$43-CTLBB!$L$43*CTLBB!$L$42)+CTLBB!$L$42*N107) -> 4.726034969 | P107: -0.352 | T107: 2.398192195e-05 | U107: -4.620116015 | V107: 172.2366836 | W107: 5.805964092 | Y107: =10^(CTLBB!$J$20*$O107+LOG(CTLBB!$J$21)-LOG(CTLBB!$J$22)+$P107-CTLBB!$J$23*(CTLBB!$J$24*$O107^2+CTLBB!$J$25+CTLBB!$J$26)^0.5)*I107*1000 -> 7.313503243
A108: 105 | C108: 2,4,8-Trimethylnaphthalene | D108: Cc1cc(C)c2cccc(C)c2c1 | E108: 13 | F108: Di-Aromatics | G108: 13 | H108: 2 | I108: 170.2536 | J108: 287.3739785 | K108: 4.09490891 | L108: -1.934333672 | M108: 0.0002845479368 | N108: 4.720282155 | O108: =IF(N108<CTLBB!$L$43,N108,(CTLBB!$L$43-CTLBB!$L$43*CTLBB!$L$42)+CTLBB!$L$42*N108) -> 4.720282155 | P108: -0.352 | T108: 2.405181981e-05 | U108: -4.618852058 | V108: 172.0942675 | W108: 5.810768799 | Y108: =10^(CTLBB!$J$20*$O108+LOG(CTLBB!$J$21)-LOG(CTLBB!$J$22)+$P108-CTLBB!$J$23*(CTLBB!$J$24*$O108^2+CTLBB!$J$25+CTLBB!$J$26)^0.5)*I108*1000 -> 7.405253567
A109: 106 | C109: Methyl hexahydro-dibenzothiophene | D109: c1ccc2SC3CCC(C)CC3c2c1 | E109: 13 | F109: S-containing Aromatics | G109: 16 | H109: 3 | I109: 204.3354 | J109: 325.3933724 | K109: 2.934116947 | L109: -3.306443584 | M109: 1.207940461e-05 | N109: 4.575831872 | O109: =IF(N109<CTLBB!$L$43,N109,(CTLBB!$L$43-CTLBB!$L$43*CTLBB!$L$42)+CTLBB!$L$42*N109) -> 4.575831872 | P109: 0 | T109: 1.43593178e-05 | U109: -4.842866192 | V109: 189.0188999 | W109: 5.290476246 | Y109: =10^(CTLBB!$J$20*$O109+LOG(CTLBB!$J$21)-LOG(CTLBB!$J$22)+$P109-CTLBB!$J$23*(CTLBB!$J$24*$O109^2+CTLBB!$J$25+CTLBB!$J$26)^0.5)*I109*1000 -> 27.33571079
A110: 107 | B110: #47 | C110: Perhydro-benzo[b]naphtho[12d]thiophene | D110: C1CCC2SC3CCC4CCCCC4C3C2C1 | E110: 16 | F110: S-containing Aliphatics | G110: 10 | H110: 3 | I110: 250.4474 | J110: 346.0395452 | K110: 0.6278189362 | L110: -4.127389072 | M110: 1.824315888e-06 | N110: 5.214448184 | O110: =IF(N110<CTLBB!$L$43,N110,(CTLBB!$L$43-CTLBB!$L$43*CTLBB!$L$42)+CTLBB!$L$42*N110) -> 5.214448184 | P110: 0 | T110: 2.506789594e-06 | U110: -5.600882117 | V110: 239.7466662 | W110: 4.17106947 | Y110: =10^(CTLBB!$J$20*$O110+LOG(CTLBB!$J$21)-LOG(CTLBB!$J$22)+$P110-CTLBB!$J$23*(CTLBB!$J$24*$O110^2+CTLBB!$J$25+CTLBB!$J$26)^0.5)*I110*1000 -> 8.393210201
A111: 108 | C111: 2,3-Dimethyl biphenyl | D111: Cc1c(C)cccc1c2ccccc2 | E111: 14 | F111: Di-Aromatics | G111: 13 | H111: 2 | I111: 182.2646 | J111: 285.0780422 | K111: 1.581128877 | L111: -1.513743002 | M111: 0.0007494559481 | N111: 4.977178403 | O111: =IF(N111<CTLBB!$L$43,N111,(CTLBB!$L$43-CTLBB!$L$43*CTLBB!$L$42)+CTLBB!$L$42*N111) -> 4.977178403 | P111: -0.109 | T111: 8.674909318e-06 | U111: -5.061735056 | V111: 182.1971143 | W111: 5.488561133 | Y111: =10^(CTLBB!$J$20*$O111+LOG(CTLBB!$J$21)-LOG(CTLBB!$J$22)+$P111-CTLBB!$J$23*(CTLBB!$J$24*$O111^2+CTLBB!$J$25+CTLBB!$J$26)^0.5)*I111*1000 -> 7.949208097
A112: 109 | C112: 2,4-Dimethyl biphenyl | D112: Cc1cc(C)ccc1c2ccccc2 | E112: 14 | F112: Di-Aromatics | G112: 13 | H112: 2 | I112: 182.2646 | J112: 287.411346 | K112: 1.432055869 | L112: -1.55192696 | M112: 0.0006863760999 | N112: 5.010269761 | O112: =IF(N112<CTLBB!$L$43,N112,(CTLBB!$L$43-CTLBB!$L$43*CTLBB!$L$42)+CTLBB!$L$42*N112) -> 5.010269761 | P112: -0.109 | T112: 7.85701595e-06 | U112: -5.104742365 | V112: 183.2906189 | W112: 5.455816593 | Y112: =10^(CTLBB!$J$20*$O112+LOG(CTLBB!$J$21)-LOG(CTLBB!$J$22)+$P112-CTLBB!$J$23*(CTLBB!$J$24*$O112^2+CTLBB!$J$25+CTLBB!$J$26)^0.5)*I112*1000 -> 7.398933197
A113: 110 | B113: 2531-84-2 | C113: 2-Methylphenanthrene | D113: c1cc2c3ccc(C)cc3ccc2cc1 | E113: 15 | F113: Poly-Aromatic | G113: 15 | H113: 2 | I113: 192.2598 | J113: 353.7725606 | K113: 1.252073248 | L113: -2.939693303 | M113: 2.810579083e-05 | N113: 5.076547997 | O113: =IF(N113<CTLBB!$L$43,N113,(CTLBB!$L$43-CTLBB!$L$43*CTLBB!$L$42)+CTLBB!$L$42*N113) -> 5.076547997 | P113: -0.352 | T113: 6.51240274e-06 | U113: -5.18625875 | V113: 176.482018 | W113: 5.666299668 | Y113: =10^(CTLBB!$J$20*$O113+LOG(CTLBB!$J$21)-LOG(CTLBB!$J$22)+$P113-CTLBB!$J$23*(CTLBB!$J$24*$O113^2+CTLBB!$J$25+CTLBB!$J$26)^0.5)*I113*1000 -> 3.863245392
A114: 111 | C114: n-Propyl indan | D114: c1ccc2CC(CCC)Cc2c1 | E114: 12 | F114: Naphthenic Mono-Aromatics | G114: 12 | H114: 2 | I114: 160.2584 | J114: 234.6252809 | K114: 4.310452166 | L114: -1.029580146 | M114: 0.002285119767 | N114: 4.526928844 | O114: =IF(N114<CTLBB!$L$43,N114,(CTLBB!$L$43-CTLBB!$L$43*CTLBB!$L$42)+CTLBB!$L$42*N114) -> 4.526928844 | P114: -0.109 | T114: 2.689688757e-05 | U114: -4.570297972 | V114: 173.9038994 | W114: 5.750302343 | Y114: =10^(CTLBB!$J$20*$O114+LOG(CTLBB!$J$21)-LOG(CTLBB!$J$22)+$P114-CTLBB!$J$23*(CTLBB!$J$24*$O114^2+CTLBB!$J$25+CTLBB!$J$26)^0.5)*I114*1000 -> 18.54494055
A115: 112 | B115: 32367-54-7 | C115: Ethyl tetralin | D115: c1ccc2CC(CC)CCc2c1 | E115: 12 | F115: Naphthenic Mono-Aromatics | G115: 12 | H115: 2 | I115: 160.2584 | J115: 235.3241886 | K115: 4.870992042 | L115: -1.079548616 | M115: 0.002036763001 | N115: 4.475107031 | O115: =IF(N115<CTLBB!$L$43,N115,(CTLBB!$L$43-CTLBB!$L$43*CTLBB!$L$42)+CTLBB!$L$42*N115) -> 4.475107031 | P115: -0.109 | T115: 3.039461296e-05 | U115: -4.517203382 | V115: 172.1185266 | W115: 5.809949806 | Y115: =10^(CTLBB!$J$20*$O115+LOG(CTLBB!$J$21)-LOG(CTLBB!$J$22)+$P115-CTLBB!$J$23*(CTLBB!$J$24*$O115^2+CTLBB!$J$25+CTLBB!$J$26)^0.5)*I115*1000 -> 20.74851907
A116: 113 | B116: 129-00-0 | C116: Pyrene | D116: c1(ccc3ccc4)cccc2ccc4c3c12 | E116: 16 | F116: Poly-Aromatic | G116: 15 | H116: 2 | I116: 202.255 | J116: 398.6639671 | K116: 1.030567022 | L116: -2.881809859 | M116: 3.211287983e-05 | N116: 5.175262473 | O116: =IF(N116<CTLBB!$L$43,N116,(CTLBB!$L$43-CTLBB!$L$43*CTLBB!$L$42)+CTLBB!$L$42*N116) -> 5.175262473 | P116: -0.352 | T116: 5.09538465e-06 | U116: -5.292823026 | V116: 182.2611928 | W116: 5.486631491 | Y116: =10^(CTLBB!$J$20*$O116+LOG(CTLBB!$J$21)-LOG(CTLBB!$J$22)+$P116-CTLBB!$J$23*(CTLBB!$J$24*$O116^2+CTLBB!$J$25+CTLBB!$J$26)^0.5)*I116*1000 -> 3.281041377
A117: 114 | B117: 538-68-1 | C117: n-Pentylbenzene | D117: c1ccccc1CCCCC | E117: 11 | F117: Mono-Aromatic | G117: 11 | H117: 2 | I117: 148.2474 | J117: 216.9684486 | K117: 2.731261961 | L117: 0.003506524209 | M117: 0.02466014564 | N117: 4.706893255 | O117: =IF(N117<CTLBB!$L$43,N117,(CTLBB!$L$43-CTLBB!$L$43*CTLBB!$L$42)+CTLBB!$L$42*N117) -> 4.706893255 | P117: -0.109 | T117: 1.842367529e-05 | U117: -4.734623729 | V117: 173.0720158 | W117: 5.777941602 | Y117: =10^(CTLBB!$J$20*$O117+LOG(CTLBB!$J$21)-LOG(CTLBB!$J$22)+$P117-CTLBB!$J$23*(CTLBB!$J$24*$O117^2+CTLBB!$J$25+CTLBB!$J$26)^0.5)*I117*1000 -> 11.61534306
A118: 115 | B118: #32 | C118: 1-Phenylnaphthalene | D118: c1ccc2cccc(c3ccccc3)c2c1 | E118: 16 | F118: Poly-Aromatic | G118: 15 | H118: 2 | I118: 204.2708 | J118: 356.2048305 | K118: 0.4743060484 | L118: -2.79650326 | M118: 3.908281641e-05 | N118: 5.478159928 | O118: =IF(N118<CTLBB!$L$43,N118,(CTLBB!$L$43-CTLBB!$L$43*CTLBB!$L$42)+CTLBB!$L$42*N118) -> 5.478159928 | P118: -0.352 | T118: 2.321947378e-06 | U118: -5.634147627 | V118: 184.3125852 | W118: 5.42556548 | Y118: =10^(CTLBB!$J$20*$O118+LOG(CTLBB!$J$21)-LOG(CTLBB!$J$22)+$P118-CTLBB!$J$23*(CTLBB!$J$24*$O118^2+CTLBB!$J$25+CTLBB!$J$26)^0.5)*I118*1000 -> 1.718067131
A119: 116 | C119: Tetrahydro-naphtho[21b]thiophene | D119: c1sc2ccc3CCCCc3c2c1 | E119: 12 | F119: S-containing Aromatics | G119: 16 | H119: 3 | I119: 188.2928 | J119: 335.1142695 | K119: 1.301313217 | L119: -3.049333106 | M119: 2.183514133e-05 | N119: 4.711543073 | O119: =IF(N119<CTLBB!$L$43,N119,(CTLBB!$L$43-CTLBB!$L$43*CTLBB!$L$42)+CTLBB!$L$42*N119) -> 4.711543073 | P119: 0 | T119: 6.911115119e-06 | U119: -5.160451873 | V119: 165.7848981 | W119: 6.031912507 | Y119: =10^(CTLBB!$J$20*$O119+LOG(CTLBB!$J$21)-LOG(CTLBB!$J$22)+$P119-CTLBB!$J$23*(CTLBB!$J$24*$O119^2+CTLBB!$J$25+CTLBB!$J$26)^0.5)*I119*1000 -> 18.77164747
A120: 117 | C120: Ethyl acenaphthylene | D120: c12cccc(C=C3)c1c3c(CC)cc2 | E120: 14 | F120: Poly-Aromatic | G120: 15 | H120: 2 | I120: 180.2488 | J120: 291.1121204 | K120: 8.254119245 | L120: -2.500490711 | M120: 7.726777423e-05 | N120: 4.437518473 | O120: =IF(N120<CTLBB!$L$43,N120,(CTLBB!$L$43-CTLBB!$L$43*CTLBB!$L$42)+CTLBB!$L$42*N120) -> 4.437518473 | P120: -0.352 | T120: 4.579292203e-05 | U120: -4.339201643 | V120: 169.2450397 | W120: 5.908592663 | Y120: =10^(CTLBB!$J$20*$O120+LOG(CTLBB!$J$21)-LOG(CTLBB!$J$22)+$P120-CTLBB!$J$23*(CTLBB!$J$24*$O120^2+CTLBB!$J$25+CTLBB!$J$26)^0.5)*I120*1000 -> 14.46790914
A121: 118 | B121: #11 | C121: Octahydro-phenanthrene | D121: c1ccc2CCC3CCCCC3c2c1 | E121: 14 | F121: Naphthenic Mono-Aromatics | G121: 12 | H121: 2 | I121: 186.2962 | J121: 274.3712123 | K121: 1.331567673 | L121: -1.891863787 | M121: 0.0003137800488 | N121: 4.886485982 | O121: =IF(N121<CTLBB!$L$43,N121,(CTLBB!$L$43-CTLBB!$L$43*CTLBB!$L$42)+CTLBB!$L$42*N121) -> 4.886485982 | P121: -0.109 | T121: 7.147583651e-06 | U121: -5.145840753 | V121: 187.4108919 | W121: 5.335869168 | Y121: =10^(CTLBB!$J$20*$O121+LOG(CTLBB!$J$21)-LOG(CTLBB!$J$22)+$P121-CTLBB!$J$23*(CTLBB!$J$24*$O121^2+CTLBB!$J$25+CTLBB!$J$26)^0.5)*I121*1000 -> 9.890184221
A122: 119 | C122: Ethyl decahydro-1,9-dithia-fluorene | D122: C1CSC2SC3CCC(CC)CC3C2C1 | E122: 13 | F122: S-containing Aliphatics | G122: 10 | H122: 3 | I122: 242.4488 | J122: 335.8473143 | K122: 5.086281558 | L122: -4.638447574 | M122: 5.623951143e-07 | N122: 4.316477117 | O122: =IF(N122<CTLBB!$L$43,N122,(CTLBB!$L$43-CTLBB!$L$43*CTLBB!$L$42)+CTLBB!$L$42*N122) -> 4.316477117 | P122: 0 | T122: 2.097878627e-05 | U122: -4.678219641 | V122: 222.5713519 | W122: 4.492941213 | Y122: =10^(CTLBB!$J$20*$O122+LOG(CTLBB!$J$21)-LOG(CTLBB!$J$22)+$P122-CTLBB!$J$23*(CTLBB!$J$24*$O122^2+CTLBB!$J$25+CTLBB!$J$26)^0.5)*I122*1000 -> 56.88934556
A123: 120 | B123: #39 | C123: Hexahydro-naphtho[21b]thiophene | D123: C1Sc2ccc3CCCCc3c2C1 | E123: 12 | F123: S-containing Aromatics | G123: 16 | H123: 3 | I123: 190.3086 | J123: 373.7999118 | K123: 1.794087884 | L123: -4.053448592 | M123: 2.16292032e-06 | N123: 4.40870339 | O123: =IF(N123<CTLBB!$L$43,N123,(CTLBB!$L$43-CTLBB!$L$43*CTLBB!$L$42)+CTLBB!$L$42*N123) -> 4.40870339 | P123: 0 | T123: 9.42725596e-06 | U123: -5.025614701 | V123: 167.4206365 | W123: 5.972979323 | Y123: =10^(CTLBB!$J$20*$O123+LOG(CTLBB!$J$21)-LOG(CTLBB!$J$22)+$P123-CTLBB!$J$23*(CTLBB!$J$24*$O123^2+CTLBB!$J$25+CTLBB!$J$26)^0.5)*I123*1000 -> 36.56814219
A124: 121 | B124: 613-12-7 | C124: 2-Methyl anthracene | D124: Cc1ccc2cc3ccccc3cc2c1 | E124: 15 | F124: Poly-Aromatic | G124: 15 | H124: 2 | I124: 192.2598 | J124: 357.0395114 | K124: 1.346168249 | L124: -3.043530415 | M124: 2.212884252e-05 | N124: 5.032070625 | O124: =IF(N124<CTLBB!$L$43,N124,(CTLBB!$L$43-CTLBB!$L$43*CTLBB!$L$42)+CTLBB!$L$42*N124) -> 5.032070625 | P124: -0.352 | T124: 7.001818626e-06 | U124: -5.154789143 | V124: 175.0399396 | W124: 5.712981861 | Y124: =10^(CTLBB!$J$20*$O124+LOG(CTLBB!$J$21)-LOG(CTLBB!$J$22)+$P124-CTLBB!$J$23*(CTLBB!$J$24*$O124^2+CTLBB!$J$25+CTLBB!$J$26)^0.5)*I124*1000 -> 4.254314663
A125: 122 | C125: 1,2-Dipropylbenzene | D125: CCCc1c(CCC)cccc1 | E125: 12 | F125: Mono-Aromatic | G125: 11 | H125: 2 | I125: 162.2742 | J125: 232.3709103 | K125: 1.623202281 | L125: -0.1057983236 | M125: 0.01917303165 | N125: 4.960773583 | O125: =IF(N125<CTLBB!$L$43,N125,(CTLBB!$L$43-CTLBB!$L$43*CTLBB!$L$42)+CTLBB!$L$42*N125) -> 4.960773583 | P125: -0.109 | T125: 1.000283644e-05 | U125: -4.999876832 | V125: 185.8944555 | W125: 5.37939659 | Y125: =10^(CTLBB!$J$20*$O125+LOG(CTLBB!$J$21)-LOG(CTLBB!$J$22)+$P125-CTLBB!$J$23*(CTLBB!$J$24*$O125^2+CTLBB!$J$25+CTLBB!$J$26)^0.5)*I125*1000 -> 7.333568399
A126: 123 | C126: 1,3-Dipropylbenzene | D126: CCCc1cc(CCC)ccc1 | E126: 12 | F126: Mono-Aromatic | G126: 11 | H126: 2 | I126: 162.2742 | J126: 232.616404 | K126: 1.099661596 | L126: 0.04298828186 | M126: 0.02700706531 | N126: 5.107731526 | O126: =IF(N126<CTLBB!$L$43,N126,(CTLBB!$L$43-CTLBB!$L$43*CTLBB!$L$42)+CTLBB!$L$42*N126) -> 5.107731526 | P126: -0.109 | T126: 6.776564578e-06 | U126: -5.168990419 | V126: 189.1150926 | W126: 5.287785266 | Y126: =10^(CTLBB!$J$20*$O126+LOG(CTLBB!$J$21)-LOG(CTLBB!$J$22)+$P126-CTLBB!$J$23*(CTLBB!$J$24*$O126^2+CTLBB!$J$25+CTLBB!$J$26)^0.5)*I126*1000 -> 5.332752461
A127: 124 | C127: 1,4-Dipropylbenzene | D127: CCCc1ccc(CCC)cc1 | E127: 12 | F127: Mono-Aromatic | G127: 11 | H127: 2 | I127: 162.2742 | J127: 236.6145941 | K127: 1.050322576 | L127: -0.03264064025 | M127: 0.02269073024 | N127: 5.120918634 | O127: =IF(N127<CTLBB!$L$43,N127,(CTLBB!$L$43-CTLBB!$L$43*CTLBB!$L$42)+CTLBB!$L$42*N127) -> 5.120918634 | P127: -0.109 | T127: 6.472517358e-06 | U127: -5.188926776 | V127: 189.1146382 | W127: 5.28779797 | Y127: =10^(CTLBB!$J$20*$O127+LOG(CTLBB!$J$21)-LOG(CTLBB!$J$22)+$P127-CTLBB!$J$23*(CTLBB!$J$24*$O127^2+CTLBB!$J$25+CTLBB!$J$26)^0.5)*I127*1000 -> 5.182440969
A128: 125 | C128: 1-Methyl-2-pentylbenzene | D128: Cc1c(CCCCC)cccc1 | E128: 12 | F128: Mono-Aromatic | G128: 11 | H128: 2 | I128: 162.2742 | J128: 237.7010782 | K128: 1.364830303 | L128: -0.1660061376 | M128: 0.01669102376 | N128: 5.020900997 | O128: =IF(N128<CTLBB!$L$43,N128,(CTLBB!$L$43-CTLBB!$L$43*CTLBB!$L$42)+CTLBB!$L$42*N128) -> 5.020900997 | P128: -0.109 | T128: 8.410642623e-06 | U128: -5.07517082 | V128: 186.4854629 | W128: 5.362348274 | Y128: =10^(CTLBB!$J$20*$O128+LOG(CTLBB!$J$21)-LOG(CTLBB!$J$22)+$P128-CTLBB!$J$23*(CTLBB!$J$24*$O128^2+CTLBB!$J$25+CTLBB!$J$26)^0.5)*I128*1000 -> 6.437347305
A129: 126 | C129: 1-Methyl-3-pentylbenzene | D129: Cc1cc(CCCCC)ccc1 | E129: 12 | F129: Mono-Aromatic | G129: 11 | H129: 2 | I129: 162.2742 | J129: 237.5744607 | K129: 1.018574181 | L129: -0.03270139119 | M129: 0.02268755638 | N129: 5.132986618 | O129: =IF(N129<CTLBB!$L$43,N129,(CTLBB!$L$43-CTLBB!$L$43*CTLBB!$L$42)+CTLBB!$L$42*N129) -> 5.132986618 | P129: -0.109 | T129: 6.276870762e-06 | U129: -5.202256813 | V129: 189.0209324 | W129: 5.29041936 | Y129: =10^(CTLBB!$J$20*$O129+LOG(CTLBB!$J$21)-LOG(CTLBB!$J$22)+$P129-CTLBB!$J$23*(CTLBB!$J$24*$O129^2+CTLBB!$J$25+CTLBB!$J$26)^0.5)*I129*1000 -> 5.048599433
A130: 127 | C130: 1-Methyl-4-pentylbenzene | D130: Cc1ccc(CCCCC)cc1 | E130: 12 | F130: Mono-Aromatic | G130: 11 | H130: 2 | I130: 162.2742 | J130: 241.0661815 | K130: 0.9836311576 | L130: -0.0968968649 | M130: 0.01957006409 | N130: 5.142343252 | O130: =IF(N130<CTLBB!$L$43,N130,(CTLBB!$L$43-CTLBB!$L$43*CTLBB!$L$42)+CTLBB!$L$42*N130) -> 5.142343252 | P130: -0.109 | T130: 6.061537555e-06 | U130: -5.2174172 | V130: 189.0205585 | W130: 5.290429824 | Y130: =10^(CTLBB!$J$20*$O130+LOG(CTLBB!$J$21)-LOG(CTLBB!$J$22)+$P130-CTLBB!$J$23*(CTLBB!$J$24*$O130^2+CTLBB!$J$25+CTLBB!$J$26)^0.5)*I130*1000 -> 4.947210814
A131: 128 | C131: 1-Ethyl-2-butylbenzene | D131: CCc1c(CCCC)cccc1 | E131: 12 | F131: Mono-Aromatic | G131: 11 | H131: 2 | I131: 162.2742 | J131: 233.0717489 | K131: 1.554369208 | L131: -0.1086707831 | M131: 0.01904663809 | N131: 4.976157136 | O131: =IF(N131<CTLBB!$L$43,N131,(CTLBB!$L$43-CTLBB!$L$43*CTLBB!$L$42)+CTLBB!$L$42*N131) -> 4.976157136 | P131: -0.109 | T131: 9.578658888e-06 | U131: -5.018695292 | V131: 186.1505194 | W131: 5.371996829 | Y131: =10^(CTLBB!$J$20*$O131+LOG(CTLBB!$J$21)-LOG(CTLBB!$J$22)+$P131-CTLBB!$J$23*(CTLBB!$J$24*$O131^2+CTLBB!$J$25+CTLBB!$J$26)^0.5)*I131*1000 -> 7.093041449
